{"text_format":"1","workbook":"xlsx","n_sheets":11,"sheets":["Inicio","Indice","Ayuda","AhorroL","AhorroAC","Emisiones","Facturacion","Empleos","ImpactoE","EmisionesER","Listas"],"not_rendered":{"charts":0,"images":10,"macros":1,"external_links":0,"defined_names":39,"comments":0,"pivot_tables":0},"unopened":[],"bounds":{"document_bytes":16777216,"sheet_cells":100000,"rows_first":2000,"rows_last":500,"rows_between":2000,"halvings":0,"cell_chars":16384,"cell_head_chars":4096},"cells_cut":0,"cells_raw":0,"read":"whole","date_system":"1900"}

{"sheet":"Inicio","index":0,"n_rows":17,"n_cols":3,"rows_kept":17,"cut":false,"hidden":false,"merged":[[5,2,6,2],[16,2,23,2],[1,2,3,2]]}
[]
[null,null,"CO-B MX: Hacia una herramienta de cuantificación de co-beneficios de la energía sostenible versión offline"]
[]
[]
[]
[null,null,"Este documento utiliza macros, pero solo debe habilitarlos si descargó el archivo de sitios autorizados"]
[]
[null,null,"https://www.giz.de/en/html/index.html"]
[null,null,"https://www.wearefactor.com/es/"]
[]
[]
[null,null,"Contacto e información de la calculadora: email@email.com"]
[]
[null,null,"Versión: 16/11/2021"]
[]
[]
[null,null,"La herramienta de cuantificación de co-beneficios se visualiza como un instrumento ágil y accesible a través del cual los gobiernos subnacionales, así como otros actores clave relacionados con la promoción e implementación de proyectos de energías renovables y de eficiencia energética puedan cuantificar el potencial de beneficios sociales, ambientales y económicos de sus proyectos, con el fin de generar elementos de información que visibilicen los impactos y oportunidades de la energía sustentable más allá de la reducción de emisiones de gases y compuestos de efecto invernadero"]

{"sheet":"Indice","index":1,"n_rows":23,"n_cols":12,"rows_kept":23,"cut":false,"hidden":false,"merged":[[6,1,6,5],[15,2,15,5]]}
[]
[]
[]
[]
[]
[]
[null,"Resultados de la Calculadora de Cobeneficios"]
[null,"Co-beneficio","Hoja","Aplicación en proyectos","Resultado","Unidades"]
[null,"Ahorro monetario","AhorroL y AhorroAC","Eficiencia Energética",{"$f":"SUM(TablaAM13[[#Totals],[Ahorro monetario]]+TablaAMAC[[#Totals],[Ahorro monetario]])","v":0},"[$]",null,null,null,null,null,"Tipo de Cambio (USD)"]
[null,"Emisiones de CO2e evitadas por el proyecto de EE","Emisiones","Eficiencia Energética",{"$f":"TablaEE18[[#Totals],[Emisiones evitadas]]","v":0},"[Kg CO2e]",null,null,null,null,null,20.334]
[null,"Ahorros e ingresos en la facturación en diversos esquemas de contraprestación","Facturación","Energía Renovable",{"$f":"SUM(TablaAIFV[Ahorro anual asociado a la facturacion])","v":0},"[$]"]
[null,"Empleos generados directos, indirectos e inducidos","Empleos","Energía Renovable",{"$f":"TEGTPEOL[[#Totals],[Total de empleos]]+TEGTPEOL19[[#Totals],[Total de empleos]]","v":0},"[Número de empleos]"]
[null,"Impacto económico de la inversión","ImpactoE","Energía Renovable",{"$f":"IFERROR((ImpactoE!$G$7+ImpactoE!$P$7)*$L$10,\"\")","v":0},"[$]"]
[null,"Emisiones de CO2e evitadas por el proyecto de ER","EmisionesER","Energía Renovable",{"$f":"IF(EmisionesER!$J$5=\"Sistemas de Generacion Distribuida\",SGD,IF(EmisionesER!$J$5=\"Sistemas de Gran Escala\",SGE,IF(EmisionesER!$J$5=\"Sistemas de Generacion Aislada\",SGA,\"\")))","v":0},"[Kg CO2e]"]
[]
[null,null,"Comparación de escenarios"]
[null,null,"Hoja","Escenario A","Escenario B","Unidades"]
[null,null,"AhorroL y AhorroAC",null,null,"[$]"]
[null,null,"Emisiones",null,null,"[Kg CO2e]"]
[null,null,"Facturación",null,null,"[$]"]
[null,null,"Empleos",null,null,"[Número de empleos]"]
[null,null,"ImpactoE",null,null,"[$]"]
[null,null,"EmisionesER",null,null,"[Kg CO2e]"]

{"sheet":"Ayuda","index":2,"n_rows":125,"n_cols":4,"rows_kept":125,"cut":false,"hidden":false,"merged":[[44,1,44,3],[13,1,14,1],[18,1,19,1],[22,1,23,1],[22,2,23,5],[24,2,24,5],[30,2,30,5],[25,2,25,5],[26,2,26,5],[27,2,27,5],[28,2,28,5],[29,2,29,5],[17,2,17,5],[0,2,1,2],[20,1,21,1],[8,1,10,1],[11,1,12,1],[7,1,7,5],[8,2,10,5],[11,2,12,5],[13,2,14,5],[18,2,19,5],[20,2,21,5],[15,2,15,5],[16,2,16,5]]}
[null,null,"Calculadora de Cobeneficios versión Offline"]
[]
[]
[null,null,"Para utilizar la calculadora de cobeneficios versión offline se sugiere leer el manual de usuario."]
[]
[null,null,"Contacto e información adicional sobre la calculadora: email@email.com"]
[]
[null,"Guia rapida"]
[null,"Macros","Esta calculadora de cobeneficios utiliza macros para realizar cálculos preestablecidos. Descargue la herramienta de sitios autorizados para asegurar que los macros no contengan codigo malicioso para su equipo."]
[]
[]
[null,"Navegación","En todas las hojas de cálculo existen botones de navegación de color gris para facilitar la navegación a través de la herramienta offline."]
[]
[null,"Tablas","Los cobeneficios se calculan por medio de tablas, algunas pueden crecer al presionar un botón con la leyenda \"Insertar fila\" situado en la parte superior de cada tabla. Para que el botón funcione, es necesario que la ultima fila de cada tabla se encuentre llena."]
[]
[null,"Análisis simplificado","Al presionar el botón de \"Análisis simplificado\"  las hojas de AhorroL, AhorroAC, Facturacion, Empleos e ImpactoE reducen su complejidad, mostrando menor detalle del cálculo al usuario."]
[null,"Análisis detallado","Al presionar el botón de \"Análisis detallado\"  las hojas de AhorroL, AhorroAC, Facturacion, Empleos e ImpactoE incrementan su complejidad, mostrando mayor detalle del cálculo al usuario."]
[null,"Ayuda de hoja","El símbolo de ayuda que aparece en cada hoja de cálculo abre un cuadro de diálogo en donde se despliegan las consideraciones realizadas para el cálculo del co-beneficio. Al cerrar el cuadro desde el boton \"OK\" los cuadros y columnas editables resaltarán."]
[null,"Color en Tablas","El encabezado de las columnas cuenta con un coódigo de color, diferenciando aquellas columnas en las que el usuario puede ingresar información con el color correspondiente a la categoría del co-beneficio."]
[]
[null,"Color de Cobeneficios","Los cobeneficios relacionados a proyectos de Eficiencia Energética se encuentran marcados en color azul, mientras que los relacionados a proyectos de Energía Renovable se encuentran marcados en color verde."]
[]
[null,"Análisis de escenarios","La hoja Indice posee la funcionalidad para copiar la informacion de la tabla de resultados hacia una tabla de comparación de escenarios. Al hacer clic en los botones para copiar valores hacia los escenarios A y B, la informacion se almacena en la tabla \"Comparación de escenarios\" para poder realizar un nuevo cálculo sin riesgo de perder los resultados previamente obtenidos."]
[]
[null,"AhorroL","En esta hoja es posible editar información en los cuadros color azul situados por encima de cada tabla, y también en las columnas cuyo encabezado de tabla es color azul. Las columnas editables se encuentran del lado izquierdo de cada tabla. "]
[null,"AhorroAC","En esta hoja es posible editar información en los cuadros color azul situados por encima de cada tabla, y también en las columnas cuyo encabezado de tabla es color azul. Las columnas editables se encuentran del lado izquierdo de cada tabla. "]
[null,"Emisiones","En esta hoja es posible editar información en los cuadros color azul situados por encima de cada tabla, y también en las columnas cuyo encabezado de tabla es color azul. Las columnas editables se encuentran del lado izquierdo de cada tabla. "]
[null,"Facturación","En esta hoja es posible editar información en las columnas cuyo encabezado de tabla es color verde. Las columnas editables se encuentran del lado izquierdo de cada tabla. "]
[null,"Empleos","En esta hoja es posible editar información en los cuadros color verde situados por encima de cada tabla. Las tablas 1 y 2 se encuentran directamente conectadas al cuadro de resultados, de modo que se pueda analizar un proyecto en ambas etapas para obtener la sumatoria de empleos de la Tabla 1 y la Tabla 2 en el cuadro de resultados. Las tablas 2 y 3 se ocultan para el análisis simplificado ya que su objetivo es para realizar análisis comparativos."]
[null,"ImpactoE","En esta hoja es posible editar información en los cuadros color verde situados por encima de cada tabla. Las tablas 1 y 2 se encuentran directamente conectadas al cuadro de resultados, de modo que se pueda analizar un proyecto en ambas etapas para obtener la sumatoria de impacto economico de la Tabla 1 y la Tabla 2 en el cuadro de resultados.  Las tablas 2 y 3 se ocultan para el análisis simplificado ya que su objetivo es para realizar análisis comparativos."]
[null,"EmisionesER","En esta hoja es posible editar información en los cuadros color verde situados por encima de cada tabla, y también en las columnas cuyo encabezado de tabla es color verde. Las columnas editables se encuentran del lado izquierdo de cada tabla. Para trasladar la información de la tabla de emisiones por sistemas de generacion distribuida, gran escala o generacion aislada hacia el cuadro de resultados es necesario seleccionar el nombre del sistema en el cuadro  objetivo."]
[]
[]
[]
[]
[]
[]
[]
[]
[]
[]
[]
[]
[]
[null,"LISTA DE ACRÓNIMOS"]
[null,"Acrónimo","Definición","Unidad"]
[null,"%TH","Porcentaje de trabajadores hombres que han adquirido y/o mejorado al menos una habilidad","%"]
[null,"%TM","Porcentaje de trabajadoras mujeres que han adquirido y/o mejorado al menos una habilidad","%"]
[null,"AA","Ahorro anual asociado a la facturación","$"]
[null,"AC","Descripción del equipo de aire acondicionado","SU"]
[null,"AIFV","Ahorros e ingresos en la facturación en diversos esquemas de contraprestación","$"]
[null,"AM","Ahorro monetario mensual","$"]
[null,"AMAC","Ahorro monetario por mantenimiento a equipos de aire acondicionado","$"]
[null,"AML","Ahorro Monetario por cambio de luminarias","$"]
[null,"C","Consumo promedio anual","MWh/año"]
[null,"CAP","Capacidad de producción de energía del proyecto","MWh/año"]
[null,"CAPEX","Costo de la instalación","$"]
[null,"CCEE","Cuantificación de co-beneficios para proyectos de eficiencia energética","SU"]
[null,"CCEEB","Costo mensual de la energía por el consumo de las luminarias a reemplazar en el EB","$/kWh"]
[null,"CCEEMEE","Costo mensual de la energía por el consumo de las luminarias reemplazadas en el EMEE","$/kWh"]
[null,"CEEB","Consumo mensual de energía del equipo a reemplazar en el EB","kWh"]
[null,"CEEMEE","Consumo mensual de energía del equipo reemplazado en el EMEE","kWh"]
[null,"CGS","Capacidad estimada de generación distribuida","MW"]
[null,"COEB","Costo de la energía en el escenario base","$/kWh"]
[null,"COEE","Costo de la energía en el escenario EMEE","$/kWh"]
[null,"CVP","Ciclo de vida del proyecto","SU"]
[null,"DCT","Desarrollo de capacidades Técnicas/Profesionales","SU"]
[null,"EB","Escenario base","SU"]
[null,"EDIR","Empleos directos","SU"]
[null,"EEB","Emisiones del EB","kg CO2e"]
[null,"EEMEE","Emisiones del EMEE","kg CO2e"]
[null,"EEPP","Emisiones evitadas por el proyecto","kg CO2e"]
[null,"EGTP","Empleos generados temporales y permanentes","Adimensional"]
[null,"EID","Empleos indirectos","Adimensional"]
[null,"EIND","Empleos inducidos","Adimensional"]
[null,"EMEE","Escenario con medidas de eficiencia energética","SU"]
[null,"EMEV","Emisiones evitadas","kg CO2e"]
[null,"EMP","Número total de empleos","Adimensional"]
[null,"EOL","Eólica","SU"]
[null,"F0-F10","Flujo de recuperación de la inversión del año 0 al año 10","$"]
[null,"FA","Facturación anual antes de instalar la generación distribuida","$/año"]
[null,"FD","Factor de declive","Adimensional"]
[null,"FDIR","Factor de empleo directo","Adimensional"]
[null,"FEEB","Factor de emisión eléctrico del EB","kg CO2e/kWh"]
[null,"FEEMEE","Factor de emisión eléctrico del EMEE","kg CO2e/kWh"]
[null,"FGD","Facturación anual después de instalar la planta de generación distribuida","$/año"]
[null,"FID","Factor de empleo indirecto","Adimensional"]
[null,"FIND","Factor de empleo inducido","Adimensional"]
[null,"FP","Factor de planta promedio para sistemas fotovoltaicos","Adimensional"]
[null,"FSDIR","Factor de incremento directo del impacto económico de la inversión","$/MW"]
[null,"FSID","Factor de incremento indirecto del impacto económico de la inversión","$/MW"]
[null,"FSIND","Factor de incremento inducido del impacto económico de la inversión","$/MW"]
[null,"FV","Fotovoltaica","SU"]
[null,"G","Generación estimada de electricidad","kWh"]
[null,"HIEB","Horas de uso promedio diario del equipo en el EB","hr"]
[null,"HIEMEE","Horas de uso promedio diario del equipo en el EMEE","hr"]
[null,"HOC","Horas de ocupación de las instalaciones","hr"]
[null,"I","Número de equipos","Adimensional"]
[null,"ICEE","Índice de consumo de energía eléctrica","kWh/m^2 año"]
[null,"ID","Identificador de ahorro/ingreso","SU"]
[null,"IEIDIR","Impacto económico directo de la inversión","$"]
[null,"IEIID","Impacto económico indirecto de la inversión","$"]
[null,"IEIIND","Impacto económico inducido de la inversión","$"]
[null,"IEIN","Impacto económico de la inversión","$"]
[null,"II","Inversión inicial","$"]
[null,"LUM","Descripción de la luminaria","SU"]
[null,"M","Periodo en meses para la cuantificación","Adimensional"]
[null,"NP","Número de personas","Adimensional"]
[null,"PE","Precio de la electricidad","$/MWh"]
[null,"PEB","Precio unitario promedio mensual de la energía en el EB","$/kWh"]
[null,"PEMEE","Precio unitario promedio mensual de la energía en el EMEE","$/kWh"]
[null,"PL","Factor de participación local","Adimensional"]
[null,"POIEB","Potencia del equipo en el EB","W"]
[null,"POIEMEE","Potencia del equipo en el EMEE","W"]
[null,"S","Superficie","m^2"]
[null,"SU","Sin unidades","SU"]
[null,"TAA","Ahorro anual total asociado a la facturación","$/año"]
[null,"THA","Trabajadores hombres que han adquirido y/o mejorado al menos una habilidad","Adimensional"]
[null,"TIEI","Total de impacto económico de la inversión","$"]
[null,"TM","Tasa metabólica","kWh"]
[null,"TMA","Trabajadoras mujeres que han adquirido y/o mejorado al menos una habilidad","Adimensional"]
[null,"TR","Tiempo de recuperación de la inversión","años"]
[null,"TTA","Total de trabajadores que han adquirido y/o mejorado al menos una habilidad","Adimensional"]
[null,"TTH","Total de trabajadores hombres que participaron en el proyecto","Adimensional"]
[null,"TTM","Total de trabajadoras mujeres que participaron en el proyecto","Adimensional"]

{"sheet":"AhorroL","index":3,"n_rows":19,"n_cols":24,"rows_kept":19,"cut":false,"hidden":true,"merged":[[1,1,1,8],[3,1,3,8],[2,11,2,16],[2,18,2,23]]}
[]
[null,"AHORRO MONETARIO - LUMINARIAS",null,null,null,null,null,null,null,null,null,"Buscar Acronimo","FEEB",{"$f":"VLOOKUP(M2,TablaACR[],2)","v":"Factor de emisión eléctrico del EB"}]
[null,null,null,null,null,null,null,null,null,null,null,"Luminarias a reemplazar en el EB",null,null,null,null,null,null,"Luminarias reemplazadas en el EMEE"]
[null,"Dado que el ahorro monetario se logra debido al ahorro de energía por cambio de tecnología, o bien por la modificación del tiempo de uso, el resultado del ahorro monetario estará en función de la potencia total de las luminarias (la cual se obtiene al sumar las potencias de las lámparas que conformar la luminaria) y las horas de utilización. Una vez que se conoce la diferencia de consumo energético, el ahorro es directamente proporcional al precio unitario de la energía.",null,null,null,null,null,null,null,null,null,"Consumo total mensual de energia de los equipos a reemplazar en el EB",{"$f":"IFERROR(SUM(TablaLEB[Consumo mensual de energia del equipo a reemplazar en el EB]),\"\")","v":0},null,null,"Periodo en meses para la cuantificacion",12,null,"Consumo total mensual de energia de los equipos a reemplazados en el EMEE",{"$f":"IFERROR(SUM(TablaLEMEE[Consumo mensual de energia del equipo reemplazado en el EMEE]),\"\")","v":0},null,null,"Periodo en meses para la cuantificacion",12]
[null,"[$/kWh]","[$/kWh]",null,"[$/kWh]","[kWh]","[$/kWh]","[kWh]","[$/kWh]","[kWh]",null,null,null,"[W]","[h]",null,"[kWh]",null,null,null,"[W]","[hr]",null,"[kWh]"]
[null,"Precio unitario promedio mensual de la energia en el EB","Precio unitario promedio mensual de la energia en el EMEE","Periodo en meses para la cuantificacion","Costo mensual de la energia asociado a las luminarias a reemplazar en el EB","Consumo mensual de energia del equipo a reemplazar en el EB","Costo mensual de la energia asociado a las luminarias reemplazadas en el EMEE","Consumo mensual de energia del equipo reemplazado en el EMEE","Ahorro monetario","Ahorro en consumo",null,"Descripcion de la luminaria","Tipo de tecnologia","Potencia del equipo en el EB","Horas de uso promedio diario del equipo en el EB","Numero de equipos","Consumo mensual de energia del equipo a reemplazar en el EB",null,"Descripcion de la luminaria","Tipo de tecnologia","Potencia del equipo en el EMEE","Horas de uso promedio diario del equipo en el EMEE","Numero de equipos","Consumo mensual de energia del equipo reemplazado en el EMEE"]
[null,null,null,"Mes 1",{"$f":"IFERROR(TablaAM13[[#This Row],[Precio unitario promedio mensual de la energia en el EB]]*TablaAM13[[#This Row],[Consumo mensual de energia del equipo a reemplazar en el EB]],\"\")","v":0},{"$f":"IFERROR(_xlfn.IFS(M_CEEB=1,TOTAL_CEEB,M_CEEB=2,TOTAL_CEEB,M_CEEB=3,TOTAL_CEEB,M_CEEB=4,TOTAL_CEEB,M_CEEB=5,TOTAL_CEEB,M_CEEB=6,TOTAL_CEEB,M_CEEB=7,TOTAL_CEEB,M_CEEB=8,TOTAL_CEEB,M_CEEB=9,TOTAL_CEEB,M_CEEB=10,TOTAL_CEEB,M_CEEB=11,TOTAL_CEEB,M_CEEB=12,TOTAL_CEEB),\"\")","v":0},{"$f":"IFERROR(TablaAM13[[#This Row],[Precio unitario promedio mensual de la energia en el EMEE]]*TablaAM13[[#This Row],[Consumo mensual de energia del equipo reemplazado en el EMEE]],\"\")","v":0},{"$f":"IFERROR(_xlfn.IFS(M_CEEMEE=1,TOTAL_CEEMEE,M_CEEMEE=2,TOTAL_CEEMEE,M_CEEMEE=3,TOTAL_CEEMEE,M_CEEMEE=4,TOTAL_CEEMEE,M_CEEMEE=5,TOTAL_CEEMEE,M_CEEMEE=6,TOTAL_CEEMEE,M_CEEMEE=7,TOTAL_CEEMEE,M_CEEMEE=8,TOTAL_CEEMEE,M_CEEMEE=9,TOTAL_CEEMEE,M_CEEMEE=10,TOTAL_CEEMEE,M_CEEMEE=11,TOTAL_CEEMEE,M_CEEMEE=12,TOTAL_CEEMEE),\"\")","v":0},{"$f":"IFERROR(TablaAM13[[#This Row],[Costo mensual de la energia asociado a las luminarias a reemplazar en el EB]]-TablaAM13[[#This Row],[Costo mensual de la energia asociado a las luminarias reemplazadas en el EMEE]],\"\")","v":0},{"$f":"IFERROR(TablaAM13[[#This Row],[Consumo mensual de energia del equipo a reemplazar en el EB]]-TablaAM13[[#This Row],[Consumo mensual de energia del equipo reemplazado en el EMEE]],\"\")","v":0},null,null,null,null,null,null,{"$f":"IFERROR((30*(TablaLEB[[#This Row],[Potencia del equipo en el EB]]*TablaLEB[[#This Row],[Horas de uso promedio diario del equipo en el EB]]*TablaLEB[[#This Row],[Numero de equipos]])/1000),\"\")","v":0},null,null,null,null,null,null,{"$f":"IFERROR((30*(TablaLEMEE[[#This Row],[Potencia del equipo en el EMEE]]*TablaLEMEE[[#This Row],[Horas de uso promedio diario del equipo en el EMEE]]*TablaLEMEE[[#This Row],[Numero de equipos]])/1000),\"\")","v":0}]
[null,null,null,"Mes 2",{"$f":"IFERROR(TablaAM13[[#This Row],[Precio unitario promedio mensual de la energia en el EB]]*TablaAM13[[#This Row],[Consumo mensual de energia del equipo a reemplazar en el EB]],\"\")","v":0},{"$f":"IFERROR(_xlfn.IFS(M_CEEB=2,TOTAL_CEEB,M_CEEB=3,TOTAL_CEEB,M_CEEB=4,TOTAL_CEEB,M_CEEB=5,TOTAL_CEEB,M_CEEB=6,TOTAL_CEEB,M_CEEB=7,TOTAL_CEEB,M_CEEB=8,TOTAL_CEEB,M_CEEB=9,TOTAL_CEEB,M_CEEB=10,TOTAL_CEEB,M_CEEB=11,TOTAL_CEEB,M_CEEB=12,TOTAL_CEEB),\"\")","v":0},{"$f":"IFERROR(TablaAM13[[#This Row],[Precio unitario promedio mensual de la energia en el EMEE]]*TablaAM13[[#This Row],[Consumo mensual de energia del equipo reemplazado en el EMEE]],\"\")","v":0},{"$f":"IFERROR(_xlfn.IFS(M_CEEMEE=2,TOTAL_CEEMEE,M_CEEMEE=3,TOTAL_CEEMEE,M_CEEMEE=4,TOTAL_CEEMEE,M_CEEMEE=5,TOTAL_CEEMEE,M_CEEMEE=6,TOTAL_CEEMEE,M_CEEMEE=7,TOTAL_CEEMEE,M_CEEMEE=8,TOTAL_CEEMEE,M_CEEMEE=9,TOTAL_CEEMEE,M_CEEMEE=10,TOTAL_CEEMEE,M_CEEMEE=11,TOTAL_CEEMEE,M_CEEMEE=12,TOTAL_CEEMEE),\"\")","v":0},{"$f":"IFERROR(TablaAM13[[#This Row],[Costo mensual de la energia asociado a las luminarias a reemplazar en el EB]]-TablaAM13[[#This Row],[Costo mensual de la energia asociado a las luminarias reemplazadas en el EMEE]],\"\")","v":0},{"$f":"IFERROR(TablaAM13[[#This Row],[Consumo mensual de energia del equipo a reemplazar en el EB]]-TablaAM13[[#This Row],[Consumo mensual de energia del equipo reemplazado en el EMEE]],\"\")","v":0},null,null,null,null,null,null,{"$f":"IFERROR((30*(TablaLEB[[#This Row],[Potencia del equipo en el EB]]*TablaLEB[[#This Row],[Horas de uso promedio diario del equipo en el EB]]*TablaLEB[[#This Row],[Numero de equipos]])/1000),\"\")","v":0},null,null,null,null,null,null,{"$f":"IFERROR((30*(TablaLEMEE[[#This Row],[Potencia del equipo en el EMEE]]*TablaLEMEE[[#This Row],[Horas de uso promedio diario del equipo en el EMEE]]*TablaLEMEE[[#This Row],[Numero de equipos]])/1000),\"\")","v":0}]
[null,null,null,"Mes 3",{"$f":"IFERROR(TablaAM13[[#This Row],[Precio unitario promedio mensual de la energia en el EB]]*TablaAM13[[#This Row],[Consumo mensual de energia del equipo a reemplazar en el EB]],\"\")","v":0},{"$f":"IFERROR(_xlfn.IFS(M_CEEB=3,TOTAL_CEEB,M_CEEB=4,TOTAL_CEEB,M_CEEB=5,TOTAL_CEEB,M_CEEB=6,TOTAL_CEEB,M_CEEB=7,TOTAL_CEEB,M_CEEB=8,TOTAL_CEEB,M_CEEB=9,TOTAL_CEEB,M_CEEB=10,TOTAL_CEEB,M_CEEB=11,TOTAL_CEEB,M_CEEB=12,TOTAL_CEEB),\"\")","v":0},{"$f":"IFERROR(TablaAM13[[#This Row],[Precio unitario promedio mensual de la energia en el EMEE]]*TablaAM13[[#This Row],[Consumo mensual de energia del equipo reemplazado en el EMEE]],\"\")","v":0},{"$f":"IFERROR(_xlfn.IFS(M_CEEMEE=3,TOTAL_CEEMEE,M_CEEMEE=4,TOTAL_CEEMEE,M_CEEMEE=5,TOTAL_CEEMEE,M_CEEMEE=6,TOTAL_CEEMEE,M_CEEMEE=7,TOTAL_CEEMEE,M_CEEMEE=8,TOTAL_CEEMEE,M_CEEMEE=9,TOTAL_CEEMEE,M_CEEMEE=10,TOTAL_CEEMEE,M_CEEMEE=11,TOTAL_CEEMEE,M_CEEMEE=12,TOTAL_CEEMEE),\"\")","v":0},{"$f":"IFERROR(TablaAM13[[#This Row],[Costo mensual de la energia asociado a las luminarias a reemplazar en el EB]]-TablaAM13[[#This Row],[Costo mensual de la energia asociado a las luminarias reemplazadas en el EMEE]],\"\")","v":0},{"$f":"IFERROR(TablaAM13[[#This Row],[Consumo mensual de energia del equipo a reemplazar en el EB]]-TablaAM13[[#This Row],[Consumo mensual de energia del equipo reemplazado en el EMEE]],\"\")","v":0},null,null,null,null,null,null,{"$f":"IFERROR((30*(TablaLEB[[#This Row],[Potencia del equipo en el EB]]*TablaLEB[[#This Row],[Horas de uso promedio diario del equipo en el EB]]*TablaLEB[[#This Row],[Numero de equipos]])/1000),\"\")","v":0},null,null,null,null,null,null,{"$f":"IFERROR((30*(TablaLEMEE[[#This Row],[Potencia del equipo en el EMEE]]*TablaLEMEE[[#This Row],[Horas de uso promedio diario del equipo en el EMEE]]*TablaLEMEE[[#This Row],[Numero de equipos]])/1000),\"\")","v":0}]
[null,null,null,"Mes 4",{"$f":"IFERROR(TablaAM13[[#This Row],[Precio unitario promedio mensual de la energia en el EB]]*TablaAM13[[#This Row],[Consumo mensual de energia del equipo a reemplazar en el EB]],\"\")","v":0},{"$f":"IFERROR(_xlfn.IFS(M_CEEB=4,TOTAL_CEEB,M_CEEB=5,TOTAL_CEEB,M_CEEB=6,TOTAL_CEEB,M_CEEB=7,TOTAL_CEEB,M_CEEB=8,TOTAL_CEEB,M_CEEB=9,TOTAL_CEEB,M_CEEB=10,TOTAL_CEEB,M_CEEB=11,TOTAL_CEEB,M_CEEB=12,TOTAL_CEEB),\"\")","v":0},{"$f":"IFERROR(TablaAM13[[#This Row],[Precio unitario promedio mensual de la energia en el EMEE]]*TablaAM13[[#This Row],[Consumo mensual de energia del equipo reemplazado en el EMEE]],\"\")","v":0},{"$f":"IFERROR(_xlfn.IFS(M_CEEMEE=4,TOTAL_CEEMEE,M_CEEMEE=5,TOTAL_CEEMEE,M_CEEMEE=6,TOTAL_CEEMEE,M_CEEMEE=7,TOTAL_CEEMEE,M_CEEMEE=8,TOTAL_CEEMEE,M_CEEMEE=9,TOTAL_CEEMEE,M_CEEMEE=10,TOTAL_CEEMEE,M_CEEMEE=11,TOTAL_CEEMEE,M_CEEMEE=12,TOTAL_CEEMEE),\"\")","v":0},{"$f":"IFERROR(TablaAM13[[#This Row],[Costo mensual de la energia asociado a las luminarias a reemplazar en el EB]]-TablaAM13[[#This Row],[Costo mensual de la energia asociado a las luminarias reemplazadas en el EMEE]],\"\")","v":0},{"$f":"IFERROR(TablaAM13[[#This Row],[Consumo mensual de energia del equipo a reemplazar en el EB]]-TablaAM13[[#This Row],[Consumo mensual de energia del equipo reemplazado en el EMEE]],\"\")","v":0},null,null,null,null,null,null,{"$f":"IFERROR((30*(TablaLEB[[#This Row],[Potencia del equipo en el EB]]*TablaLEB[[#This Row],[Horas de uso promedio diario del equipo en el EB]]*TablaLEB[[#This Row],[Numero de equipos]])/1000),\"\")","v":0},null,null,null,null,null,null,{"$f":"IFERROR((30*(TablaLEMEE[[#This Row],[Potencia del equipo en el EMEE]]*TablaLEMEE[[#This Row],[Horas de uso promedio diario del equipo en el EMEE]]*TablaLEMEE[[#This Row],[Numero de equipos]])/1000),\"\")","v":0}]
[null,null,null,"Mes 5",{"$f":"IFERROR(TablaAM13[[#This Row],[Precio unitario promedio mensual de la energia en el EB]]*TablaAM13[[#This Row],[Consumo mensual de energia del equipo a reemplazar en el EB]],\"\")","v":0},{"$f":"IFERROR(_xlfn.IFS(M_CEEB=5,TOTAL_CEEB,M_CEEB=6,TOTAL_CEEB,M_CEEB=7,TOTAL_CEEB,M_CEEB=8,TOTAL_CEEB,M_CEEB=9,TOTAL_CEEB,M_CEEB=10,TOTAL_CEEB,M_CEEB=11,TOTAL_CEEB,M_CEEB=12,TOTAL_CEEB),\"\")","v":0},{"$f":"IFERROR(TablaAM13[[#This Row],[Precio unitario promedio mensual de la energia en el EMEE]]*TablaAM13[[#This Row],[Consumo mensual de energia del equipo reemplazado en el EMEE]],\"\")","v":0},{"$f":"IFERROR(_xlfn.IFS(M_CEEMEE=5,TOTAL_CEEMEE,M_CEEMEE=6,TOTAL_CEEMEE,M_CEEMEE=7,TOTAL_CEEMEE,M_CEEMEE=8,TOTAL_CEEMEE,M_CEEMEE=9,TOTAL_CEEMEE,M_CEEMEE=10,TOTAL_CEEMEE,M_CEEMEE=11,TOTAL_CEEMEE,M_CEEMEE=12,TOTAL_CEEMEE),\"\")","v":0},{"$f":"IFERROR(TablaAM13[[#This Row],[Costo mensual de la energia asociado a las luminarias a reemplazar en el EB]]-TablaAM13[[#This Row],[Costo mensual de la energia asociado a las luminarias reemplazadas en el EMEE]],\"\")","v":0},{"$f":"IFERROR(TablaAM13[[#This Row],[Consumo mensual de energia del equipo a reemplazar en el EB]]-TablaAM13[[#This Row],[Consumo mensual de energia del equipo reemplazado en el EMEE]],\"\")","v":0},null,null,null,null,null,null,{"$f":"IFERROR((30*(TablaLEB[[#This Row],[Potencia del equipo en el EB]]*TablaLEB[[#This Row],[Horas de uso promedio diario del equipo en el EB]]*TablaLEB[[#This Row],[Numero de equipos]])/1000),\"\")","v":0},null,"i",null,null,null,null,{"$f":"IFERROR((30*(TablaLEMEE[[#This Row],[Potencia del equipo en el EMEE]]*TablaLEMEE[[#This Row],[Horas de uso promedio diario del equipo en el EMEE]]*TablaLEMEE[[#This Row],[Numero de equipos]])/1000),\"\")","v":0}]
[null,null,null,"Mes 6",{"$f":"IFERROR(TablaAM13[[#This Row],[Precio unitario promedio mensual de la energia en el EB]]*TablaAM13[[#This Row],[Consumo mensual de energia del equipo a reemplazar en el EB]],\"\")","v":0},{"$f":"IFERROR(_xlfn.IFS(M_CEEB=6,TOTAL_CEEB,M_CEEB=7,TOTAL_CEEB,M_CEEB=8,TOTAL_CEEB,M_CEEB=9,TOTAL_CEEB,M_CEEB=10,TOTAL_CEEB,M_CEEB=11,TOTAL_CEEB,M_CEEB=12,TOTAL_CEEB),\"\")","v":0},{"$f":"IFERROR(TablaAM13[[#This Row],[Precio unitario promedio mensual de la energia en el EMEE]]*TablaAM13[[#This Row],[Consumo mensual de energia del equipo reemplazado en el EMEE]],\"\")","v":0},{"$f":"IFERROR(_xlfn.IFS(M_CEEMEE=6,TOTAL_CEEMEE,M_CEEMEE=7,TOTAL_CEEMEE,M_CEEMEE=8,TOTAL_CEEMEE,M_CEEMEE=9,TOTAL_CEEMEE,M_CEEMEE=10,TOTAL_CEEMEE,M_CEEMEE=11,TOTAL_CEEMEE,M_CEEMEE=12,TOTAL_CEEMEE),\"\")","v":0},{"$f":"IFERROR(TablaAM13[[#This Row],[Costo mensual de la energia asociado a las luminarias a reemplazar en el EB]]-TablaAM13[[#This Row],[Costo mensual de la energia asociado a las luminarias reemplazadas en el EMEE]],\"\")","v":0},{"$f":"IFERROR(TablaAM13[[#This Row],[Consumo mensual de energia del equipo a reemplazar en el EB]]-TablaAM13[[#This Row],[Consumo mensual de energia del equipo reemplazado en el EMEE]],\"\")","v":0},null,null,null,null,null,null,{"$f":"IFERROR((30*(TablaLEB[[#This Row],[Potencia del equipo en el EB]]*TablaLEB[[#This Row],[Horas de uso promedio diario del equipo en el EB]]*TablaLEB[[#This Row],[Numero de equipos]])/1000),\"\")","v":0},null,null,null,null,null,null,{"$f":"IFERROR((30*(TablaLEMEE[[#This Row],[Potencia del equipo en el EMEE]]*TablaLEMEE[[#This Row],[Horas de uso promedio diario del equipo en el EMEE]]*TablaLEMEE[[#This Row],[Numero de equipos]])/1000),\"\")","v":0}]
[null,null,null,"Mes 7",{"$f":"IFERROR(TablaAM13[[#This Row],[Precio unitario promedio mensual de la energia en el EB]]*TablaAM13[[#This Row],[Consumo mensual de energia del equipo a reemplazar en el EB]],\"\")","v":0},{"$f":"IFERROR(_xlfn.IFS(M_CEEB=7,TOTAL_CEEB,M_CEEB=8,TOTAL_CEEB,M_CEEB=9,TOTAL_CEEB,M_CEEB=10,TOTAL_CEEB,M_CEEB=11,TOTAL_CEEB,M_CEEB=12,TOTAL_CEEB),\"\")","v":0},{"$f":"IFERROR(TablaAM13[[#This Row],[Precio unitario promedio mensual de la energia en el EMEE]]*TablaAM13[[#This Row],[Consumo mensual de energia del equipo reemplazado en el EMEE]],\"\")","v":0},{"$f":"IFERROR(_xlfn.IFS(M_CEEMEE=7,TOTAL_CEEMEE,M_CEEMEE=8,TOTAL_CEEMEE,M_CEEMEE=9,TOTAL_CEEMEE,M_CEEMEE=10,TOTAL_CEEMEE,M_CEEMEE=11,TOTAL_CEEMEE,M_CEEMEE=12,TOTAL_CEEMEE),\"\")","v":0},{"$f":"IFERROR(TablaAM13[[#This Row],[Costo mensual de la energia asociado a las luminarias a reemplazar en el EB]]-TablaAM13[[#This Row],[Costo mensual de la energia asociado a las luminarias reemplazadas en el EMEE]],\"\")","v":0},{"$f":"IFERROR(TablaAM13[[#This Row],[Consumo mensual de energia del equipo a reemplazar en el EB]]-TablaAM13[[#This Row],[Consumo mensual de energia del equipo reemplazado en el EMEE]],\"\")","v":0},null,null,null,null,null,null,{"$f":"IFERROR((30*(TablaLEB[[#This Row],[Potencia del equipo en el EB]]*TablaLEB[[#This Row],[Horas de uso promedio diario del equipo en el EB]]*TablaLEB[[#This Row],[Numero de equipos]])/1000),\"\")","v":0}]
[null,null,null,"Mes 8",{"$f":"IFERROR(TablaAM13[[#This Row],[Precio unitario promedio mensual de la energia en el EB]]*TablaAM13[[#This Row],[Consumo mensual de energia del equipo a reemplazar en el EB]],\"\")","v":0},{"$f":"IFERROR(_xlfn.IFS(M_CEEB=8,TOTAL_CEEB,M_CEEB=9,TOTAL_CEEB,M_CEEB=10,TOTAL_CEEB,M_CEEB=11,TOTAL_CEEB,M_CEEB=12,TOTAL_CEEB),\"\")","v":0},{"$f":"IFERROR(TablaAM13[[#This Row],[Precio unitario promedio mensual de la energia en el EMEE]]*TablaAM13[[#This Row],[Consumo mensual de energia del equipo reemplazado en el EMEE]],\"\")","v":0},{"$f":"IFERROR(_xlfn.IFS(M_CEEMEE=8,TOTAL_CEEMEE,M_CEEMEE=9,TOTAL_CEEMEE,M_CEEMEE=10,TOTAL_CEEMEE,M_CEEMEE=11,TOTAL_CEEMEE,M_CEEMEE=12,TOTAL_CEEMEE),\"\")","v":0},{"$f":"IFERROR(TablaAM13[[#This Row],[Costo mensual de la energia asociado a las luminarias a reemplazar en el EB]]-TablaAM13[[#This Row],[Costo mensual de la energia asociado a las luminarias reemplazadas en el EMEE]],\"\")","v":0},{"$f":"IFERROR(TablaAM13[[#This Row],[Consumo mensual de energia del equipo a reemplazar en el EB]]-TablaAM13[[#This Row],[Consumo mensual de energia del equipo reemplazado en el EMEE]],\"\")","v":0},null,null,null,null,null,null,{"$f":"IFERROR((30*(TablaLEB[[#This Row],[Potencia del equipo en el EB]]*TablaLEB[[#This Row],[Horas de uso promedio diario del equipo en el EB]]*TablaLEB[[#This Row],[Numero de equipos]])/1000),\"\")","v":0}]
[null,null,null,"Mes 9",{"$f":"IFERROR(TablaAM13[[#This Row],[Precio unitario promedio mensual de la energia en el EB]]*TablaAM13[[#This Row],[Consumo mensual de energia del equipo a reemplazar en el EB]],\"\")","v":0},{"$f":"IFERROR(_xlfn.IFS(M_CEEB=9,TOTAL_CEEB,M_CEEB=10,TOTAL_CEEB,M_CEEB=11,TOTAL_CEEB,M_CEEB=12,TOTAL_CEEB),\"\")","v":0},{"$f":"IFERROR(TablaAM13[[#This Row],[Precio unitario promedio mensual de la energia en el EMEE]]*TablaAM13[[#This Row],[Consumo mensual de energia del equipo reemplazado en el EMEE]],\"\")","v":0},{"$f":"IFERROR(_xlfn.IFS(M_CEEMEE=9,TOTAL_CEEMEE,M_CEEMEE=10,TOTAL_CEEMEE,M_CEEMEE=11,TOTAL_CEEMEE,M_CEEMEE=12,TOTAL_CEEMEE),\"\")","v":0},{"$f":"IFERROR(TablaAM13[[#This Row],[Costo mensual de la energia asociado a las luminarias a reemplazar en el EB]]-TablaAM13[[#This Row],[Costo mensual de la energia asociado a las luminarias reemplazadas en el EMEE]],\"\")","v":0},{"$f":"IFERROR(TablaAM13[[#This Row],[Consumo mensual de energia del equipo a reemplazar en el EB]]-TablaAM13[[#This Row],[Consumo mensual de energia del equipo reemplazado en el EMEE]],\"\")","v":0}]
[null,null,null,"Mes 10",{"$f":"IFERROR(TablaAM13[[#This Row],[Precio unitario promedio mensual de la energia en el EB]]*TablaAM13[[#This Row],[Consumo mensual de energia del equipo a reemplazar en el EB]],\"\")","v":0},{"$f":"IFERROR(_xlfn.IFS(M_CEEB=10,TOTAL_CEEB,M_CEEB=11,TOTAL_CEEB,M_CEEB=12,TOTAL_CEEB),\"\")","v":0},{"$f":"IFERROR(TablaAM13[[#This Row],[Precio unitario promedio mensual de la energia en el EMEE]]*TablaAM13[[#This Row],[Consumo mensual de energia del equipo reemplazado en el EMEE]],\"\")","v":0},{"$f":"IFERROR(_xlfn.IFS(M_CEEMEE=10,TOTAL_CEEMEE,M_CEEMEE=11,TOTAL_CEEMEE,M_CEEMEE=12,TOTAL_CEEMEE),\"\")","v":0},{"$f":"IFERROR(TablaAM13[[#This Row],[Costo mensual de la energia asociado a las luminarias a reemplazar en el EB]]-TablaAM13[[#This Row],[Costo mensual de la energia asociado a las luminarias reemplazadas en el EMEE]],\"\")","v":0},{"$f":"IFERROR(TablaAM13[[#This Row],[Consumo mensual de energia del equipo a reemplazar en el EB]]-TablaAM13[[#This Row],[Consumo mensual de energia del equipo reemplazado en el EMEE]],\"\")","v":0}]
[null,null,null,"Mes 11",{"$f":"IFERROR(TablaAM13[[#This Row],[Precio unitario promedio mensual de la energia en el EB]]*TablaAM13[[#This Row],[Consumo mensual de energia del equipo a reemplazar en el EB]],\"\")","v":0},{"$f":"IFERROR(_xlfn.IFS(M_CEEB=11,TOTAL_CEEB,M_CEEB=12,TOTAL_CEEB),\"\")","v":0},{"$f":"IFERROR(TablaAM13[[#This Row],[Precio unitario promedio mensual de la energia en el EMEE]]*TablaAM13[[#This Row],[Consumo mensual de energia del equipo reemplazado en el EMEE]],\"\")","v":0},{"$f":"IFERROR(_xlfn.IFS(M_CEEMEE=11,TOTAL_CEEMEE,M_CEEMEE=12,TOTAL_CEEMEE),\"\")","v":0},{"$f":"IFERROR(TablaAM13[[#This Row],[Costo mensual de la energia asociado a las luminarias a reemplazar en el EB]]-TablaAM13[[#This Row],[Costo mensual de la energia asociado a las luminarias reemplazadas en el EMEE]],\"\")","v":0},{"$f":"IFERROR(TablaAM13[[#This Row],[Consumo mensual de energia del equipo a reemplazar en el EB]]-TablaAM13[[#This Row],[Consumo mensual de energia del equipo reemplazado en el EMEE]],\"\")","v":0}]
[null,null,null,"Mes 12",{"$f":"IFERROR(TablaAM13[[#This Row],[Precio unitario promedio mensual de la energia en el EB]]*TablaAM13[[#This Row],[Consumo mensual de energia del equipo a reemplazar en el EB]],\"\")","v":0},{"$f":"IFERROR(_xlfn.IFS(M_CEEB=12,TOTAL_CEEB),\"\")","v":0},{"$f":"IFERROR(TablaAM13[[#This Row],[Precio unitario promedio mensual de la energia en el EMEE]]*TablaAM13[[#This Row],[Consumo mensual de energia del equipo reemplazado en el EMEE]],\"\")","v":0},{"$f":"IFERROR(_xlfn.IFS(M_CEEMEE=12,TOTAL_CEEMEE),\"\")","v":0},{"$f":"IFERROR(TablaAM13[[#This Row],[Costo mensual de la energia asociado a las luminarias a reemplazar en el EB]]-TablaAM13[[#This Row],[Costo mensual de la energia asociado a las luminarias reemplazadas en el EMEE]],\"\")","v":0},{"$f":"IFERROR(TablaAM13[[#This Row],[Consumo mensual de energia del equipo a reemplazar en el EB]]-TablaAM13[[#This Row],[Consumo mensual de energia del equipo reemplazado en el EMEE]],\"\")","v":0}]
[null,{"$f":"SUBTOTAL(101,TablaAM13[Precio unitario promedio mensual de la energia en el EB])","v":{"$error":"#DIV/0!"}},{"$f":"SUBTOTAL(101,TablaAM13[Precio unitario promedio mensual de la energia en el EMEE])","v":{"$error":"#DIV/0!"}},"Total",{"$f":"SUBTOTAL(109,TablaAM13[Costo mensual de la energia asociado a las luminarias a reemplazar en el EB])","v":0},{"$f":"SUBTOTAL(109,TablaAM13[Consumo mensual de energia del equipo a reemplazar en el EB])","v":0},{"$f":"SUBTOTAL(109,TablaAM13[Costo mensual de la energia asociado a las luminarias reemplazadas en el EMEE])","v":0},{"$f":"SUBTOTAL(109,TablaAM13[Consumo mensual de energia del equipo reemplazado en el EMEE])","v":0},{"$f":"SUBTOTAL(109,TablaAM13[Ahorro monetario])","v":0},{"$f":"SUBTOTAL(109,TablaAM13[Ahorro en consumo])","v":0}]

{"sheet":"AhorroAC","index":4,"n_rows":19,"n_cols":22,"rows_kept":19,"cut":false,"hidden":true,"merged":[[1,1,1,8],[3,1,3,8],[2,17,2,21],[2,11,2,15]]}
[]
[null,"AHORRO MONETARIO - EQUIPO DE AIRE ACONDICIONADO",null,null,null,null,null,null,null,null,null,"Buscar Acronimo","feeb",{"$f":"VLOOKUP(M2,TablaACR[],2)","v":"Factor de emisión eléctrico del EB"}]
[null,null,null,null,null,null,null,null,null,null,null,"Equipo de AC sin mantenimiento en el EB",null,null,null,null,null,"Equipo de AC con mantenimiento en el EMEE"]
[null,"}",null,null,null,null,null,null,null,null,null,"Consumo total mensual de energia de los equipos sin mantenimiento en el EB",{"$f":"IFERROR(SUM(TablaLEB12[Consumo mensual de energia del equipo sin mantenimiento en el EB]),\"\")","v":0},null,"Periodo en meses para la cuantificacion",12,null,"Consumo total mensual de energia de los equipos con mantenimiento en el EMEE",{"$f":"IFERROR(SUM(TablaLEMEE15[Consumo mensual de energia del equipo con mantenimiento en el EMEE]),\"\")","v":0},null,"Periodo en meses para la cuantificacion",12]
[null,"[$/kWh]","[$/kWh]",null,"[$/kWh]","[kWh]","[$/kWh]","[kWh]","[$/kWh]","[kWh]",null,null,"[W]","[h]",null,"[kWh]",null,null,"[W]","[h]",null,"[kWh]"]
[null,"Precio unitario promedio mensual de la energia en el EB","Precio unitario promedio mensual de la energia en el EMEE","Periodo en meses para la cuantificacion","Costo mensual de la energia asociado al equipo de AC sin mantenimiento en el EB","Consumo mensual de energia del equipo a aplicar mantenimiento en el EB","Costo mensual de la energia asociado al equipo de AC con mantenimiento en el EMEE","Consumo mensual de energia del equipo con mantenimiento en el EMEE","Ahorro monetario","Ahorro en consumo",null,"Descripcion del equipo de AC","Potencia del equipo en el EB","Horas de uso promedio diario del equipo en el EB","Numero de equipos","Consumo mensual de energia del equipo sin mantenimiento en el EB",null,"Descripcion del equipo de AC","Potencia del equipo en el EMEE","Horas de uso promedio diario del equipo en el EMEE","Numero de equipos","Consumo mensual de energia del equipo con mantenimiento en el EMEE"]
[null,null,null,"Mes 1",{"$f":"IFERROR(TablaAMAC[[#This Row],[Precio unitario promedio mensual de la energia en el EB]]*TablaAMAC[[#This Row],[Consumo mensual de energia del equipo a aplicar mantenimiento en el EB]],\"\")","v":0},{"$f":"IFERROR(_xlfn.IFS(M_CEEB=1,TOTAL_CEEB,M_CEEB=2,TOTAL_CEEB,M_CEEB=3,TOTAL_CEEB,M_CEEB=4,TOTAL_CEEB,M_CEEB=5,TOTAL_CEEB,M_CEEB=6,TOTAL_CEEB,M_CEEB=7,TOTAL_CEEB,M_CEEB=8,TOTAL_CEEB,M_CEEB=9,TOTAL_CEEB,M_CEEB=10,TOTAL_CEEB,M_CEEB=11,TOTAL_CEEB,M_CEEB=12,TOTAL_CEEB),\"\")","v":0},{"$f":"IFERROR(TablaAMAC[[#This Row],[Precio unitario promedio mensual de la energia en el EMEE]]*TablaAMAC[[#This Row],[Consumo mensual de energia del equipo con mantenimiento en el EMEE]],\"\")","v":0},{"$f":"IFERROR(_xlfn.IFS(M_CEEMEE=1,TOTAL_CEEMEE,M_CEEMEE=2,TOTAL_CEEMEE,M_CEEMEE=3,TOTAL_CEEMEE,M_CEEMEE=4,TOTAL_CEEMEE,M_CEEMEE=5,TOTAL_CEEMEE,M_CEEMEE=6,TOTAL_CEEMEE,M_CEEMEE=7,TOTAL_CEEMEE,M_CEEMEE=8,TOTAL_CEEMEE,M_CEEMEE=9,TOTAL_CEEMEE,M_CEEMEE=10,TOTAL_CEEMEE,M_CEEMEE=11,TOTAL_CEEMEE,M_CEEMEE=12,TOTAL_CEEMEE),\"\")","v":0},{"$f":"IFERROR(TablaAMAC[[#This Row],[Costo mensual de la energia asociado al equipo de AC sin mantenimiento en el EB]]-TablaAMAC[[#This Row],[Costo mensual de la energia asociado al equipo de AC con mantenimiento en el EMEE]],\"\")","v":0},{"$f":"IFERROR(TablaAMAC[[#This Row],[Consumo mensual de energia del equipo a aplicar mantenimiento en el EB]]-TablaAMAC[[#This Row],[Consumo mensual de energia del equipo con mantenimiento en el EMEE]],\"\")","v":0},null,null,null,null,null,{"$f":"IFERROR(((30*TablaLEB12[[#This Row],[Numero de equipos]]*TablaLEB12[[#This Row],[Potencia del equipo en el EB]]*TablaLEB12[[#This Row],[Horas de uso promedio diario del equipo en el EB]])/1000),\"\")","v":0},null,null,null,null,null,{"$f":"IFERROR(((30*TablaLEMEE15[[#This Row],[Potencia del equipo en el EMEE]]*TablaLEMEE15[[#This Row],[Horas de uso promedio diario del equipo en el EMEE]]*TablaLEMEE15[[#This Row],[Numero de equipos]])/1000),\"\")","v":0}]
[null,null,null,"Mes 2",{"$f":"IFERROR(TablaAMAC[[#This Row],[Precio unitario promedio mensual de la energia en el EB]]*TablaAMAC[[#This Row],[Consumo mensual de energia del equipo a aplicar mantenimiento en el EB]],\"\")","v":0},{"$f":"IFERROR(_xlfn.IFS(M_CEEB=2,TOTAL_CEEB,M_CEEB=3,TOTAL_CEEB,M_CEEB=4,TOTAL_CEEB,M_CEEB=5,TOTAL_CEEB,M_CEEB=6,TOTAL_CEEB,M_CEEB=7,TOTAL_CEEB,M_CEEB=8,TOTAL_CEEB,M_CEEB=9,TOTAL_CEEB,M_CEEB=10,TOTAL_CEEB,M_CEEB=11,TOTAL_CEEB,M_CEEB=12,TOTAL_CEEB),\"\")","v":0},{"$f":"IFERROR(TablaAMAC[[#This Row],[Precio unitario promedio mensual de la energia en el EMEE]]*TablaAMAC[[#This Row],[Consumo mensual de energia del equipo con mantenimiento en el EMEE]],\"\")","v":0},{"$f":"IFERROR(_xlfn.IFS(M_CEEMEE=2,TOTAL_CEEMEE,M_CEEMEE=3,TOTAL_CEEMEE,M_CEEMEE=4,TOTAL_CEEMEE,M_CEEMEE=5,TOTAL_CEEMEE,M_CEEMEE=6,TOTAL_CEEMEE,M_CEEMEE=7,TOTAL_CEEMEE,M_CEEMEE=8,TOTAL_CEEMEE,M_CEEMEE=9,TOTAL_CEEMEE,M_CEEMEE=10,TOTAL_CEEMEE,M_CEEMEE=11,TOTAL_CEEMEE,M_CEEMEE=12,TOTAL_CEEMEE),\"\")","v":0},{"$f":"IFERROR(TablaAMAC[[#This Row],[Costo mensual de la energia asociado al equipo de AC sin mantenimiento en el EB]]-TablaAMAC[[#This Row],[Costo mensual de la energia asociado al equipo de AC con mantenimiento en el EMEE]],\"\")","v":0},{"$f":"IFERROR(TablaAMAC[[#This Row],[Consumo mensual de energia del equipo a aplicar mantenimiento en el EB]]-TablaAMAC[[#This Row],[Consumo mensual de energia del equipo con mantenimiento en el EMEE]],\"\")","v":0},null,null,null,null,null,{"$f":"IFERROR(((30*TablaLEB12[[#This Row],[Numero de equipos]]*TablaLEB12[[#This Row],[Potencia del equipo en el EB]]*TablaLEB12[[#This Row],[Horas de uso promedio diario del equipo en el EB]])/1000),\"\")","v":0},null,null,null,null,null,{"$f":"IFERROR(((30*TablaLEMEE15[[#This Row],[Potencia del equipo en el EMEE]]*TablaLEMEE15[[#This Row],[Horas de uso promedio diario del equipo en el EMEE]]*TablaLEMEE15[[#This Row],[Numero de equipos]])/1000),\"\")","v":0}]
[null,null,null,"Mes 3",{"$f":"IFERROR(TablaAMAC[[#This Row],[Precio unitario promedio mensual de la energia en el EB]]*TablaAMAC[[#This Row],[Consumo mensual de energia del equipo a aplicar mantenimiento en el EB]],\"\")","v":0},{"$f":"IFERROR(_xlfn.IFS(M_CEEB=3,TOTAL_CEEB,M_CEEB=4,TOTAL_CEEB,M_CEEB=5,TOTAL_CEEB,M_CEEB=6,TOTAL_CEEB,M_CEEB=7,TOTAL_CEEB,M_CEEB=8,TOTAL_CEEB,M_CEEB=9,TOTAL_CEEB,M_CEEB=10,TOTAL_CEEB,M_CEEB=11,TOTAL_CEEB,M_CEEB=12,TOTAL_CEEB),\"\")","v":0},{"$f":"IFERROR(TablaAMAC[[#This Row],[Precio unitario promedio mensual de la energia en el EMEE]]*TablaAMAC[[#This Row],[Consumo mensual de energia del equipo con mantenimiento en el EMEE]],\"\")","v":0},{"$f":"IFERROR(_xlfn.IFS(M_CEEMEE=3,TOTAL_CEEMEE,M_CEEMEE=4,TOTAL_CEEMEE,M_CEEMEE=5,TOTAL_CEEMEE,M_CEEMEE=6,TOTAL_CEEMEE,M_CEEMEE=7,TOTAL_CEEMEE,M_CEEMEE=8,TOTAL_CEEMEE,M_CEEMEE=9,TOTAL_CEEMEE,M_CEEMEE=10,TOTAL_CEEMEE,M_CEEMEE=11,TOTAL_CEEMEE,M_CEEMEE=12,TOTAL_CEEMEE),\"\")","v":0},{"$f":"IFERROR(TablaAMAC[[#This Row],[Costo mensual de la energia asociado al equipo de AC sin mantenimiento en el EB]]-TablaAMAC[[#This Row],[Costo mensual de la energia asociado al equipo de AC con mantenimiento en el EMEE]],\"\")","v":0},{"$f":"IFERROR(TablaAMAC[[#This Row],[Consumo mensual de energia del equipo a aplicar mantenimiento en el EB]]-TablaAMAC[[#This Row],[Consumo mensual de energia del equipo con mantenimiento en el EMEE]],\"\")","v":0},null,null,null,null,null,{"$f":"IFERROR(((30*TablaLEB12[[#This Row],[Numero de equipos]]*TablaLEB12[[#This Row],[Potencia del equipo en el EB]]*TablaLEB12[[#This Row],[Horas de uso promedio diario del equipo en el EB]])/1000),\"\")","v":0},null,null,null,null,null,{"$f":"IFERROR(((30*TablaLEMEE15[[#This Row],[Potencia del equipo en el EMEE]]*TablaLEMEE15[[#This Row],[Horas de uso promedio diario del equipo en el EMEE]]*TablaLEMEE15[[#This Row],[Numero de equipos]])/1000),\"\")","v":0}]
[null,null,null,"Mes 4",{"$f":"IFERROR(TablaAMAC[[#This Row],[Precio unitario promedio mensual de la energia en el EB]]*TablaAMAC[[#This Row],[Consumo mensual de energia del equipo a aplicar mantenimiento en el EB]],\"\")","v":0},{"$f":"IFERROR(_xlfn.IFS(M_CEEB=4,TOTAL_CEEB,M_CEEB=5,TOTAL_CEEB,M_CEEB=6,TOTAL_CEEB,M_CEEB=7,TOTAL_CEEB,M_CEEB=8,TOTAL_CEEB,M_CEEB=9,TOTAL_CEEB,M_CEEB=10,TOTAL_CEEB,M_CEEB=11,TOTAL_CEEB,M_CEEB=12,TOTAL_CEEB),\"\")","v":0},{"$f":"IFERROR(TablaAMAC[[#This Row],[Precio unitario promedio mensual de la energia en el EMEE]]*TablaAMAC[[#This Row],[Consumo mensual de energia del equipo con mantenimiento en el EMEE]],\"\")","v":0},{"$f":"IFERROR(_xlfn.IFS(M_CEEMEE=4,TOTAL_CEEMEE,M_CEEMEE=5,TOTAL_CEEMEE,M_CEEMEE=6,TOTAL_CEEMEE,M_CEEMEE=7,TOTAL_CEEMEE,M_CEEMEE=8,TOTAL_CEEMEE,M_CEEMEE=9,TOTAL_CEEMEE,M_CEEMEE=10,TOTAL_CEEMEE,M_CEEMEE=11,TOTAL_CEEMEE,M_CEEMEE=12,TOTAL_CEEMEE),\"\")","v":0},{"$f":"IFERROR(TablaAMAC[[#This Row],[Costo mensual de la energia asociado al equipo de AC sin mantenimiento en el EB]]-TablaAMAC[[#This Row],[Costo mensual de la energia asociado al equipo de AC con mantenimiento en el EMEE]],\"\")","v":0},{"$f":"IFERROR(TablaAMAC[[#This Row],[Consumo mensual de energia del equipo a aplicar mantenimiento en el EB]]-TablaAMAC[[#This Row],[Consumo mensual de energia del equipo con mantenimiento en el EMEE]],\"\")","v":0},null,null,null,null,null,{"$f":"IFERROR(((30*TablaLEB12[[#This Row],[Numero de equipos]]*TablaLEB12[[#This Row],[Potencia del equipo en el EB]]*TablaLEB12[[#This Row],[Horas de uso promedio diario del equipo en el EB]])/1000),\"\")","v":0},null,null,null,null,null,{"$f":"IFERROR(((30*TablaLEMEE15[[#This Row],[Potencia del equipo en el EMEE]]*TablaLEMEE15[[#This Row],[Horas de uso promedio diario del equipo en el EMEE]]*TablaLEMEE15[[#This Row],[Numero de equipos]])/1000),\"\")","v":0}]
[null,null,null,"Mes 5",{"$f":"IFERROR(TablaAMAC[[#This Row],[Precio unitario promedio mensual de la energia en el EB]]*TablaAMAC[[#This Row],[Consumo mensual de energia del equipo a aplicar mantenimiento en el EB]],\"\")","v":0},{"$f":"IFERROR(_xlfn.IFS(M_CEEB=5,TOTAL_CEEB,M_CEEB=6,TOTAL_CEEB,M_CEEB=7,TOTAL_CEEB,M_CEEB=8,TOTAL_CEEB,M_CEEB=9,TOTAL_CEEB,M_CEEB=10,TOTAL_CEEB,M_CEEB=11,TOTAL_CEEB,M_CEEB=12,TOTAL_CEEB),\"\")","v":0},{"$f":"IFERROR(TablaAMAC[[#This Row],[Precio unitario promedio mensual de la energia en el EMEE]]*TablaAMAC[[#This Row],[Consumo mensual de energia del equipo con mantenimiento en el EMEE]],\"\")","v":0},{"$f":"IFERROR(_xlfn.IFS(M_CEEMEE=5,TOTAL_CEEMEE,M_CEEMEE=6,TOTAL_CEEMEE,M_CEEMEE=7,TOTAL_CEEMEE,M_CEEMEE=8,TOTAL_CEEMEE,M_CEEMEE=9,TOTAL_CEEMEE,M_CEEMEE=10,TOTAL_CEEMEE,M_CEEMEE=11,TOTAL_CEEMEE,M_CEEMEE=12,TOTAL_CEEMEE),\"\")","v":0},{"$f":"IFERROR(TablaAMAC[[#This Row],[Costo mensual de la energia asociado al equipo de AC sin mantenimiento en el EB]]-TablaAMAC[[#This Row],[Costo mensual de la energia asociado al equipo de AC con mantenimiento en el EMEE]],\"\")","v":0},{"$f":"IFERROR(TablaAMAC[[#This Row],[Consumo mensual de energia del equipo a aplicar mantenimiento en el EB]]-TablaAMAC[[#This Row],[Consumo mensual de energia del equipo con mantenimiento en el EMEE]],\"\")","v":0}]
[null,null,null,"Mes 6",{"$f":"IFERROR(TablaAMAC[[#This Row],[Precio unitario promedio mensual de la energia en el EB]]*TablaAMAC[[#This Row],[Consumo mensual de energia del equipo a aplicar mantenimiento en el EB]],\"\")","v":0},{"$f":"IFERROR(_xlfn.IFS(M_CEEB=6,TOTAL_CEEB,M_CEEB=7,TOTAL_CEEB,M_CEEB=8,TOTAL_CEEB,M_CEEB=9,TOTAL_CEEB,M_CEEB=10,TOTAL_CEEB,M_CEEB=11,TOTAL_CEEB,M_CEEB=12,TOTAL_CEEB),\"\")","v":0},{"$f":"IFERROR(TablaAMAC[[#This Row],[Precio unitario promedio mensual de la energia en el EMEE]]*TablaAMAC[[#This Row],[Consumo mensual de energia del equipo con mantenimiento en el EMEE]],\"\")","v":0},{"$f":"IFERROR(_xlfn.IFS(M_CEEMEE=6,TOTAL_CEEMEE,M_CEEMEE=7,TOTAL_CEEMEE,M_CEEMEE=8,TOTAL_CEEMEE,M_CEEMEE=9,TOTAL_CEEMEE,M_CEEMEE=10,TOTAL_CEEMEE,M_CEEMEE=11,TOTAL_CEEMEE,M_CEEMEE=12,TOTAL_CEEMEE),\"\")","v":0},{"$f":"IFERROR(TablaAMAC[[#This Row],[Costo mensual de la energia asociado al equipo de AC sin mantenimiento en el EB]]-TablaAMAC[[#This Row],[Costo mensual de la energia asociado al equipo de AC con mantenimiento en el EMEE]],\"\")","v":0},{"$f":"IFERROR(TablaAMAC[[#This Row],[Consumo mensual de energia del equipo a aplicar mantenimiento en el EB]]-TablaAMAC[[#This Row],[Consumo mensual de energia del equipo con mantenimiento en el EMEE]],\"\")","v":0}]
[null,null,null,"Mes 7",{"$f":"IFERROR(TablaAMAC[[#This Row],[Precio unitario promedio mensual de la energia en el EB]]*TablaAMAC[[#This Row],[Consumo mensual de energia del equipo a aplicar mantenimiento en el EB]],\"\")","v":0},{"$f":"IFERROR(_xlfn.IFS(M_CEEB=7,TOTAL_CEEB,M_CEEB=8,TOTAL_CEEB,M_CEEB=9,TOTAL_CEEB,M_CEEB=10,TOTAL_CEEB,M_CEEB=11,TOTAL_CEEB,M_CEEB=12,TOTAL_CEEB),\"\")","v":0},{"$f":"IFERROR(TablaAMAC[[#This Row],[Precio unitario promedio mensual de la energia en el EMEE]]*TablaAMAC[[#This Row],[Consumo mensual de energia del equipo con mantenimiento en el EMEE]],\"\")","v":0},{"$f":"IFERROR(_xlfn.IFS(M_CEEMEE=7,TOTAL_CEEMEE,M_CEEMEE=8,TOTAL_CEEMEE,M_CEEMEE=9,TOTAL_CEEMEE,M_CEEMEE=10,TOTAL_CEEMEE,M_CEEMEE=11,TOTAL_CEEMEE,M_CEEMEE=12,TOTAL_CEEMEE),\"\")","v":0},{"$f":"IFERROR(TablaAMAC[[#This Row],[Costo mensual de la energia asociado al equipo de AC sin mantenimiento en el EB]]-TablaAMAC[[#This Row],[Costo mensual de la energia asociado al equipo de AC con mantenimiento en el EMEE]],\"\")","v":0},{"$f":"IFERROR(TablaAMAC[[#This Row],[Consumo mensual de energia del equipo a aplicar mantenimiento en el EB]]-TablaAMAC[[#This Row],[Consumo mensual de energia del equipo con mantenimiento en el EMEE]],\"\")","v":0}]
[null,null,null,"Mes 8",{"$f":"IFERROR(TablaAMAC[[#This Row],[Precio unitario promedio mensual de la energia en el EB]]*TablaAMAC[[#This Row],[Consumo mensual de energia del equipo a aplicar mantenimiento en el EB]],\"\")","v":0},{"$f":"IFERROR(_xlfn.IFS(M_CEEB=8,TOTAL_CEEB,M_CEEB=9,TOTAL_CEEB,M_CEEB=10,TOTAL_CEEB,M_CEEB=11,TOTAL_CEEB,M_CEEB=12,TOTAL_CEEB),\"\")","v":0},{"$f":"IFERROR(TablaAMAC[[#This Row],[Precio unitario promedio mensual de la energia en el EMEE]]*TablaAMAC[[#This Row],[Consumo mensual de energia del equipo con mantenimiento en el EMEE]],\"\")","v":0},{"$f":"IFERROR(_xlfn.IFS(M_CEEMEE=8,TOTAL_CEEMEE,M_CEEMEE=9,TOTAL_CEEMEE,M_CEEMEE=10,TOTAL_CEEMEE,M_CEEMEE=11,TOTAL_CEEMEE,M_CEEMEE=12,TOTAL_CEEMEE),\"\")","v":0},{"$f":"IFERROR(TablaAMAC[[#This Row],[Costo mensual de la energia asociado al equipo de AC sin mantenimiento en el EB]]-TablaAMAC[[#This Row],[Costo mensual de la energia asociado al equipo de AC con mantenimiento en el EMEE]],\"\")","v":0},{"$f":"IFERROR(TablaAMAC[[#This Row],[Consumo mensual de energia del equipo a aplicar mantenimiento en el EB]]-TablaAMAC[[#This Row],[Consumo mensual de energia del equipo con mantenimiento en el EMEE]],\"\")","v":0}]
[null,null,null,"Mes 9",{"$f":"IFERROR(TablaAMAC[[#This Row],[Precio unitario promedio mensual de la energia en el EB]]*TablaAMAC[[#This Row],[Consumo mensual de energia del equipo a aplicar mantenimiento en el EB]],\"\")","v":0},{"$f":"IFERROR(_xlfn.IFS(M_CEEB=9,TOTAL_CEEB,M_CEEB=10,TOTAL_CEEB,M_CEEB=11,TOTAL_CEEB,M_CEEB=12,TOTAL_CEEB),\"\")","v":0},{"$f":"IFERROR(TablaAMAC[[#This Row],[Precio unitario promedio mensual de la energia en el EMEE]]*TablaAMAC[[#This Row],[Consumo mensual de energia del equipo con mantenimiento en el EMEE]],\"\")","v":0},{"$f":"IFERROR(_xlfn.IFS(M_CEEMEE=9,TOTAL_CEEMEE,M_CEEMEE=10,TOTAL_CEEMEE,M_CEEMEE=11,TOTAL_CEEMEE,M_CEEMEE=12,TOTAL_CEEMEE),\"\")","v":0},{"$f":"IFERROR(TablaAMAC[[#This Row],[Costo mensual de la energia asociado al equipo de AC sin mantenimiento en el EB]]-TablaAMAC[[#This Row],[Costo mensual de la energia asociado al equipo de AC con mantenimiento en el EMEE]],\"\")","v":0},{"$f":"IFERROR(TablaAMAC[[#This Row],[Consumo mensual de energia del equipo a aplicar mantenimiento en el EB]]-TablaAMAC[[#This Row],[Consumo mensual de energia del equipo con mantenimiento en el EMEE]],\"\")","v":0}]
[null,null,null,"Mes 10",{"$f":"IFERROR(TablaAMAC[[#This Row],[Precio unitario promedio mensual de la energia en el EB]]*TablaAMAC[[#This Row],[Consumo mensual de energia del equipo a aplicar mantenimiento en el EB]],\"\")","v":0},{"$f":"IFERROR(_xlfn.IFS(M_CEEB=10,TOTAL_CEEB,M_CEEB=11,TOTAL_CEEB,M_CEEB=12,TOTAL_CEEB),\"\")","v":0},{"$f":"IFERROR(TablaAMAC[[#This Row],[Precio unitario promedio mensual de la energia en el EMEE]]*TablaAMAC[[#This Row],[Consumo mensual de energia del equipo con mantenimiento en el EMEE]],\"\")","v":0},{"$f":"IFERROR(_xlfn.IFS(M_CEEMEE=10,TOTAL_CEEMEE,M_CEEMEE=11,TOTAL_CEEMEE,M_CEEMEE=12,TOTAL_CEEMEE),\"\")","v":0},{"$f":"IFERROR(TablaAMAC[[#This Row],[Costo mensual de la energia asociado al equipo de AC sin mantenimiento en el EB]]-TablaAMAC[[#This Row],[Costo mensual de la energia asociado al equipo de AC con mantenimiento en el EMEE]],\"\")","v":0},{"$f":"IFERROR(TablaAMAC[[#This Row],[Consumo mensual de energia del equipo a aplicar mantenimiento en el EB]]-TablaAMAC[[#This Row],[Consumo mensual de energia del equipo con mantenimiento en el EMEE]],\"\")","v":0}]
[null,null,null,"Mes 11",{"$f":"IFERROR(TablaAMAC[[#This Row],[Precio unitario promedio mensual de la energia en el EB]]*TablaAMAC[[#This Row],[Consumo mensual de energia del equipo a aplicar mantenimiento en el EB]],\"\")","v":0},{"$f":"IFERROR(_xlfn.IFS(M_CEEB=11,TOTAL_CEEB,M_CEEB=12,TOTAL_CEEB),\"\")","v":0},{"$f":"IFERROR(TablaAMAC[[#This Row],[Precio unitario promedio mensual de la energia en el EMEE]]*TablaAMAC[[#This Row],[Consumo mensual de energia del equipo con mantenimiento en el EMEE]],\"\")","v":0},{"$f":"IFERROR(_xlfn.IFS(M_CEEMEE=11,TOTAL_CEEMEE,M_CEEMEE=12,TOTAL_CEEMEE),\"\")","v":0},{"$f":"IFERROR(TablaAMAC[[#This Row],[Costo mensual de la energia asociado al equipo de AC sin mantenimiento en el EB]]-TablaAMAC[[#This Row],[Costo mensual de la energia asociado al equipo de AC con mantenimiento en el EMEE]],\"\")","v":0},{"$f":"IFERROR(TablaAMAC[[#This Row],[Consumo mensual de energia del equipo a aplicar mantenimiento en el EB]]-TablaAMAC[[#This Row],[Consumo mensual de energia del equipo con mantenimiento en el EMEE]],\"\")","v":0}]
[null,null,null,"Mes 12",{"$f":"IFERROR(TablaAMAC[[#This Row],[Precio unitario promedio mensual de la energia en el EB]]*TablaAMAC[[#This Row],[Consumo mensual de energia del equipo a aplicar mantenimiento en el EB]],\"\")","v":0},{"$f":"IFERROR(_xlfn.IFS(M_CEEB=12,TOTAL_CEEB),\"\")","v":0},{"$f":"IFERROR(TablaAMAC[[#This Row],[Precio unitario promedio mensual de la energia en el EMEE]]*TablaAMAC[[#This Row],[Consumo mensual de energia del equipo con mantenimiento en el EMEE]],\"\")","v":0},{"$f":"IFERROR(_xlfn.IFS(M_CEEMEE=12,TOTAL_CEEMEE),\"\")","v":0},{"$f":"IFERROR(TablaAMAC[[#This Row],[Costo mensual de la energia asociado al equipo de AC sin mantenimiento en el EB]]-TablaAMAC[[#This Row],[Costo mensual de la energia asociado al equipo de AC con mantenimiento en el EMEE]],\"\")","v":0},{"$f":"IFERROR(TablaAMAC[[#This Row],[Consumo mensual de energia del equipo a aplicar mantenimiento en el EB]]-TablaAMAC[[#This Row],[Consumo mensual de energia del equipo con mantenimiento en el EMEE]],\"\")","v":0}]
[null,{"$f":"SUBTOTAL(101,TablaAMAC[Precio unitario promedio mensual de la energia en el EB])","v":{"$error":"#DIV/0!"}},{"$f":"SUBTOTAL(101,TablaAMAC[Precio unitario promedio mensual de la energia en el EMEE])","v":{"$error":"#DIV/0!"}},"Total",{"$f":"SUBTOTAL(109,TablaAMAC[Costo mensual de la energia asociado al equipo de AC sin mantenimiento en el EB])","v":0},{"$f":"SUBTOTAL(109,TablaAMAC[Consumo mensual de energia del equipo a aplicar mantenimiento en el EB])","v":0},{"$f":"SUBTOTAL(109,TablaAMAC[Costo mensual de la energia asociado al equipo de AC con mantenimiento en el EMEE])","v":0},{"$f":"SUBTOTAL(109,TablaAMAC[Consumo mensual de energia del equipo con mantenimiento en el EMEE])","v":0},{"$f":"SUBTOTAL(109,TablaAMAC[Ahorro monetario])","v":0},{"$f":"SUBTOTAL(109,TablaAMAC[Ahorro en consumo])","v":0}]

{"sheet":"Emisiones","index":5,"n_rows":21,"n_cols":14,"rows_kept":21,"cut":false,"hidden":true,"merged":[[1,1,1,6],[3,8,3,13],[3,1,3,6]]}
[]
[null,"EMISIONES EVITADAS POR EL PROYECTO",null,null,null,null,null,null,"Buscar Acronimo","cceemee",{"$f":"VLOOKUP(J2,TablaACR[],2)","v":"Costo mensual de la energía por el consumo de las luminarias reemplazadas en el EMEE"}]
[]
[null,"Este indicador refleja las emisiones de CO2e evitadas por la reducción del consumo de energía del usuario, como resultado de la implementación de MEE. Las emisiones evitadas serán expresadas en toneladas de dióxido de carbono equivalente."]
[]
[null,"Año del factor de emision eléctrico del EB",2017,null,"Año del factor de emision eléctrico del EMEE",2019,null,null,"Factor de emisión eléctrico del EB",2005,null,"Factor de emisión eléctrico del EMEE",2018]
[null,null,"[$/kWh]","[kg CO2e]","[$/kWh]","[kg CO2e]","[kg CO2e]",null,"[$/kWh]","[$/kWh]",null,"[Kg CO2e]","[Kg CO2e]","[Kg CO2e]"]
[null,"Periodo en meses para la cuantificacion","Consumo mensual de energia en el EB","Emisiones en el EB","Consumo mensual de energia en el EMEE","Emisiones en el EMEE","Emisiones evitadas",null,"Costo de la energía en el EB","Costo de la energía en el EMEE","Etapa del ciclo de vida del proyecto","Emisiones en el EB","Emisiones en el EMEE","Emisiones evitadas"]
[null,"Mes 1",{"$f":"IFERROR(IF(AhorroL!F7=\"\",0,AhorroL!F7)+IF(AhorroAC!F7=\"\",0,AhorroAC!F7),\"\")","v":0},{"$f":"IFERROR(TablaEE18[[#This Row],[Consumo mensual de energia en el EB]]*(INDEX(TablaFactoresdeemision[],MATCH($C$6,TablaFactoresdeemision[Año],0),2)),\"\")","v":0},{"$f":"IFERROR(IF(AhorroL!H7=\"\",0,AhorroL!H7)+IF(AhorroAC!H7=\"\",0,AhorroAC!H7),\"\")","v":0},{"$f":"IFERROR(TablaEE18[[#This Row],[Consumo mensual de energia en el EMEE]]*(INDEX(TablaFactoresdeemision[],MATCH($F$6,TablaFactoresdeemision[Año],0),2)),\"\")","v":0},{"$f":"IFERROR(TablaEE18[[#This Row],[Emisiones en el EB]]-TablaEE18[[#This Row],[Emisiones en el EMEE]],\"\")","v":0},null,10,5,"Manufactura",{"$f":"IFERROR(Emisiones!$I9*(INDEX(TablaFactoresdeemision[],MATCH($J$6,TablaFactoresdeemision[Año],0),2)),\"\")","v":5.5600000000000005},{"$f":"IFERROR(Emisiones!$J9*(INDEX(TablaFactoresdeemision[],MATCH($M$6,TablaFactoresdeemision[Año],0),2)),\"\")","v":2.6350000000000002},{"$f":"IFERROR(Emisiones!$L9-Emisiones!$M9,\"\")","v":2.9250000000000003}]
[null,"Mes 2",{"$f":"IFERROR(IF(AhorroL!F8=\"\",0,AhorroL!F8)+IF(AhorroAC!F8=\"\",0,AhorroAC!F8),\"\")","v":0},{"$f":"IFERROR(TablaEE18[[#This Row],[Consumo mensual de energia en el EB]]*(INDEX(TablaFactoresdeemision[],MATCH($C$6,TablaFactoresdeemision[Año],0),2)),\"\")","v":0},{"$f":"IFERROR(IF(AhorroL!H8=\"\",0,AhorroL!H8)+IF(AhorroAC!H8=\"\",0,AhorroAC!H8),\"\")","v":0},{"$f":"IFERROR(TablaEE18[[#This Row],[Consumo mensual de energia en el EMEE]]*(INDEX(TablaFactoresdeemision[],MATCH($F$6,TablaFactoresdeemision[Año],0),2)),\"\")","v":0},{"$f":"IFERROR(TablaEE18[[#This Row],[Emisiones en el EB]]-TablaEE18[[#This Row],[Emisiones en el EMEE]],\"\")","v":0},null,20,10,"Construcción",{"$f":"IFERROR(Emisiones!$I10*(INDEX(TablaFactoresdeemision[],MATCH($J$6,TablaFactoresdeemision[Año],0),2)),\"\")","v":11.120000000000001},{"$f":"IFERROR(Emisiones!$J10*(INDEX(TablaFactoresdeemision[],MATCH($M$6,TablaFactoresdeemision[Año],0),2)),\"\")","v":5.2700000000000005},{"$f":"IFERROR(Emisiones!$L10-Emisiones!$M10,\"\")","v":5.8500000000000005}]
[null,"Mes 3",{"$f":"IFERROR(IF(AhorroL!F9=\"\",0,AhorroL!F9)+IF(AhorroAC!F9=\"\",0,AhorroAC!F9),\"\")","v":0},{"$f":"IFERROR(TablaEE18[[#This Row],[Consumo mensual de energia en el EB]]*(INDEX(TablaFactoresdeemision[],MATCH($C$6,TablaFactoresdeemision[Año],0),2)),\"\")","v":0},{"$f":"IFERROR(IF(AhorroL!H9=\"\",0,AhorroL!H9)+IF(AhorroAC!H9=\"\",0,AhorroAC!H9),\"\")","v":0},{"$f":"IFERROR(TablaEE18[[#This Row],[Consumo mensual de energia en el EMEE]]*(INDEX(TablaFactoresdeemision[],MATCH($F$6,TablaFactoresdeemision[Año],0),2)),\"\")","v":0},{"$f":"IFERROR(TablaEE18[[#This Row],[Emisiones en el EB]]-TablaEE18[[#This Row],[Emisiones en el EMEE]],\"\")","v":0},null,30,15,"Operación y mantenimiento",{"$f":"IFERROR(Emisiones!$I11*(INDEX(TablaFactoresdeemision[],MATCH($J$6,TablaFactoresdeemision[Año],0),2)),\"\")","v":16.68},{"$f":"IFERROR(Emisiones!$J11*(INDEX(TablaFactoresdeemision[],MATCH($M$6,TablaFactoresdeemision[Año],0),2)),\"\")","v":7.9050000000000002},{"$f":"IFERROR(Emisiones!$L11-Emisiones!$M11,\"\")","v":8.7749999999999986}]
[null,"Mes 4",{"$f":"IFERROR(IF(AhorroL!F10=\"\",0,AhorroL!F10)+IF(AhorroAC!F10=\"\",0,AhorroAC!F10),\"\")","v":0},{"$f":"IFERROR(TablaEE18[[#This Row],[Consumo mensual de energia en el EB]]*(INDEX(TablaFactoresdeemision[],MATCH($C$6,TablaFactoresdeemision[Año],0),2)),\"\")","v":0},{"$f":"IFERROR(IF(AhorroL!H10=\"\",0,AhorroL!H10)+IF(AhorroAC!H10=\"\",0,AhorroAC!H10),\"\")","v":0},{"$f":"IFERROR(TablaEE18[[#This Row],[Consumo mensual de energia en el EMEE]]*(INDEX(TablaFactoresdeemision[],MATCH($F$6,TablaFactoresdeemision[Año],0),2)),\"\")","v":0},{"$f":"IFERROR(TablaEE18[[#This Row],[Emisiones en el EB]]-TablaEE18[[#This Row],[Emisiones en el EMEE]],\"\")","v":0},null,40,20,"Desmantelamiento",{"$f":"IFERROR(Emisiones!$I12*(INDEX(TablaFactoresdeemision[],MATCH($J$6,TablaFactoresdeemision[Año],0),2)),\"\")","v":22.240000000000002},{"$f":"IFERROR(Emisiones!$J12*(INDEX(TablaFactoresdeemision[],MATCH($M$6,TablaFactoresdeemision[Año],0),2)),\"\")","v":10.540000000000001},{"$f":"IFERROR(Emisiones!$L12-Emisiones!$M12,\"\")","v":11.700000000000001}]
[null,"Mes 5",{"$f":"IFERROR(IF(AhorroL!F11=\"\",0,AhorroL!F11)+IF(AhorroAC!F11=\"\",0,AhorroAC!F11),\"\")","v":0},{"$f":"IFERROR(TablaEE18[[#This Row],[Consumo mensual de energia en el EB]]*(INDEX(TablaFactoresdeemision[],MATCH($C$6,TablaFactoresdeemision[Año],0),2)),\"\")","v":0},{"$f":"IFERROR(IF(AhorroL!H11=\"\",0,AhorroL!H11)+IF(AhorroAC!H11=\"\",0,AhorroAC!H11),\"\")","v":0},{"$f":"IFERROR(TablaEE18[[#This Row],[Consumo mensual de energia en el EMEE]]*(INDEX(TablaFactoresdeemision[],MATCH($F$6,TablaFactoresdeemision[Año],0),2)),\"\")","v":0},{"$f":"IFERROR(TablaEE18[[#This Row],[Emisiones en el EB]]-TablaEE18[[#This Row],[Emisiones en el EMEE]],\"\")","v":0},null,{"$f":"SUBTOTAL(109,Emisiones!$I$9:$I$12)","v":100},{"$f":"SUBTOTAL(109,Emisiones!$J$9:$J$12)","v":50},"Total",{"$f":"SUBTOTAL(109,Emisiones!$L$9:$L$12)","v":55.6},{"$f":"SUBTOTAL(109,Emisiones!$M$9:$M$12)","v":26.35},{"$f":"SUBTOTAL(109,Emisiones!$N$9:$N$12)","v":29.25}]
[null,"Mes 6",{"$f":"IFERROR(IF(AhorroL!F12=\"\",0,AhorroL!F12)+IF(AhorroAC!F12=\"\",0,AhorroAC!F12),\"\")","v":0},{"$f":"IFERROR(TablaEE18[[#This Row],[Consumo mensual de energia en el EB]]*(INDEX(TablaFactoresdeemision[],MATCH($C$6,TablaFactoresdeemision[Año],0),2)),\"\")","v":0},{"$f":"IFERROR(IF(AhorroL!H12=\"\",0,AhorroL!H12)+IF(AhorroAC!H12=\"\",0,AhorroAC!H12),\"\")","v":0},{"$f":"IFERROR(TablaEE18[[#This Row],[Consumo mensual de energia en el EMEE]]*(INDEX(TablaFactoresdeemision[],MATCH($F$6,TablaFactoresdeemision[Año],0),2)),\"\")","v":0},{"$f":"IFERROR(TablaEE18[[#This Row],[Emisiones en el EB]]-TablaEE18[[#This Row],[Emisiones en el EMEE]],\"\")","v":0}]
[null,"Mes 7",{"$f":"IFERROR(IF(AhorroL!F13=\"\",0,AhorroL!F13)+IF(AhorroAC!F13=\"\",0,AhorroAC!F13),\"\")","v":0},{"$f":"IFERROR(TablaEE18[[#This Row],[Consumo mensual de energia en el EB]]*(INDEX(TablaFactoresdeemision[],MATCH($C$6,TablaFactoresdeemision[Año],0),2)),\"\")","v":0},{"$f":"IFERROR(IF(AhorroL!H13=\"\",0,AhorroL!H13)+IF(AhorroAC!H13=\"\",0,AhorroAC!H13),\"\")","v":0},{"$f":"IFERROR(TablaEE18[[#This Row],[Consumo mensual de energia en el EMEE]]*(INDEX(TablaFactoresdeemision[],MATCH($F$6,TablaFactoresdeemision[Año],0),2)),\"\")","v":0},{"$f":"IFERROR(TablaEE18[[#This Row],[Emisiones en el EB]]-TablaEE18[[#This Row],[Emisiones en el EMEE]],\"\")","v":0}]
[null,"Mes 8",{"$f":"IFERROR(IF(AhorroL!F14=\"\",0,AhorroL!F14)+IF(AhorroAC!F14=\"\",0,AhorroAC!F14),\"\")","v":0},{"$f":"IFERROR(TablaEE18[[#This Row],[Consumo mensual de energia en el EB]]*(INDEX(TablaFactoresdeemision[],MATCH($C$6,TablaFactoresdeemision[Año],0),2)),\"\")","v":0},{"$f":"IFERROR(IF(AhorroL!H14=\"\",0,AhorroL!H14)+IF(AhorroAC!H14=\"\",0,AhorroAC!H14),\"\")","v":0},{"$f":"IFERROR(TablaEE18[[#This Row],[Consumo mensual de energia en el EMEE]]*(INDEX(TablaFactoresdeemision[],MATCH($F$6,TablaFactoresdeemision[Año],0),2)),\"\")","v":0},{"$f":"IFERROR(TablaEE18[[#This Row],[Emisiones en el EB]]-TablaEE18[[#This Row],[Emisiones en el EMEE]],\"\")","v":0}]
[null,"Mes 9",{"$f":"IFERROR(IF(AhorroL!F15=\"\",0,AhorroL!F15)+IF(AhorroAC!F15=\"\",0,AhorroAC!F15),\"\")","v":0},{"$f":"IFERROR(TablaEE18[[#This Row],[Consumo mensual de energia en el EB]]*(INDEX(TablaFactoresdeemision[],MATCH($C$6,TablaFactoresdeemision[Año],0),2)),\"\")","v":0},{"$f":"IFERROR(IF(AhorroL!H15=\"\",0,AhorroL!H15)+IF(AhorroAC!H15=\"\",0,AhorroAC!H15),\"\")","v":0},{"$f":"IFERROR(TablaEE18[[#This Row],[Consumo mensual de energia en el EMEE]]*(INDEX(TablaFactoresdeemision[],MATCH($F$6,TablaFactoresdeemision[Año],0),2)),\"\")","v":0},{"$f":"IFERROR(TablaEE18[[#This Row],[Emisiones en el EB]]-TablaEE18[[#This Row],[Emisiones en el EMEE]],\"\")","v":0}]
[null,"Mes 10",{"$f":"IFERROR(IF(AhorroL!F16=\"\",0,AhorroL!F16)+IF(AhorroAC!F16=\"\",0,AhorroAC!F16),\"\")","v":0},{"$f":"IFERROR(TablaEE18[[#This Row],[Consumo mensual de energia en el EB]]*(INDEX(TablaFactoresdeemision[],MATCH($C$6,TablaFactoresdeemision[Año],0),2)),\"\")","v":0},{"$f":"IFERROR(IF(AhorroL!H16=\"\",0,AhorroL!H16)+IF(AhorroAC!H16=\"\",0,AhorroAC!H16),\"\")","v":0},{"$f":"IFERROR(TablaEE18[[#This Row],[Consumo mensual de energia en el EMEE]]*(INDEX(TablaFactoresdeemision[],MATCH($F$6,TablaFactoresdeemision[Año],0),2)),\"\")","v":0},{"$f":"IFERROR(TablaEE18[[#This Row],[Emisiones en el EB]]-TablaEE18[[#This Row],[Emisiones en el EMEE]],\"\")","v":0}]
[null,"Mes 11",{"$f":"IFERROR(IF(AhorroL!F17=\"\",0,AhorroL!F17)+IF(AhorroAC!F17=\"\",0,AhorroAC!F17),\"\")","v":0},{"$f":"IFERROR(TablaEE18[[#This Row],[Consumo mensual de energia en el EB]]*(INDEX(TablaFactoresdeemision[],MATCH($C$6,TablaFactoresdeemision[Año],0),2)),\"\")","v":0},{"$f":"IFERROR(IF(AhorroL!H17=\"\",0,AhorroL!H17)+IF(AhorroAC!H17=\"\",0,AhorroAC!H17),\"\")","v":0},{"$f":"IFERROR(TablaEE18[[#This Row],[Consumo mensual de energia en el EMEE]]*(INDEX(TablaFactoresdeemision[],MATCH($F$6,TablaFactoresdeemision[Año],0),2)),\"\")","v":0},{"$f":"IFERROR(TablaEE18[[#This Row],[Emisiones en el EB]]-TablaEE18[[#This Row],[Emisiones en el EMEE]],\"\")","v":0}]
[null,"Mes 12",{"$f":"IFERROR(IF(AhorroL!F18=\"\",0,AhorroL!F18)+IF(AhorroAC!F18=\"\",0,AhorroAC!F18),\"\")","v":0},{"$f":"IFERROR(TablaEE18[[#This Row],[Consumo mensual de energia en el EB]]*(INDEX(TablaFactoresdeemision[],MATCH($C$6,TablaFactoresdeemision[Año],0),2)),\"\")","v":0},{"$f":"IFERROR(IF(AhorroL!H18=\"\",0,AhorroL!H18)+IF(AhorroAC!H18=\"\",0,AhorroAC!H18),\"\")","v":0},{"$f":"IFERROR(TablaEE18[[#This Row],[Consumo mensual de energia en el EMEE]]*(INDEX(TablaFactoresdeemision[],MATCH($F$6,TablaFactoresdeemision[Año],0),2)),\"\")","v":0},{"$f":"IFERROR(TablaEE18[[#This Row],[Emisiones en el EB]]-TablaEE18[[#This Row],[Emisiones en el EMEE]],\"\")","v":0}]
[null,"Total",{"$f":"SUBTOTAL(109,TablaEE18[Consumo mensual de energia en el EB])","v":0},{"$f":"SUBTOTAL(109,TablaEE18[Emisiones en el EB])","v":0},{"$f":"SUBTOTAL(105,TablaEE18[Consumo mensual de energia en el EMEE])","v":0},{"$f":"SUBTOTAL(109,TablaEE18[Emisiones en el EMEE])","v":0},{"$f":"SUBTOTAL(109,TablaEE18[Emisiones evitadas])","v":0}]

{"sheet":"Facturacion","index":6,"n_rows":9,"n_cols":25,"rows_kept":9,"cut":false,"hidden":true,"merged":[[1,1,1,11],[1,14,1,15],[3,1,3,11]]}
[]
[null,"AHORROS E INGRESOS EN LA FACTURACION POR VENTA DE ENERGIA",null,null,null,null,null,null,null,null,null,null,null,null,"Buscar Acronimo",null,"tr",{"$f":"VLOOKUP(Q2,TablaACR[],2)","v":"Tiempo de recuperación de la inversión"}]
[]
[null,"Este co-beneficio de ahorros e ingresos en la facturación en esquema de contraprestación Net Metering. En este nivel se plantea como el tiempo necesario para recuperar la inversión de la instalación de sistemas de autoconsumo teniendo en cuenta la facturación previa o los ingresos destinados a la compra de energía (en los casos en los que previamente no tuviesen acceso a la electricidad)  "]
[]
[null,null,"[MW]",null,"[MWh/año]","[$/kWh]","[$]","[$]","[$]","[MWh]","[$]","[$]","[$]","[Años]","[$]","[$]","[$]","[$]","[$]","[$]","[$]","[$]","[$]","[$]","[$]"]
[null,"Identificador de ahorro o ingreso","Capacidad estimada de generacion distribuida","Factor de planta promedio para sistemas fotovoltaicos","Consumo promedio anual","Precio de la electricidad","Costo de la instalacion","Facturación anual del año de la puesta en marcha","Facturacion anual antes de instalar la generacion distribuida","Generacion estimada de electricidad","Facturacion anual despues de instalar la planta de generacion distribuida","Inversion inicial","Ahorro anual asociado a la facturacion","Tiempo de recuperacion de la inversion","Flujo de recuperacion de la inversion del periodo 0","Flujo de recuperacion de la inversion del periodo 1","Flujo de recuperacion de la inversion del periodo 2","Flujo de recuperacion de la inversion del periodo 3","Flujo de recuperacion de la inversion del periodo 4","Flujo de recuperacion de la inversion del periodo 5","Flujo de recuperacion de la inversion del periodo 10","Flujo de recuperacion de la inversion del periodo 15","Flujo de recuperacion de la inversion del periodo 20","Flujo de recuperacion de la inversion del periodo 25","Flujo de recuperacion de la inversion del periodo 30"]
[null,null,null,null,null,null,null,null,null,{"$f":"IFERROR(TablaAIFV[[#This Row],[Capacidad estimada de generacion distribuida]]*8760*(VLOOKUP(TablaAIFV[[#This Row],[Factor de planta promedio para sistemas fotovoltaicos]],TablaFsP[],2,TRUE)),\"\")","v":""},{"$f":"IFERROR((TablaAIFV[[#This Row],[Consumo promedio anual]]-(TablaAIFV[[#This Row],[Generacion estimada de electricidad]]))*(TablaAIFV[[#This Row],[Precio de la electricidad]]),\"\")","v":""},{"$f":"IFERROR(TablaAIFV[[#This Row],[Costo de la instalacion]]+TablaAIFV[[#This Row],[Facturación anual del año de la puesta en marcha]],\"\")","v":0},{"$f":"IFERROR(TablaAIFV[[#This Row],[Facturacion anual antes de instalar la generacion distribuida]]-TablaAIFV[[#This Row],[Facturacion anual despues de instalar la planta de generacion distribuida]],\"\")","v":""},{"$f":"IFERROR(TablaAIFV[[#This Row],[Inversion inicial]]/TablaAIFV[[#This Row],[Ahorro anual asociado a la facturacion]],\"\")","v":""},{"$f":"$L8","v":0},{"$f":"IFERROR($L8-$M8,\"\")","v":""},{"$f":"IFERROR(P8-$M8,\"\")","v":""},{"$f":"IFERROR(Q8-$M8,\"\")","v":""},{"$f":"IFERROR(R8-$M8,\"\")","v":""},{"$f":"IFERROR(S8-$M8,\"\")","v":""},{"$f":"IFERROR(T8-($M8*5),\"\")","v":""},{"$f":"IFERROR(U8-($M8*5),\"\")","v":""},{"$f":"IFERROR(V8-($M8*5),\"\")","v":""},{"$f":"IFERROR(W8-($M8*5),\"\")","v":""},{"$f":"IFERROR(X8-($M8*5),\"\")","v":""}]
[null,null,null,null,null,null,null,null,null,{"$f":"IFERROR(TablaAIFV[[#This Row],[Capacidad estimada de generacion distribuida]]*8760*(VLOOKUP(TablaAIFV[[#This Row],[Factor de planta promedio para sistemas fotovoltaicos]],TablaFsP[],2,TRUE)),\"\")","v":""},{"$f":"IFERROR((TablaAIFV[[#This Row],[Consumo promedio anual]]-(TablaAIFV[[#This Row],[Generacion estimada de electricidad]]))*(TablaAIFV[[#This Row],[Precio de la electricidad]]),\"\")","v":""},{"$f":"IFERROR(TablaAIFV[[#This Row],[Costo de la instalacion]]+TablaAIFV[[#This Row],[Facturación anual del año de la puesta en marcha]],\"\")","v":0},{"$f":"IFERROR(TablaAIFV[[#This Row],[Facturacion anual antes de instalar la generacion distribuida]]-TablaAIFV[[#This Row],[Facturacion anual despues de instalar la planta de generacion distribuida]],\"\")","v":""},{"$f":"IFERROR(TablaAIFV[[#This Row],[Inversion inicial]]/TablaAIFV[[#This Row],[Ahorro anual asociado a la facturacion]],\"\")","v":""},0,"","","","","","","","","",""]

{"sheet":"Empleos","index":7,"n_rows":21,"n_cols":39,"rows_kept":21,"cut":false,"hidden":true,"merged":[[7,1,7,8],[7,11,7,18],[7,21,7,28],[7,31,7,38],[5,11,5,12],[6,11,6,12],[5,31,5,32],[6,31,6,32],[4,31,4,32],[1,1,1,10],[5,1,5,2],[1,12,1,13],[6,1,6,2],[5,21,5,22],[6,21,6,22],[3,1,3,8],[4,1,4,2],[4,11,4,12],[4,21,4,22]]}
[]
[null,"EMPLEOS GENERADOS DIRECTOS, INDIRECTOS E INDUCIDOS",null,null,null,null,null,null,null,null,null,null,"Buscar Acronimo",null,"fd",{"$f":"VLOOKUP(O2,TablaACR[],2)","v":"Factor de declive"}]
[]
[null,"Dado que este co-beneficio se presenta como resultado del desarrollo de proyectos de energía eólica y generación distribuida con tecnología solar fotovoltaica, la cuantificación se realiza analizando por separado los empleos en cada fase del proyecto. Además, en este nivel de precisión se añade el factor de declive."]
[null,"TIPO Y ETAPA",null,null,null,null,null,null,null,null,null,"TIPO Y ETAPA",null,null,null,null,null,null,null,null,null,"TIPO Y ETAPA",null,null,null,null,null,null,null,null,null,"TIPO Y ETAPA"]
[null,"EOL",null,null,"Factor de declive",null,"Factor de participacion local",null,"Capacidad instalada (MW)",null,null,"EOL",null,null,"Factor de declive",null,"Factor de participacion local",null,"Capacidad instalada (MW)",null,null,"EOL",null,null,"Factor de declive",null,"Factor de participacion local",null,"Capacidad instalada (MW)",null,null,"FV",null,null,"Factor de declive",null,"Factor de participacion local",null,"Capacidad instalada (MW)"]
[null,"Construcción",null,null,1,null,1,null,null,null,null,"Operación y mantenimiento",null,null,1,null,1,null,null,null,null,"Construcción",null,null,1,null,1,null,null,null,null,"Operación y mantenimiento",null,null,1,null,1]
[null,"TABLA 1",null,null,null,null,null,null,null,null,null,"TABLA 2",null,null,null,null,null,null,null,null,null,"TABLA 3",null,null,null,null,null,null,null,null,null,"TABLA 4"]
[null,"Sector","Factor de empleo directo","Empleos directos","Factor de empleo indirecto","Empleos indirectos","Factor de empleo inducido","Empleos inducidos","Total de empleos",null,null,"Sector","Factor de empleo directo","Empleos directos","Factor de empleo indirecto","Empleos indirectos","Factor de empleo inducido","Empleos inducidos","Total de empleos",null,null,"Sector","Factor de empleo directo","Empleos directos","Factor de empleo indirecto","Empleos indirectos","Factor de empleo inducido","Empleos inducidos","Total de empleos",null,null,"Sector","Factor de empleo directo","Empleos directos","Factor de empleo indirecto","Empleos indirectos","Factor de empleo inducido","Empleos inducidos","Total de empleos"]
[null,"Agricultura",{"$f":"IF(AND($B$6=\"EOL\",$B$7=\"Construcción\"),INDEX(FECEOL[],MATCH(TEGTPEOL[[#This Row],[Sector]],FECEOL[Sector],0),MATCH(\"Directo\",FECEOL[#Headers],0)),IF(AND($B$6=\"EOL\",$B$7=\"Operación y mantenimiento\"),INDEX(FEOEOL[],MATCH(TEGTPEOL[[#This Row],[Sector]],FEOEOL[Sector],0),MATCH(\"Directo\",FEOEOL[#Headers],0)),IF(AND($B$6=\"FV\",$B$7=\"Construcción\"),INDEX(FECFV[],MATCH(TEGTPEOL[[#This Row],[Sector]],FECFV[Sector],0),MATCH(\"Directo\",FECFV[#Headers],0)),IF(AND($B$6=\"FV\",$B$7=\"Operación y mantenimiento\"),INDEX(FEOFV[],MATCH(TEGTPEOL[[#This Row],[Sector]],FEOFV[Sector],0),MATCH(\"Directo\",FEOFV[#Headers],0)),\"\"))))","v":0},{"$f":"IFERROR($I$7*TEGTPEOL[[#This Row],[Factor de empleo directo]]*$E$7*$G$7,\"\")","v":0},{"$f":"IF(AND($B$6=\"EOL\",$B$7=\"Construcción\"),INDEX(FECEOL[],MATCH(TEGTPEOL[[#This Row],[Sector]],FECEOL[Sector],0),MATCH(\"Indirecto\",FECEOL[#Headers],0)),IF(AND($B$6=\"EOL\",$B$7=\"Operación y mantenimiento\"),INDEX(FEOEOL[],MATCH(TEGTPEOL[[#This Row],[Sector]],FEOEOL[Sector],0),MATCH(\"Indirecto\",FEOEOL[#Headers],0)),IF(AND($B$6=\"FV\",$B$7=\"Construcción\"),INDEX(FECFV[],MATCH(TEGTPEOL[[#This Row],[Sector]],FECFV[Sector],0),MATCH(\"Indirecto\",FECFV[#Headers],0)),IF(AND($B$6=\"FV\",$B$7=\"Operación y mantenimiento\"),INDEX(FEOFV[],MATCH(TEGTPEOL[[#This Row],[Sector]],FEOFV[Sector],0),MATCH(\"Indirecto\",FEOFV[#Headers],0)),\"\"))))","v":0.216},{"$f":"IFERROR($I$7*TEGTPEOL[[#This Row],[Factor de empleo indirecto]]*$E$7*$G$7,\"\")","v":0},{"$f":"IF(AND($B$6=\"EOL\",$B$7=\"Construcción\"),INDEX(FECEOL[],MATCH(TEGTPEOL[[#This Row],[Sector]],FECEOL[Sector],0),MATCH(\"Inducido\",FECEOL[#Headers],0)),IF(AND($B$6=\"EOL\",$B$7=\"Operación y mantenimiento\"),INDEX(FEOEOL[],MATCH(TEGTPEOL[[#This Row],[Sector]],FEOEOL[Sector],0),MATCH(\"Inducido\",FEOEOL[#Headers],0)),IF(AND($B$6=\"FV\",$B$7=\"Construcción\"),INDEX(FECFV[],MATCH(TEGTPEOL[[#This Row],[Sector]],FECFV[Sector],0),MATCH(\"Inducido\",FECFV[#Headers],0)),IF(AND($B$6=\"FV\",$B$7=\"Operación y mantenimiento\"),INDEX(FEOFV[],MATCH(TEGTPEOL[[#This Row],[Sector]],FEOFV[Sector],0),MATCH(\"Inducido\",FEOFV[#Headers],0)),\"\"))))","v":1.744},{"$f":"IFERROR($I$7*TEGTPEOL[[#This Row],[Factor de empleo inducido]]*$E$7*$G$7,\"\")","v":0},{"$f":"IFERROR(TEGTPEOL[[#This Row],[Empleos directos]]+TEGTPEOL[[#This Row],[Empleos indirectos]]+TEGTPEOL[[#This Row],[Empleos inducidos]],\"\")","v":0},null,null,"Agricultura",{"$f":"IF(AND($L$6=\"EOL\",$L$7=\"Construcción\"),INDEX(FECEOL[],MATCH(TEGTPEOL19[[#This Row],[Sector]],FECEOL[Sector],0),MATCH(\"Directo\",FECEOL[#Headers],0)),IF(AND($L$6=\"EOL\",$L$7=\"Operación y mantenimiento\"),INDEX(FEOEOL[],MATCH(TEGTPEOL19[[#This Row],[Sector]],FEOEOL[Sector],0),MATCH(\"Directo\",FEOEOL[#Headers],0)),IF(AND($L$6=\"FV\",$L$7=\"Construcción\"),INDEX(FECFV[],MATCH(TEGTPEOL19[[#This Row],[Sector]],FECFV[Sector],0),MATCH(\"Directo\",FECFV[#Headers],0)),IF(AND($L$6=\"FV\",$L$7=\"Operación y mantenimiento\"),INDEX(FEOFV[],MATCH(TEGTPEOL19[[#This Row],[Sector]],FEOFV[Sector],0),MATCH(\"Directo\",FEOFV[#Headers],0)),\"\"))))","v":4.0000000000000001E-3},{"$f":"IFERROR($S$7*TEGTPEOL19[[#This Row],[Factor de empleo directo]]*$O$7*$Q$7,\"\")","v":0},{"$f":"IF(AND($L$6=\"EOL\",$L$7=\"Construcción\"),INDEX(FECEOL[],MATCH(TEGTPEOL19[[#This Row],[Sector]],FECEOL[Sector],0),MATCH(\"Indirecto\",FECEOL[#Headers],0)),IF(AND($L$6=\"EOL\",$L$7=\"Operación y mantenimiento\"),INDEX(FEOEOL[],MATCH(TEGTPEOL19[[#This Row],[Sector]],FEOEOL[Sector],0),MATCH(\"Indirecto\",FEOEOL[#Headers],0)),IF(AND($L$6=\"FV\",$L$7=\"Construcción\"),INDEX(FECFV[],MATCH(TEGTPEOL19[[#This Row],[Sector]],FECFV[Sector],0),MATCH(\"Indirecto\",FECFV[#Headers],0)),IF(AND($L$6=\"FV\",$L$7=\"Operación y mantenimiento\"),INDEX(FEOFV[],MATCH(TEGTPEOL19[[#This Row],[Sector]],FEOFV[Sector],0),MATCH(\"Indirecto\",FEOFV[#Headers],0)),\"\"))))","v":3.9E-2},{"$f":"IFERROR($S$7*TEGTPEOL19[[#This Row],[Factor de empleo indirecto]]*$O$7*$Q$7,\"\")","v":0},{"$f":"IF(AND($L$6=\"EOL\",$L$7=\"Construcción\"),INDEX(FECEOL[],MATCH(TEGTPEOL19[[#This Row],[Sector]],FECEOL[Sector],0),MATCH(\"Inducido\",FECEOL[#Headers],0)),IF(AND($L$6=\"EOL\",$L$7=\"Operación y mantenimiento\"),INDEX(FEOEOL[],MATCH(TEGTPEOL19[[#This Row],[Sector]],FEOEOL[Sector],0),MATCH(\"Inducido\",FEOEOL[#Headers],0)),IF(AND($L$6=\"FV\",$L$7=\"Construcción\"),INDEX(FECFV[],MATCH(TEGTPEOL19[[#This Row],[Sector]],FECFV[Sector],0),MATCH(\"Inducido\",FECFV[#Headers],0)),IF(AND($L$6=\"FV\",$L$7=\"Operación y mantenimiento\"),INDEX(FEOFV[],MATCH(TEGTPEOL19[[#This Row],[Sector]],FEOFV[Sector],0),MATCH(\"Inducido\",FEOFV[#Headers],0)),\"\"))))","v":0},{"$f":"IFERROR($S$7*TEGTPEOL19[[#This Row],[Factor de empleo inducido]]*$O$7*$Q$7,\"\")","v":0},{"$f":"IFERROR(TEGTPEOL19[[#This Row],[Empleos directos]]+TEGTPEOL19[[#This Row],[Empleos indirectos]]+TEGTPEOL19[[#This Row],[Empleos inducidos]],\"\")","v":0},null,null,"Agricultura",{"$f":"IF(AND($V$6=\"EOL\",$V$7=\"Construcción\"),INDEX(FECEOL[],MATCH(TEGTPFV[[#This Row],[Sector]],FECEOL[Sector],0),MATCH(\"Directo\",FECEOL[#Headers],0)),IF(AND($V$6=\"EOL\",$V$7=\"Operación y mantenimiento\"),INDEX(FEOEOL[],MATCH(TEGTPFV[[#This Row],[Sector]],FEOEOL[Sector],0),MATCH(\"Directo\",FEOEOL[#Headers],0)),IF(AND($V$6=\"FV\",$V$7=\"Construcción\"),INDEX(FECFV[],MATCH(TEGTPFV[[#This Row],[Sector]],FECFV[Sector],0),MATCH(\"Directo\",FECFV[#Headers],0)),IF(AND($V$6=\"FV\",$V$7=\"Operación y mantenimiento\"),INDEX(FEOFV[],MATCH(TEGTPFV[[#This Row],[Sector]],FEOFV[Sector],0),MATCH(\"Directo\",FEOFV[#Headers],0)),\"\"))))","v":0},{"$f":"IFERROR($AC$7*TEGTPFV[[#This Row],[Factor de empleo directo]]*$Y$7*$AA$7,\"\")","v":0},{"$f":"IF(AND($V$6=\"EOL\",$V$7=\"Construcción\"),INDEX(FECEOL[],MATCH(TEGTPFV[[#This Row],[Sector]],FECEOL[Sector],0),MATCH(\"Indirecto\",FECEOL[#Headers],0)),IF(AND($V$6=\"EOL\",$V$7=\"Operación y mantenimiento\"),INDEX(FEOEOL[],MATCH(TEGTPFV[[#This Row],[Sector]],FEOEOL[Sector],0),MATCH(\"Indirecto\",FEOEOL[#Headers],0)),IF(AND($V$6=\"FV\",$V$7=\"Construcción\"),INDEX(FECFV[],MATCH(TEGTPFV[[#This Row],[Sector]],FECFV[Sector],0),MATCH(\"Indirecto\",FECFV[#Headers],0)),IF(AND($V$6=\"FV\",$V$7=\"Operación y mantenimiento\"),INDEX(FEOFV[],MATCH(TEGTPFV[[#This Row],[Sector]],FEOFV[Sector],0),MATCH(\"Indirecto\",FEOFV[#Headers],0)),\"\"))))","v":0.216},{"$f":"IFERROR($AC$7*TEGTPFV[[#This Row],[Factor de empleo indirecto]]*$Y$7*$AA$7,\"\")","v":0},{"$f":"IF(AND($V$6=\"EOL\",$V$7=\"Construcción\"),INDEX(FECEOL[],MATCH(TEGTPFV[[#This Row],[Sector]],FECEOL[Sector],0),MATCH(\"Inducido\",FECEOL[#Headers],0)),IF(AND($V$6=\"EOL\",$V$7=\"Operación y mantenimiento\"),INDEX(FEOEOL[],MATCH(TEGTPFV[[#This Row],[Sector]],FEOEOL[Sector],0),MATCH(\"Inducido\",FEOEOL[#Headers],0)),IF(AND($V$6=\"FV\",$V$7=\"Construcción\"),INDEX(FECFV[],MATCH(TEGTPFV[[#This Row],[Sector]],FECFV[Sector],0),MATCH(\"Inducido\",FECFV[#Headers],0)),IF(AND($V$6=\"FV\",$V$7=\"Operación y mantenimiento\"),INDEX(FEOFV[],MATCH(TEGTPFV[[#This Row],[Sector]],FEOFV[Sector],0),MATCH(\"Inducido\",FEOFV[#Headers],0)),\"\"))))","v":1.744},{"$f":"IFERROR($AC$7*TEGTPFV[[#This Row],[Factor de empleo inducido]]*$Y$7*$AA$7,\"\")","v":0},{"$f":"IFERROR(TEGTPFV[[#This Row],[Empleos directos]]+TEGTPFV[[#This Row],[Empleos indirectos]]+TEGTPFV[[#This Row],[Empleos inducidos]],\"\")","v":0},null,null,"Agricultura",{"$f":"IF(AND($AF$6=\"EOL\",$AF$7=\"Construcción\"),INDEX(FECEOL[],MATCH(TEGTPFV20[[#This Row],[Sector]],FECEOL[Sector],0),MATCH(\"Directo\",FECEOL[#Headers],0)),IF(AND($AF$6=\"EOL\",$AF$7=\"Operación y mantenimiento\"),INDEX(FEOEOL[],MATCH(TEGTPFV20[[#This Row],[Sector]],FEOEOL[Sector],0),MATCH(\"Directo\",FEOEOL[#Headers],0)),IF(AND($AF$6=\"FV\",$AF$7=\"Construcción\"),INDEX(FECFV[],MATCH(TEGTPFV20[[#This Row],[Sector]],FECFV[Sector],0),MATCH(\"Directo\",FECFV[#Headers],0)),IF(AND($AF$6=\"FV\",$AF$7=\"Operación y mantenimiento\"),INDEX(FEOFV[],MATCH(TEGTPFV20[[#This Row],[Sector]],FEOFV[Sector],0),MATCH(\"Directo\",FEOFV[#Headers],0)),\"\"))))","v":0},{"$f":"IFERROR($AM$7*TEGTPFV20[[#This Row],[Factor de empleo directo]]*$AI$7*$AK$7,\"\")","v":0},{"$f":"IF(AND($AF$6=\"EOL\",$AF$7=\"Construcción\"),INDEX(FECEOL[],MATCH(TEGTPFV20[[#This Row],[Sector]],FECEOL[Sector],0),MATCH(\"Indirecto\",FECEOL[#Headers],0)),IF(AND($AF$6=\"EOL\",$AF$7=\"Operación y mantenimiento\"),INDEX(FEOEOL[],MATCH(TEGTPFV20[[#This Row],[Sector]],FEOEOL[Sector],0),MATCH(\"Indirecto\",FEOEOL[#Headers],0)),IF(AND($AF$6=\"FV\",$AF$7=\"Construcción\"),INDEX(FECFV[],MATCH(TEGTPFV20[[#This Row],[Sector]],FECFV[Sector],0),MATCH(\"Indirecto\",FECFV[#Headers],0)),IF(AND($AF$6=\"FV\",$AF$7=\"Operación y mantenimiento\"),INDEX(FEOFV[],MATCH(TEGTPFV20[[#This Row],[Sector]],FEOFV[Sector],0),MATCH(\"Indirecto\",FEOFV[#Headers],0)),\"\"))))","v":3.0000000000000001E-3},{"$f":"IFERROR($AM$7*TEGTPFV20[[#This Row],[Factor de empleo indirecto]]*$AI$7*$AK$7,\"\")","v":0},{"$f":"IF(AND($AF$6=\"EOL\",$AF$7=\"Construcción\"),INDEX(FECEOL[],MATCH(TEGTPFV20[[#This Row],[Sector]],FECEOL[Sector],0),MATCH(\"Inducido\",FECEOL[#Headers],0)),IF(AND($AF$6=\"EOL\",$AF$7=\"Operación y mantenimiento\"),INDEX(FEOEOL[],MATCH(TEGTPFV20[[#This Row],[Sector]],FEOEOL[Sector],0),MATCH(\"Inducido\",FEOEOL[#Headers],0)),IF(AND($AF$6=\"FV\",$AF$7=\"Construcción\"),INDEX(FECFV[],MATCH(TEGTPFV20[[#This Row],[Sector]],FECFV[Sector],0),MATCH(\"Inducido\",FECFV[#Headers],0)),IF(AND($AF$6=\"FV\",$AF$7=\"Operación y mantenimiento\"),INDEX(FEOFV[],MATCH(TEGTPFV20[[#This Row],[Sector]],FEOFV[Sector],0),MATCH(\"Inducido\",FEOFV[#Headers],0)),\"\"))))","v":1.6E-2},{"$f":"IFERROR($AM$7*TEGTPFV20[[#This Row],[Factor de empleo inducido]]*$AI$7*$AK$7,\"\")","v":0},{"$f":"IFERROR(TEGTPFV20[[#This Row],[Empleos directos]]+TEGTPFV20[[#This Row],[Empleos indirectos]]+TEGTPFV20[[#This Row],[Empleos inducidos]],\"\")","v":0}]
[null,"Minería y Extracción",{"$f":"IF(AND($B$6=\"EOL\",$B$7=\"Construcción\"),INDEX(FECEOL[],MATCH(TEGTPEOL[[#This Row],[Sector]],FECEOL[Sector],0),MATCH(\"Directo\",FECEOL[#Headers],0)),IF(AND($B$6=\"EOL\",$B$7=\"Operación y mantenimiento\"),INDEX(FEOEOL[],MATCH(TEGTPEOL[[#This Row],[Sector]],FEOEOL[Sector],0),MATCH(\"Directo\",FEOEOL[#Headers],0)),IF(AND($B$6=\"FV\",$B$7=\"Construcción\"),INDEX(FECFV[],MATCH(TEGTPEOL[[#This Row],[Sector]],FECFV[Sector],0),MATCH(\"Directo\",FECFV[#Headers],0)),IF(AND($B$6=\"FV\",$B$7=\"Operación y mantenimiento\"),INDEX(FEOFV[],MATCH(TEGTPEOL[[#This Row],[Sector]],FEOFV[Sector],0),MATCH(\"Directo\",FEOFV[#Headers],0)),\"\"))))","v":0},{"$f":"IFERROR($I$7*TEGTPEOL[[#This Row],[Factor de empleo directo]]*$E$7*$G$7,\"\")","v":0},{"$f":"IF(AND($B$6=\"EOL\",$B$7=\"Construcción\"),INDEX(FECEOL[],MATCH(TEGTPEOL[[#This Row],[Sector]],FECEOL[Sector],0),MATCH(\"Indirecto\",FECEOL[#Headers],0)),IF(AND($B$6=\"EOL\",$B$7=\"Operación y mantenimiento\"),INDEX(FEOEOL[],MATCH(TEGTPEOL[[#This Row],[Sector]],FEOEOL[Sector],0),MATCH(\"Indirecto\",FEOEOL[#Headers],0)),IF(AND($B$6=\"FV\",$B$7=\"Construcción\"),INDEX(FECFV[],MATCH(TEGTPEOL[[#This Row],[Sector]],FECFV[Sector],0),MATCH(\"Indirecto\",FECFV[#Headers],0)),IF(AND($B$6=\"FV\",$B$7=\"Operación y mantenimiento\"),INDEX(FEOFV[],MATCH(TEGTPEOL[[#This Row],[Sector]],FEOFV[Sector],0),MATCH(\"Indirecto\",FEOFV[#Headers],0)),\"\"))))","v":0.17699999999999999},{"$f":"IFERROR($I$7*TEGTPEOL[[#This Row],[Factor de empleo indirecto]]*$E$7*$G$7,\"\")","v":0},{"$f":"IF(AND($B$6=\"EOL\",$B$7=\"Construcción\"),INDEX(FECEOL[],MATCH(TEGTPEOL[[#This Row],[Sector]],FECEOL[Sector],0),MATCH(\"Inducido\",FECEOL[#Headers],0)),IF(AND($B$6=\"EOL\",$B$7=\"Operación y mantenimiento\"),INDEX(FEOEOL[],MATCH(TEGTPEOL[[#This Row],[Sector]],FEOEOL[Sector],0),MATCH(\"Inducido\",FEOEOL[#Headers],0)),IF(AND($B$6=\"FV\",$B$7=\"Construcción\"),INDEX(FECFV[],MATCH(TEGTPEOL[[#This Row],[Sector]],FECFV[Sector],0),MATCH(\"Inducido\",FECFV[#Headers],0)),IF(AND($B$6=\"FV\",$B$7=\"Operación y mantenimiento\"),INDEX(FEOFV[],MATCH(TEGTPEOL[[#This Row],[Sector]],FEOFV[Sector],0),MATCH(\"Inducido\",FEOFV[#Headers],0)),\"\"))))","v":2.8000000000000001E-2},{"$f":"IFERROR($I$7*TEGTPEOL[[#This Row],[Factor de empleo inducido]]*$E$7*$G$7,\"\")","v":0},{"$f":"IFERROR(TEGTPEOL[[#This Row],[Empleos directos]]+TEGTPEOL[[#This Row],[Empleos indirectos]]+TEGTPEOL[[#This Row],[Empleos inducidos]],\"\")","v":0},null,null,"Minería y Extracción",{"$f":"IF(AND($L$6=\"EOL\",$L$7=\"Construcción\"),INDEX(FECEOL[],MATCH(TEGTPEOL19[[#This Row],[Sector]],FECEOL[Sector],0),MATCH(\"Directo\",FECEOL[#Headers],0)),IF(AND($L$6=\"EOL\",$L$7=\"Operación y mantenimiento\"),INDEX(FEOEOL[],MATCH(TEGTPEOL19[[#This Row],[Sector]],FEOEOL[Sector],0),MATCH(\"Directo\",FEOEOL[#Headers],0)),IF(AND($L$6=\"FV\",$L$7=\"Construcción\"),INDEX(FECFV[],MATCH(TEGTPEOL19[[#This Row],[Sector]],FECFV[Sector],0),MATCH(\"Directo\",FECFV[#Headers],0)),IF(AND($L$6=\"FV\",$L$7=\"Operación y mantenimiento\"),INDEX(FEOFV[],MATCH(TEGTPEOL19[[#This Row],[Sector]],FEOFV[Sector],0),MATCH(\"Directo\",FEOFV[#Headers],0)),\"\"))))","v":1.2999999999999999E-2},{"$f":"IFERROR($S$7*TEGTPEOL19[[#This Row],[Factor de empleo directo]]*$O$7*$Q$7,\"\")","v":0},{"$f":"IF(AND($L$6=\"EOL\",$L$7=\"Construcción\"),INDEX(FECEOL[],MATCH(TEGTPEOL19[[#This Row],[Sector]],FECEOL[Sector],0),MATCH(\"Indirecto\",FECEOL[#Headers],0)),IF(AND($L$6=\"EOL\",$L$7=\"Operación y mantenimiento\"),INDEX(FEOEOL[],MATCH(TEGTPEOL19[[#This Row],[Sector]],FEOEOL[Sector],0),MATCH(\"Indirecto\",FEOEOL[#Headers],0)),IF(AND($L$6=\"FV\",$L$7=\"Construcción\"),INDEX(FECFV[],MATCH(TEGTPEOL19[[#This Row],[Sector]],FECFV[Sector],0),MATCH(\"Indirecto\",FECFV[#Headers],0)),IF(AND($L$6=\"FV\",$L$7=\"Operación y mantenimiento\"),INDEX(FEOFV[],MATCH(TEGTPEOL19[[#This Row],[Sector]],FEOFV[Sector],0),MATCH(\"Indirecto\",FEOFV[#Headers],0)),\"\"))))","v":1E-3},{"$f":"IFERROR($S$7*TEGTPEOL19[[#This Row],[Factor de empleo indirecto]]*$O$7*$Q$7,\"\")","v":0},{"$f":"IF(AND($L$6=\"EOL\",$L$7=\"Construcción\"),INDEX(FECEOL[],MATCH(TEGTPEOL19[[#This Row],[Sector]],FECEOL[Sector],0),MATCH(\"Inducido\",FECEOL[#Headers],0)),IF(AND($L$6=\"EOL\",$L$7=\"Operación y mantenimiento\"),INDEX(FEOEOL[],MATCH(TEGTPEOL19[[#This Row],[Sector]],FEOEOL[Sector],0),MATCH(\"Inducido\",FEOEOL[#Headers],0)),IF(AND($L$6=\"FV\",$L$7=\"Construcción\"),INDEX(FECFV[],MATCH(TEGTPEOL19[[#This Row],[Sector]],FECFV[Sector],0),MATCH(\"Inducido\",FECFV[#Headers],0)),IF(AND($L$6=\"FV\",$L$7=\"Operación y mantenimiento\"),INDEX(FEOFV[],MATCH(TEGTPEOL19[[#This Row],[Sector]],FEOFV[Sector],0),MATCH(\"Inducido\",FEOFV[#Headers],0)),\"\"))))","v":0},{"$f":"IFERROR($S$7*TEGTPEOL19[[#This Row],[Factor de empleo inducido]]*$O$7*$Q$7,\"\")","v":0},{"$f":"IFERROR(TEGTPEOL19[[#This Row],[Empleos directos]]+TEGTPEOL19[[#This Row],[Empleos indirectos]]+TEGTPEOL19[[#This Row],[Empleos inducidos]],\"\")","v":0},null,null,"Minería y Extracción",{"$f":"IF(AND($V$6=\"EOL\",$V$7=\"Construcción\"),INDEX(FECEOL[],MATCH(TEGTPFV[[#This Row],[Sector]],FECEOL[Sector],0),MATCH(\"Directo\",FECEOL[#Headers],0)),IF(AND($V$6=\"EOL\",$V$7=\"Operación y mantenimiento\"),INDEX(FEOEOL[],MATCH(TEGTPFV[[#This Row],[Sector]],FEOEOL[Sector],0),MATCH(\"Directo\",FEOEOL[#Headers],0)),IF(AND($V$6=\"FV\",$V$7=\"Construcción\"),INDEX(FECFV[],MATCH(TEGTPFV[[#This Row],[Sector]],FECFV[Sector],0),MATCH(\"Directo\",FECFV[#Headers],0)),IF(AND($V$6=\"FV\",$V$7=\"Operación y mantenimiento\"),INDEX(FEOFV[],MATCH(TEGTPFV[[#This Row],[Sector]],FEOFV[Sector],0),MATCH(\"Directo\",FEOFV[#Headers],0)),\"\"))))","v":0},{"$f":"IFERROR($AC$7*TEGTPFV[[#This Row],[Factor de empleo directo]]*$Y$7*$AA$7,\"\")","v":0},{"$f":"IF(AND($V$6=\"EOL\",$V$7=\"Construcción\"),INDEX(FECEOL[],MATCH(TEGTPFV[[#This Row],[Sector]],FECEOL[Sector],0),MATCH(\"Indirecto\",FECEOL[#Headers],0)),IF(AND($V$6=\"EOL\",$V$7=\"Operación y mantenimiento\"),INDEX(FEOEOL[],MATCH(TEGTPFV[[#This Row],[Sector]],FEOEOL[Sector],0),MATCH(\"Indirecto\",FEOEOL[#Headers],0)),IF(AND($V$6=\"FV\",$V$7=\"Construcción\"),INDEX(FECFV[],MATCH(TEGTPFV[[#This Row],[Sector]],FECFV[Sector],0),MATCH(\"Indirecto\",FECFV[#Headers],0)),IF(AND($V$6=\"FV\",$V$7=\"Operación y mantenimiento\"),INDEX(FEOFV[],MATCH(TEGTPFV[[#This Row],[Sector]],FEOFV[Sector],0),MATCH(\"Indirecto\",FEOFV[#Headers],0)),\"\"))))","v":0.17699999999999999},{"$f":"IFERROR($AC$7*TEGTPFV[[#This Row],[Factor de empleo indirecto]]*$Y$7*$AA$7,\"\")","v":0},{"$f":"IF(AND($V$6=\"EOL\",$V$7=\"Construcción\"),INDEX(FECEOL[],MATCH(TEGTPFV[[#This Row],[Sector]],FECEOL[Sector],0),MATCH(\"Inducido\",FECEOL[#Headers],0)),IF(AND($V$6=\"EOL\",$V$7=\"Operación y mantenimiento\"),INDEX(FEOEOL[],MATCH(TEGTPFV[[#This Row],[Sector]],FEOEOL[Sector],0),MATCH(\"Inducido\",FEOEOL[#Headers],0)),IF(AND($V$6=\"FV\",$V$7=\"Construcción\"),INDEX(FECFV[],MATCH(TEGTPFV[[#This Row],[Sector]],FECFV[Sector],0),MATCH(\"Inducido\",FECFV[#Headers],0)),IF(AND($V$6=\"FV\",$V$7=\"Operación y mantenimiento\"),INDEX(FEOFV[],MATCH(TEGTPFV[[#This Row],[Sector]],FEOFV[Sector],0),MATCH(\"Inducido\",FEOFV[#Headers],0)),\"\"))))","v":2.8000000000000001E-2},{"$f":"IFERROR($AC$7*TEGTPFV[[#This Row],[Factor de empleo inducido]]*$Y$7*$AA$7,\"\")","v":0},{"$f":"IFERROR(TEGTPFV[[#This Row],[Empleos directos]]+TEGTPFV[[#This Row],[Empleos indirectos]]+TEGTPFV[[#This Row],[Empleos inducidos]],\"\")","v":0},null,null,"Minería y Extracción",{"$f":"IF(AND($AF$6=\"EOL\",$AF$7=\"Construcción\"),INDEX(FECEOL[],MATCH(TEGTPFV20[[#This Row],[Sector]],FECEOL[Sector],0),MATCH(\"Directo\",FECEOL[#Headers],0)),IF(AND($AF$6=\"EOL\",$AF$7=\"Operación y mantenimiento\"),INDEX(FEOEOL[],MATCH(TEGTPFV20[[#This Row],[Sector]],FEOEOL[Sector],0),MATCH(\"Directo\",FEOEOL[#Headers],0)),IF(AND($AF$6=\"FV\",$AF$7=\"Construcción\"),INDEX(FECFV[],MATCH(TEGTPFV20[[#This Row],[Sector]],FECFV[Sector],0),MATCH(\"Directo\",FECFV[#Headers],0)),IF(AND($AF$6=\"FV\",$AF$7=\"Operación y mantenimiento\"),INDEX(FEOFV[],MATCH(TEGTPFV20[[#This Row],[Sector]],FEOFV[Sector],0),MATCH(\"Directo\",FEOFV[#Headers],0)),\"\"))))","v":0},{"$f":"IFERROR($AM$7*TEGTPFV20[[#This Row],[Factor de empleo directo]]*$AI$7*$AK$7,\"\")","v":0},{"$f":"IF(AND($AF$6=\"EOL\",$AF$7=\"Construcción\"),INDEX(FECEOL[],MATCH(TEGTPFV20[[#This Row],[Sector]],FECEOL[Sector],0),MATCH(\"Indirecto\",FECEOL[#Headers],0)),IF(AND($AF$6=\"EOL\",$AF$7=\"Operación y mantenimiento\"),INDEX(FEOEOL[],MATCH(TEGTPFV20[[#This Row],[Sector]],FEOEOL[Sector],0),MATCH(\"Indirecto\",FEOEOL[#Headers],0)),IF(AND($AF$6=\"FV\",$AF$7=\"Construcción\"),INDEX(FECFV[],MATCH(TEGTPFV20[[#This Row],[Sector]],FECFV[Sector],0),MATCH(\"Indirecto\",FECFV[#Headers],0)),IF(AND($AF$6=\"FV\",$AF$7=\"Operación y mantenimiento\"),INDEX(FEOFV[],MATCH(TEGTPFV20[[#This Row],[Sector]],FEOFV[Sector],0),MATCH(\"Indirecto\",FEOFV[#Headers],0)),\"\"))))","v":1E-3},{"$f":"IFERROR($AM$7*TEGTPFV20[[#This Row],[Factor de empleo indirecto]]*$AI$7*$AK$7,\"\")","v":0},{"$f":"IF(AND($AF$6=\"EOL\",$AF$7=\"Construcción\"),INDEX(FECEOL[],MATCH(TEGTPFV20[[#This Row],[Sector]],FECEOL[Sector],0),MATCH(\"Inducido\",FECEOL[#Headers],0)),IF(AND($AF$6=\"EOL\",$AF$7=\"Operación y mantenimiento\"),INDEX(FEOEOL[],MATCH(TEGTPFV20[[#This Row],[Sector]],FEOEOL[Sector],0),MATCH(\"Inducido\",FEOEOL[#Headers],0)),IF(AND($AF$6=\"FV\",$AF$7=\"Construcción\"),INDEX(FECFV[],MATCH(TEGTPFV20[[#This Row],[Sector]],FECFV[Sector],0),MATCH(\"Inducido\",FECFV[#Headers],0)),IF(AND($AF$6=\"FV\",$AF$7=\"Operación y mantenimiento\"),INDEX(FEOFV[],MATCH(TEGTPFV20[[#This Row],[Sector]],FEOFV[Sector],0),MATCH(\"Inducido\",FEOFV[#Headers],0)),\"\"))))","v":0},{"$f":"IFERROR($AM$7*TEGTPFV20[[#This Row],[Factor de empleo inducido]]*$AI$7*$AK$7,\"\")","v":0},{"$f":"IFERROR(TEGTPFV20[[#This Row],[Empleos directos]]+TEGTPFV20[[#This Row],[Empleos indirectos]]+TEGTPFV20[[#This Row],[Empleos inducidos]],\"\")","v":0}]
[null,"Servicios públicos",{"$f":"IF(AND($B$6=\"EOL\",$B$7=\"Construcción\"),INDEX(FECEOL[],MATCH(TEGTPEOL[[#This Row],[Sector]],FECEOL[Sector],0),MATCH(\"Directo\",FECEOL[#Headers],0)),IF(AND($B$6=\"EOL\",$B$7=\"Operación y mantenimiento\"),INDEX(FEOEOL[],MATCH(TEGTPEOL[[#This Row],[Sector]],FEOEOL[Sector],0),MATCH(\"Directo\",FEOEOL[#Headers],0)),IF(AND($B$6=\"FV\",$B$7=\"Construcción\"),INDEX(FECFV[],MATCH(TEGTPEOL[[#This Row],[Sector]],FECFV[Sector],0),MATCH(\"Directo\",FECFV[#Headers],0)),IF(AND($B$6=\"FV\",$B$7=\"Operación y mantenimiento\"),INDEX(FEOFV[],MATCH(TEGTPEOL[[#This Row],[Sector]],FEOFV[Sector],0),MATCH(\"Directo\",FEOFV[#Headers],0)),\"\"))))","v":0},{"$f":"IFERROR($I$7*TEGTPEOL[[#This Row],[Factor de empleo directo]]*$E$7*$G$7,\"\")","v":0},{"$f":"IF(AND($B$6=\"EOL\",$B$7=\"Construcción\"),INDEX(FECEOL[],MATCH(TEGTPEOL[[#This Row],[Sector]],FECEOL[Sector],0),MATCH(\"Indirecto\",FECEOL[#Headers],0)),IF(AND($B$6=\"EOL\",$B$7=\"Operación y mantenimiento\"),INDEX(FEOEOL[],MATCH(TEGTPEOL[[#This Row],[Sector]],FEOEOL[Sector],0),MATCH(\"Indirecto\",FEOEOL[#Headers],0)),IF(AND($B$6=\"FV\",$B$7=\"Construcción\"),INDEX(FECFV[],MATCH(TEGTPEOL[[#This Row],[Sector]],FECFV[Sector],0),MATCH(\"Indirecto\",FECFV[#Headers],0)),IF(AND($B$6=\"FV\",$B$7=\"Operación y mantenimiento\"),INDEX(FEOFV[],MATCH(TEGTPEOL[[#This Row],[Sector]],FEOFV[Sector],0),MATCH(\"Indirecto\",FEOFV[#Headers],0)),\"\"))))","v":0.104},{"$f":"IFERROR($I$7*TEGTPEOL[[#This Row],[Factor de empleo indirecto]]*$E$7*$G$7,\"\")","v":0},{"$f":"IF(AND($B$6=\"EOL\",$B$7=\"Construcción\"),INDEX(FECEOL[],MATCH(TEGTPEOL[[#This Row],[Sector]],FECEOL[Sector],0),MATCH(\"Inducido\",FECEOL[#Headers],0)),IF(AND($B$6=\"EOL\",$B$7=\"Operación y mantenimiento\"),INDEX(FEOEOL[],MATCH(TEGTPEOL[[#This Row],[Sector]],FEOEOL[Sector],0),MATCH(\"Inducido\",FEOEOL[#Headers],0)),IF(AND($B$6=\"FV\",$B$7=\"Construcción\"),INDEX(FECFV[],MATCH(TEGTPEOL[[#This Row],[Sector]],FECFV[Sector],0),MATCH(\"Inducido\",FECFV[#Headers],0)),IF(AND($B$6=\"FV\",$B$7=\"Operación y mantenimiento\"),INDEX(FEOFV[],MATCH(TEGTPEOL[[#This Row],[Sector]],FEOFV[Sector],0),MATCH(\"Inducido\",FEOFV[#Headers],0)),\"\"))))","v":5.6000000000000001E-2},{"$f":"IFERROR($I$7*TEGTPEOL[[#This Row],[Factor de empleo inducido]]*$E$7*$G$7,\"\")","v":0},{"$f":"IFERROR(TEGTPEOL[[#This Row],[Empleos directos]]+TEGTPEOL[[#This Row],[Empleos indirectos]]+TEGTPEOL[[#This Row],[Empleos inducidos]],\"\")","v":0},null,null,"Servicios públicos",{"$f":"IF(AND($L$6=\"EOL\",$L$7=\"Construcción\"),INDEX(FECEOL[],MATCH(TEGTPEOL19[[#This Row],[Sector]],FECEOL[Sector],0),MATCH(\"Directo\",FECEOL[#Headers],0)),IF(AND($L$6=\"EOL\",$L$7=\"Operación y mantenimiento\"),INDEX(FEOEOL[],MATCH(TEGTPEOL19[[#This Row],[Sector]],FEOEOL[Sector],0),MATCH(\"Directo\",FEOEOL[#Headers],0)),IF(AND($L$6=\"FV\",$L$7=\"Construcción\"),INDEX(FECFV[],MATCH(TEGTPEOL19[[#This Row],[Sector]],FECFV[Sector],0),MATCH(\"Directo\",FECFV[#Headers],0)),IF(AND($L$6=\"FV\",$L$7=\"Operación y mantenimiento\"),INDEX(FEOFV[],MATCH(TEGTPEOL19[[#This Row],[Sector]],FEOFV[Sector],0),MATCH(\"Directo\",FEOFV[#Headers],0)),\"\"))))","v":3.0000000000000001E-3},{"$f":"IFERROR($S$7*TEGTPEOL19[[#This Row],[Factor de empleo directo]]*$O$7*$Q$7,\"\")","v":0},{"$f":"IF(AND($L$6=\"EOL\",$L$7=\"Construcción\"),INDEX(FECEOL[],MATCH(TEGTPEOL19[[#This Row],[Sector]],FECEOL[Sector],0),MATCH(\"Indirecto\",FECEOL[#Headers],0)),IF(AND($L$6=\"EOL\",$L$7=\"Operación y mantenimiento\"),INDEX(FEOEOL[],MATCH(TEGTPEOL19[[#This Row],[Sector]],FEOEOL[Sector],0),MATCH(\"Indirecto\",FEOEOL[#Headers],0)),IF(AND($L$6=\"FV\",$L$7=\"Construcción\"),INDEX(FECFV[],MATCH(TEGTPEOL19[[#This Row],[Sector]],FECFV[Sector],0),MATCH(\"Indirecto\",FECFV[#Headers],0)),IF(AND($L$6=\"FV\",$L$7=\"Operación y mantenimiento\"),INDEX(FEOFV[],MATCH(TEGTPEOL19[[#This Row],[Sector]],FEOFV[Sector],0),MATCH(\"Indirecto\",FEOFV[#Headers],0)),\"\"))))","v":1E-3},{"$f":"IFERROR($S$7*TEGTPEOL19[[#This Row],[Factor de empleo indirecto]]*$O$7*$Q$7,\"\")","v":0},{"$f":"IF(AND($L$6=\"EOL\",$L$7=\"Construcción\"),INDEX(FECEOL[],MATCH(TEGTPEOL19[[#This Row],[Sector]],FECEOL[Sector],0),MATCH(\"Inducido\",FECEOL[#Headers],0)),IF(AND($L$6=\"EOL\",$L$7=\"Operación y mantenimiento\"),INDEX(FEOEOL[],MATCH(TEGTPEOL19[[#This Row],[Sector]],FEOEOL[Sector],0),MATCH(\"Inducido\",FEOEOL[#Headers],0)),IF(AND($L$6=\"FV\",$L$7=\"Construcción\"),INDEX(FECFV[],MATCH(TEGTPEOL19[[#This Row],[Sector]],FECFV[Sector],0),MATCH(\"Inducido\",FECFV[#Headers],0)),IF(AND($L$6=\"FV\",$L$7=\"Operación y mantenimiento\"),INDEX(FEOFV[],MATCH(TEGTPEOL19[[#This Row],[Sector]],FEOFV[Sector],0),MATCH(\"Inducido\",FEOFV[#Headers],0)),\"\"))))","v":0},{"$f":"IFERROR($S$7*TEGTPEOL19[[#This Row],[Factor de empleo inducido]]*$O$7*$Q$7,\"\")","v":0},{"$f":"IFERROR(TEGTPEOL19[[#This Row],[Empleos directos]]+TEGTPEOL19[[#This Row],[Empleos indirectos]]+TEGTPEOL19[[#This Row],[Empleos inducidos]],\"\")","v":0},null,null,"Servicios públicos",{"$f":"IF(AND($V$6=\"EOL\",$V$7=\"Construcción\"),INDEX(FECEOL[],MATCH(TEGTPFV[[#This Row],[Sector]],FECEOL[Sector],0),MATCH(\"Directo\",FECEOL[#Headers],0)),IF(AND($V$6=\"EOL\",$V$7=\"Operación y mantenimiento\"),INDEX(FEOEOL[],MATCH(TEGTPFV[[#This Row],[Sector]],FEOEOL[Sector],0),MATCH(\"Directo\",FEOEOL[#Headers],0)),IF(AND($V$6=\"FV\",$V$7=\"Construcción\"),INDEX(FECFV[],MATCH(TEGTPFV[[#This Row],[Sector]],FECFV[Sector],0),MATCH(\"Directo\",FECFV[#Headers],0)),IF(AND($V$6=\"FV\",$V$7=\"Operación y mantenimiento\"),INDEX(FEOFV[],MATCH(TEGTPFV[[#This Row],[Sector]],FEOFV[Sector],0),MATCH(\"Directo\",FEOFV[#Headers],0)),\"\"))))","v":0},{"$f":"IFERROR($AC$7*TEGTPFV[[#This Row],[Factor de empleo directo]]*$Y$7*$AA$7,\"\")","v":0},{"$f":"IF(AND($V$6=\"EOL\",$V$7=\"Construcción\"),INDEX(FECEOL[],MATCH(TEGTPFV[[#This Row],[Sector]],FECEOL[Sector],0),MATCH(\"Indirecto\",FECEOL[#Headers],0)),IF(AND($V$6=\"EOL\",$V$7=\"Operación y mantenimiento\"),INDEX(FEOEOL[],MATCH(TEGTPFV[[#This Row],[Sector]],FEOEOL[Sector],0),MATCH(\"Indirecto\",FEOEOL[#Headers],0)),IF(AND($V$6=\"FV\",$V$7=\"Construcción\"),INDEX(FECFV[],MATCH(TEGTPFV[[#This Row],[Sector]],FECFV[Sector],0),MATCH(\"Indirecto\",FECFV[#Headers],0)),IF(AND($V$6=\"FV\",$V$7=\"Operación y mantenimiento\"),INDEX(FEOFV[],MATCH(TEGTPFV[[#This Row],[Sector]],FEOFV[Sector],0),MATCH(\"Indirecto\",FEOFV[#Headers],0)),\"\"))))","v":0.104},{"$f":"IFERROR($AC$7*TEGTPFV[[#This Row],[Factor de empleo indirecto]]*$Y$7*$AA$7,\"\")","v":0},{"$f":"IF(AND($V$6=\"EOL\",$V$7=\"Construcción\"),INDEX(FECEOL[],MATCH(TEGTPFV[[#This Row],[Sector]],FECEOL[Sector],0),MATCH(\"Inducido\",FECEOL[#Headers],0)),IF(AND($V$6=\"EOL\",$V$7=\"Operación y mantenimiento\"),INDEX(FEOEOL[],MATCH(TEGTPFV[[#This Row],[Sector]],FEOEOL[Sector],0),MATCH(\"Inducido\",FEOEOL[#Headers],0)),IF(AND($V$6=\"FV\",$V$7=\"Construcción\"),INDEX(FECFV[],MATCH(TEGTPFV[[#This Row],[Sector]],FECFV[Sector],0),MATCH(\"Inducido\",FECFV[#Headers],0)),IF(AND($V$6=\"FV\",$V$7=\"Operación y mantenimiento\"),INDEX(FEOFV[],MATCH(TEGTPFV[[#This Row],[Sector]],FEOFV[Sector],0),MATCH(\"Inducido\",FEOFV[#Headers],0)),\"\"))))","v":5.6000000000000001E-2},{"$f":"IFERROR($AC$7*TEGTPFV[[#This Row],[Factor de empleo inducido]]*$Y$7*$AA$7,\"\")","v":0},{"$f":"IFERROR(TEGTPFV[[#This Row],[Empleos directos]]+TEGTPFV[[#This Row],[Empleos indirectos]]+TEGTPFV[[#This Row],[Empleos inducidos]],\"\")","v":0},null,null,"Servicios públicos",{"$f":"IF(AND($AF$6=\"EOL\",$AF$7=\"Construcción\"),INDEX(FECEOL[],MATCH(TEGTPFV20[[#This Row],[Sector]],FECEOL[Sector],0),MATCH(\"Directo\",FECEOL[#Headers],0)),IF(AND($AF$6=\"EOL\",$AF$7=\"Operación y mantenimiento\"),INDEX(FEOEOL[],MATCH(TEGTPFV20[[#This Row],[Sector]],FEOEOL[Sector],0),MATCH(\"Directo\",FEOEOL[#Headers],0)),IF(AND($AF$6=\"FV\",$AF$7=\"Construcción\"),INDEX(FECFV[],MATCH(TEGTPFV20[[#This Row],[Sector]],FECFV[Sector],0),MATCH(\"Directo\",FECFV[#Headers],0)),IF(AND($AF$6=\"FV\",$AF$7=\"Operación y mantenimiento\"),INDEX(FEOFV[],MATCH(TEGTPFV20[[#This Row],[Sector]],FEOFV[Sector],0),MATCH(\"Directo\",FEOFV[#Headers],0)),\"\"))))","v":0},{"$f":"IFERROR($AM$7*TEGTPFV20[[#This Row],[Factor de empleo directo]]*$AI$7*$AK$7,\"\")","v":0},{"$f":"IF(AND($AF$6=\"EOL\",$AF$7=\"Construcción\"),INDEX(FECEOL[],MATCH(TEGTPFV20[[#This Row],[Sector]],FECEOL[Sector],0),MATCH(\"Indirecto\",FECEOL[#Headers],0)),IF(AND($AF$6=\"EOL\",$AF$7=\"Operación y mantenimiento\"),INDEX(FEOEOL[],MATCH(TEGTPFV20[[#This Row],[Sector]],FEOEOL[Sector],0),MATCH(\"Indirecto\",FEOEOL[#Headers],0)),IF(AND($AF$6=\"FV\",$AF$7=\"Construcción\"),INDEX(FECFV[],MATCH(TEGTPFV20[[#This Row],[Sector]],FECFV[Sector],0),MATCH(\"Indirecto\",FECFV[#Headers],0)),IF(AND($AF$6=\"FV\",$AF$7=\"Operación y mantenimiento\"),INDEX(FEOFV[],MATCH(TEGTPFV20[[#This Row],[Sector]],FEOFV[Sector],0),MATCH(\"Indirecto\",FEOFV[#Headers],0)),\"\"))))","v":1E-3},{"$f":"IFERROR($AM$7*TEGTPFV20[[#This Row],[Factor de empleo indirecto]]*$AI$7*$AK$7,\"\")","v":0},{"$f":"IF(AND($AF$6=\"EOL\",$AF$7=\"Construcción\"),INDEX(FECEOL[],MATCH(TEGTPFV20[[#This Row],[Sector]],FECEOL[Sector],0),MATCH(\"Inducido\",FECEOL[#Headers],0)),IF(AND($AF$6=\"EOL\",$AF$7=\"Operación y mantenimiento\"),INDEX(FEOEOL[],MATCH(TEGTPFV20[[#This Row],[Sector]],FEOEOL[Sector],0),MATCH(\"Inducido\",FEOEOL[#Headers],0)),IF(AND($AF$6=\"FV\",$AF$7=\"Construcción\"),INDEX(FECFV[],MATCH(TEGTPFV20[[#This Row],[Sector]],FECFV[Sector],0),MATCH(\"Inducido\",FECFV[#Headers],0)),IF(AND($AF$6=\"FV\",$AF$7=\"Operación y mantenimiento\"),INDEX(FEOFV[],MATCH(TEGTPFV20[[#This Row],[Sector]],FEOFV[Sector],0),MATCH(\"Inducido\",FEOFV[#Headers],0)),\"\"))))","v":1E-3},{"$f":"IFERROR($AM$7*TEGTPFV20[[#This Row],[Factor de empleo inducido]]*$AI$7*$AK$7,\"\")","v":0},{"$f":"IFERROR(TEGTPFV20[[#This Row],[Empleos directos]]+TEGTPFV20[[#This Row],[Empleos indirectos]]+TEGTPFV20[[#This Row],[Empleos inducidos]],\"\")","v":0}]
[null,"Construcción",{"$f":"IF(AND($B$6=\"EOL\",$B$7=\"Construcción\"),INDEX(FECEOL[],MATCH(TEGTPEOL[[#This Row],[Sector]],FECEOL[Sector],0),MATCH(\"Directo\",FECEOL[#Headers],0)),IF(AND($B$6=\"EOL\",$B$7=\"Operación y mantenimiento\"),INDEX(FEOEOL[],MATCH(TEGTPEOL[[#This Row],[Sector]],FEOEOL[Sector],0),MATCH(\"Directo\",FEOEOL[#Headers],0)),IF(AND($B$6=\"FV\",$B$7=\"Construcción\"),INDEX(FECFV[],MATCH(TEGTPEOL[[#This Row],[Sector]],FECFV[Sector],0),MATCH(\"Directo\",FECFV[#Headers],0)),IF(AND($B$6=\"FV\",$B$7=\"Operación y mantenimiento\"),INDEX(FEOFV[],MATCH(TEGTPEOL[[#This Row],[Sector]],FEOFV[Sector],0),MATCH(\"Directo\",FEOFV[#Headers],0)),\"\"))))","v":29.802},{"$f":"IFERROR($I$7*TEGTPEOL[[#This Row],[Factor de empleo directo]]*$E$7*$G$7,\"\")","v":0},{"$f":"IF(AND($B$6=\"EOL\",$B$7=\"Construcción\"),INDEX(FECEOL[],MATCH(TEGTPEOL[[#This Row],[Sector]],FECEOL[Sector],0),MATCH(\"Indirecto\",FECEOL[#Headers],0)),IF(AND($B$6=\"EOL\",$B$7=\"Operación y mantenimiento\"),INDEX(FEOEOL[],MATCH(TEGTPEOL[[#This Row],[Sector]],FEOEOL[Sector],0),MATCH(\"Indirecto\",FEOEOL[#Headers],0)),IF(AND($B$6=\"FV\",$B$7=\"Construcción\"),INDEX(FECFV[],MATCH(TEGTPEOL[[#This Row],[Sector]],FECFV[Sector],0),MATCH(\"Indirecto\",FECFV[#Headers],0)),IF(AND($B$6=\"FV\",$B$7=\"Operación y mantenimiento\"),INDEX(FEOFV[],MATCH(TEGTPEOL[[#This Row],[Sector]],FEOFV[Sector],0),MATCH(\"Indirecto\",FEOFV[#Headers],0)),\"\"))))","v":2.41},{"$f":"IFERROR($I$7*TEGTPEOL[[#This Row],[Factor de empleo indirecto]]*$E$7*$G$7,\"\")","v":0},{"$f":"IF(AND($B$6=\"EOL\",$B$7=\"Construcción\"),INDEX(FECEOL[],MATCH(TEGTPEOL[[#This Row],[Sector]],FECEOL[Sector],0),MATCH(\"Inducido\",FECEOL[#Headers],0)),IF(AND($B$6=\"EOL\",$B$7=\"Operación y mantenimiento\"),INDEX(FEOEOL[],MATCH(TEGTPEOL[[#This Row],[Sector]],FEOEOL[Sector],0),MATCH(\"Inducido\",FEOEOL[#Headers],0)),IF(AND($B$6=\"FV\",$B$7=\"Construcción\"),INDEX(FECFV[],MATCH(TEGTPEOL[[#This Row],[Sector]],FECFV[Sector],0),MATCH(\"Inducido\",FECFV[#Headers],0)),IF(AND($B$6=\"FV\",$B$7=\"Operación y mantenimiento\"),INDEX(FEOFV[],MATCH(TEGTPEOL[[#This Row],[Sector]],FEOFV[Sector],0),MATCH(\"Inducido\",FEOFV[#Headers],0)),\"\"))))","v":4.8000000000000001E-2},{"$f":"IFERROR($I$7*TEGTPEOL[[#This Row],[Factor de empleo inducido]]*$E$7*$G$7,\"\")","v":0},{"$f":"IFERROR(TEGTPEOL[[#This Row],[Empleos directos]]+TEGTPEOL[[#This Row],[Empleos indirectos]]+TEGTPEOL[[#This Row],[Empleos inducidos]],\"\")","v":0},null,null,"Construcción",{"$f":"IF(AND($L$6=\"EOL\",$L$7=\"Construcción\"),INDEX(FECEOL[],MATCH(TEGTPEOL19[[#This Row],[Sector]],FECEOL[Sector],0),MATCH(\"Directo\",FECEOL[#Headers],0)),IF(AND($L$6=\"EOL\",$L$7=\"Operación y mantenimiento\"),INDEX(FEOEOL[],MATCH(TEGTPEOL19[[#This Row],[Sector]],FEOEOL[Sector],0),MATCH(\"Directo\",FEOEOL[#Headers],0)),IF(AND($L$6=\"FV\",$L$7=\"Construcción\"),INDEX(FECFV[],MATCH(TEGTPEOL19[[#This Row],[Sector]],FECFV[Sector],0),MATCH(\"Directo\",FECFV[#Headers],0)),IF(AND($L$6=\"FV\",$L$7=\"Operación y mantenimiento\"),INDEX(FEOFV[],MATCH(TEGTPEOL19[[#This Row],[Sector]],FEOFV[Sector],0),MATCH(\"Directo\",FEOFV[#Headers],0)),\"\"))))","v":4.0000000000000001E-3},{"$f":"IFERROR($S$7*TEGTPEOL19[[#This Row],[Factor de empleo directo]]*$O$7*$Q$7,\"\")","v":0},{"$f":"IF(AND($L$6=\"EOL\",$L$7=\"Construcción\"),INDEX(FECEOL[],MATCH(TEGTPEOL19[[#This Row],[Sector]],FECEOL[Sector],0),MATCH(\"Indirecto\",FECEOL[#Headers],0)),IF(AND($L$6=\"EOL\",$L$7=\"Operación y mantenimiento\"),INDEX(FEOEOL[],MATCH(TEGTPEOL19[[#This Row],[Sector]],FEOEOL[Sector],0),MATCH(\"Indirecto\",FEOEOL[#Headers],0)),IF(AND($L$6=\"FV\",$L$7=\"Construcción\"),INDEX(FECFV[],MATCH(TEGTPEOL19[[#This Row],[Sector]],FECFV[Sector],0),MATCH(\"Indirecto\",FECFV[#Headers],0)),IF(AND($L$6=\"FV\",$L$7=\"Operación y mantenimiento\"),INDEX(FEOFV[],MATCH(TEGTPEOL19[[#This Row],[Sector]],FEOFV[Sector],0),MATCH(\"Indirecto\",FEOFV[#Headers],0)),\"\"))))","v":1E-3},{"$f":"IFERROR($S$7*TEGTPEOL19[[#This Row],[Factor de empleo indirecto]]*$O$7*$Q$7,\"\")","v":0},{"$f":"IF(AND($L$6=\"EOL\",$L$7=\"Construcción\"),INDEX(FECEOL[],MATCH(TEGTPEOL19[[#This Row],[Sector]],FECEOL[Sector],0),MATCH(\"Inducido\",FECEOL[#Headers],0)),IF(AND($L$6=\"EOL\",$L$7=\"Operación y mantenimiento\"),INDEX(FEOEOL[],MATCH(TEGTPEOL19[[#This Row],[Sector]],FEOEOL[Sector],0),MATCH(\"Inducido\",FEOEOL[#Headers],0)),IF(AND($L$6=\"FV\",$L$7=\"Construcción\"),INDEX(FECFV[],MATCH(TEGTPEOL19[[#This Row],[Sector]],FECFV[Sector],0),MATCH(\"Inducido\",FECFV[#Headers],0)),IF(AND($L$6=\"FV\",$L$7=\"Operación y mantenimiento\"),INDEX(FEOFV[],MATCH(TEGTPEOL19[[#This Row],[Sector]],FEOFV[Sector],0),MATCH(\"Inducido\",FEOFV[#Headers],0)),\"\"))))","v":0},{"$f":"IFERROR($S$7*TEGTPEOL19[[#This Row],[Factor de empleo inducido]]*$O$7*$Q$7,\"\")","v":0},{"$f":"IFERROR(TEGTPEOL19[[#This Row],[Empleos directos]]+TEGTPEOL19[[#This Row],[Empleos indirectos]]+TEGTPEOL19[[#This Row],[Empleos inducidos]],\"\")","v":0},null,null,"Construcción",{"$f":"IF(AND($V$6=\"EOL\",$V$7=\"Construcción\"),INDEX(FECEOL[],MATCH(TEGTPFV[[#This Row],[Sector]],FECEOL[Sector],0),MATCH(\"Directo\",FECEOL[#Headers],0)),IF(AND($V$6=\"EOL\",$V$7=\"Operación y mantenimiento\"),INDEX(FEOEOL[],MATCH(TEGTPFV[[#This Row],[Sector]],FEOEOL[Sector],0),MATCH(\"Directo\",FEOEOL[#Headers],0)),IF(AND($V$6=\"FV\",$V$7=\"Construcción\"),INDEX(FECFV[],MATCH(TEGTPFV[[#This Row],[Sector]],FECFV[Sector],0),MATCH(\"Directo\",FECFV[#Headers],0)),IF(AND($V$6=\"FV\",$V$7=\"Operación y mantenimiento\"),INDEX(FEOFV[],MATCH(TEGTPFV[[#This Row],[Sector]],FEOFV[Sector],0),MATCH(\"Directo\",FEOFV[#Headers],0)),\"\"))))","v":29.802},{"$f":"IFERROR($AC$7*TEGTPFV[[#This Row],[Factor de empleo directo]]*$Y$7*$AA$7,\"\")","v":0},{"$f":"IF(AND($V$6=\"EOL\",$V$7=\"Construcción\"),INDEX(FECEOL[],MATCH(TEGTPFV[[#This Row],[Sector]],FECEOL[Sector],0),MATCH(\"Indirecto\",FECEOL[#Headers],0)),IF(AND($V$6=\"EOL\",$V$7=\"Operación y mantenimiento\"),INDEX(FEOEOL[],MATCH(TEGTPFV[[#This Row],[Sector]],FEOEOL[Sector],0),MATCH(\"Indirecto\",FEOEOL[#Headers],0)),IF(AND($V$6=\"FV\",$V$7=\"Construcción\"),INDEX(FECFV[],MATCH(TEGTPFV[[#This Row],[Sector]],FECFV[Sector],0),MATCH(\"Indirecto\",FECFV[#Headers],0)),IF(AND($V$6=\"FV\",$V$7=\"Operación y mantenimiento\"),INDEX(FEOFV[],MATCH(TEGTPFV[[#This Row],[Sector]],FEOFV[Sector],0),MATCH(\"Indirecto\",FEOFV[#Headers],0)),\"\"))))","v":2.41},{"$f":"IFERROR($AC$7*TEGTPFV[[#This Row],[Factor de empleo indirecto]]*$Y$7*$AA$7,\"\")","v":0},{"$f":"IF(AND($V$6=\"EOL\",$V$7=\"Construcción\"),INDEX(FECEOL[],MATCH(TEGTPFV[[#This Row],[Sector]],FECEOL[Sector],0),MATCH(\"Inducido\",FECEOL[#Headers],0)),IF(AND($V$6=\"EOL\",$V$7=\"Operación y mantenimiento\"),INDEX(FEOEOL[],MATCH(TEGTPFV[[#This Row],[Sector]],FEOEOL[Sector],0),MATCH(\"Inducido\",FEOEOL[#Headers],0)),IF(AND($V$6=\"FV\",$V$7=\"Construcción\"),INDEX(FECFV[],MATCH(TEGTPFV[[#This Row],[Sector]],FECFV[Sector],0),MATCH(\"Inducido\",FECFV[#Headers],0)),IF(AND($V$6=\"FV\",$V$7=\"Operación y mantenimiento\"),INDEX(FEOFV[],MATCH(TEGTPFV[[#This Row],[Sector]],FEOFV[Sector],0),MATCH(\"Inducido\",FEOFV[#Headers],0)),\"\"))))","v":4.8000000000000001E-2},{"$f":"IFERROR($AC$7*TEGTPFV[[#This Row],[Factor de empleo inducido]]*$Y$7*$AA$7,\"\")","v":0},{"$f":"IFERROR(TEGTPFV[[#This Row],[Empleos directos]]+TEGTPFV[[#This Row],[Empleos indirectos]]+TEGTPFV[[#This Row],[Empleos inducidos]],\"\")","v":0},null,null,"Construcción",{"$f":"IF(AND($AF$6=\"EOL\",$AF$7=\"Construcción\"),INDEX(FECEOL[],MATCH(TEGTPFV20[[#This Row],[Sector]],FECEOL[Sector],0),MATCH(\"Directo\",FECEOL[#Headers],0)),IF(AND($AF$6=\"EOL\",$AF$7=\"Operación y mantenimiento\"),INDEX(FEOEOL[],MATCH(TEGTPFV20[[#This Row],[Sector]],FEOEOL[Sector],0),MATCH(\"Directo\",FEOEOL[#Headers],0)),IF(AND($AF$6=\"FV\",$AF$7=\"Construcción\"),INDEX(FECFV[],MATCH(TEGTPFV20[[#This Row],[Sector]],FECFV[Sector],0),MATCH(\"Directo\",FECFV[#Headers],0)),IF(AND($AF$6=\"FV\",$AF$7=\"Operación y mantenimiento\"),INDEX(FEOFV[],MATCH(TEGTPFV20[[#This Row],[Sector]],FEOFV[Sector],0),MATCH(\"Directo\",FEOFV[#Headers],0)),\"\"))))","v":0.54900000000000004},{"$f":"IFERROR($AM$7*TEGTPFV20[[#This Row],[Factor de empleo directo]]*$AI$7*$AK$7,\"\")","v":0},{"$f":"IF(AND($AF$6=\"EOL\",$AF$7=\"Construcción\"),INDEX(FECEOL[],MATCH(TEGTPFV20[[#This Row],[Sector]],FECEOL[Sector],0),MATCH(\"Indirecto\",FECEOL[#Headers],0)),IF(AND($AF$6=\"EOL\",$AF$7=\"Operación y mantenimiento\"),INDEX(FEOEOL[],MATCH(TEGTPFV20[[#This Row],[Sector]],FEOEOL[Sector],0),MATCH(\"Indirecto\",FEOEOL[#Headers],0)),IF(AND($AF$6=\"FV\",$AF$7=\"Construcción\"),INDEX(FECFV[],MATCH(TEGTPFV20[[#This Row],[Sector]],FECFV[Sector],0),MATCH(\"Indirecto\",FECFV[#Headers],0)),IF(AND($AF$6=\"FV\",$AF$7=\"Operación y mantenimiento\"),INDEX(FEOFV[],MATCH(TEGTPFV20[[#This Row],[Sector]],FEOFV[Sector],0),MATCH(\"Indirecto\",FEOFV[#Headers],0)),\"\"))))","v":4.2000000000000003E-2},{"$f":"IFERROR($AM$7*TEGTPFV20[[#This Row],[Factor de empleo indirecto]]*$AI$7*$AK$7,\"\")","v":0},{"$f":"IF(AND($AF$6=\"EOL\",$AF$7=\"Construcción\"),INDEX(FECEOL[],MATCH(TEGTPFV20[[#This Row],[Sector]],FECEOL[Sector],0),MATCH(\"Inducido\",FECEOL[#Headers],0)),IF(AND($AF$6=\"EOL\",$AF$7=\"Operación y mantenimiento\"),INDEX(FEOEOL[],MATCH(TEGTPFV20[[#This Row],[Sector]],FEOEOL[Sector],0),MATCH(\"Inducido\",FEOEOL[#Headers],0)),IF(AND($AF$6=\"FV\",$AF$7=\"Construcción\"),INDEX(FECFV[],MATCH(TEGTPFV20[[#This Row],[Sector]],FECFV[Sector],0),MATCH(\"Inducido\",FECFV[#Headers],0)),IF(AND($AF$6=\"FV\",$AF$7=\"Operación y mantenimiento\"),INDEX(FEOFV[],MATCH(TEGTPFV20[[#This Row],[Sector]],FEOFV[Sector],0),MATCH(\"Inducido\",FEOFV[#Headers],0)),\"\"))))","v":0},{"$f":"IFERROR($AM$7*TEGTPFV20[[#This Row],[Factor de empleo inducido]]*$AI$7*$AK$7,\"\")","v":0},{"$f":"IFERROR(TEGTPFV20[[#This Row],[Empleos directos]]+TEGTPFV20[[#This Row],[Empleos indirectos]]+TEGTPFV20[[#This Row],[Empleos inducidos]],\"\")","v":0}]
[null,"Manufactura",{"$f":"IF(AND($B$6=\"EOL\",$B$7=\"Construcción\"),INDEX(FECEOL[],MATCH(TEGTPEOL[[#This Row],[Sector]],FECEOL[Sector],0),MATCH(\"Directo\",FECEOL[#Headers],0)),IF(AND($B$6=\"EOL\",$B$7=\"Operación y mantenimiento\"),INDEX(FEOEOL[],MATCH(TEGTPEOL[[#This Row],[Sector]],FEOEOL[Sector],0),MATCH(\"Directo\",FEOEOL[#Headers],0)),IF(AND($B$6=\"FV\",$B$7=\"Construcción\"),INDEX(FECFV[],MATCH(TEGTPEOL[[#This Row],[Sector]],FECFV[Sector],0),MATCH(\"Directo\",FECFV[#Headers],0)),IF(AND($B$6=\"FV\",$B$7=\"Operación y mantenimiento\"),INDEX(FEOFV[],MATCH(TEGTPEOL[[#This Row],[Sector]],FEOFV[Sector],0),MATCH(\"Directo\",FEOFV[#Headers],0)),\"\"))))","v":10.395},{"$f":"IFERROR($I$7*TEGTPEOL[[#This Row],[Factor de empleo directo]]*$E$7*$G$7,\"\")","v":0},{"$f":"IF(AND($B$6=\"EOL\",$B$7=\"Construcción\"),INDEX(FECEOL[],MATCH(TEGTPEOL[[#This Row],[Sector]],FECEOL[Sector],0),MATCH(\"Indirecto\",FECEOL[#Headers],0)),IF(AND($B$6=\"EOL\",$B$7=\"Operación y mantenimiento\"),INDEX(FEOEOL[],MATCH(TEGTPEOL[[#This Row],[Sector]],FEOEOL[Sector],0),MATCH(\"Indirecto\",FEOEOL[#Headers],0)),IF(AND($B$6=\"FV\",$B$7=\"Construcción\"),INDEX(FECFV[],MATCH(TEGTPEOL[[#This Row],[Sector]],FECFV[Sector],0),MATCH(\"Indirecto\",FECFV[#Headers],0)),IF(AND($B$6=\"FV\",$B$7=\"Operación y mantenimiento\"),INDEX(FEOFV[],MATCH(TEGTPEOL[[#This Row],[Sector]],FEOFV[Sector],0),MATCH(\"Indirecto\",FEOFV[#Headers],0)),\"\"))))","v":3.3919999999999999},{"$f":"IFERROR($I$7*TEGTPEOL[[#This Row],[Factor de empleo indirecto]]*$E$7*$G$7,\"\")","v":0},{"$f":"IF(AND($B$6=\"EOL\",$B$7=\"Construcción\"),INDEX(FECEOL[],MATCH(TEGTPEOL[[#This Row],[Sector]],FECEOL[Sector],0),MATCH(\"Inducido\",FECEOL[#Headers],0)),IF(AND($B$6=\"EOL\",$B$7=\"Operación y mantenimiento\"),INDEX(FEOEOL[],MATCH(TEGTPEOL[[#This Row],[Sector]],FEOEOL[Sector],0),MATCH(\"Inducido\",FEOEOL[#Headers],0)),IF(AND($B$6=\"FV\",$B$7=\"Construcción\"),INDEX(FECFV[],MATCH(TEGTPEOL[[#This Row],[Sector]],FECFV[Sector],0),MATCH(\"Inducido\",FECFV[#Headers],0)),IF(AND($B$6=\"FV\",$B$7=\"Operación y mantenimiento\"),INDEX(FEOFV[],MATCH(TEGTPEOL[[#This Row],[Sector]],FEOFV[Sector],0),MATCH(\"Inducido\",FEOFV[#Headers],0)),\"\"))))","v":1.5189999999999999},{"$f":"IFERROR($I$7*TEGTPEOL[[#This Row],[Factor de empleo inducido]]*$E$7*$G$7,\"\")","v":0},{"$f":"IFERROR(TEGTPEOL[[#This Row],[Empleos directos]]+TEGTPEOL[[#This Row],[Empleos indirectos]]+TEGTPEOL[[#This Row],[Empleos inducidos]],\"\")","v":0},null,null,"Manufactura",{"$f":"IF(AND($L$6=\"EOL\",$L$7=\"Construcción\"),INDEX(FECEOL[],MATCH(TEGTPEOL19[[#This Row],[Sector]],FECEOL[Sector],0),MATCH(\"Directo\",FECEOL[#Headers],0)),IF(AND($L$6=\"EOL\",$L$7=\"Operación y mantenimiento\"),INDEX(FEOEOL[],MATCH(TEGTPEOL19[[#This Row],[Sector]],FEOEOL[Sector],0),MATCH(\"Directo\",FEOEOL[#Headers],0)),IF(AND($L$6=\"FV\",$L$7=\"Construcción\"),INDEX(FECFV[],MATCH(TEGTPEOL19[[#This Row],[Sector]],FECFV[Sector],0),MATCH(\"Directo\",FECFV[#Headers],0)),IF(AND($L$6=\"FV\",$L$7=\"Operación y mantenimiento\"),INDEX(FEOFV[],MATCH(TEGTPEOL19[[#This Row],[Sector]],FEOFV[Sector],0),MATCH(\"Directo\",FEOFV[#Headers],0)),\"\"))))","v":5.2999999999999999E-2},{"$f":"IFERROR($S$7*TEGTPEOL19[[#This Row],[Factor de empleo directo]]*$O$7*$Q$7,\"\")","v":0},{"$f":"IF(AND($L$6=\"EOL\",$L$7=\"Construcción\"),INDEX(FECEOL[],MATCH(TEGTPEOL19[[#This Row],[Sector]],FECEOL[Sector],0),MATCH(\"Indirecto\",FECEOL[#Headers],0)),IF(AND($L$6=\"EOL\",$L$7=\"Operación y mantenimiento\"),INDEX(FEOEOL[],MATCH(TEGTPEOL19[[#This Row],[Sector]],FEOEOL[Sector],0),MATCH(\"Indirecto\",FEOEOL[#Headers],0)),IF(AND($L$6=\"FV\",$L$7=\"Construcción\"),INDEX(FECFV[],MATCH(TEGTPEOL19[[#This Row],[Sector]],FECFV[Sector],0),MATCH(\"Indirecto\",FECFV[#Headers],0)),IF(AND($L$6=\"FV\",$L$7=\"Operación y mantenimiento\"),INDEX(FEOFV[],MATCH(TEGTPEOL19[[#This Row],[Sector]],FEOFV[Sector],0),MATCH(\"Indirecto\",FEOFV[#Headers],0)),\"\"))))","v":2.1999999999999999E-2},{"$f":"IFERROR($S$7*TEGTPEOL19[[#This Row],[Factor de empleo indirecto]]*$O$7*$Q$7,\"\")","v":0},{"$f":"IF(AND($L$6=\"EOL\",$L$7=\"Construcción\"),INDEX(FECEOL[],MATCH(TEGTPEOL19[[#This Row],[Sector]],FECEOL[Sector],0),MATCH(\"Inducido\",FECEOL[#Headers],0)),IF(AND($L$6=\"EOL\",$L$7=\"Operación y mantenimiento\"),INDEX(FEOEOL[],MATCH(TEGTPEOL19[[#This Row],[Sector]],FEOEOL[Sector],0),MATCH(\"Inducido\",FEOEOL[#Headers],0)),IF(AND($L$6=\"FV\",$L$7=\"Construcción\"),INDEX(FECFV[],MATCH(TEGTPEOL19[[#This Row],[Sector]],FECFV[Sector],0),MATCH(\"Inducido\",FECFV[#Headers],0)),IF(AND($L$6=\"FV\",$L$7=\"Operación y mantenimiento\"),INDEX(FEOFV[],MATCH(TEGTPEOL19[[#This Row],[Sector]],FEOFV[Sector],0),MATCH(\"Inducido\",FEOFV[#Headers],0)),\"\"))))","v":0},{"$f":"IFERROR($S$7*TEGTPEOL19[[#This Row],[Factor de empleo inducido]]*$O$7*$Q$7,\"\")","v":0},{"$f":"IFERROR(TEGTPEOL19[[#This Row],[Empleos directos]]+TEGTPEOL19[[#This Row],[Empleos indirectos]]+TEGTPEOL19[[#This Row],[Empleos inducidos]],\"\")","v":0},null,null,"Manufactura",{"$f":"IF(AND($V$6=\"EOL\",$V$7=\"Construcción\"),INDEX(FECEOL[],MATCH(TEGTPFV[[#This Row],[Sector]],FECEOL[Sector],0),MATCH(\"Directo\",FECEOL[#Headers],0)),IF(AND($V$6=\"EOL\",$V$7=\"Operación y mantenimiento\"),INDEX(FEOEOL[],MATCH(TEGTPFV[[#This Row],[Sector]],FEOEOL[Sector],0),MATCH(\"Directo\",FEOEOL[#Headers],0)),IF(AND($V$6=\"FV\",$V$7=\"Construcción\"),INDEX(FECFV[],MATCH(TEGTPFV[[#This Row],[Sector]],FECFV[Sector],0),MATCH(\"Directo\",FECFV[#Headers],0)),IF(AND($V$6=\"FV\",$V$7=\"Operación y mantenimiento\"),INDEX(FEOFV[],MATCH(TEGTPFV[[#This Row],[Sector]],FEOFV[Sector],0),MATCH(\"Directo\",FEOFV[#Headers],0)),\"\"))))","v":10.395},{"$f":"IFERROR($AC$7*TEGTPFV[[#This Row],[Factor de empleo directo]]*$Y$7*$AA$7,\"\")","v":0},{"$f":"IF(AND($V$6=\"EOL\",$V$7=\"Construcción\"),INDEX(FECEOL[],MATCH(TEGTPFV[[#This Row],[Sector]],FECEOL[Sector],0),MATCH(\"Indirecto\",FECEOL[#Headers],0)),IF(AND($V$6=\"EOL\",$V$7=\"Operación y mantenimiento\"),INDEX(FEOEOL[],MATCH(TEGTPFV[[#This Row],[Sector]],FEOEOL[Sector],0),MATCH(\"Indirecto\",FEOEOL[#Headers],0)),IF(AND($V$6=\"FV\",$V$7=\"Construcción\"),INDEX(FECFV[],MATCH(TEGTPFV[[#This Row],[Sector]],FECFV[Sector],0),MATCH(\"Indirecto\",FECFV[#Headers],0)),IF(AND($V$6=\"FV\",$V$7=\"Operación y mantenimiento\"),INDEX(FEOFV[],MATCH(TEGTPFV[[#This Row],[Sector]],FEOFV[Sector],0),MATCH(\"Indirecto\",FEOFV[#Headers],0)),\"\"))))","v":3.3919999999999999},{"$f":"IFERROR($AC$7*TEGTPFV[[#This Row],[Factor de empleo indirecto]]*$Y$7*$AA$7,\"\")","v":0},{"$f":"IF(AND($V$6=\"EOL\",$V$7=\"Construcción\"),INDEX(FECEOL[],MATCH(TEGTPFV[[#This Row],[Sector]],FECEOL[Sector],0),MATCH(\"Inducido\",FECEOL[#Headers],0)),IF(AND($V$6=\"EOL\",$V$7=\"Operación y mantenimiento\"),INDEX(FEOEOL[],MATCH(TEGTPFV[[#This Row],[Sector]],FEOEOL[Sector],0),MATCH(\"Inducido\",FEOEOL[#Headers],0)),IF(AND($V$6=\"FV\",$V$7=\"Construcción\"),INDEX(FECFV[],MATCH(TEGTPFV[[#This Row],[Sector]],FECFV[Sector],0),MATCH(\"Inducido\",FECFV[#Headers],0)),IF(AND($V$6=\"FV\",$V$7=\"Operación y mantenimiento\"),INDEX(FEOFV[],MATCH(TEGTPFV[[#This Row],[Sector]],FEOFV[Sector],0),MATCH(\"Inducido\",FEOFV[#Headers],0)),\"\"))))","v":1.5189999999999999},{"$f":"IFERROR($AC$7*TEGTPFV[[#This Row],[Factor de empleo inducido]]*$Y$7*$AA$7,\"\")","v":0},{"$f":"IFERROR(TEGTPFV[[#This Row],[Empleos directos]]+TEGTPFV[[#This Row],[Empleos indirectos]]+TEGTPFV[[#This Row],[Empleos inducidos]],\"\")","v":0},null,null,"Manufactura",{"$f":"IF(AND($AF$6=\"EOL\",$AF$7=\"Construcción\"),INDEX(FECEOL[],MATCH(TEGTPFV20[[#This Row],[Sector]],FECEOL[Sector],0),MATCH(\"Directo\",FECEOL[#Headers],0)),IF(AND($AF$6=\"EOL\",$AF$7=\"Operación y mantenimiento\"),INDEX(FEOEOL[],MATCH(TEGTPFV20[[#This Row],[Sector]],FEOEOL[Sector],0),MATCH(\"Directo\",FEOEOL[#Headers],0)),IF(AND($AF$6=\"FV\",$AF$7=\"Construcción\"),INDEX(FECFV[],MATCH(TEGTPFV20[[#This Row],[Sector]],FECFV[Sector],0),MATCH(\"Directo\",FECFV[#Headers],0)),IF(AND($AF$6=\"FV\",$AF$7=\"Operación y mantenimiento\"),INDEX(FEOFV[],MATCH(TEGTPFV20[[#This Row],[Sector]],FEOFV[Sector],0),MATCH(\"Directo\",FEOFV[#Headers],0)),\"\"))))","v":0},{"$f":"IFERROR($AM$7*TEGTPFV20[[#This Row],[Factor de empleo directo]]*$AI$7*$AK$7,\"\")","v":0},{"$f":"IF(AND($AF$6=\"EOL\",$AF$7=\"Construcción\"),INDEX(FECEOL[],MATCH(TEGTPFV20[[#This Row],[Sector]],FECEOL[Sector],0),MATCH(\"Indirecto\",FECEOL[#Headers],0)),IF(AND($AF$6=\"EOL\",$AF$7=\"Operación y mantenimiento\"),INDEX(FEOEOL[],MATCH(TEGTPFV20[[#This Row],[Sector]],FEOEOL[Sector],0),MATCH(\"Indirecto\",FEOEOL[#Headers],0)),IF(AND($AF$6=\"FV\",$AF$7=\"Construcción\"),INDEX(FECFV[],MATCH(TEGTPFV20[[#This Row],[Sector]],FECFV[Sector],0),MATCH(\"Indirecto\",FECFV[#Headers],0)),IF(AND($AF$6=\"FV\",$AF$7=\"Operación y mantenimiento\"),INDEX(FEOFV[],MATCH(TEGTPFV20[[#This Row],[Sector]],FEOFV[Sector],0),MATCH(\"Indirecto\",FEOFV[#Headers],0)),\"\"))))","v":3.1E-2},{"$f":"IFERROR($AM$7*TEGTPFV20[[#This Row],[Factor de empleo indirecto]]*$AI$7*$AK$7,\"\")","v":0},{"$f":"IF(AND($AF$6=\"EOL\",$AF$7=\"Construcción\"),INDEX(FECEOL[],MATCH(TEGTPFV20[[#This Row],[Sector]],FECEOL[Sector],0),MATCH(\"Inducido\",FECEOL[#Headers],0)),IF(AND($AF$6=\"EOL\",$AF$7=\"Operación y mantenimiento\"),INDEX(FEOEOL[],MATCH(TEGTPFV20[[#This Row],[Sector]],FEOEOL[Sector],0),MATCH(\"Inducido\",FEOEOL[#Headers],0)),IF(AND($AF$6=\"FV\",$AF$7=\"Construcción\"),INDEX(FECFV[],MATCH(TEGTPFV20[[#This Row],[Sector]],FECFV[Sector],0),MATCH(\"Inducido\",FECFV[#Headers],0)),IF(AND($AF$6=\"FV\",$AF$7=\"Operación y mantenimiento\"),INDEX(FEOFV[],MATCH(TEGTPFV20[[#This Row],[Sector]],FEOFV[Sector],0),MATCH(\"Inducido\",FEOFV[#Headers],0)),\"\"))))","v":1.4E-2},{"$f":"IFERROR($AM$7*TEGTPFV20[[#This Row],[Factor de empleo inducido]]*$AI$7*$AK$7,\"\")","v":0},{"$f":"IFERROR(TEGTPFV20[[#This Row],[Empleos directos]]+TEGTPFV20[[#This Row],[Empleos indirectos]]+TEGTPFV20[[#This Row],[Empleos inducidos]],\"\")","v":0}]
[null,"Ventas",{"$f":"IF(AND($B$6=\"EOL\",$B$7=\"Construcción\"),INDEX(FECEOL[],MATCH(TEGTPEOL[[#This Row],[Sector]],FECEOL[Sector],0),MATCH(\"Directo\",FECEOL[#Headers],0)),IF(AND($B$6=\"EOL\",$B$7=\"Operación y mantenimiento\"),INDEX(FEOEOL[],MATCH(TEGTPEOL[[#This Row],[Sector]],FEOEOL[Sector],0),MATCH(\"Directo\",FEOEOL[#Headers],0)),IF(AND($B$6=\"FV\",$B$7=\"Construcción\"),INDEX(FECFV[],MATCH(TEGTPEOL[[#This Row],[Sector]],FECFV[Sector],0),MATCH(\"Directo\",FECFV[#Headers],0)),IF(AND($B$6=\"FV\",$B$7=\"Operación y mantenimiento\"),INDEX(FEOFV[],MATCH(TEGTPEOL[[#This Row],[Sector]],FEOFV[Sector],0),MATCH(\"Directo\",FEOFV[#Headers],0)),\"\"))))","v":0},{"$f":"IFERROR($I$7*TEGTPEOL[[#This Row],[Factor de empleo directo]]*$E$7*$G$7,\"\")","v":0},{"$f":"IF(AND($B$6=\"EOL\",$B$7=\"Construcción\"),INDEX(FECEOL[],MATCH(TEGTPEOL[[#This Row],[Sector]],FECEOL[Sector],0),MATCH(\"Indirecto\",FECEOL[#Headers],0)),IF(AND($B$6=\"EOL\",$B$7=\"Operación y mantenimiento\"),INDEX(FEOEOL[],MATCH(TEGTPEOL[[#This Row],[Sector]],FEOEOL[Sector],0),MATCH(\"Indirecto\",FEOEOL[#Headers],0)),IF(AND($B$6=\"FV\",$B$7=\"Construcción\"),INDEX(FECFV[],MATCH(TEGTPEOL[[#This Row],[Sector]],FECFV[Sector],0),MATCH(\"Indirecto\",FECFV[#Headers],0)),IF(AND($B$6=\"FV\",$B$7=\"Operación y mantenimiento\"),INDEX(FEOFV[],MATCH(TEGTPEOL[[#This Row],[Sector]],FEOFV[Sector],0),MATCH(\"Indirecto\",FEOFV[#Headers],0)),\"\"))))","v":2.923},{"$f":"IFERROR($I$7*TEGTPEOL[[#This Row],[Factor de empleo indirecto]]*$E$7*$G$7,\"\")","v":0},{"$f":"IF(AND($B$6=\"EOL\",$B$7=\"Construcción\"),INDEX(FECEOL[],MATCH(TEGTPEOL[[#This Row],[Sector]],FECEOL[Sector],0),MATCH(\"Inducido\",FECEOL[#Headers],0)),IF(AND($B$6=\"EOL\",$B$7=\"Operación y mantenimiento\"),INDEX(FEOEOL[],MATCH(TEGTPEOL[[#This Row],[Sector]],FEOEOL[Sector],0),MATCH(\"Inducido\",FEOEOL[#Headers],0)),IF(AND($B$6=\"FV\",$B$7=\"Construcción\"),INDEX(FECFV[],MATCH(TEGTPEOL[[#This Row],[Sector]],FECFV[Sector],0),MATCH(\"Inducido\",FECFV[#Headers],0)),IF(AND($B$6=\"FV\",$B$7=\"Operación y mantenimiento\"),INDEX(FEOFV[],MATCH(TEGTPEOL[[#This Row],[Sector]],FEOFV[Sector],0),MATCH(\"Inducido\",FEOFV[#Headers],0)),\"\"))))","v":1.9390000000000001},{"$f":"IFERROR($I$7*TEGTPEOL[[#This Row],[Factor de empleo inducido]]*$E$7*$G$7,\"\")","v":0},{"$f":"IFERROR(TEGTPEOL[[#This Row],[Empleos directos]]+TEGTPEOL[[#This Row],[Empleos indirectos]]+TEGTPEOL[[#This Row],[Empleos inducidos]],\"\")","v":0},null,null,"Ventas",{"$f":"IF(AND($L$6=\"EOL\",$L$7=\"Construcción\"),INDEX(FECEOL[],MATCH(TEGTPEOL19[[#This Row],[Sector]],FECEOL[Sector],0),MATCH(\"Directo\",FECEOL[#Headers],0)),IF(AND($L$6=\"EOL\",$L$7=\"Operación y mantenimiento\"),INDEX(FEOEOL[],MATCH(TEGTPEOL19[[#This Row],[Sector]],FEOEOL[Sector],0),MATCH(\"Directo\",FEOEOL[#Headers],0)),IF(AND($L$6=\"FV\",$L$7=\"Construcción\"),INDEX(FECFV[],MATCH(TEGTPEOL19[[#This Row],[Sector]],FECFV[Sector],0),MATCH(\"Directo\",FECFV[#Headers],0)),IF(AND($L$6=\"FV\",$L$7=\"Operación y mantenimiento\"),INDEX(FEOFV[],MATCH(TEGTPEOL19[[#This Row],[Sector]],FEOFV[Sector],0),MATCH(\"Directo\",FEOFV[#Headers],0)),\"\"))))","v":0.11899999999999999},{"$f":"IFERROR($S$7*TEGTPEOL19[[#This Row],[Factor de empleo directo]]*$O$7*$Q$7,\"\")","v":0},{"$f":"IF(AND($L$6=\"EOL\",$L$7=\"Construcción\"),INDEX(FECEOL[],MATCH(TEGTPEOL19[[#This Row],[Sector]],FECEOL[Sector],0),MATCH(\"Indirecto\",FECEOL[#Headers],0)),IF(AND($L$6=\"EOL\",$L$7=\"Operación y mantenimiento\"),INDEX(FEOEOL[],MATCH(TEGTPEOL19[[#This Row],[Sector]],FEOEOL[Sector],0),MATCH(\"Indirecto\",FEOEOL[#Headers],0)),IF(AND($L$6=\"FV\",$L$7=\"Construcción\"),INDEX(FECFV[],MATCH(TEGTPEOL19[[#This Row],[Sector]],FECFV[Sector],0),MATCH(\"Indirecto\",FECFV[#Headers],0)),IF(AND($L$6=\"FV\",$L$7=\"Operación y mantenimiento\"),INDEX(FEOFV[],MATCH(TEGTPEOL19[[#This Row],[Sector]],FEOFV[Sector],0),MATCH(\"Indirecto\",FEOFV[#Headers],0)),\"\"))))","v":5.5E-2},{"$f":"IFERROR($S$7*TEGTPEOL19[[#This Row],[Factor de empleo indirecto]]*$O$7*$Q$7,\"\")","v":0},{"$f":"IF(AND($L$6=\"EOL\",$L$7=\"Construcción\"),INDEX(FECEOL[],MATCH(TEGTPEOL19[[#This Row],[Sector]],FECEOL[Sector],0),MATCH(\"Inducido\",FECEOL[#Headers],0)),IF(AND($L$6=\"EOL\",$L$7=\"Operación y mantenimiento\"),INDEX(FEOEOL[],MATCH(TEGTPEOL19[[#This Row],[Sector]],FEOEOL[Sector],0),MATCH(\"Inducido\",FEOEOL[#Headers],0)),IF(AND($L$6=\"FV\",$L$7=\"Construcción\"),INDEX(FECFV[],MATCH(TEGTPEOL19[[#This Row],[Sector]],FECFV[Sector],0),MATCH(\"Inducido\",FECFV[#Headers],0)),IF(AND($L$6=\"FV\",$L$7=\"Operación y mantenimiento\"),INDEX(FEOFV[],MATCH(TEGTPEOL19[[#This Row],[Sector]],FEOFV[Sector],0),MATCH(\"Inducido\",FEOFV[#Headers],0)),\"\"))))","v":0},{"$f":"IFERROR($S$7*TEGTPEOL19[[#This Row],[Factor de empleo inducido]]*$O$7*$Q$7,\"\")","v":0},{"$f":"IFERROR(TEGTPEOL19[[#This Row],[Empleos directos]]+TEGTPEOL19[[#This Row],[Empleos indirectos]]+TEGTPEOL19[[#This Row],[Empleos inducidos]],\"\")","v":0},null,null,"Ventas",{"$f":"IF(AND($V$6=\"EOL\",$V$7=\"Construcción\"),INDEX(FECEOL[],MATCH(TEGTPFV[[#This Row],[Sector]],FECEOL[Sector],0),MATCH(\"Directo\",FECEOL[#Headers],0)),IF(AND($V$6=\"EOL\",$V$7=\"Operación y mantenimiento\"),INDEX(FEOEOL[],MATCH(TEGTPFV[[#This Row],[Sector]],FEOEOL[Sector],0),MATCH(\"Directo\",FEOEOL[#Headers],0)),IF(AND($V$6=\"FV\",$V$7=\"Construcción\"),INDEX(FECFV[],MATCH(TEGTPFV[[#This Row],[Sector]],FECFV[Sector],0),MATCH(\"Directo\",FECFV[#Headers],0)),IF(AND($V$6=\"FV\",$V$7=\"Operación y mantenimiento\"),INDEX(FEOFV[],MATCH(TEGTPFV[[#This Row],[Sector]],FEOFV[Sector],0),MATCH(\"Directo\",FEOFV[#Headers],0)),\"\"))))","v":0},{"$f":"IFERROR($AC$7*TEGTPFV[[#This Row],[Factor de empleo directo]]*$Y$7*$AA$7,\"\")","v":0},{"$f":"IF(AND($V$6=\"EOL\",$V$7=\"Construcción\"),INDEX(FECEOL[],MATCH(TEGTPFV[[#This Row],[Sector]],FECEOL[Sector],0),MATCH(\"Indirecto\",FECEOL[#Headers],0)),IF(AND($V$6=\"EOL\",$V$7=\"Operación y mantenimiento\"),INDEX(FEOEOL[],MATCH(TEGTPFV[[#This Row],[Sector]],FEOEOL[Sector],0),MATCH(\"Indirecto\",FEOEOL[#Headers],0)),IF(AND($V$6=\"FV\",$V$7=\"Construcción\"),INDEX(FECFV[],MATCH(TEGTPFV[[#This Row],[Sector]],FECFV[Sector],0),MATCH(\"Indirecto\",FECFV[#Headers],0)),IF(AND($V$6=\"FV\",$V$7=\"Operación y mantenimiento\"),INDEX(FEOFV[],MATCH(TEGTPFV[[#This Row],[Sector]],FEOFV[Sector],0),MATCH(\"Indirecto\",FEOFV[#Headers],0)),\"\"))))","v":2.923},{"$f":"IFERROR($AC$7*TEGTPFV[[#This Row],[Factor de empleo indirecto]]*$Y$7*$AA$7,\"\")","v":0},{"$f":"IF(AND($V$6=\"EOL\",$V$7=\"Construcción\"),INDEX(FECEOL[],MATCH(TEGTPFV[[#This Row],[Sector]],FECEOL[Sector],0),MATCH(\"Inducido\",FECEOL[#Headers],0)),IF(AND($V$6=\"EOL\",$V$7=\"Operación y mantenimiento\"),INDEX(FEOEOL[],MATCH(TEGTPFV[[#This Row],[Sector]],FEOEOL[Sector],0),MATCH(\"Inducido\",FEOEOL[#Headers],0)),IF(AND($V$6=\"FV\",$V$7=\"Construcción\"),INDEX(FECFV[],MATCH(TEGTPFV[[#This Row],[Sector]],FECFV[Sector],0),MATCH(\"Inducido\",FECFV[#Headers],0)),IF(AND($V$6=\"FV\",$V$7=\"Operación y mantenimiento\"),INDEX(FEOFV[],MATCH(TEGTPFV[[#This Row],[Sector]],FEOFV[Sector],0),MATCH(\"Inducido\",FEOFV[#Headers],0)),\"\"))))","v":1.9390000000000001},{"$f":"IFERROR($AC$7*TEGTPFV[[#This Row],[Factor de empleo inducido]]*$Y$7*$AA$7,\"\")","v":0},{"$f":"IFERROR(TEGTPFV[[#This Row],[Empleos directos]]+TEGTPFV[[#This Row],[Empleos indirectos]]+TEGTPFV[[#This Row],[Empleos inducidos]],\"\")","v":0},null,null,"Ventas",{"$f":"IF(AND($AF$6=\"EOL\",$AF$7=\"Construcción\"),INDEX(FECEOL[],MATCH(TEGTPFV20[[#This Row],[Sector]],FECEOL[Sector],0),MATCH(\"Directo\",FECEOL[#Headers],0)),IF(AND($AF$6=\"EOL\",$AF$7=\"Operación y mantenimiento\"),INDEX(FEOEOL[],MATCH(TEGTPFV20[[#This Row],[Sector]],FEOEOL[Sector],0),MATCH(\"Directo\",FEOEOL[#Headers],0)),IF(AND($AF$6=\"FV\",$AF$7=\"Construcción\"),INDEX(FECFV[],MATCH(TEGTPFV20[[#This Row],[Sector]],FECFV[Sector],0),MATCH(\"Directo\",FECFV[#Headers],0)),IF(AND($AF$6=\"FV\",$AF$7=\"Operación y mantenimiento\"),INDEX(FEOFV[],MATCH(TEGTPFV20[[#This Row],[Sector]],FEOFV[Sector],0),MATCH(\"Directo\",FEOFV[#Headers],0)),\"\"))))","v":0},{"$f":"IFERROR($AM$7*TEGTPFV20[[#This Row],[Factor de empleo directo]]*$AI$7*$AK$7,\"\")","v":0},{"$f":"IF(AND($AF$6=\"EOL\",$AF$7=\"Construcción\"),INDEX(FECEOL[],MATCH(TEGTPFV20[[#This Row],[Sector]],FECEOL[Sector],0),MATCH(\"Indirecto\",FECEOL[#Headers],0)),IF(AND($AF$6=\"EOL\",$AF$7=\"Operación y mantenimiento\"),INDEX(FEOEOL[],MATCH(TEGTPFV20[[#This Row],[Sector]],FEOEOL[Sector],0),MATCH(\"Indirecto\",FEOEOL[#Headers],0)),IF(AND($AF$6=\"FV\",$AF$7=\"Construcción\"),INDEX(FECFV[],MATCH(TEGTPFV20[[#This Row],[Sector]],FECFV[Sector],0),MATCH(\"Indirecto\",FECFV[#Headers],0)),IF(AND($AF$6=\"FV\",$AF$7=\"Operación y mantenimiento\"),INDEX(FEOFV[],MATCH(TEGTPFV20[[#This Row],[Sector]],FEOFV[Sector],0),MATCH(\"Indirecto\",FEOFV[#Headers],0)),\"\"))))","v":2.1999999999999999E-2},{"$f":"IFERROR($AM$7*TEGTPFV20[[#This Row],[Factor de empleo indirecto]]*$AI$7*$AK$7,\"\")","v":0},{"$f":"IF(AND($AF$6=\"EOL\",$AF$7=\"Construcción\"),INDEX(FECEOL[],MATCH(TEGTPFV20[[#This Row],[Sector]],FECEOL[Sector],0),MATCH(\"Inducido\",FECEOL[#Headers],0)),IF(AND($AF$6=\"EOL\",$AF$7=\"Operación y mantenimiento\"),INDEX(FEOEOL[],MATCH(TEGTPFV20[[#This Row],[Sector]],FEOEOL[Sector],0),MATCH(\"Inducido\",FEOEOL[#Headers],0)),IF(AND($AF$6=\"FV\",$AF$7=\"Construcción\"),INDEX(FECFV[],MATCH(TEGTPFV20[[#This Row],[Sector]],FECFV[Sector],0),MATCH(\"Inducido\",FECFV[#Headers],0)),IF(AND($AF$6=\"FV\",$AF$7=\"Operación y mantenimiento\"),INDEX(FEOFV[],MATCH(TEGTPFV20[[#This Row],[Sector]],FEOFV[Sector],0),MATCH(\"Inducido\",FEOFV[#Headers],0)),\"\"))))","v":1.7999999999999999E-2},{"$f":"IFERROR($AM$7*TEGTPFV20[[#This Row],[Factor de empleo inducido]]*$AI$7*$AK$7,\"\")","v":0},{"$f":"IFERROR(TEGTPFV20[[#This Row],[Empleos directos]]+TEGTPFV20[[#This Row],[Empleos indirectos]]+TEGTPFV20[[#This Row],[Empleos inducidos]],\"\")","v":0}]
[null,"Transporte y Almacenamiento",{"$f":"IF(AND($B$6=\"EOL\",$B$7=\"Construcción\"),INDEX(FECEOL[],MATCH(TEGTPEOL[[#This Row],[Sector]],FECEOL[Sector],0),MATCH(\"Directo\",FECEOL[#Headers],0)),IF(AND($B$6=\"EOL\",$B$7=\"Operación y mantenimiento\"),INDEX(FEOEOL[],MATCH(TEGTPEOL[[#This Row],[Sector]],FEOEOL[Sector],0),MATCH(\"Directo\",FEOEOL[#Headers],0)),IF(AND($B$6=\"FV\",$B$7=\"Construcción\"),INDEX(FECFV[],MATCH(TEGTPEOL[[#This Row],[Sector]],FECFV[Sector],0),MATCH(\"Directo\",FECFV[#Headers],0)),IF(AND($B$6=\"FV\",$B$7=\"Operación y mantenimiento\"),INDEX(FEOFV[],MATCH(TEGTPEOL[[#This Row],[Sector]],FEOFV[Sector],0),MATCH(\"Directo\",FEOFV[#Headers],0)),\"\"))))","v":1.9810000000000001},{"$f":"IFERROR($I$7*TEGTPEOL[[#This Row],[Factor de empleo directo]]*$E$7*$G$7,\"\")","v":0},{"$f":"IF(AND($B$6=\"EOL\",$B$7=\"Construcción\"),INDEX(FECEOL[],MATCH(TEGTPEOL[[#This Row],[Sector]],FECEOL[Sector],0),MATCH(\"Indirecto\",FECEOL[#Headers],0)),IF(AND($B$6=\"EOL\",$B$7=\"Operación y mantenimiento\"),INDEX(FEOEOL[],MATCH(TEGTPEOL[[#This Row],[Sector]],FEOEOL[Sector],0),MATCH(\"Indirecto\",FEOEOL[#Headers],0)),IF(AND($B$6=\"FV\",$B$7=\"Construcción\"),INDEX(FECFV[],MATCH(TEGTPEOL[[#This Row],[Sector]],FECFV[Sector],0),MATCH(\"Indirecto\",FECFV[#Headers],0)),IF(AND($B$6=\"FV\",$B$7=\"Operación y mantenimiento\"),INDEX(FEOFV[],MATCH(TEGTPEOL[[#This Row],[Sector]],FEOFV[Sector],0),MATCH(\"Indirecto\",FEOFV[#Headers],0)),\"\"))))","v":0.90200000000000002},{"$f":"IFERROR($I$7*TEGTPEOL[[#This Row],[Factor de empleo indirecto]]*$E$7*$G$7,\"\")","v":0},{"$f":"IF(AND($B$6=\"EOL\",$B$7=\"Construcción\"),INDEX(FECEOL[],MATCH(TEGTPEOL[[#This Row],[Sector]],FECEOL[Sector],0),MATCH(\"Inducido\",FECEOL[#Headers],0)),IF(AND($B$6=\"EOL\",$B$7=\"Operación y mantenimiento\"),INDEX(FEOEOL[],MATCH(TEGTPEOL[[#This Row],[Sector]],FEOEOL[Sector],0),MATCH(\"Inducido\",FEOEOL[#Headers],0)),IF(AND($B$6=\"FV\",$B$7=\"Construcción\"),INDEX(FECFV[],MATCH(TEGTPEOL[[#This Row],[Sector]],FECFV[Sector],0),MATCH(\"Inducido\",FECFV[#Headers],0)),IF(AND($B$6=\"FV\",$B$7=\"Operación y mantenimiento\"),INDEX(FEOFV[],MATCH(TEGTPEOL[[#This Row],[Sector]],FEOFV[Sector],0),MATCH(\"Inducido\",FEOFV[#Headers],0)),\"\"))))","v":1.157},{"$f":"IFERROR($I$7*TEGTPEOL[[#This Row],[Factor de empleo inducido]]*$E$7*$G$7,\"\")","v":0},{"$f":"IFERROR(TEGTPEOL[[#This Row],[Empleos directos]]+TEGTPEOL[[#This Row],[Empleos indirectos]]+TEGTPEOL[[#This Row],[Empleos inducidos]],\"\")","v":0},null,null,"Transporte y Almacenamiento",{"$f":"IF(AND($L$6=\"EOL\",$L$7=\"Construcción\"),INDEX(FECEOL[],MATCH(TEGTPEOL19[[#This Row],[Sector]],FECEOL[Sector],0),MATCH(\"Directo\",FECEOL[#Headers],0)),IF(AND($L$6=\"EOL\",$L$7=\"Operación y mantenimiento\"),INDEX(FEOEOL[],MATCH(TEGTPEOL19[[#This Row],[Sector]],FEOEOL[Sector],0),MATCH(\"Directo\",FEOEOL[#Headers],0)),IF(AND($L$6=\"FV\",$L$7=\"Construcción\"),INDEX(FECFV[],MATCH(TEGTPEOL19[[#This Row],[Sector]],FECFV[Sector],0),MATCH(\"Directo\",FECFV[#Headers],0)),IF(AND($L$6=\"FV\",$L$7=\"Operación y mantenimiento\"),INDEX(FEOFV[],MATCH(TEGTPEOL19[[#This Row],[Sector]],FEOFV[Sector],0),MATCH(\"Directo\",FEOFV[#Headers],0)),\"\"))))","v":3.3000000000000002E-2},{"$f":"IFERROR($S$7*TEGTPEOL19[[#This Row],[Factor de empleo directo]]*$O$7*$Q$7,\"\")","v":0},{"$f":"IF(AND($L$6=\"EOL\",$L$7=\"Construcción\"),INDEX(FECEOL[],MATCH(TEGTPEOL19[[#This Row],[Sector]],FECEOL[Sector],0),MATCH(\"Indirecto\",FECEOL[#Headers],0)),IF(AND($L$6=\"EOL\",$L$7=\"Operación y mantenimiento\"),INDEX(FEOEOL[],MATCH(TEGTPEOL19[[#This Row],[Sector]],FEOEOL[Sector],0),MATCH(\"Indirecto\",FEOEOL[#Headers],0)),IF(AND($L$6=\"FV\",$L$7=\"Construcción\"),INDEX(FECFV[],MATCH(TEGTPEOL19[[#This Row],[Sector]],FECFV[Sector],0),MATCH(\"Indirecto\",FECFV[#Headers],0)),IF(AND($L$6=\"FV\",$L$7=\"Operación y mantenimiento\"),INDEX(FEOFV[],MATCH(TEGTPEOL19[[#This Row],[Sector]],FEOFV[Sector],0),MATCH(\"Indirecto\",FEOFV[#Headers],0)),\"\"))))","v":3.1E-2},{"$f":"IFERROR($S$7*TEGTPEOL19[[#This Row],[Factor de empleo indirecto]]*$O$7*$Q$7,\"\")","v":0},{"$f":"IF(AND($L$6=\"EOL\",$L$7=\"Construcción\"),INDEX(FECEOL[],MATCH(TEGTPEOL19[[#This Row],[Sector]],FECEOL[Sector],0),MATCH(\"Inducido\",FECEOL[#Headers],0)),IF(AND($L$6=\"EOL\",$L$7=\"Operación y mantenimiento\"),INDEX(FEOEOL[],MATCH(TEGTPEOL19[[#This Row],[Sector]],FEOEOL[Sector],0),MATCH(\"Inducido\",FEOEOL[#Headers],0)),IF(AND($L$6=\"FV\",$L$7=\"Construcción\"),INDEX(FECFV[],MATCH(TEGTPEOL19[[#This Row],[Sector]],FECFV[Sector],0),MATCH(\"Inducido\",FECFV[#Headers],0)),IF(AND($L$6=\"FV\",$L$7=\"Operación y mantenimiento\"),INDEX(FEOFV[],MATCH(TEGTPEOL19[[#This Row],[Sector]],FEOFV[Sector],0),MATCH(\"Inducido\",FEOFV[#Headers],0)),\"\"))))","v":0},{"$f":"IFERROR($S$7*TEGTPEOL19[[#This Row],[Factor de empleo inducido]]*$O$7*$Q$7,\"\")","v":0},{"$f":"IFERROR(TEGTPEOL19[[#This Row],[Empleos directos]]+TEGTPEOL19[[#This Row],[Empleos indirectos]]+TEGTPEOL19[[#This Row],[Empleos inducidos]],\"\")","v":0},null,null,"Transporte y Almacenamiento",{"$f":"IF(AND($V$6=\"EOL\",$V$7=\"Construcción\"),INDEX(FECEOL[],MATCH(TEGTPFV[[#This Row],[Sector]],FECEOL[Sector],0),MATCH(\"Directo\",FECEOL[#Headers],0)),IF(AND($V$6=\"EOL\",$V$7=\"Operación y mantenimiento\"),INDEX(FEOEOL[],MATCH(TEGTPFV[[#This Row],[Sector]],FEOEOL[Sector],0),MATCH(\"Directo\",FEOEOL[#Headers],0)),IF(AND($V$6=\"FV\",$V$7=\"Construcción\"),INDEX(FECFV[],MATCH(TEGTPFV[[#This Row],[Sector]],FECFV[Sector],0),MATCH(\"Directo\",FECFV[#Headers],0)),IF(AND($V$6=\"FV\",$V$7=\"Operación y mantenimiento\"),INDEX(FEOFV[],MATCH(TEGTPFV[[#This Row],[Sector]],FEOFV[Sector],0),MATCH(\"Directo\",FEOFV[#Headers],0)),\"\"))))","v":1.9810000000000001},{"$f":"IFERROR($AC$7*TEGTPFV[[#This Row],[Factor de empleo directo]]*$Y$7*$AA$7,\"\")","v":0},{"$f":"IF(AND($V$6=\"EOL\",$V$7=\"Construcción\"),INDEX(FECEOL[],MATCH(TEGTPFV[[#This Row],[Sector]],FECEOL[Sector],0),MATCH(\"Indirecto\",FECEOL[#Headers],0)),IF(AND($V$6=\"EOL\",$V$7=\"Operación y mantenimiento\"),INDEX(FEOEOL[],MATCH(TEGTPFV[[#This Row],[Sector]],FEOEOL[Sector],0),MATCH(\"Indirecto\",FEOEOL[#Headers],0)),IF(AND($V$6=\"FV\",$V$7=\"Construcción\"),INDEX(FECFV[],MATCH(TEGTPFV[[#This Row],[Sector]],FECFV[Sector],0),MATCH(\"Indirecto\",FECFV[#Headers],0)),IF(AND($V$6=\"FV\",$V$7=\"Operación y mantenimiento\"),INDEX(FEOFV[],MATCH(TEGTPFV[[#This Row],[Sector]],FEOFV[Sector],0),MATCH(\"Indirecto\",FEOFV[#Headers],0)),\"\"))))","v":0.90200000000000002},{"$f":"IFERROR($AC$7*TEGTPFV[[#This Row],[Factor de empleo indirecto]]*$Y$7*$AA$7,\"\")","v":0},{"$f":"IF(AND($V$6=\"EOL\",$V$7=\"Construcción\"),INDEX(FECEOL[],MATCH(TEGTPFV[[#This Row],[Sector]],FECEOL[Sector],0),MATCH(\"Inducido\",FECEOL[#Headers],0)),IF(AND($V$6=\"EOL\",$V$7=\"Operación y mantenimiento\"),INDEX(FEOEOL[],MATCH(TEGTPFV[[#This Row],[Sector]],FEOEOL[Sector],0),MATCH(\"Inducido\",FEOEOL[#Headers],0)),IF(AND($V$6=\"FV\",$V$7=\"Construcción\"),INDEX(FECFV[],MATCH(TEGTPFV[[#This Row],[Sector]],FECFV[Sector],0),MATCH(\"Inducido\",FECFV[#Headers],0)),IF(AND($V$6=\"FV\",$V$7=\"Operación y mantenimiento\"),INDEX(FEOFV[],MATCH(TEGTPFV[[#This Row],[Sector]],FEOFV[Sector],0),MATCH(\"Inducido\",FEOFV[#Headers],0)),\"\"))))","v":1.157},{"$f":"IFERROR($AC$7*TEGTPFV[[#This Row],[Factor de empleo inducido]]*$Y$7*$AA$7,\"\")","v":0},{"$f":"IFERROR(TEGTPFV[[#This Row],[Empleos directos]]+TEGTPFV[[#This Row],[Empleos indirectos]]+TEGTPFV[[#This Row],[Empleos inducidos]],\"\")","v":0},null,null,"Transporte y Almacenamiento",{"$f":"IF(AND($AF$6=\"EOL\",$AF$7=\"Construcción\"),INDEX(FECEOL[],MATCH(TEGTPFV20[[#This Row],[Sector]],FECEOL[Sector],0),MATCH(\"Directo\",FECEOL[#Headers],0)),IF(AND($AF$6=\"EOL\",$AF$7=\"Operación y mantenimiento\"),INDEX(FEOEOL[],MATCH(TEGTPFV20[[#This Row],[Sector]],FEOEOL[Sector],0),MATCH(\"Directo\",FEOEOL[#Headers],0)),IF(AND($AF$6=\"FV\",$AF$7=\"Construcción\"),INDEX(FECFV[],MATCH(TEGTPFV20[[#This Row],[Sector]],FECFV[Sector],0),MATCH(\"Directo\",FECFV[#Headers],0)),IF(AND($AF$6=\"FV\",$AF$7=\"Operación y mantenimiento\"),INDEX(FEOFV[],MATCH(TEGTPFV20[[#This Row],[Sector]],FEOFV[Sector],0),MATCH(\"Directo\",FEOFV[#Headers],0)),\"\"))))","v":0},{"$f":"IFERROR($AM$7*TEGTPFV20[[#This Row],[Factor de empleo directo]]*$AI$7*$AK$7,\"\")","v":0},{"$f":"IF(AND($AF$6=\"EOL\",$AF$7=\"Construcción\"),INDEX(FECEOL[],MATCH(TEGTPFV20[[#This Row],[Sector]],FECEOL[Sector],0),MATCH(\"Indirecto\",FECEOL[#Headers],0)),IF(AND($AF$6=\"EOL\",$AF$7=\"Operación y mantenimiento\"),INDEX(FEOEOL[],MATCH(TEGTPFV20[[#This Row],[Sector]],FEOEOL[Sector],0),MATCH(\"Indirecto\",FEOEOL[#Headers],0)),IF(AND($AF$6=\"FV\",$AF$7=\"Construcción\"),INDEX(FECFV[],MATCH(TEGTPFV20[[#This Row],[Sector]],FECFV[Sector],0),MATCH(\"Indirecto\",FECFV[#Headers],0)),IF(AND($AF$6=\"FV\",$AF$7=\"Operación y mantenimiento\"),INDEX(FEOFV[],MATCH(TEGTPFV20[[#This Row],[Sector]],FEOFV[Sector],0),MATCH(\"Indirecto\",FEOFV[#Headers],0)),\"\"))))","v":5.0000000000000001E-3},{"$f":"IFERROR($AM$7*TEGTPFV20[[#This Row],[Factor de empleo indirecto]]*$AI$7*$AK$7,\"\")","v":0},{"$f":"IF(AND($AF$6=\"EOL\",$AF$7=\"Construcción\"),INDEX(FECEOL[],MATCH(TEGTPFV20[[#This Row],[Sector]],FECEOL[Sector],0),MATCH(\"Inducido\",FECEOL[#Headers],0)),IF(AND($AF$6=\"EOL\",$AF$7=\"Operación y mantenimiento\"),INDEX(FEOEOL[],MATCH(TEGTPFV20[[#This Row],[Sector]],FEOEOL[Sector],0),MATCH(\"Inducido\",FEOEOL[#Headers],0)),IF(AND($AF$6=\"FV\",$AF$7=\"Construcción\"),INDEX(FECFV[],MATCH(TEGTPFV20[[#This Row],[Sector]],FECFV[Sector],0),MATCH(\"Inducido\",FECFV[#Headers],0)),IF(AND($AF$6=\"FV\",$AF$7=\"Operación y mantenimiento\"),INDEX(FEOFV[],MATCH(TEGTPFV20[[#This Row],[Sector]],FEOFV[Sector],0),MATCH(\"Inducido\",FEOFV[#Headers],0)),\"\"))))","v":0.01},{"$f":"IFERROR($AM$7*TEGTPFV20[[#This Row],[Factor de empleo inducido]]*$AI$7*$AK$7,\"\")","v":0},{"$f":"IFERROR(TEGTPFV20[[#This Row],[Empleos directos]]+TEGTPFV20[[#This Row],[Empleos indirectos]]+TEGTPFV20[[#This Row],[Empleos inducidos]],\"\")","v":0}]
[null,"Información",{"$f":"IF(AND($B$6=\"EOL\",$B$7=\"Construcción\"),INDEX(FECEOL[],MATCH(TEGTPEOL[[#This Row],[Sector]],FECEOL[Sector],0),MATCH(\"Directo\",FECEOL[#Headers],0)),IF(AND($B$6=\"EOL\",$B$7=\"Operación y mantenimiento\"),INDEX(FEOEOL[],MATCH(TEGTPEOL[[#This Row],[Sector]],FEOEOL[Sector],0),MATCH(\"Directo\",FEOEOL[#Headers],0)),IF(AND($B$6=\"FV\",$B$7=\"Construcción\"),INDEX(FECFV[],MATCH(TEGTPEOL[[#This Row],[Sector]],FECFV[Sector],0),MATCH(\"Directo\",FECFV[#Headers],0)),IF(AND($B$6=\"FV\",$B$7=\"Operación y mantenimiento\"),INDEX(FEOFV[],MATCH(TEGTPEOL[[#This Row],[Sector]],FEOFV[Sector],0),MATCH(\"Directo\",FEOFV[#Headers],0)),\"\"))))","v":0},{"$f":"IFERROR($I$7*TEGTPEOL[[#This Row],[Factor de empleo directo]]*$E$7*$G$7,\"\")","v":0},{"$f":"IF(AND($B$6=\"EOL\",$B$7=\"Construcción\"),INDEX(FECEOL[],MATCH(TEGTPEOL[[#This Row],[Sector]],FECEOL[Sector],0),MATCH(\"Indirecto\",FECEOL[#Headers],0)),IF(AND($B$6=\"EOL\",$B$7=\"Operación y mantenimiento\"),INDEX(FEOEOL[],MATCH(TEGTPEOL[[#This Row],[Sector]],FEOEOL[Sector],0),MATCH(\"Indirecto\",FEOEOL[#Headers],0)),IF(AND($B$6=\"FV\",$B$7=\"Construcción\"),INDEX(FECFV[],MATCH(TEGTPEOL[[#This Row],[Sector]],FECFV[Sector],0),MATCH(\"Indirecto\",FECFV[#Headers],0)),IF(AND($B$6=\"FV\",$B$7=\"Operación y mantenimiento\"),INDEX(FEOFV[],MATCH(TEGTPEOL[[#This Row],[Sector]],FEOFV[Sector],0),MATCH(\"Indirecto\",FEOFV[#Headers],0)),\"\"))))","v":0.11700000000000001},{"$f":"IFERROR($I$7*TEGTPEOL[[#This Row],[Factor de empleo indirecto]]*$E$7*$G$7,\"\")","v":0},{"$f":"IF(AND($B$6=\"EOL\",$B$7=\"Construcción\"),INDEX(FECEOL[],MATCH(TEGTPEOL[[#This Row],[Sector]],FECEOL[Sector],0),MATCH(\"Inducido\",FECEOL[#Headers],0)),IF(AND($B$6=\"EOL\",$B$7=\"Operación y mantenimiento\"),INDEX(FEOEOL[],MATCH(TEGTPEOL[[#This Row],[Sector]],FEOEOL[Sector],0),MATCH(\"Inducido\",FEOEOL[#Headers],0)),IF(AND($B$6=\"FV\",$B$7=\"Construcción\"),INDEX(FECFV[],MATCH(TEGTPEOL[[#This Row],[Sector]],FECFV[Sector],0),MATCH(\"Inducido\",FECFV[#Headers],0)),IF(AND($B$6=\"FV\",$B$7=\"Operación y mantenimiento\"),INDEX(FEOFV[],MATCH(TEGTPEOL[[#This Row],[Sector]],FEOFV[Sector],0),MATCH(\"Inducido\",FEOFV[#Headers],0)),\"\"))))","v":0.17599999999999999},{"$f":"IFERROR($I$7*TEGTPEOL[[#This Row],[Factor de empleo inducido]]*$E$7*$G$7,\"\")","v":0},{"$f":"IFERROR(TEGTPEOL[[#This Row],[Empleos directos]]+TEGTPEOL[[#This Row],[Empleos indirectos]]+TEGTPEOL[[#This Row],[Empleos inducidos]],\"\")","v":0},null,null,"Información",{"$f":"IF(AND($L$6=\"EOL\",$L$7=\"Construcción\"),INDEX(FECEOL[],MATCH(TEGTPEOL19[[#This Row],[Sector]],FECEOL[Sector],0),MATCH(\"Directo\",FECEOL[#Headers],0)),IF(AND($L$6=\"EOL\",$L$7=\"Operación y mantenimiento\"),INDEX(FEOEOL[],MATCH(TEGTPEOL19[[#This Row],[Sector]],FEOEOL[Sector],0),MATCH(\"Directo\",FEOEOL[#Headers],0)),IF(AND($L$6=\"FV\",$L$7=\"Construcción\"),INDEX(FECFV[],MATCH(TEGTPEOL19[[#This Row],[Sector]],FECFV[Sector],0),MATCH(\"Directo\",FECFV[#Headers],0)),IF(AND($L$6=\"FV\",$L$7=\"Operación y mantenimiento\"),INDEX(FEOFV[],MATCH(TEGTPEOL19[[#This Row],[Sector]],FEOFV[Sector],0),MATCH(\"Directo\",FEOFV[#Headers],0)),\"\"))))","v":2E-3},{"$f":"IFERROR($S$7*TEGTPEOL19[[#This Row],[Factor de empleo directo]]*$O$7*$Q$7,\"\")","v":0},{"$f":"IF(AND($L$6=\"EOL\",$L$7=\"Construcción\"),INDEX(FECEOL[],MATCH(TEGTPEOL19[[#This Row],[Sector]],FECEOL[Sector],0),MATCH(\"Indirecto\",FECEOL[#Headers],0)),IF(AND($L$6=\"EOL\",$L$7=\"Operación y mantenimiento\"),INDEX(FEOEOL[],MATCH(TEGTPEOL19[[#This Row],[Sector]],FEOEOL[Sector],0),MATCH(\"Indirecto\",FEOEOL[#Headers],0)),IF(AND($L$6=\"FV\",$L$7=\"Construcción\"),INDEX(FECFV[],MATCH(TEGTPEOL19[[#This Row],[Sector]],FECFV[Sector],0),MATCH(\"Indirecto\",FECFV[#Headers],0)),IF(AND($L$6=\"FV\",$L$7=\"Operación y mantenimiento\"),INDEX(FEOFV[],MATCH(TEGTPEOL19[[#This Row],[Sector]],FEOFV[Sector],0),MATCH(\"Indirecto\",FEOFV[#Headers],0)),\"\"))))","v":4.0000000000000001E-3},{"$f":"IFERROR($S$7*TEGTPEOL19[[#This Row],[Factor de empleo indirecto]]*$O$7*$Q$7,\"\")","v":0},{"$f":"IF(AND($L$6=\"EOL\",$L$7=\"Construcción\"),INDEX(FECEOL[],MATCH(TEGTPEOL19[[#This Row],[Sector]],FECEOL[Sector],0),MATCH(\"Inducido\",FECEOL[#Headers],0)),IF(AND($L$6=\"EOL\",$L$7=\"Operación y mantenimiento\"),INDEX(FEOEOL[],MATCH(TEGTPEOL19[[#This Row],[Sector]],FEOEOL[Sector],0),MATCH(\"Inducido\",FEOEOL[#Headers],0)),IF(AND($L$6=\"FV\",$L$7=\"Construcción\"),INDEX(FECFV[],MATCH(TEGTPEOL19[[#This Row],[Sector]],FECFV[Sector],0),MATCH(\"Inducido\",FECFV[#Headers],0)),IF(AND($L$6=\"FV\",$L$7=\"Operación y mantenimiento\"),INDEX(FEOFV[],MATCH(TEGTPEOL19[[#This Row],[Sector]],FEOFV[Sector],0),MATCH(\"Inducido\",FEOFV[#Headers],0)),\"\"))))","v":0},{"$f":"IFERROR($S$7*TEGTPEOL19[[#This Row],[Factor de empleo inducido]]*$O$7*$Q$7,\"\")","v":0},{"$f":"IFERROR(TEGTPEOL19[[#This Row],[Empleos directos]]+TEGTPEOL19[[#This Row],[Empleos indirectos]]+TEGTPEOL19[[#This Row],[Empleos inducidos]],\"\")","v":0},null,null,"Información",{"$f":"IF(AND($V$6=\"EOL\",$V$7=\"Construcción\"),INDEX(FECEOL[],MATCH(TEGTPFV[[#This Row],[Sector]],FECEOL[Sector],0),MATCH(\"Directo\",FECEOL[#Headers],0)),IF(AND($V$6=\"EOL\",$V$7=\"Operación y mantenimiento\"),INDEX(FEOEOL[],MATCH(TEGTPFV[[#This Row],[Sector]],FEOEOL[Sector],0),MATCH(\"Directo\",FEOEOL[#Headers],0)),IF(AND($V$6=\"FV\",$V$7=\"Construcción\"),INDEX(FECFV[],MATCH(TEGTPFV[[#This Row],[Sector]],FECFV[Sector],0),MATCH(\"Directo\",FECFV[#Headers],0)),IF(AND($V$6=\"FV\",$V$7=\"Operación y mantenimiento\"),INDEX(FEOFV[],MATCH(TEGTPFV[[#This Row],[Sector]],FEOFV[Sector],0),MATCH(\"Directo\",FEOFV[#Headers],0)),\"\"))))","v":0},{"$f":"IFERROR($AC$7*TEGTPFV[[#This Row],[Factor de empleo directo]]*$Y$7*$AA$7,\"\")","v":0},{"$f":"IF(AND($V$6=\"EOL\",$V$7=\"Construcción\"),INDEX(FECEOL[],MATCH(TEGTPFV[[#This Row],[Sector]],FECEOL[Sector],0),MATCH(\"Indirecto\",FECEOL[#Headers],0)),IF(AND($V$6=\"EOL\",$V$7=\"Operación y mantenimiento\"),INDEX(FEOEOL[],MATCH(TEGTPFV[[#This Row],[Sector]],FEOEOL[Sector],0),MATCH(\"Indirecto\",FEOEOL[#Headers],0)),IF(AND($V$6=\"FV\",$V$7=\"Construcción\"),INDEX(FECFV[],MATCH(TEGTPFV[[#This Row],[Sector]],FECFV[Sector],0),MATCH(\"Indirecto\",FECFV[#Headers],0)),IF(AND($V$6=\"FV\",$V$7=\"Operación y mantenimiento\"),INDEX(FEOFV[],MATCH(TEGTPFV[[#This Row],[Sector]],FEOFV[Sector],0),MATCH(\"Indirecto\",FEOFV[#Headers],0)),\"\"))))","v":0.11700000000000001},{"$f":"IFERROR($AC$7*TEGTPFV[[#This Row],[Factor de empleo indirecto]]*$Y$7*$AA$7,\"\")","v":0},{"$f":"IF(AND($V$6=\"EOL\",$V$7=\"Construcción\"),INDEX(FECEOL[],MATCH(TEGTPFV[[#This Row],[Sector]],FECEOL[Sector],0),MATCH(\"Inducido\",FECEOL[#Headers],0)),IF(AND($V$6=\"EOL\",$V$7=\"Operación y mantenimiento\"),INDEX(FEOEOL[],MATCH(TEGTPFV[[#This Row],[Sector]],FEOEOL[Sector],0),MATCH(\"Inducido\",FEOEOL[#Headers],0)),IF(AND($V$6=\"FV\",$V$7=\"Construcción\"),INDEX(FECFV[],MATCH(TEGTPFV[[#This Row],[Sector]],FECFV[Sector],0),MATCH(\"Inducido\",FECFV[#Headers],0)),IF(AND($V$6=\"FV\",$V$7=\"Operación y mantenimiento\"),INDEX(FEOFV[],MATCH(TEGTPFV[[#This Row],[Sector]],FEOFV[Sector],0),MATCH(\"Inducido\",FEOFV[#Headers],0)),\"\"))))","v":0.17599999999999999},{"$f":"IFERROR($AC$7*TEGTPFV[[#This Row],[Factor de empleo inducido]]*$Y$7*$AA$7,\"\")","v":0},{"$f":"IFERROR(TEGTPFV[[#This Row],[Empleos directos]]+TEGTPFV[[#This Row],[Empleos indirectos]]+TEGTPFV[[#This Row],[Empleos inducidos]],\"\")","v":0},null,null,"Información",{"$f":"IF(AND($AF$6=\"EOL\",$AF$7=\"Construcción\"),INDEX(FECEOL[],MATCH(TEGTPFV20[[#This Row],[Sector]],FECEOL[Sector],0),MATCH(\"Directo\",FECEOL[#Headers],0)),IF(AND($AF$6=\"EOL\",$AF$7=\"Operación y mantenimiento\"),INDEX(FEOEOL[],MATCH(TEGTPFV20[[#This Row],[Sector]],FEOEOL[Sector],0),MATCH(\"Directo\",FEOEOL[#Headers],0)),IF(AND($AF$6=\"FV\",$AF$7=\"Construcción\"),INDEX(FECFV[],MATCH(TEGTPFV20[[#This Row],[Sector]],FECFV[Sector],0),MATCH(\"Directo\",FECFV[#Headers],0)),IF(AND($AF$6=\"FV\",$AF$7=\"Operación y mantenimiento\"),INDEX(FEOFV[],MATCH(TEGTPFV20[[#This Row],[Sector]],FEOFV[Sector],0),MATCH(\"Directo\",FEOFV[#Headers],0)),\"\"))))","v":0},{"$f":"IFERROR($AM$7*TEGTPFV20[[#This Row],[Factor de empleo directo]]*$AI$7*$AK$7,\"\")","v":0},{"$f":"IF(AND($AF$6=\"EOL\",$AF$7=\"Construcción\"),INDEX(FECEOL[],MATCH(TEGTPFV20[[#This Row],[Sector]],FECEOL[Sector],0),MATCH(\"Indirecto\",FECEOL[#Headers],0)),IF(AND($AF$6=\"EOL\",$AF$7=\"Operación y mantenimiento\"),INDEX(FEOEOL[],MATCH(TEGTPFV20[[#This Row],[Sector]],FEOEOL[Sector],0),MATCH(\"Indirecto\",FEOEOL[#Headers],0)),IF(AND($AF$6=\"FV\",$AF$7=\"Construcción\"),INDEX(FECFV[],MATCH(TEGTPFV20[[#This Row],[Sector]],FECFV[Sector],0),MATCH(\"Indirecto\",FECFV[#Headers],0)),IF(AND($AF$6=\"FV\",$AF$7=\"Operación y mantenimiento\"),INDEX(FEOFV[],MATCH(TEGTPFV20[[#This Row],[Sector]],FEOFV[Sector],0),MATCH(\"Indirecto\",FEOFV[#Headers],0)),\"\"))))","v":1E-3},{"$f":"IFERROR($AM$7*TEGTPFV20[[#This Row],[Factor de empleo indirecto]]*$AI$7*$AK$7,\"\")","v":0},{"$f":"IF(AND($AF$6=\"EOL\",$AF$7=\"Construcción\"),INDEX(FECEOL[],MATCH(TEGTPFV20[[#This Row],[Sector]],FECEOL[Sector],0),MATCH(\"Inducido\",FECEOL[#Headers],0)),IF(AND($AF$6=\"EOL\",$AF$7=\"Operación y mantenimiento\"),INDEX(FEOEOL[],MATCH(TEGTPFV20[[#This Row],[Sector]],FEOEOL[Sector],0),MATCH(\"Inducido\",FEOEOL[#Headers],0)),IF(AND($AF$6=\"FV\",$AF$7=\"Construcción\"),INDEX(FECFV[],MATCH(TEGTPFV20[[#This Row],[Sector]],FECFV[Sector],0),MATCH(\"Inducido\",FECFV[#Headers],0)),IF(AND($AF$6=\"FV\",$AF$7=\"Operación y mantenimiento\"),INDEX(FEOFV[],MATCH(TEGTPFV20[[#This Row],[Sector]],FEOFV[Sector],0),MATCH(\"Inducido\",FEOFV[#Headers],0)),\"\"))))","v":2E-3},{"$f":"IFERROR($AM$7*TEGTPFV20[[#This Row],[Factor de empleo inducido]]*$AI$7*$AK$7,\"\")","v":0},{"$f":"IFERROR(TEGTPFV20[[#This Row],[Empleos directos]]+TEGTPFV20[[#This Row],[Empleos indirectos]]+TEGTPFV20[[#This Row],[Empleos inducidos]],\"\")","v":0}]
[null,"Finanzas. Profesional y negocios",{"$f":"IF(AND($B$6=\"EOL\",$B$7=\"Construcción\"),INDEX(FECEOL[],MATCH(TEGTPEOL[[#This Row],[Sector]],FECEOL[Sector],0),MATCH(\"Directo\",FECEOL[#Headers],0)),IF(AND($B$6=\"EOL\",$B$7=\"Operación y mantenimiento\"),INDEX(FEOEOL[],MATCH(TEGTPEOL[[#This Row],[Sector]],FEOEOL[Sector],0),MATCH(\"Directo\",FEOEOL[#Headers],0)),IF(AND($B$6=\"FV\",$B$7=\"Construcción\"),INDEX(FECFV[],MATCH(TEGTPEOL[[#This Row],[Sector]],FECFV[Sector],0),MATCH(\"Directo\",FECFV[#Headers],0)),IF(AND($B$6=\"FV\",$B$7=\"Operación y mantenimiento\"),INDEX(FEOFV[],MATCH(TEGTPEOL[[#This Row],[Sector]],FEOFV[Sector],0),MATCH(\"Directo\",FEOFV[#Headers],0)),\"\"))))","v":2.4929999999999999},{"$f":"IFERROR($I$7*TEGTPEOL[[#This Row],[Factor de empleo directo]]*$E$7*$G$7,\"\")","v":0},{"$f":"IF(AND($B$6=\"EOL\",$B$7=\"Construcción\"),INDEX(FECEOL[],MATCH(TEGTPEOL[[#This Row],[Sector]],FECEOL[Sector],0),MATCH(\"Indirecto\",FECEOL[#Headers],0)),IF(AND($B$6=\"EOL\",$B$7=\"Operación y mantenimiento\"),INDEX(FEOEOL[],MATCH(TEGTPEOL[[#This Row],[Sector]],FEOEOL[Sector],0),MATCH(\"Indirecto\",FEOEOL[#Headers],0)),IF(AND($B$6=\"FV\",$B$7=\"Construcción\"),INDEX(FECFV[],MATCH(TEGTPEOL[[#This Row],[Sector]],FECFV[Sector],0),MATCH(\"Indirecto\",FECFV[#Headers],0)),IF(AND($B$6=\"FV\",$B$7=\"Operación y mantenimiento\"),INDEX(FEOFV[],MATCH(TEGTPEOL[[#This Row],[Sector]],FEOFV[Sector],0),MATCH(\"Indirecto\",FEOFV[#Headers],0)),\"\"))))","v":5.9109999999999996},{"$f":"IFERROR($I$7*TEGTPEOL[[#This Row],[Factor de empleo indirecto]]*$E$7*$G$7,\"\")","v":0},{"$f":"IF(AND($B$6=\"EOL\",$B$7=\"Construcción\"),INDEX(FECEOL[],MATCH(TEGTPEOL[[#This Row],[Sector]],FECEOL[Sector],0),MATCH(\"Inducido\",FECEOL[#Headers],0)),IF(AND($B$6=\"EOL\",$B$7=\"Operación y mantenimiento\"),INDEX(FEOEOL[],MATCH(TEGTPEOL[[#This Row],[Sector]],FEOEOL[Sector],0),MATCH(\"Inducido\",FEOEOL[#Headers],0)),IF(AND($B$6=\"FV\",$B$7=\"Construcción\"),INDEX(FECFV[],MATCH(TEGTPEOL[[#This Row],[Sector]],FECFV[Sector],0),MATCH(\"Inducido\",FECFV[#Headers],0)),IF(AND($B$6=\"FV\",$B$7=\"Operación y mantenimiento\"),INDEX(FEOFV[],MATCH(TEGTPEOL[[#This Row],[Sector]],FEOFV[Sector],0),MATCH(\"Inducido\",FEOFV[#Headers],0)),\"\"))))","v":15.518000000000001},{"$f":"IFERROR($I$7*TEGTPEOL[[#This Row],[Factor de empleo inducido]]*$E$7*$G$7,\"\")","v":0},{"$f":"IFERROR(TEGTPEOL[[#This Row],[Empleos directos]]+TEGTPEOL[[#This Row],[Empleos indirectos]]+TEGTPEOL[[#This Row],[Empleos inducidos]],\"\")","v":0},null,null,"Finanzas. Profesional y negocios",{"$f":"IF(AND($L$6=\"EOL\",$L$7=\"Construcción\"),INDEX(FECEOL[],MATCH(TEGTPEOL19[[#This Row],[Sector]],FECEOL[Sector],0),MATCH(\"Directo\",FECEOL[#Headers],0)),IF(AND($L$6=\"EOL\",$L$7=\"Operación y mantenimiento\"),INDEX(FEOEOL[],MATCH(TEGTPEOL19[[#This Row],[Sector]],FEOEOL[Sector],0),MATCH(\"Directo\",FEOEOL[#Headers],0)),IF(AND($L$6=\"FV\",$L$7=\"Construcción\"),INDEX(FECFV[],MATCH(TEGTPEOL19[[#This Row],[Sector]],FECFV[Sector],0),MATCH(\"Directo\",FECFV[#Headers],0)),IF(AND($L$6=\"FV\",$L$7=\"Operación y mantenimiento\"),INDEX(FEOFV[],MATCH(TEGTPEOL19[[#This Row],[Sector]],FEOFV[Sector],0),MATCH(\"Directo\",FEOFV[#Headers],0)),\"\"))))","v":0.20899999999999999},{"$f":"IFERROR($S$7*TEGTPEOL19[[#This Row],[Factor de empleo directo]]*$O$7*$Q$7,\"\")","v":0},{"$f":"IF(AND($L$6=\"EOL\",$L$7=\"Construcción\"),INDEX(FECEOL[],MATCH(TEGTPEOL19[[#This Row],[Sector]],FECEOL[Sector],0),MATCH(\"Indirecto\",FECEOL[#Headers],0)),IF(AND($L$6=\"EOL\",$L$7=\"Operación y mantenimiento\"),INDEX(FEOEOL[],MATCH(TEGTPEOL19[[#This Row],[Sector]],FEOEOL[Sector],0),MATCH(\"Indirecto\",FEOEOL[#Headers],0)),IF(AND($L$6=\"FV\",$L$7=\"Construcción\"),INDEX(FECFV[],MATCH(TEGTPEOL19[[#This Row],[Sector]],FECFV[Sector],0),MATCH(\"Indirecto\",FECFV[#Headers],0)),IF(AND($L$6=\"FV\",$L$7=\"Operación y mantenimiento\"),INDEX(FEOFV[],MATCH(TEGTPEOL19[[#This Row],[Sector]],FEOFV[Sector],0),MATCH(\"Indirecto\",FEOFV[#Headers],0)),\"\"))))","v":0.41399999999999998},{"$f":"IFERROR($S$7*TEGTPEOL19[[#This Row],[Factor de empleo indirecto]]*$O$7*$Q$7,\"\")","v":0},{"$f":"IF(AND($L$6=\"EOL\",$L$7=\"Construcción\"),INDEX(FECEOL[],MATCH(TEGTPEOL19[[#This Row],[Sector]],FECEOL[Sector],0),MATCH(\"Inducido\",FECEOL[#Headers],0)),IF(AND($L$6=\"EOL\",$L$7=\"Operación y mantenimiento\"),INDEX(FEOEOL[],MATCH(TEGTPEOL19[[#This Row],[Sector]],FEOEOL[Sector],0),MATCH(\"Inducido\",FEOEOL[#Headers],0)),IF(AND($L$6=\"FV\",$L$7=\"Construcción\"),INDEX(FECFV[],MATCH(TEGTPEOL19[[#This Row],[Sector]],FECFV[Sector],0),MATCH(\"Inducido\",FECFV[#Headers],0)),IF(AND($L$6=\"FV\",$L$7=\"Operación y mantenimiento\"),INDEX(FEOFV[],MATCH(TEGTPEOL19[[#This Row],[Sector]],FEOFV[Sector],0),MATCH(\"Inducido\",FEOFV[#Headers],0)),\"\"))))","v":0},{"$f":"IFERROR($S$7*TEGTPEOL19[[#This Row],[Factor de empleo inducido]]*$O$7*$Q$7,\"\")","v":0},{"$f":"IFERROR(TEGTPEOL19[[#This Row],[Empleos directos]]+TEGTPEOL19[[#This Row],[Empleos indirectos]]+TEGTPEOL19[[#This Row],[Empleos inducidos]],\"\")","v":0},null,null,"Finanzas. Profesional y negocios",{"$f":"IF(AND($V$6=\"EOL\",$V$7=\"Construcción\"),INDEX(FECEOL[],MATCH(TEGTPFV[[#This Row],[Sector]],FECEOL[Sector],0),MATCH(\"Directo\",FECEOL[#Headers],0)),IF(AND($V$6=\"EOL\",$V$7=\"Operación y mantenimiento\"),INDEX(FEOEOL[],MATCH(TEGTPFV[[#This Row],[Sector]],FEOEOL[Sector],0),MATCH(\"Directo\",FEOEOL[#Headers],0)),IF(AND($V$6=\"FV\",$V$7=\"Construcción\"),INDEX(FECFV[],MATCH(TEGTPFV[[#This Row],[Sector]],FECFV[Sector],0),MATCH(\"Directo\",FECFV[#Headers],0)),IF(AND($V$6=\"FV\",$V$7=\"Operación y mantenimiento\"),INDEX(FEOFV[],MATCH(TEGTPFV[[#This Row],[Sector]],FEOFV[Sector],0),MATCH(\"Directo\",FEOFV[#Headers],0)),\"\"))))","v":2.4929999999999999},{"$f":"IFERROR($AC$7*TEGTPFV[[#This Row],[Factor de empleo directo]]*$Y$7*$AA$7,\"\")","v":0},{"$f":"IF(AND($V$6=\"EOL\",$V$7=\"Construcción\"),INDEX(FECEOL[],MATCH(TEGTPFV[[#This Row],[Sector]],FECEOL[Sector],0),MATCH(\"Indirecto\",FECEOL[#Headers],0)),IF(AND($V$6=\"EOL\",$V$7=\"Operación y mantenimiento\"),INDEX(FEOEOL[],MATCH(TEGTPFV[[#This Row],[Sector]],FEOEOL[Sector],0),MATCH(\"Indirecto\",FEOEOL[#Headers],0)),IF(AND($V$6=\"FV\",$V$7=\"Construcción\"),INDEX(FECFV[],MATCH(TEGTPFV[[#This Row],[Sector]],FECFV[Sector],0),MATCH(\"Indirecto\",FECFV[#Headers],0)),IF(AND($V$6=\"FV\",$V$7=\"Operación y mantenimiento\"),INDEX(FEOFV[],MATCH(TEGTPFV[[#This Row],[Sector]],FEOFV[Sector],0),MATCH(\"Indirecto\",FEOFV[#Headers],0)),\"\"))))","v":5.9109999999999996},{"$f":"IFERROR($AC$7*TEGTPFV[[#This Row],[Factor de empleo indirecto]]*$Y$7*$AA$7,\"\")","v":0},{"$f":"IF(AND($V$6=\"EOL\",$V$7=\"Construcción\"),INDEX(FECEOL[],MATCH(TEGTPFV[[#This Row],[Sector]],FECEOL[Sector],0),MATCH(\"Inducido\",FECEOL[#Headers],0)),IF(AND($V$6=\"EOL\",$V$7=\"Operación y mantenimiento\"),INDEX(FEOEOL[],MATCH(TEGTPFV[[#This Row],[Sector]],FEOEOL[Sector],0),MATCH(\"Inducido\",FEOEOL[#Headers],0)),IF(AND($V$6=\"FV\",$V$7=\"Construcción\"),INDEX(FECFV[],MATCH(TEGTPFV[[#This Row],[Sector]],FECFV[Sector],0),MATCH(\"Inducido\",FECFV[#Headers],0)),IF(AND($V$6=\"FV\",$V$7=\"Operación y mantenimiento\"),INDEX(FEOFV[],MATCH(TEGTPFV[[#This Row],[Sector]],FEOFV[Sector],0),MATCH(\"Inducido\",FEOFV[#Headers],0)),\"\"))))","v":15.518000000000001},{"$f":"IFERROR($AC$7*TEGTPFV[[#This Row],[Factor de empleo inducido]]*$Y$7*$AA$7,\"\")","v":0},{"$f":"IFERROR(TEGTPFV[[#This Row],[Empleos directos]]+TEGTPFV[[#This Row],[Empleos indirectos]]+TEGTPFV[[#This Row],[Empleos inducidos]],\"\")","v":0},null,null,"Finanzas. Profesional y negocios",{"$f":"IF(AND($AF$6=\"EOL\",$AF$7=\"Construcción\"),INDEX(FECEOL[],MATCH(TEGTPFV20[[#This Row],[Sector]],FECEOL[Sector],0),MATCH(\"Directo\",FECEOL[#Headers],0)),IF(AND($AF$6=\"EOL\",$AF$7=\"Operación y mantenimiento\"),INDEX(FEOEOL[],MATCH(TEGTPFV20[[#This Row],[Sector]],FEOEOL[Sector],0),MATCH(\"Directo\",FEOEOL[#Headers],0)),IF(AND($AF$6=\"FV\",$AF$7=\"Construcción\"),INDEX(FECFV[],MATCH(TEGTPFV20[[#This Row],[Sector]],FECFV[Sector],0),MATCH(\"Directo\",FECFV[#Headers],0)),IF(AND($AF$6=\"FV\",$AF$7=\"Operación y mantenimiento\"),INDEX(FEOFV[],MATCH(TEGTPFV20[[#This Row],[Sector]],FEOFV[Sector],0),MATCH(\"Directo\",FEOFV[#Headers],0)),\"\"))))","v":0},{"$f":"IFERROR($AM$7*TEGTPFV20[[#This Row],[Factor de empleo directo]]*$AI$7*$AK$7,\"\")","v":0},{"$f":"IF(AND($AF$6=\"EOL\",$AF$7=\"Construcción\"),INDEX(FECEOL[],MATCH(TEGTPFV20[[#This Row],[Sector]],FECEOL[Sector],0),MATCH(\"Indirecto\",FECEOL[#Headers],0)),IF(AND($AF$6=\"EOL\",$AF$7=\"Operación y mantenimiento\"),INDEX(FEOEOL[],MATCH(TEGTPFV20[[#This Row],[Sector]],FEOEOL[Sector],0),MATCH(\"Indirecto\",FEOEOL[#Headers],0)),IF(AND($AF$6=\"FV\",$AF$7=\"Construcción\"),INDEX(FECFV[],MATCH(TEGTPFV20[[#This Row],[Sector]],FECFV[Sector],0),MATCH(\"Indirecto\",FECFV[#Headers],0)),IF(AND($AF$6=\"FV\",$AF$7=\"Operación y mantenimiento\"),INDEX(FEOFV[],MATCH(TEGTPFV20[[#This Row],[Sector]],FEOFV[Sector],0),MATCH(\"Indirecto\",FEOFV[#Headers],0)),\"\"))))","v":4.1000000000000002E-2},{"$f":"IFERROR($AM$7*TEGTPFV20[[#This Row],[Factor de empleo indirecto]]*$AI$7*$AK$7,\"\")","v":0},{"$f":"IF(AND($AF$6=\"EOL\",$AF$7=\"Construcción\"),INDEX(FECEOL[],MATCH(TEGTPFV20[[#This Row],[Sector]],FECEOL[Sector],0),MATCH(\"Inducido\",FECEOL[#Headers],0)),IF(AND($AF$6=\"EOL\",$AF$7=\"Operación y mantenimiento\"),INDEX(FEOEOL[],MATCH(TEGTPFV20[[#This Row],[Sector]],FEOEOL[Sector],0),MATCH(\"Inducido\",FEOEOL[#Headers],0)),IF(AND($AF$6=\"FV\",$AF$7=\"Construcción\"),INDEX(FECFV[],MATCH(TEGTPFV20[[#This Row],[Sector]],FECFV[Sector],0),MATCH(\"Inducido\",FECFV[#Headers],0)),IF(AND($AF$6=\"FV\",$AF$7=\"Operación y mantenimiento\"),INDEX(FEOFV[],MATCH(TEGTPFV20[[#This Row],[Sector]],FEOFV[Sector],0),MATCH(\"Inducido\",FEOFV[#Headers],0)),\"\"))))","v":0.14099999999999999},{"$f":"IFERROR($AM$7*TEGTPFV20[[#This Row],[Factor de empleo inducido]]*$AI$7*$AK$7,\"\")","v":0},{"$f":"IFERROR(TEGTPFV20[[#This Row],[Empleos directos]]+TEGTPFV20[[#This Row],[Empleos indirectos]]+TEGTPFV20[[#This Row],[Empleos inducidos]],\"\")","v":0}]
[null,"Educación y Cuidado de la Salud",{"$f":"IF(AND($B$6=\"EOL\",$B$7=\"Construcción\"),INDEX(FECEOL[],MATCH(TEGTPEOL[[#This Row],[Sector]],FECEOL[Sector],0),MATCH(\"Directo\",FECEOL[#Headers],0)),IF(AND($B$6=\"EOL\",$B$7=\"Operación y mantenimiento\"),INDEX(FEOEOL[],MATCH(TEGTPEOL[[#This Row],[Sector]],FEOEOL[Sector],0),MATCH(\"Directo\",FEOEOL[#Headers],0)),IF(AND($B$6=\"FV\",$B$7=\"Construcción\"),INDEX(FECFV[],MATCH(TEGTPEOL[[#This Row],[Sector]],FECFV[Sector],0),MATCH(\"Directo\",FECFV[#Headers],0)),IF(AND($B$6=\"FV\",$B$7=\"Operación y mantenimiento\"),INDEX(FEOFV[],MATCH(TEGTPEOL[[#This Row],[Sector]],FEOFV[Sector],0),MATCH(\"Directo\",FEOFV[#Headers],0)),\"\"))))","v":0},{"$f":"IFERROR($I$7*TEGTPEOL[[#This Row],[Factor de empleo directo]]*$E$7*$G$7,\"\")","v":0},{"$f":"IF(AND($B$6=\"EOL\",$B$7=\"Construcción\"),INDEX(FECEOL[],MATCH(TEGTPEOL[[#This Row],[Sector]],FECEOL[Sector],0),MATCH(\"Indirecto\",FECEOL[#Headers],0)),IF(AND($B$6=\"EOL\",$B$7=\"Operación y mantenimiento\"),INDEX(FEOEOL[],MATCH(TEGTPEOL[[#This Row],[Sector]],FEOEOL[Sector],0),MATCH(\"Indirecto\",FEOEOL[#Headers],0)),IF(AND($B$6=\"FV\",$B$7=\"Construcción\"),INDEX(FECFV[],MATCH(TEGTPEOL[[#This Row],[Sector]],FECFV[Sector],0),MATCH(\"Indirecto\",FECFV[#Headers],0)),IF(AND($B$6=\"FV\",$B$7=\"Operación y mantenimiento\"),INDEX(FEOFV[],MATCH(TEGTPEOL[[#This Row],[Sector]],FEOFV[Sector],0),MATCH(\"Indirecto\",FEOFV[#Headers],0)),\"\"))))","v":6.7000000000000004E-2},{"$f":"IFERROR($I$7*TEGTPEOL[[#This Row],[Factor de empleo indirecto]]*$E$7*$G$7,\"\")","v":0},{"$f":"IF(AND($B$6=\"EOL\",$B$7=\"Construcción\"),INDEX(FECEOL[],MATCH(TEGTPEOL[[#This Row],[Sector]],FECEOL[Sector],0),MATCH(\"Inducido\",FECEOL[#Headers],0)),IF(AND($B$6=\"EOL\",$B$7=\"Operación y mantenimiento\"),INDEX(FEOEOL[],MATCH(TEGTPEOL[[#This Row],[Sector]],FEOEOL[Sector],0),MATCH(\"Inducido\",FEOEOL[#Headers],0)),IF(AND($B$6=\"FV\",$B$7=\"Construcción\"),INDEX(FECFV[],MATCH(TEGTPEOL[[#This Row],[Sector]],FECFV[Sector],0),MATCH(\"Inducido\",FECFV[#Headers],0)),IF(AND($B$6=\"FV\",$B$7=\"Operación y mantenimiento\"),INDEX(FEOFV[],MATCH(TEGTPEOL[[#This Row],[Sector]],FEOFV[Sector],0),MATCH(\"Inducido\",FEOFV[#Headers],0)),\"\"))))","v":8.5760000000000005},{"$f":"IFERROR($I$7*TEGTPEOL[[#This Row],[Factor de empleo inducido]]*$E$7*$G$7,\"\")","v":0},{"$f":"IFERROR(TEGTPEOL[[#This Row],[Empleos directos]]+TEGTPEOL[[#This Row],[Empleos indirectos]]+TEGTPEOL[[#This Row],[Empleos inducidos]],\"\")","v":0},null,null,"Educación y Cuidado de la Salud",{"$f":"IF(AND($L$6=\"EOL\",$L$7=\"Construcción\"),INDEX(FECEOL[],MATCH(TEGTPEOL19[[#This Row],[Sector]],FECEOL[Sector],0),MATCH(\"Directo\",FECEOL[#Headers],0)),IF(AND($L$6=\"EOL\",$L$7=\"Operación y mantenimiento\"),INDEX(FEOEOL[],MATCH(TEGTPEOL19[[#This Row],[Sector]],FEOEOL[Sector],0),MATCH(\"Directo\",FEOEOL[#Headers],0)),IF(AND($L$6=\"FV\",$L$7=\"Construcción\"),INDEX(FECFV[],MATCH(TEGTPEOL19[[#This Row],[Sector]],FECFV[Sector],0),MATCH(\"Directo\",FECFV[#Headers],0)),IF(AND($L$6=\"FV\",$L$7=\"Operación y mantenimiento\"),INDEX(FEOFV[],MATCH(TEGTPEOL19[[#This Row],[Sector]],FEOFV[Sector],0),MATCH(\"Directo\",FEOFV[#Headers],0)),\"\"))))","v":4.0000000000000001E-3},{"$f":"IFERROR($S$7*TEGTPEOL19[[#This Row],[Factor de empleo directo]]*$O$7*$Q$7,\"\")","v":0},{"$f":"IF(AND($L$6=\"EOL\",$L$7=\"Construcción\"),INDEX(FECEOL[],MATCH(TEGTPEOL19[[#This Row],[Sector]],FECEOL[Sector],0),MATCH(\"Indirecto\",FECEOL[#Headers],0)),IF(AND($L$6=\"EOL\",$L$7=\"Operación y mantenimiento\"),INDEX(FEOEOL[],MATCH(TEGTPEOL19[[#This Row],[Sector]],FEOEOL[Sector],0),MATCH(\"Indirecto\",FEOEOL[#Headers],0)),IF(AND($L$6=\"FV\",$L$7=\"Construcción\"),INDEX(FECFV[],MATCH(TEGTPEOL19[[#This Row],[Sector]],FECFV[Sector],0),MATCH(\"Indirecto\",FECFV[#Headers],0)),IF(AND($L$6=\"FV\",$L$7=\"Operación y mantenimiento\"),INDEX(FEOFV[],MATCH(TEGTPEOL19[[#This Row],[Sector]],FEOFV[Sector],0),MATCH(\"Indirecto\",FEOFV[#Headers],0)),\"\"))))","v":0.26200000000000001},{"$f":"IFERROR($S$7*TEGTPEOL19[[#This Row],[Factor de empleo indirecto]]*$O$7*$Q$7,\"\")","v":0},{"$f":"IF(AND($L$6=\"EOL\",$L$7=\"Construcción\"),INDEX(FECEOL[],MATCH(TEGTPEOL19[[#This Row],[Sector]],FECEOL[Sector],0),MATCH(\"Inducido\",FECEOL[#Headers],0)),IF(AND($L$6=\"EOL\",$L$7=\"Operación y mantenimiento\"),INDEX(FEOEOL[],MATCH(TEGTPEOL19[[#This Row],[Sector]],FEOEOL[Sector],0),MATCH(\"Inducido\",FEOEOL[#Headers],0)),IF(AND($L$6=\"FV\",$L$7=\"Construcción\"),INDEX(FECFV[],MATCH(TEGTPEOL19[[#This Row],[Sector]],FECFV[Sector],0),MATCH(\"Inducido\",FECFV[#Headers],0)),IF(AND($L$6=\"FV\",$L$7=\"Operación y mantenimiento\"),INDEX(FEOFV[],MATCH(TEGTPEOL19[[#This Row],[Sector]],FEOFV[Sector],0),MATCH(\"Inducido\",FEOFV[#Headers],0)),\"\"))))","v":0},{"$f":"IFERROR($S$7*TEGTPEOL19[[#This Row],[Factor de empleo inducido]]*$O$7*$Q$7,\"\")","v":0},{"$f":"IFERROR(TEGTPEOL19[[#This Row],[Empleos directos]]+TEGTPEOL19[[#This Row],[Empleos indirectos]]+TEGTPEOL19[[#This Row],[Empleos inducidos]],\"\")","v":0},null,null,"Educación y Cuidado de la Salud",{"$f":"IF(AND($V$6=\"EOL\",$V$7=\"Construcción\"),INDEX(FECEOL[],MATCH(TEGTPFV[[#This Row],[Sector]],FECEOL[Sector],0),MATCH(\"Directo\",FECEOL[#Headers],0)),IF(AND($V$6=\"EOL\",$V$7=\"Operación y mantenimiento\"),INDEX(FEOEOL[],MATCH(TEGTPFV[[#This Row],[Sector]],FEOEOL[Sector],0),MATCH(\"Directo\",FEOEOL[#Headers],0)),IF(AND($V$6=\"FV\",$V$7=\"Construcción\"),INDEX(FECFV[],MATCH(TEGTPFV[[#This Row],[Sector]],FECFV[Sector],0),MATCH(\"Directo\",FECFV[#Headers],0)),IF(AND($V$6=\"FV\",$V$7=\"Operación y mantenimiento\"),INDEX(FEOFV[],MATCH(TEGTPFV[[#This Row],[Sector]],FEOFV[Sector],0),MATCH(\"Directo\",FEOFV[#Headers],0)),\"\"))))","v":0},{"$f":"IFERROR($AC$7*TEGTPFV[[#This Row],[Factor de empleo directo]]*$Y$7*$AA$7,\"\")","v":0},{"$f":"IF(AND($V$6=\"EOL\",$V$7=\"Construcción\"),INDEX(FECEOL[],MATCH(TEGTPFV[[#This Row],[Sector]],FECEOL[Sector],0),MATCH(\"Indirecto\",FECEOL[#Headers],0)),IF(AND($V$6=\"EOL\",$V$7=\"Operación y mantenimiento\"),INDEX(FEOEOL[],MATCH(TEGTPFV[[#This Row],[Sector]],FEOEOL[Sector],0),MATCH(\"Indirecto\",FEOEOL[#Headers],0)),IF(AND($V$6=\"FV\",$V$7=\"Construcción\"),INDEX(FECFV[],MATCH(TEGTPFV[[#This Row],[Sector]],FECFV[Sector],0),MATCH(\"Indirecto\",FECFV[#Headers],0)),IF(AND($V$6=\"FV\",$V$7=\"Operación y mantenimiento\"),INDEX(FEOFV[],MATCH(TEGTPFV[[#This Row],[Sector]],FEOFV[Sector],0),MATCH(\"Indirecto\",FEOFV[#Headers],0)),\"\"))))","v":6.7000000000000004E-2},{"$f":"IFERROR($AC$7*TEGTPFV[[#This Row],[Factor de empleo indirecto]]*$Y$7*$AA$7,\"\")","v":0},{"$f":"IF(AND($V$6=\"EOL\",$V$7=\"Construcción\"),INDEX(FECEOL[],MATCH(TEGTPFV[[#This Row],[Sector]],FECEOL[Sector],0),MATCH(\"Inducido\",FECEOL[#Headers],0)),IF(AND($V$6=\"EOL\",$V$7=\"Operación y mantenimiento\"),INDEX(FEOEOL[],MATCH(TEGTPFV[[#This Row],[Sector]],FEOEOL[Sector],0),MATCH(\"Inducido\",FEOEOL[#Headers],0)),IF(AND($V$6=\"FV\",$V$7=\"Construcción\"),INDEX(FECFV[],MATCH(TEGTPFV[[#This Row],[Sector]],FECFV[Sector],0),MATCH(\"Inducido\",FECFV[#Headers],0)),IF(AND($V$6=\"FV\",$V$7=\"Operación y mantenimiento\"),INDEX(FEOFV[],MATCH(TEGTPFV[[#This Row],[Sector]],FEOFV[Sector],0),MATCH(\"Inducido\",FEOFV[#Headers],0)),\"\"))))","v":8.5760000000000005},{"$f":"IFERROR($AC$7*TEGTPFV[[#This Row],[Factor de empleo inducido]]*$Y$7*$AA$7,\"\")","v":0},{"$f":"IFERROR(TEGTPFV[[#This Row],[Empleos directos]]+TEGTPFV[[#This Row],[Empleos indirectos]]+TEGTPFV[[#This Row],[Empleos inducidos]],\"\")","v":0},null,null,"Educación y Cuidado de la Salud",{"$f":"IF(AND($AF$6=\"EOL\",$AF$7=\"Construcción\"),INDEX(FECEOL[],MATCH(TEGTPFV20[[#This Row],[Sector]],FECEOL[Sector],0),MATCH(\"Directo\",FECEOL[#Headers],0)),IF(AND($AF$6=\"EOL\",$AF$7=\"Operación y mantenimiento\"),INDEX(FEOEOL[],MATCH(TEGTPFV20[[#This Row],[Sector]],FEOEOL[Sector],0),MATCH(\"Directo\",FEOEOL[#Headers],0)),IF(AND($AF$6=\"FV\",$AF$7=\"Construcción\"),INDEX(FECFV[],MATCH(TEGTPFV20[[#This Row],[Sector]],FECFV[Sector],0),MATCH(\"Directo\",FECFV[#Headers],0)),IF(AND($AF$6=\"FV\",$AF$7=\"Operación y mantenimiento\"),INDEX(FEOFV[],MATCH(TEGTPFV20[[#This Row],[Sector]],FEOFV[Sector],0),MATCH(\"Directo\",FEOFV[#Headers],0)),\"\"))))","v":0},{"$f":"IFERROR($AM$7*TEGTPFV20[[#This Row],[Factor de empleo directo]]*$AI$7*$AK$7,\"\")","v":0},{"$f":"IF(AND($AF$6=\"EOL\",$AF$7=\"Construcción\"),INDEX(FECEOL[],MATCH(TEGTPFV20[[#This Row],[Sector]],FECEOL[Sector],0),MATCH(\"Indirecto\",FECEOL[#Headers],0)),IF(AND($AF$6=\"EOL\",$AF$7=\"Operación y mantenimiento\"),INDEX(FEOEOL[],MATCH(TEGTPFV20[[#This Row],[Sector]],FEOEOL[Sector],0),MATCH(\"Indirecto\",FEOEOL[#Headers],0)),IF(AND($AF$6=\"FV\",$AF$7=\"Construcción\"),INDEX(FECFV[],MATCH(TEGTPFV20[[#This Row],[Sector]],FECFV[Sector],0),MATCH(\"Indirecto\",FECFV[#Headers],0)),IF(AND($AF$6=\"FV\",$AF$7=\"Operación y mantenimiento\"),INDEX(FEOFV[],MATCH(TEGTPFV20[[#This Row],[Sector]],FEOFV[Sector],0),MATCH(\"Indirecto\",FEOFV[#Headers],0)),\"\"))))","v":0},{"$f":"IFERROR($AM$7*TEGTPFV20[[#This Row],[Factor de empleo indirecto]]*$AI$7*$AK$7,\"\")","v":0},{"$f":"IF(AND($AF$6=\"EOL\",$AF$7=\"Construcción\"),INDEX(FECEOL[],MATCH(TEGTPFV20[[#This Row],[Sector]],FECEOL[Sector],0),MATCH(\"Inducido\",FECEOL[#Headers],0)),IF(AND($AF$6=\"EOL\",$AF$7=\"Operación y mantenimiento\"),INDEX(FEOEOL[],MATCH(TEGTPFV20[[#This Row],[Sector]],FEOEOL[Sector],0),MATCH(\"Inducido\",FEOEOL[#Headers],0)),IF(AND($AF$6=\"FV\",$AF$7=\"Construcción\"),INDEX(FECFV[],MATCH(TEGTPFV20[[#This Row],[Sector]],FECFV[Sector],0),MATCH(\"Inducido\",FECFV[#Headers],0)),IF(AND($AF$6=\"FV\",$AF$7=\"Operación y mantenimiento\"),INDEX(FEOFV[],MATCH(TEGTPFV20[[#This Row],[Sector]],FEOFV[Sector],0),MATCH(\"Inducido\",FEOFV[#Headers],0)),\"\"))))","v":7.8E-2},{"$f":"IFERROR($AM$7*TEGTPFV20[[#This Row],[Factor de empleo inducido]]*$AI$7*$AK$7,\"\")","v":0},{"$f":"IFERROR(TEGTPFV20[[#This Row],[Empleos directos]]+TEGTPFV20[[#This Row],[Empleos indirectos]]+TEGTPFV20[[#This Row],[Empleos inducidos]],\"\")","v":0}]
[null,"Otros",{"$f":"IF(AND($B$6=\"EOL\",$B$7=\"Construcción\"),INDEX(FECEOL[],MATCH(TEGTPEOL[[#This Row],[Sector]],FECEOL[Sector],0),MATCH(\"Directo\",FECEOL[#Headers],0)),IF(AND($B$6=\"EOL\",$B$7=\"Operación y mantenimiento\"),INDEX(FEOEOL[],MATCH(TEGTPEOL[[#This Row],[Sector]],FEOEOL[Sector],0),MATCH(\"Directo\",FEOEOL[#Headers],0)),IF(AND($B$6=\"FV\",$B$7=\"Construcción\"),INDEX(FECFV[],MATCH(TEGTPEOL[[#This Row],[Sector]],FECFV[Sector],0),MATCH(\"Directo\",FECFV[#Headers],0)),IF(AND($B$6=\"FV\",$B$7=\"Operación y mantenimiento\"),INDEX(FEOFV[],MATCH(TEGTPEOL[[#This Row],[Sector]],FEOFV[Sector],0),MATCH(\"Directo\",FEOFV[#Headers],0)),\"\"))))","v":0},{"$f":"IFERROR($I$7*TEGTPEOL[[#This Row],[Factor de empleo directo]]*$E$7*$G$7,\"\")","v":0},{"$f":"IF(AND($B$6=\"EOL\",$B$7=\"Construcción\"),INDEX(FECEOL[],MATCH(TEGTPEOL[[#This Row],[Sector]],FECEOL[Sector],0),MATCH(\"Indirecto\",FECEOL[#Headers],0)),IF(AND($B$6=\"EOL\",$B$7=\"Operación y mantenimiento\"),INDEX(FEOEOL[],MATCH(TEGTPEOL[[#This Row],[Sector]],FEOEOL[Sector],0),MATCH(\"Indirecto\",FEOEOL[#Headers],0)),IF(AND($B$6=\"FV\",$B$7=\"Construcción\"),INDEX(FECFV[],MATCH(TEGTPEOL[[#This Row],[Sector]],FECFV[Sector],0),MATCH(\"Indirecto\",FECFV[#Headers],0)),IF(AND($B$6=\"FV\",$B$7=\"Operación y mantenimiento\"),INDEX(FEOFV[],MATCH(TEGTPEOL[[#This Row],[Sector]],FEOFV[Sector],0),MATCH(\"Indirecto\",FEOFV[#Headers],0)),\"\"))))","v":0.58199999999999996},{"$f":"IFERROR($I$7*TEGTPEOL[[#This Row],[Factor de empleo indirecto]]*$E$7*$G$7,\"\")","v":0},{"$f":"IF(AND($B$6=\"EOL\",$B$7=\"Construcción\"),INDEX(FECEOL[],MATCH(TEGTPEOL[[#This Row],[Sector]],FECEOL[Sector],0),MATCH(\"Inducido\",FECEOL[#Headers],0)),IF(AND($B$6=\"EOL\",$B$7=\"Operación y mantenimiento\"),INDEX(FEOEOL[],MATCH(TEGTPEOL[[#This Row],[Sector]],FEOEOL[Sector],0),MATCH(\"Inducido\",FEOEOL[#Headers],0)),IF(AND($B$6=\"FV\",$B$7=\"Construcción\"),INDEX(FECFV[],MATCH(TEGTPEOL[[#This Row],[Sector]],FECFV[Sector],0),MATCH(\"Inducido\",FECFV[#Headers],0)),IF(AND($B$6=\"FV\",$B$7=\"Operación y mantenimiento\"),INDEX(FEOFV[],MATCH(TEGTPEOL[[#This Row],[Sector]],FEOFV[Sector],0),MATCH(\"Inducido\",FEOFV[#Headers],0)),\"\"))))","v":2.3660000000000001},{"$f":"IFERROR($I$7*TEGTPEOL[[#This Row],[Factor de empleo inducido]]*$E$7*$G$7,\"\")","v":0},{"$f":"IFERROR(TEGTPEOL[[#This Row],[Empleos directos]]+TEGTPEOL[[#This Row],[Empleos indirectos]]+TEGTPEOL[[#This Row],[Empleos inducidos]],\"\")","v":0},null,null,"Otros",{"$f":"IF(AND($L$6=\"EOL\",$L$7=\"Construcción\"),INDEX(FECEOL[],MATCH(TEGTPEOL19[[#This Row],[Sector]],FECEOL[Sector],0),MATCH(\"Directo\",FECEOL[#Headers],0)),IF(AND($L$6=\"EOL\",$L$7=\"Operación y mantenimiento\"),INDEX(FEOEOL[],MATCH(TEGTPEOL19[[#This Row],[Sector]],FEOEOL[Sector],0),MATCH(\"Directo\",FEOEOL[#Headers],0)),IF(AND($L$6=\"FV\",$L$7=\"Construcción\"),INDEX(FECFV[],MATCH(TEGTPEOL19[[#This Row],[Sector]],FECFV[Sector],0),MATCH(\"Directo\",FECFV[#Headers],0)),IF(AND($L$6=\"FV\",$L$7=\"Operación y mantenimiento\"),INDEX(FEOFV[],MATCH(TEGTPEOL19[[#This Row],[Sector]],FEOFV[Sector],0),MATCH(\"Directo\",FEOFV[#Headers],0)),\"\"))))","v":1.4999999999999999E-2},{"$f":"IFERROR($S$7*TEGTPEOL19[[#This Row],[Factor de empleo directo]]*$O$7*$Q$7,\"\")","v":0},{"$f":"IF(AND($L$6=\"EOL\",$L$7=\"Construcción\"),INDEX(FECEOL[],MATCH(TEGTPEOL19[[#This Row],[Sector]],FECEOL[Sector],0),MATCH(\"Indirecto\",FECEOL[#Headers],0)),IF(AND($L$6=\"EOL\",$L$7=\"Operación y mantenimiento\"),INDEX(FEOEOL[],MATCH(TEGTPEOL19[[#This Row],[Sector]],FEOEOL[Sector],0),MATCH(\"Indirecto\",FEOEOL[#Headers],0)),IF(AND($L$6=\"FV\",$L$7=\"Construcción\"),INDEX(FECFV[],MATCH(TEGTPEOL19[[#This Row],[Sector]],FECFV[Sector],0),MATCH(\"Indirecto\",FECFV[#Headers],0)),IF(AND($L$6=\"FV\",$L$7=\"Operación y mantenimiento\"),INDEX(FEOFV[],MATCH(TEGTPEOL19[[#This Row],[Sector]],FEOFV[Sector],0),MATCH(\"Indirecto\",FEOFV[#Headers],0)),\"\"))))","v":6.6000000000000003E-2},{"$f":"IFERROR($S$7*TEGTPEOL19[[#This Row],[Factor de empleo indirecto]]*$O$7*$Q$7,\"\")","v":0},{"$f":"IF(AND($L$6=\"EOL\",$L$7=\"Construcción\"),INDEX(FECEOL[],MATCH(TEGTPEOL19[[#This Row],[Sector]],FECEOL[Sector],0),MATCH(\"Inducido\",FECEOL[#Headers],0)),IF(AND($L$6=\"EOL\",$L$7=\"Operación y mantenimiento\"),INDEX(FEOEOL[],MATCH(TEGTPEOL19[[#This Row],[Sector]],FEOEOL[Sector],0),MATCH(\"Inducido\",FEOEOL[#Headers],0)),IF(AND($L$6=\"FV\",$L$7=\"Construcción\"),INDEX(FECFV[],MATCH(TEGTPEOL19[[#This Row],[Sector]],FECFV[Sector],0),MATCH(\"Inducido\",FECFV[#Headers],0)),IF(AND($L$6=\"FV\",$L$7=\"Operación y mantenimiento\"),INDEX(FEOFV[],MATCH(TEGTPEOL19[[#This Row],[Sector]],FEOFV[Sector],0),MATCH(\"Inducido\",FEOFV[#Headers],0)),\"\"))))","v":0},{"$f":"IFERROR($S$7*TEGTPEOL19[[#This Row],[Factor de empleo inducido]]*$O$7*$Q$7,\"\")","v":0},{"$f":"IFERROR(TEGTPEOL19[[#This Row],[Empleos directos]]+TEGTPEOL19[[#This Row],[Empleos indirectos]]+TEGTPEOL19[[#This Row],[Empleos inducidos]],\"\")","v":0},null,null,"Otros",{"$f":"IF(AND($V$6=\"EOL\",$V$7=\"Construcción\"),INDEX(FECEOL[],MATCH(TEGTPFV[[#This Row],[Sector]],FECEOL[Sector],0),MATCH(\"Directo\",FECEOL[#Headers],0)),IF(AND($V$6=\"EOL\",$V$7=\"Operación y mantenimiento\"),INDEX(FEOEOL[],MATCH(TEGTPFV[[#This Row],[Sector]],FEOEOL[Sector],0),MATCH(\"Directo\",FEOEOL[#Headers],0)),IF(AND($V$6=\"FV\",$V$7=\"Construcción\"),INDEX(FECFV[],MATCH(TEGTPFV[[#This Row],[Sector]],FECFV[Sector],0),MATCH(\"Directo\",FECFV[#Headers],0)),IF(AND($V$6=\"FV\",$V$7=\"Operación y mantenimiento\"),INDEX(FEOFV[],MATCH(TEGTPFV[[#This Row],[Sector]],FEOFV[Sector],0),MATCH(\"Directo\",FEOFV[#Headers],0)),\"\"))))","v":0},{"$f":"IFERROR($AC$7*TEGTPFV[[#This Row],[Factor de empleo directo]]*$Y$7*$AA$7,\"\")","v":0},{"$f":"IF(AND($V$6=\"EOL\",$V$7=\"Construcción\"),INDEX(FECEOL[],MATCH(TEGTPFV[[#This Row],[Sector]],FECEOL[Sector],0),MATCH(\"Indirecto\",FECEOL[#Headers],0)),IF(AND($V$6=\"EOL\",$V$7=\"Operación y mantenimiento\"),INDEX(FEOEOL[],MATCH(TEGTPFV[[#This Row],[Sector]],FEOEOL[Sector],0),MATCH(\"Indirecto\",FEOEOL[#Headers],0)),IF(AND($V$6=\"FV\",$V$7=\"Construcción\"),INDEX(FECFV[],MATCH(TEGTPFV[[#This Row],[Sector]],FECFV[Sector],0),MATCH(\"Indirecto\",FECFV[#Headers],0)),IF(AND($V$6=\"FV\",$V$7=\"Operación y mantenimiento\"),INDEX(FEOFV[],MATCH(TEGTPFV[[#This Row],[Sector]],FEOFV[Sector],0),MATCH(\"Indirecto\",FEOFV[#Headers],0)),\"\"))))","v":0.58199999999999996},{"$f":"IFERROR($AC$7*TEGTPFV[[#This Row],[Factor de empleo indirecto]]*$Y$7*$AA$7,\"\")","v":0},{"$f":"IF(AND($V$6=\"EOL\",$V$7=\"Construcción\"),INDEX(FECEOL[],MATCH(TEGTPFV[[#This Row],[Sector]],FECEOL[Sector],0),MATCH(\"Inducido\",FECEOL[#Headers],0)),IF(AND($V$6=\"EOL\",$V$7=\"Operación y mantenimiento\"),INDEX(FEOEOL[],MATCH(TEGTPFV[[#This Row],[Sector]],FEOEOL[Sector],0),MATCH(\"Inducido\",FEOEOL[#Headers],0)),IF(AND($V$6=\"FV\",$V$7=\"Construcción\"),INDEX(FECFV[],MATCH(TEGTPFV[[#This Row],[Sector]],FECFV[Sector],0),MATCH(\"Inducido\",FECFV[#Headers],0)),IF(AND($V$6=\"FV\",$V$7=\"Operación y mantenimiento\"),INDEX(FEOFV[],MATCH(TEGTPFV[[#This Row],[Sector]],FEOFV[Sector],0),MATCH(\"Inducido\",FEOFV[#Headers],0)),\"\"))))","v":2.3660000000000001},{"$f":"IFERROR($AC$7*TEGTPFV[[#This Row],[Factor de empleo inducido]]*$Y$7*$AA$7,\"\")","v":0},{"$f":"IFERROR(TEGTPFV[[#This Row],[Empleos directos]]+TEGTPFV[[#This Row],[Empleos indirectos]]+TEGTPFV[[#This Row],[Empleos inducidos]],\"\")","v":0},null,null,"Otros",{"$f":"IF(AND($AF$6=\"EOL\",$AF$7=\"Construcción\"),INDEX(FECEOL[],MATCH(TEGTPFV20[[#This Row],[Sector]],FECEOL[Sector],0),MATCH(\"Directo\",FECEOL[#Headers],0)),IF(AND($AF$6=\"EOL\",$AF$7=\"Operación y mantenimiento\"),INDEX(FEOEOL[],MATCH(TEGTPFV20[[#This Row],[Sector]],FEOEOL[Sector],0),MATCH(\"Directo\",FEOEOL[#Headers],0)),IF(AND($AF$6=\"FV\",$AF$7=\"Construcción\"),INDEX(FECFV[],MATCH(TEGTPFV20[[#This Row],[Sector]],FECFV[Sector],0),MATCH(\"Directo\",FECFV[#Headers],0)),IF(AND($AF$6=\"FV\",$AF$7=\"Operación y mantenimiento\"),INDEX(FEOFV[],MATCH(TEGTPFV20[[#This Row],[Sector]],FEOFV[Sector],0),MATCH(\"Directo\",FEOFV[#Headers],0)),\"\"))))","v":0},{"$f":"IFERROR($AM$7*TEGTPFV20[[#This Row],[Factor de empleo directo]]*$AI$7*$AK$7,\"\")","v":0},{"$f":"IF(AND($AF$6=\"EOL\",$AF$7=\"Construcción\"),INDEX(FECEOL[],MATCH(TEGTPFV20[[#This Row],[Sector]],FECEOL[Sector],0),MATCH(\"Indirecto\",FECEOL[#Headers],0)),IF(AND($AF$6=\"EOL\",$AF$7=\"Operación y mantenimiento\"),INDEX(FEOEOL[],MATCH(TEGTPFV20[[#This Row],[Sector]],FEOEOL[Sector],0),MATCH(\"Indirecto\",FEOEOL[#Headers],0)),IF(AND($AF$6=\"FV\",$AF$7=\"Construcción\"),INDEX(FECFV[],MATCH(TEGTPFV20[[#This Row],[Sector]],FECFV[Sector],0),MATCH(\"Indirecto\",FECFV[#Headers],0)),IF(AND($AF$6=\"FV\",$AF$7=\"Operación y mantenimiento\"),INDEX(FEOFV[],MATCH(TEGTPFV20[[#This Row],[Sector]],FEOFV[Sector],0),MATCH(\"Indirecto\",FEOFV[#Headers],0)),\"\"))))","v":5.0000000000000001E-3},{"$f":"IFERROR($AM$7*TEGTPFV20[[#This Row],[Factor de empleo indirecto]]*$AI$7*$AK$7,\"\")","v":0},{"$f":"IF(AND($AF$6=\"EOL\",$AF$7=\"Construcción\"),INDEX(FECEOL[],MATCH(TEGTPFV20[[#This Row],[Sector]],FECEOL[Sector],0),MATCH(\"Inducido\",FECEOL[#Headers],0)),IF(AND($AF$6=\"EOL\",$AF$7=\"Operación y mantenimiento\"),INDEX(FEOEOL[],MATCH(TEGTPFV20[[#This Row],[Sector]],FEOEOL[Sector],0),MATCH(\"Inducido\",FEOEOL[#Headers],0)),IF(AND($AF$6=\"FV\",$AF$7=\"Construcción\"),INDEX(FECFV[],MATCH(TEGTPFV20[[#This Row],[Sector]],FECFV[Sector],0),MATCH(\"Inducido\",FECFV[#Headers],0)),IF(AND($AF$6=\"FV\",$AF$7=\"Operación y mantenimiento\"),INDEX(FEOFV[],MATCH(TEGTPFV20[[#This Row],[Sector]],FEOFV[Sector],0),MATCH(\"Inducido\",FEOFV[#Headers],0)),\"\"))))","v":2.1000000000000001E-2},{"$f":"IFERROR($AM$7*TEGTPFV20[[#This Row],[Factor de empleo inducido]]*$AI$7*$AK$7,\"\")","v":0},{"$f":"IFERROR(TEGTPFV20[[#This Row],[Empleos directos]]+TEGTPFV20[[#This Row],[Empleos indirectos]]+TEGTPFV20[[#This Row],[Empleos inducidos]],\"\")","v":0}]
[null,"Total",{"$f":"SUBTOTAL(109,TEGTPEOL[Factor de empleo directo])","v":0},{"$f":"SUBTOTAL(109,TEGTPEOL[Empleos directos])","v":0},{"$f":"SUBTOTAL(109,TEGTPEOL[Factor de empleo indirecto])","v":0.216},{"$f":"SUBTOTAL(109,TEGTPEOL[Empleos indirectos])","v":0},{"$f":"SUBTOTAL(109,TEGTPEOL[Factor de empleo inducido])","v":1.744},{"$f":"SUBTOTAL(109,TEGTPEOL[Empleos inducidos])","v":0},{"$f":"SUBTOTAL(109,TEGTPEOL[Total de empleos])","v":0},null,null,"Total",{"$f":"SUBTOTAL(109,TEGTPEOL19[Factor de empleo directo])","v":4.0000000000000001E-3},{"$f":"SUBTOTAL(109,TEGTPEOL19[Empleos directos])","v":0},{"$f":"SUBTOTAL(109,TEGTPEOL19[Factor de empleo indirecto])","v":3.9E-2},{"$f":"SUBTOTAL(109,TEGTPEOL19[Empleos indirectos])","v":0},{"$f":"SUBTOTAL(109,TEGTPEOL19[Factor de empleo inducido])","v":0},{"$f":"SUBTOTAL(109,TEGTPEOL19[Empleos inducidos])","v":0},{"$f":"SUBTOTAL(109,TEGTPEOL19[Total de empleos])","v":0},null,null,"Total",{"$f":"SUBTOTAL(109,TEGTPFV[Factor de empleo directo])","v":0},{"$f":"SUBTOTAL(109,TEGTPFV[Empleos directos])","v":0},{"$f":"SUBTOTAL(109,TEGTPFV[Factor de empleo indirecto])","v":0.216},{"$f":"SUBTOTAL(109,TEGTPFV[Empleos indirectos])","v":0},{"$f":"SUBTOTAL(109,TEGTPFV[Factor de empleo inducido])","v":1.744},{"$f":"SUBTOTAL(109,TEGTPFV[Empleos inducidos])","v":0},{"$f":"SUBTOTAL(109,TEGTPFV[Total de empleos])","v":0},null,null,"Total",{"$f":"SUBTOTAL(109,TEGTPFV20[Factor de empleo directo])","v":0},{"$f":"SUBTOTAL(109,TEGTPFV20[Empleos directos])","v":0},{"$f":"SUBTOTAL(109,TEGTPFV20[Factor de empleo indirecto])","v":3.0000000000000001E-3},{"$f":"SUBTOTAL(109,TEGTPFV20[Empleos indirectos])","v":0},{"$f":"SUBTOTAL(109,TEGTPFV20[Factor de empleo inducido])","v":1.6E-2},{"$f":"SUBTOTAL(109,TEGTPFV20[Empleos inducidos])","v":0},{"$f":"SUBTOTAL(109,TEGTPFV20[Total de empleos])","v":0}]

{"sheet":"ImpactoE","index":8,"n_rows":21,"n_cols":35,"rows_kept":21,"cut":false,"hidden":true,"merged":[[7,19,7,25],[7,28,7,34],[1,5,1,6],[1,1,1,3],[3,1,3,7],[7,1,7,7],[7,10,7,16]]}
[]
[null,"IMPACTO ECONOMICO DE LA INVERSION",null,null,null,"Buscar Acronimo",null,"AA",{"$f":"VLOOKUP(H2,TablaACR[],2)","v":"Ahorro anual asociado a la facturación"}]
[]
[null,"Dado que este co-beneficio se presenta como resultado de la implementación de un proyecto basado en renovables, la cuantificación se realiza aplicando el factor que corresponda en cada caso, haciendo distinción por sectores económicos (agricultura, minería y extracción, etc.)."]
[null,"TIPO Y ETAPA",null,null,null,null,null,null,null,null,"TIPO Y ETAPA",null,null,null,null,null,null,null,null,"TIPO Y ETAPA",null,null,null,null,null,null,null,null,"TIPO Y ETAPA"]
[null,"FV",null,null,"Capacidad instalada (MW)",null,"Impacto Economico Total",null,null,null,"FV",null,null,"Capacidad instalada (MW)",null,"Impacto Economico Total",null,null,null,"EOL",null,null,"Capacidad instalada (MW)",null,"Impacto Economico Total",null,null,null,"EOL",null,null,"Capacidad instalada (MW)",null,"Impacto Economico Total"]
[null,"Construcción",null,null,null,null,{"$f":"SUM(TablaIEIN[[#Totals],[Impacto economico de la inversion (directo)]]+TablaIEIN[[#Totals],[Impacto economico de la inversion (indirecto)]]+TablaIEIN[[#Totals],[Impacto economico de la inversion (inducido)]])","v":0},null,null,null,"Operación y mantenimiento",null,null,null,null,{"$f":"SUM(TablaIEIN27[[#Totals],[Impacto economico de la inversion (directo)]]+TablaIEIN27[[#Totals],[Impacto economico de la inversion (indirecto)]]+TablaIEIN27[[#Totals],[Impacto economico de la inversion (inducido)]])","v":0},null,null,null,"Construcción",null,null,null,null,{"$f":"SUM(TablaIEIN9[[#Totals],[Impacto economico de la inversion (directo)]]+TablaIEIN9[[#Totals],[Impacto economico de la inversion (indirecto)]]+TablaIEIN9[[#Totals],[Impacto economico de la inversion (inducido)]])","v":0},null,null,null,"Operación y mantenimiento",null,null,null,null,{"$f":"SUM(TablaIEIN929[[#Totals],[Impacto economico de la inversion (directo)]]+TablaIEIN929[[#Totals],[Impacto economico de la inversion (indirecto)]]+TablaIEIN929[[#Totals],[Impacto economico de la inversion (inducido)]])","v":0}]
[null,"TABLA 1",null,null,null,null,null,null,null,null,"TABLA 2",null,null,null,null,null,null,null,null,"TABLA 3",null,null,null,null,null,null,null,null,"TABLA 4"]
[null,"Sector","Factor de incremento directo del impacto economico de la inversion","Impacto economico de la inversion (directo)","Factor de incremento indirecto del impacto economico de la inversion","Impacto economico de la inversion (indirecto)","Factor de incremento inducido del impacto economico de la inversion","Impacto economico de la inversion (inducido)",null,null,"Sector","Factor de incremento directo del impacto economico de la inversion","Impacto economico de la inversion (directo)","Factor de incremento indirecto del impacto economico de la inversion","Impacto economico de la inversion (indirecto)","Factor de incremento inducido del impacto economico de la inversion","Impacto economico de la inversion (inducido)",null,null,"Sector","Factor de incremento directo del impacto economico de la inversion","Impacto economico de la inversion (directo)","Factor de incremento indirecto del impacto economico de la inversion","Impacto economico de la inversion (indirecto)","Factor de incremento inducido del impacto economico de la inversion","Impacto economico de la inversion (inducido)",null,null,"Sector","Factor de incremento directo del impacto economico de la inversion","Impacto economico de la inversion (directo)","Factor de incremento indirecto del impacto economico de la inversion","Impacto economico de la inversion (indirecto)","Factor de incremento inducido del impacto economico de la inversion","Impacto economico de la inversion (inducido)"]
[null,"Agricultura",{"$f":"IF(AND($B$6=\"EOL\",$B$7=\"Construcción\"),INDEX(TCEOL[],MATCH(TablaIEIN[[#This Row],[Sector]],TCEOL[Sector económico],0),MATCH(\"Directo\",TCEOL[#Headers],0)),IF(AND($B$6=\"EOL\",$B$7=\"Operación y mantenimiento\"),INDEX(TOMEOL[],MATCH(TablaIEIN[[#This Row],[Sector]],TOMEOL[Sector económico],0),MATCH(\"Directo\",TOMEOL[#Headers],0)),IF(AND($B$6=\"FV\",$B$7=\"Construcción\"),INDEX(TCFV[],MATCH(TablaIEIN[[#This Row],[Sector]],TCFV[Sector económico],0),MATCH(\"Directo\",TCFV[#Headers],0)),IF(AND($B$6=\"FV\",$B$7=\"Operación y mantenimiento\"),INDEX(TOMFV[],MATCH(TablaIEIN[[#This Row],[Sector]],TOMFV[Sector económico],0),MATCH(\"Directo\",TOMFV[#Headers],0)),\"\"))))","v":0},{"$f":"IFERROR($E$7*TablaIEIN[[#This Row],[Factor de incremento directo del impacto economico de la inversion]],\"\")","v":0},{"$f":"IF(AND($B$6=\"EOL\",$B$7=\"Construcción\"),INDEX(TCEOL[],MATCH(TablaIEIN[[#This Row],[Sector]],TCEOL[Sector económico],0),MATCH(\"Indirecto\",TCEOL[#Headers],0)),IF(AND($B$6=\"EOL\",$B$7=\"Operación y mantenimiento\"),INDEX(TOMEOL[],MATCH(TablaIEIN[[#This Row],[Sector]],TOMEOL[Sector económico],0),MATCH(\"Indirecto\",TOMEOL[#Headers],0)),IF(AND($B$6=\"FV\",$B$7=\"Construcción\"),INDEX(TCFV[],MATCH(TablaIEIN[[#This Row],[Sector]],TCFV[Sector económico],0),MATCH(\"Indirecto\",TCFV[#Headers],0)),IF(AND($B$6=\"FV\",$B$7=\"Operación y mantenimiento\"),INDEX(TOMFV[],MATCH(TablaIEIN[[#This Row],[Sector]],TOMFV[Sector económico],0),MATCH(\"Indirecto\",TOMFV[#Headers],0)),\"\"))))","v":2000},{"$f":"IFERROR($E$7*TablaIEIN[[#This Row],[Factor de incremento indirecto del impacto economico de la inversion]],\"\")","v":0},{"$f":"IF(AND($B$6=\"EOL\",$B$7=\"Construcción\"),INDEX(TCEOL[],MATCH(TablaIEIN[[#This Row],[Sector]],TCEOL[Sector económico],0),MATCH(\"Inducido\",TCEOL[#Headers],0)),IF(AND($B$6=\"EOL\",$B$7=\"Operación y mantenimiento\"),INDEX(TOMEOL[],MATCH(TablaIEIN[[#This Row],[Sector]],TOMEOL[Sector económico],0),MATCH(\"Inducido\",TOMEOL[#Headers],0)),IF(AND($B$6=\"FV\",$B$7=\"Construcción\"),INDEX(TCFV[],MATCH(TablaIEIN[[#This Row],[Sector]],TCFV[Sector económico],0),MATCH(\"Inducido\",TCFV[#Headers],0)),IF(AND($B$6=\"FV\",$B$7=\"Operación y mantenimiento\"),INDEX(TOMFV[],MATCH(TablaIEIN[[#This Row],[Sector]],TOMFV[Sector económico],0),MATCH(\"Inducido\",TOMFV[#Headers],0)),\"\"))))","v":13545},{"$f":"IFERROR($E$7*TablaIEIN[[#This Row],[Factor de incremento inducido del impacto economico de la inversion]],\"\")","v":0},null,null,"Agricultura",{"$f":"IF(AND($K$6=\"EOL\",$K$7=\"Construcción\"),INDEX(TCEOL[],MATCH(TablaIEIN27[[#This Row],[Sector]],TCEOL[Sector económico],0),MATCH(\"Directo\",TCEOL[#Headers],0)),IF(AND($K$6=\"EOL\",$K$7=\"Operación y mantenimiento\"),INDEX(TOMEOL[],MATCH(TablaIEIN27[[#This Row],[Sector]],TOMEOL[Sector económico],0),MATCH(\"Directo\",TOMEOL[#Headers],0)),IF(AND($K$6=\"FV\",$K$7=\"Construcción\"),INDEX(TCFV[],MATCH(TablaIEIN27[[#This Row],[Sector]],TCFV[Sector económico],0),MATCH(\"Directo\",TCFV[#Headers],0)),IF(AND($K$6=\"FV\",$K$7=\"Operación y mantenimiento\"),INDEX(TOMFV[],MATCH(TablaIEIN27[[#This Row],[Sector]],TOMFV[Sector económico],0),MATCH(\"Directo\",TOMFV[#Headers],0)),\"\"))))","v":0},{"$f":"IFERROR($N$7*TablaIEIN27[[#This Row],[Factor de incremento directo del impacto economico de la inversion]],\"\")","v":0},{"$f":"IF(AND($K$6=\"EOL\",$K$7=\"Construcción\"),INDEX(TCEOL[],MATCH(TablaIEIN27[[#This Row],[Sector]],TCEOL[Sector económico],0),MATCH(\"Indirecto\",TCEOL[#Headers],0)),IF(AND($K$6=\"EOL\",$K$7=\"Operación y mantenimiento\"),INDEX(TOMEOL[],MATCH(TablaIEIN27[[#This Row],[Sector]],TOMEOL[Sector económico],0),MATCH(\"Indirecto\",TOMEOL[#Headers],0)),IF(AND($K$6=\"FV\",$K$7=\"Construcción\"),INDEX(TCFV[],MATCH(TablaIEIN27[[#This Row],[Sector]],TCFV[Sector económico],0),MATCH(\"Indirecto\",TCFV[#Headers],0)),IF(AND($K$6=\"FV\",$K$7=\"Operación y mantenimiento\"),INDEX(TOMFV[],MATCH(TablaIEIN27[[#This Row],[Sector]],TOMFV[Sector económico],0),MATCH(\"Indirecto\",TOMFV[#Headers],0)),\"\"))))","v":20},{"$f":"IFERROR($N$7*TablaIEIN27[[#This Row],[Factor de incremento indirecto del impacto economico de la inversion]],\"\")","v":0},{"$f":"IF(AND($K$6=\"EOL\",$K$7=\"Construcción\"),INDEX(TCEOL[],MATCH(TablaIEIN27[[#This Row],[Sector]],TCEOL[Sector económico],0),MATCH(\"Inducido\",TCEOL[#Headers],0)),IF(AND($K$6=\"EOL\",$K$7=\"Operación y mantenimiento\"),INDEX(TOMEOL[],MATCH(TablaIEIN27[[#This Row],[Sector]],TOMEOL[Sector económico],0),MATCH(\"Inducido\",TOMEOL[#Headers],0)),IF(AND($K$6=\"FV\",$K$7=\"Construcción\"),INDEX(TCFV[],MATCH(TablaIEIN27[[#This Row],[Sector]],TCFV[Sector económico],0),MATCH(\"Inducido\",TCFV[#Headers],0)),IF(AND($K$6=\"FV\",$K$7=\"Operación y mantenimiento\"),INDEX(TOMFV[],MATCH(TablaIEIN27[[#This Row],[Sector]],TOMFV[Sector económico],0),MATCH(\"Inducido\",TOMFV[#Headers],0)),\"\"))))","v":116},{"$f":"IFERROR($N$7*TablaIEIN27[[#This Row],[Factor de incremento inducido del impacto economico de la inversion]],\"\")","v":0},null,null,"Agricultura",{"$f":"IF(AND($T$6=\"EOL\",$T$7=\"Construcción\"),INDEX(TCEOL[],MATCH(TablaIEIN9[[#This Row],[Sector]],TCEOL[Sector económico],0),MATCH(\"Directo\",TCEOL[#Headers],0)),IF(AND($T$6=\"EOL\",$T$7=\"Operación y mantenimiento\"),INDEX(TOMEOL[],MATCH(TablaIEIN9[[#This Row],[Sector]],TOMEOL[Sector económico],0),MATCH(\"Directo\",TOMEOL[#Headers],0)),IF(AND($T$6=\"FV\",$T$7=\"Construcción\"),INDEX(TCFV[],MATCH(TablaIEIN9[[#This Row],[Sector]],TCFV[Sector económico],0),MATCH(\"Directo\",TCFV[#Headers],0)),IF(AND($T$6=\"FV\",$T$7=\"Operación y mantenimiento\"),INDEX(TOMFV[],MATCH(TablaIEIN9[[#This Row],[Sector]],TOMFV[Sector económico],0),MATCH(\"Directo\",TOMFV[#Headers],0)),\"\"))))","v":0},{"$f":"IFERROR($W$7*TablaIEIN9[[#This Row],[Factor de incremento directo del impacto economico de la inversion]],\"\")","v":0},{"$f":"IF(AND($T$6=\"EOL\",$T$7=\"Construcción\"),INDEX(TCEOL[],MATCH(TablaIEIN9[[#This Row],[Sector]],TCEOL[Sector económico],0),MATCH(\"Indirecto\",TCEOL[#Headers],0)),IF(AND($T$6=\"EOL\",$T$7=\"Operación y mantenimiento\"),INDEX(TOMEOL[],MATCH(TablaIEIN9[[#This Row],[Sector]],TOMEOL[Sector económico],0),MATCH(\"Indirecto\",TOMEOL[#Headers],0)),IF(AND($T$6=\"FV\",$T$7=\"Construcción\"),INDEX(TCFV[],MATCH(TablaIEIN9[[#This Row],[Sector]],TCFV[Sector económico],0),MATCH(\"Indirecto\",TCFV[#Headers],0)),IF(AND($T$6=\"FV\",$T$7=\"Operación y mantenimiento\"),INDEX(TOMFV[],MATCH(TablaIEIN9[[#This Row],[Sector]],TOMFV[Sector económico],0),MATCH(\"Indirecto\",TOMFV[#Headers],0)),\"\"))))","v":1585},{"$f":"IFERROR($W$7*TablaIEIN9[[#This Row],[Factor de incremento indirecto del impacto economico de la inversion]],\"\")","v":0},{"$f":"IF(AND($T$6=\"EOL\",$T$7=\"Construcción\"),INDEX(TCEOL[],MATCH(TablaIEIN9[[#This Row],[Sector]],TCEOL[Sector económico],0),MATCH(\"Inducido\",TCEOL[#Headers],0)),IF(AND($T$6=\"EOL\",$T$7=\"Operación y mantenimiento\"),INDEX(TOMEOL[],MATCH(TablaIEIN9[[#This Row],[Sector]],TOMEOL[Sector económico],0),MATCH(\"Inducido\",TOMEOL[#Headers],0)),IF(AND($T$6=\"FV\",$T$7=\"Construcción\"),INDEX(TCFV[],MATCH(TablaIEIN9[[#This Row],[Sector]],TCFV[Sector económico],0),MATCH(\"Inducido\",TCFV[#Headers],0)),IF(AND($T$6=\"FV\",$T$7=\"Operación y mantenimiento\"),INDEX(TOMFV[],MATCH(TablaIEIN9[[#This Row],[Sector]],TOMFV[Sector económico],0),MATCH(\"Inducido\",TOMFV[#Headers],0)),\"\"))))","v":12788},{"$f":"IFERROR($W$7*TablaIEIN9[[#This Row],[Factor de incremento inducido del impacto economico de la inversion]],\"\")","v":0},null,null,"Agricultura",{"$f":"IF(AND($AC$6=\"EOL\",$AC$7=\"Construcción\"),INDEX(TCEOL[],MATCH(TablaIEIN929[[#This Row],[Sector]],TCEOL[Sector económico],0),MATCH(\"Directo\",TCEOL[#Headers],0)),IF(AND($AC$6=\"EOL\",$AC$7=\"Operación y mantenimiento\"),INDEX(TOMEOL[],MATCH(TablaIEIN929[[#This Row],[Sector]],TOMEOL[Sector económico],0),MATCH(\"Directo\",TOMEOL[#Headers],0)),IF(AND($AC$6=\"FV\",$AC$7=\"Construcción\"),INDEX(TCFV[],MATCH(TablaIEIN929[[#This Row],[Sector]],TCFV[Sector económico],0),MATCH(\"Directo\",TCFV[#Headers],0)),IF(AND($AC$6=\"FV\",$AC$7=\"Operación y mantenimiento\"),INDEX(TOMFV[],MATCH(TablaIEIN929[[#This Row],[Sector]],TOMFV[Sector económico],0),MATCH(\"Directo\",TOMFV[#Headers],0)),\"\"))))","v":0},{"$f":"IFERROR($AF$7*TablaIEIN929[[#This Row],[Factor de incremento directo del impacto economico de la inversion]],\"\")","v":0},{"$f":"IF(AND($AC$6=\"EOL\",$AC$7=\"Construcción\"),INDEX(TCEOL[],MATCH(TablaIEIN929[[#This Row],[Sector]],TCEOL[Sector económico],0),MATCH(\"Indirecto\",TCEOL[#Headers],0)),IF(AND($AC$6=\"EOL\",$AC$7=\"Operación y mantenimiento\"),INDEX(TOMEOL[],MATCH(TablaIEIN929[[#This Row],[Sector]],TOMEOL[Sector económico],0),MATCH(\"Indirecto\",TOMEOL[#Headers],0)),IF(AND($AC$6=\"FV\",$AC$7=\"Construcción\"),INDEX(TCFV[],MATCH(TablaIEIN929[[#This Row],[Sector]],TCFV[Sector económico],0),MATCH(\"Indirecto\",TCFV[#Headers],0)),IF(AND($AC$6=\"FV\",$AC$7=\"Operación y mantenimiento\"),INDEX(TOMFV[],MATCH(TablaIEIN929[[#This Row],[Sector]],TOMFV[Sector económico],0),MATCH(\"Indirecto\",TOMFV[#Headers],0)),\"\"))))","v":688},{"$f":"IFERROR($AF$7*TablaIEIN929[[#This Row],[Factor de incremento indirecto del impacto economico de la inversion]],\"\")","v":0},{"$f":"IF(AND($AC$6=\"EOL\",$AC$7=\"Construcción\"),INDEX(TCEOL[],MATCH(TablaIEIN929[[#This Row],[Sector]],TCEOL[Sector económico],0),MATCH(\"Inducido\",TCEOL[#Headers],0)),IF(AND($AC$6=\"EOL\",$AC$7=\"Operación y mantenimiento\"),INDEX(TOMEOL[],MATCH(TablaIEIN929[[#This Row],[Sector]],TOMEOL[Sector económico],0),MATCH(\"Inducido\",TOMEOL[#Headers],0)),IF(AND($AC$6=\"FV\",$AC$7=\"Construcción\"),INDEX(TCFV[],MATCH(TablaIEIN929[[#This Row],[Sector]],TCFV[Sector económico],0),MATCH(\"Inducido\",TCFV[#Headers],0)),IF(AND($AC$6=\"FV\",$AC$7=\"Operación y mantenimiento\"),INDEX(TOMFV[],MATCH(TablaIEIN929[[#This Row],[Sector]],TOMFV[Sector económico],0),MATCH(\"Inducido\",TOMFV[#Headers],0)),\"\"))))","v":472},{"$f":"IFERROR($AF$7*TablaIEIN929[[#This Row],[Factor de incremento inducido del impacto economico de la inversion]],\"\")","v":0}]
[null,"Minería y Extracción",{"$f":"IF(AND($B$6=\"EOL\",$B$7=\"Construcción\"),INDEX(TCEOL[],MATCH(TablaIEIN[[#This Row],[Sector]],TCEOL[Sector económico],0),MATCH(\"Directo\",TCEOL[#Headers],0)),IF(AND($B$6=\"EOL\",$B$7=\"Operación y mantenimiento\"),INDEX(TOMEOL[],MATCH(TablaIEIN[[#This Row],[Sector]],TOMEOL[Sector económico],0),MATCH(\"Directo\",TOMEOL[#Headers],0)),IF(AND($B$6=\"FV\",$B$7=\"Construcción\"),INDEX(TCFV[],MATCH(TablaIEIN[[#This Row],[Sector]],TCFV[Sector económico],0),MATCH(\"Directo\",TCFV[#Headers],0)),IF(AND($B$6=\"FV\",$B$7=\"Operación y mantenimiento\"),INDEX(TOMFV[],MATCH(TablaIEIN[[#This Row],[Sector]],TOMFV[Sector económico],0),MATCH(\"Directo\",TOMFV[#Headers],0)),\"\"))))","v":0},{"$f":"IFERROR($E$7*TablaIEIN[[#This Row],[Factor de incremento directo del impacto economico de la inversion]],\"\")","v":0},{"$f":"IF(AND($B$6=\"EOL\",$B$7=\"Construcción\"),INDEX(TCEOL[],MATCH(TablaIEIN[[#This Row],[Sector]],TCEOL[Sector económico],0),MATCH(\"Indirecto\",TCEOL[#Headers],0)),IF(AND($B$6=\"EOL\",$B$7=\"Operación y mantenimiento\"),INDEX(TOMEOL[],MATCH(TablaIEIN[[#This Row],[Sector]],TOMEOL[Sector económico],0),MATCH(\"Indirecto\",TOMEOL[#Headers],0)),IF(AND($B$6=\"FV\",$B$7=\"Construcción\"),INDEX(TCFV[],MATCH(TablaIEIN[[#This Row],[Sector]],TCFV[Sector económico],0),MATCH(\"Indirecto\",TCFV[#Headers],0)),IF(AND($B$6=\"FV\",$B$7=\"Operación y mantenimiento\"),INDEX(TOMFV[],MATCH(TablaIEIN[[#This Row],[Sector]],TOMFV[Sector económico],0),MATCH(\"Indirecto\",TOMFV[#Headers],0)),\"\"))))","v":83959},{"$f":"IFERROR($E$7*TablaIEIN[[#This Row],[Factor de incremento indirecto del impacto economico de la inversion]],\"\")","v":0},{"$f":"IF(AND($B$6=\"EOL\",$B$7=\"Construcción\"),INDEX(TCEOL[],MATCH(TablaIEIN[[#This Row],[Sector]],TCEOL[Sector económico],0),MATCH(\"Inducido\",TCEOL[#Headers],0)),IF(AND($B$6=\"EOL\",$B$7=\"Operación y mantenimiento\"),INDEX(TOMEOL[],MATCH(TablaIEIN[[#This Row],[Sector]],TOMEOL[Sector económico],0),MATCH(\"Inducido\",TOMEOL[#Headers],0)),IF(AND($B$6=\"FV\",$B$7=\"Construcción\"),INDEX(TCFV[],MATCH(TablaIEIN[[#This Row],[Sector]],TCFV[Sector económico],0),MATCH(\"Inducido\",TCFV[#Headers],0)),IF(AND($B$6=\"FV\",$B$7=\"Operación y mantenimiento\"),INDEX(TOMFV[],MATCH(TablaIEIN[[#This Row],[Sector]],TOMFV[Sector económico],0),MATCH(\"Inducido\",TOMFV[#Headers],0)),\"\"))))","v":10560},{"$f":"IFERROR($E$7*TablaIEIN[[#This Row],[Factor de incremento inducido del impacto economico de la inversion]],\"\")","v":0},null,null,"Minería y Extracción",{"$f":"IF(AND($K$6=\"EOL\",$K$7=\"Construcción\"),INDEX(TCEOL[],MATCH(TablaIEIN27[[#This Row],[Sector]],TCEOL[Sector económico],0),MATCH(\"Directo\",TCEOL[#Headers],0)),IF(AND($K$6=\"EOL\",$K$7=\"Operación y mantenimiento\"),INDEX(TOMEOL[],MATCH(TablaIEIN27[[#This Row],[Sector]],TOMEOL[Sector económico],0),MATCH(\"Directo\",TOMEOL[#Headers],0)),IF(AND($K$6=\"FV\",$K$7=\"Construcción\"),INDEX(TCFV[],MATCH(TablaIEIN27[[#This Row],[Sector]],TCFV[Sector económico],0),MATCH(\"Directo\",TCFV[#Headers],0)),IF(AND($K$6=\"FV\",$K$7=\"Operación y mantenimiento\"),INDEX(TOMFV[],MATCH(TablaIEIN27[[#This Row],[Sector]],TOMFV[Sector económico],0),MATCH(\"Directo\",TOMFV[#Headers],0)),\"\"))))","v":0},{"$f":"IFERROR($N$7*TablaIEIN27[[#This Row],[Factor de incremento directo del impacto economico de la inversion]],\"\")","v":0},{"$f":"IF(AND($K$6=\"EOL\",$K$7=\"Construcción\"),INDEX(TCEOL[],MATCH(TablaIEIN27[[#This Row],[Sector]],TCEOL[Sector económico],0),MATCH(\"Indirecto\",TCEOL[#Headers],0)),IF(AND($K$6=\"EOL\",$K$7=\"Operación y mantenimiento\"),INDEX(TOMEOL[],MATCH(TablaIEIN27[[#This Row],[Sector]],TOMEOL[Sector económico],0),MATCH(\"Indirecto\",TOMEOL[#Headers],0)),IF(AND($K$6=\"FV\",$K$7=\"Construcción\"),INDEX(TCFV[],MATCH(TablaIEIN27[[#This Row],[Sector]],TCFV[Sector económico],0),MATCH(\"Indirecto\",TCFV[#Headers],0)),IF(AND($K$6=\"FV\",$K$7=\"Operación y mantenimiento\"),INDEX(TOMFV[],MATCH(TablaIEIN27[[#This Row],[Sector]],TOMFV[Sector económico],0),MATCH(\"Indirecto\",TOMFV[#Headers],0)),\"\"))))","v":493},{"$f":"IFERROR($N$7*TablaIEIN27[[#This Row],[Factor de incremento indirecto del impacto economico de la inversion]],\"\")","v":0},{"$f":"IF(AND($K$6=\"EOL\",$K$7=\"Construcción\"),INDEX(TCEOL[],MATCH(TablaIEIN27[[#This Row],[Sector]],TCEOL[Sector económico],0),MATCH(\"Inducido\",TCEOL[#Headers],0)),IF(AND($K$6=\"EOL\",$K$7=\"Operación y mantenimiento\"),INDEX(TOMEOL[],MATCH(TablaIEIN27[[#This Row],[Sector]],TOMEOL[Sector económico],0),MATCH(\"Inducido\",TOMEOL[#Headers],0)),IF(AND($K$6=\"FV\",$K$7=\"Construcción\"),INDEX(TCFV[],MATCH(TablaIEIN27[[#This Row],[Sector]],TCFV[Sector económico],0),MATCH(\"Inducido\",TCFV[#Headers],0)),IF(AND($K$6=\"FV\",$K$7=\"Operación y mantenimiento\"),INDEX(TOMFV[],MATCH(TablaIEIN27[[#This Row],[Sector]],TOMFV[Sector económico],0),MATCH(\"Inducido\",TOMFV[#Headers],0)),\"\"))))","v":90},{"$f":"IFERROR($N$7*TablaIEIN27[[#This Row],[Factor de incremento inducido del impacto economico de la inversion]],\"\")","v":0},null,null,"Minería y Extracción",{"$f":"IF(AND($T$6=\"EOL\",$T$7=\"Construcción\"),INDEX(TCEOL[],MATCH(TablaIEIN9[[#This Row],[Sector]],TCEOL[Sector económico],0),MATCH(\"Directo\",TCEOL[#Headers],0)),IF(AND($T$6=\"EOL\",$T$7=\"Operación y mantenimiento\"),INDEX(TOMEOL[],MATCH(TablaIEIN9[[#This Row],[Sector]],TOMEOL[Sector económico],0),MATCH(\"Directo\",TOMEOL[#Headers],0)),IF(AND($T$6=\"FV\",$T$7=\"Construcción\"),INDEX(TCFV[],MATCH(TablaIEIN9[[#This Row],[Sector]],TCFV[Sector económico],0),MATCH(\"Directo\",TCFV[#Headers],0)),IF(AND($T$6=\"FV\",$T$7=\"Operación y mantenimiento\"),INDEX(TOMFV[],MATCH(TablaIEIN9[[#This Row],[Sector]],TOMFV[Sector económico],0),MATCH(\"Directo\",TOMFV[#Headers],0)),\"\"))))","v":0},{"$f":"IFERROR($W$7*TablaIEIN9[[#This Row],[Factor de incremento directo del impacto economico de la inversion]],\"\")","v":0},{"$f":"IF(AND($T$6=\"EOL\",$T$7=\"Construcción\"),INDEX(TCEOL[],MATCH(TablaIEIN9[[#This Row],[Sector]],TCEOL[Sector económico],0),MATCH(\"Indirecto\",TCEOL[#Headers],0)),IF(AND($T$6=\"EOL\",$T$7=\"Operación y mantenimiento\"),INDEX(TOMEOL[],MATCH(TablaIEIN9[[#This Row],[Sector]],TOMEOL[Sector económico],0),MATCH(\"Indirecto\",TOMEOL[#Headers],0)),IF(AND($T$6=\"FV\",$T$7=\"Construcción\"),INDEX(TCFV[],MATCH(TablaIEIN9[[#This Row],[Sector]],TCFV[Sector económico],0),MATCH(\"Indirecto\",TCFV[#Headers],0)),IF(AND($T$6=\"FV\",$T$7=\"Operación y mantenimiento\"),INDEX(TOMFV[],MATCH(TablaIEIN9[[#This Row],[Sector]],TOMFV[Sector económico],0),MATCH(\"Indirecto\",TOMFV[#Headers],0)),\"\"))))","v":62996},{"$f":"IFERROR($W$7*TablaIEIN9[[#This Row],[Factor de incremento indirecto del impacto economico de la inversion]],\"\")","v":0},{"$f":"IF(AND($T$6=\"EOL\",$T$7=\"Construcción\"),INDEX(TCEOL[],MATCH(TablaIEIN9[[#This Row],[Sector]],TCEOL[Sector económico],0),MATCH(\"Inducido\",TCEOL[#Headers],0)),IF(AND($T$6=\"EOL\",$T$7=\"Operación y mantenimiento\"),INDEX(TOMEOL[],MATCH(TablaIEIN9[[#This Row],[Sector]],TOMEOL[Sector económico],0),MATCH(\"Inducido\",TOMEOL[#Headers],0)),IF(AND($T$6=\"FV\",$T$7=\"Construcción\"),INDEX(TCFV[],MATCH(TablaIEIN9[[#This Row],[Sector]],TCFV[Sector económico],0),MATCH(\"Inducido\",TCFV[#Headers],0)),IF(AND($T$6=\"FV\",$T$7=\"Operación y mantenimiento\"),INDEX(TOMFV[],MATCH(TablaIEIN9[[#This Row],[Sector]],TOMFV[Sector económico],0),MATCH(\"Inducido\",TOMFV[#Headers],0)),\"\"))))","v":9970},{"$f":"IFERROR($W$7*TablaIEIN9[[#This Row],[Factor de incremento inducido del impacto economico de la inversion]],\"\")","v":0},null,null,"Minería y Extracción",{"$f":"IF(AND($AC$6=\"EOL\",$AC$7=\"Construcción\"),INDEX(TCEOL[],MATCH(TablaIEIN929[[#This Row],[Sector]],TCEOL[Sector económico],0),MATCH(\"Directo\",TCEOL[#Headers],0)),IF(AND($AC$6=\"EOL\",$AC$7=\"Operación y mantenimiento\"),INDEX(TOMEOL[],MATCH(TablaIEIN929[[#This Row],[Sector]],TOMEOL[Sector económico],0),MATCH(\"Directo\",TOMEOL[#Headers],0)),IF(AND($AC$6=\"FV\",$AC$7=\"Construcción\"),INDEX(TCFV[],MATCH(TablaIEIN929[[#This Row],[Sector]],TCFV[Sector económico],0),MATCH(\"Directo\",TCFV[#Headers],0)),IF(AND($AC$6=\"FV\",$AC$7=\"Operación y mantenimiento\"),INDEX(TOMFV[],MATCH(TablaIEIN929[[#This Row],[Sector]],TOMFV[Sector económico],0),MATCH(\"Directo\",TOMFV[#Headers],0)),\"\"))))","v":0},{"$f":"IFERROR($AF$7*TablaIEIN929[[#This Row],[Factor de incremento directo del impacto economico de la inversion]],\"\")","v":0},{"$f":"IF(AND($AC$6=\"EOL\",$AC$7=\"Construcción\"),INDEX(TCEOL[],MATCH(TablaIEIN929[[#This Row],[Sector]],TCEOL[Sector económico],0),MATCH(\"Indirecto\",TCEOL[#Headers],0)),IF(AND($AC$6=\"EOL\",$AC$7=\"Operación y mantenimiento\"),INDEX(TOMEOL[],MATCH(TablaIEIN929[[#This Row],[Sector]],TOMEOL[Sector económico],0),MATCH(\"Indirecto\",TOMEOL[#Headers],0)),IF(AND($AC$6=\"FV\",$AC$7=\"Construcción\"),INDEX(TCFV[],MATCH(TablaIEIN929[[#This Row],[Sector]],TCFV[Sector económico],0),MATCH(\"Indirecto\",TCFV[#Headers],0)),IF(AND($AC$6=\"FV\",$AC$7=\"Operación y mantenimiento\"),INDEX(TOMFV[],MATCH(TablaIEIN929[[#This Row],[Sector]],TOMFV[Sector económico],0),MATCH(\"Indirecto\",TOMFV[#Headers],0)),\"\"))))","v":5235},{"$f":"IFERROR($AF$7*TablaIEIN929[[#This Row],[Factor de incremento indirecto del impacto economico de la inversion]],\"\")","v":0},{"$f":"IF(AND($AC$6=\"EOL\",$AC$7=\"Construcción\"),INDEX(TCEOL[],MATCH(TablaIEIN929[[#This Row],[Sector]],TCEOL[Sector económico],0),MATCH(\"Inducido\",TCEOL[#Headers],0)),IF(AND($AC$6=\"EOL\",$AC$7=\"Operación y mantenimiento\"),INDEX(TOMEOL[],MATCH(TablaIEIN929[[#This Row],[Sector]],TOMEOL[Sector económico],0),MATCH(\"Inducido\",TOMEOL[#Headers],0)),IF(AND($AC$6=\"FV\",$AC$7=\"Construcción\"),INDEX(TCFV[],MATCH(TablaIEIN929[[#This Row],[Sector]],TCFV[Sector económico],0),MATCH(\"Inducido\",TCFV[#Headers],0)),IF(AND($AC$6=\"FV\",$AC$7=\"Operación y mantenimiento\"),INDEX(TOMFV[],MATCH(TablaIEIN929[[#This Row],[Sector]],TOMFV[Sector económico],0),MATCH(\"Inducido\",TOMFV[#Headers],0)),\"\"))))","v":368},{"$f":"IFERROR($AF$7*TablaIEIN929[[#This Row],[Factor de incremento inducido del impacto economico de la inversion]],\"\")","v":0}]
[null,"Servicios públicos",{"$f":"IF(AND($B$6=\"EOL\",$B$7=\"Construcción\"),INDEX(TCEOL[],MATCH(TablaIEIN[[#This Row],[Sector]],TCEOL[Sector económico],0),MATCH(\"Directo\",TCEOL[#Headers],0)),IF(AND($B$6=\"EOL\",$B$7=\"Operación y mantenimiento\"),INDEX(TOMEOL[],MATCH(TablaIEIN[[#This Row],[Sector]],TOMEOL[Sector económico],0),MATCH(\"Directo\",TOMEOL[#Headers],0)),IF(AND($B$6=\"FV\",$B$7=\"Construcción\"),INDEX(TCFV[],MATCH(TablaIEIN[[#This Row],[Sector]],TCFV[Sector económico],0),MATCH(\"Directo\",TCFV[#Headers],0)),IF(AND($B$6=\"FV\",$B$7=\"Operación y mantenimiento\"),INDEX(TOMFV[],MATCH(TablaIEIN[[#This Row],[Sector]],TOMFV[Sector económico],0),MATCH(\"Directo\",TOMFV[#Headers],0)),\"\"))))","v":162857},{"$f":"IFERROR($E$7*TablaIEIN[[#This Row],[Factor de incremento directo del impacto economico de la inversion]],\"\")","v":0},{"$f":"IF(AND($B$6=\"EOL\",$B$7=\"Construcción\"),INDEX(TCEOL[],MATCH(TablaIEIN[[#This Row],[Sector]],TCEOL[Sector económico],0),MATCH(\"Indirecto\",TCEOL[#Headers],0)),IF(AND($B$6=\"EOL\",$B$7=\"Operación y mantenimiento\"),INDEX(TOMEOL[],MATCH(TablaIEIN[[#This Row],[Sector]],TOMEOL[Sector económico],0),MATCH(\"Indirecto\",TOMEOL[#Headers],0)),IF(AND($B$6=\"FV\",$B$7=\"Construcción\"),INDEX(TCFV[],MATCH(TablaIEIN[[#This Row],[Sector]],TCFV[Sector económico],0),MATCH(\"Indirecto\",TCFV[#Headers],0)),IF(AND($B$6=\"FV\",$B$7=\"Operación y mantenimiento\"),INDEX(TOMFV[],MATCH(TablaIEIN[[#This Row],[Sector]],TOMFV[Sector económico],0),MATCH(\"Indirecto\",TOMFV[#Headers],0)),\"\"))))","v":7879},{"$f":"IFERROR($E$7*TablaIEIN[[#This Row],[Factor de incremento indirecto del impacto economico de la inversion]],\"\")","v":0},{"$f":"IF(AND($B$6=\"EOL\",$B$7=\"Construcción\"),INDEX(TCEOL[],MATCH(TablaIEIN[[#This Row],[Sector]],TCEOL[Sector económico],0),MATCH(\"Inducido\",TCEOL[#Headers],0)),IF(AND($B$6=\"EOL\",$B$7=\"Operación y mantenimiento\"),INDEX(TOMEOL[],MATCH(TablaIEIN[[#This Row],[Sector]],TOMEOL[Sector económico],0),MATCH(\"Inducido\",TOMEOL[#Headers],0)),IF(AND($B$6=\"FV\",$B$7=\"Construcción\"),INDEX(TCFV[],MATCH(TablaIEIN[[#This Row],[Sector]],TCFV[Sector económico],0),MATCH(\"Inducido\",TCFV[#Headers],0)),IF(AND($B$6=\"FV\",$B$7=\"Operación y mantenimiento\"),INDEX(TOMFV[],MATCH(TablaIEIN[[#This Row],[Sector]],TOMFV[Sector económico],0),MATCH(\"Inducido\",TOMFV[#Headers],0)),\"\"))))","v":5237},{"$f":"IFERROR($E$7*TablaIEIN[[#This Row],[Factor de incremento inducido del impacto economico de la inversion]],\"\")","v":0},null,null,"Servicios públicos",{"$f":"IF(AND($K$6=\"EOL\",$K$7=\"Construcción\"),INDEX(TCEOL[],MATCH(TablaIEIN27[[#This Row],[Sector]],TCEOL[Sector económico],0),MATCH(\"Directo\",TCEOL[#Headers],0)),IF(AND($K$6=\"EOL\",$K$7=\"Operación y mantenimiento\"),INDEX(TOMEOL[],MATCH(TablaIEIN27[[#This Row],[Sector]],TOMEOL[Sector económico],0),MATCH(\"Directo\",TOMEOL[#Headers],0)),IF(AND($K$6=\"FV\",$K$7=\"Construcción\"),INDEX(TCFV[],MATCH(TablaIEIN27[[#This Row],[Sector]],TCFV[Sector económico],0),MATCH(\"Directo\",TCFV[#Headers],0)),IF(AND($K$6=\"FV\",$K$7=\"Operación y mantenimiento\"),INDEX(TOMFV[],MATCH(TablaIEIN27[[#This Row],[Sector]],TOMFV[Sector económico],0),MATCH(\"Directo\",TOMFV[#Headers],0)),\"\"))))","v":0},{"$f":"IFERROR($N$7*TablaIEIN27[[#This Row],[Factor de incremento directo del impacto economico de la inversion]],\"\")","v":0},{"$f":"IF(AND($K$6=\"EOL\",$K$7=\"Construcción\"),INDEX(TCEOL[],MATCH(TablaIEIN27[[#This Row],[Sector]],TCEOL[Sector económico],0),MATCH(\"Indirecto\",TCEOL[#Headers],0)),IF(AND($K$6=\"EOL\",$K$7=\"Operación y mantenimiento\"),INDEX(TOMEOL[],MATCH(TablaIEIN27[[#This Row],[Sector]],TOMEOL[Sector económico],0),MATCH(\"Indirecto\",TOMEOL[#Headers],0)),IF(AND($K$6=\"FV\",$K$7=\"Construcción\"),INDEX(TCFV[],MATCH(TablaIEIN27[[#This Row],[Sector]],TCFV[Sector económico],0),MATCH(\"Indirecto\",TCFV[#Headers],0)),IF(AND($K$6=\"FV\",$K$7=\"Operación y mantenimiento\"),INDEX(TOMFV[],MATCH(TablaIEIN27[[#This Row],[Sector]],TOMFV[Sector económico],0),MATCH(\"Indirecto\",TOMFV[#Headers],0)),\"\"))))","v":51},{"$f":"IFERROR($N$7*TablaIEIN27[[#This Row],[Factor de incremento indirecto del impacto economico de la inversion]],\"\")","v":0},{"$f":"IF(AND($K$6=\"EOL\",$K$7=\"Construcción\"),INDEX(TCEOL[],MATCH(TablaIEIN27[[#This Row],[Sector]],TCEOL[Sector económico],0),MATCH(\"Inducido\",TCEOL[#Headers],0)),IF(AND($K$6=\"EOL\",$K$7=\"Operación y mantenimiento\"),INDEX(TOMEOL[],MATCH(TablaIEIN27[[#This Row],[Sector]],TOMEOL[Sector económico],0),MATCH(\"Inducido\",TOMEOL[#Headers],0)),IF(AND($K$6=\"FV\",$K$7=\"Construcción\"),INDEX(TCFV[],MATCH(TablaIEIN27[[#This Row],[Sector]],TCFV[Sector económico],0),MATCH(\"Inducido\",TCFV[#Headers],0)),IF(AND($K$6=\"FV\",$K$7=\"Operación y mantenimiento\"),INDEX(TOMFV[],MATCH(TablaIEIN27[[#This Row],[Sector]],TOMFV[Sector económico],0),MATCH(\"Inducido\",TOMFV[#Headers],0)),\"\"))))","v":45},{"$f":"IFERROR($N$7*TablaIEIN27[[#This Row],[Factor de incremento inducido del impacto economico de la inversion]],\"\")","v":0},null,null,"Servicios públicos",{"$f":"IF(AND($T$6=\"EOL\",$T$7=\"Construcción\"),INDEX(TCEOL[],MATCH(TablaIEIN9[[#This Row],[Sector]],TCEOL[Sector económico],0),MATCH(\"Directo\",TCEOL[#Headers],0)),IF(AND($T$6=\"EOL\",$T$7=\"Operación y mantenimiento\"),INDEX(TOMEOL[],MATCH(TablaIEIN9[[#This Row],[Sector]],TOMEOL[Sector económico],0),MATCH(\"Directo\",TOMEOL[#Headers],0)),IF(AND($T$6=\"FV\",$T$7=\"Construcción\"),INDEX(TCFV[],MATCH(TablaIEIN9[[#This Row],[Sector]],TCFV[Sector económico],0),MATCH(\"Directo\",TCFV[#Headers],0)),IF(AND($T$6=\"FV\",$T$7=\"Operación y mantenimiento\"),INDEX(TOMFV[],MATCH(TablaIEIN9[[#This Row],[Sector]],TOMFV[Sector económico],0),MATCH(\"Directo\",TOMFV[#Headers],0)),\"\"))))","v":0},{"$f":"IFERROR($W$7*TablaIEIN9[[#This Row],[Factor de incremento directo del impacto economico de la inversion]],\"\")","v":0},{"$f":"IF(AND($T$6=\"EOL\",$T$7=\"Construcción\"),INDEX(TCEOL[],MATCH(TablaIEIN9[[#This Row],[Sector]],TCEOL[Sector económico],0),MATCH(\"Indirecto\",TCEOL[#Headers],0)),IF(AND($T$6=\"EOL\",$T$7=\"Operación y mantenimiento\"),INDEX(TOMEOL[],MATCH(TablaIEIN9[[#This Row],[Sector]],TOMEOL[Sector económico],0),MATCH(\"Indirecto\",TOMEOL[#Headers],0)),IF(AND($T$6=\"FV\",$T$7=\"Construcción\"),INDEX(TCFV[],MATCH(TablaIEIN9[[#This Row],[Sector]],TCFV[Sector económico],0),MATCH(\"Indirecto\",TCFV[#Headers],0)),IF(AND($T$6=\"FV\",$T$7=\"Operación y mantenimiento\"),INDEX(TOMFV[],MATCH(TablaIEIN9[[#This Row],[Sector]],TOMFV[Sector económico],0),MATCH(\"Indirecto\",TOMFV[#Headers],0)),\"\"))))","v":9226},{"$f":"IFERROR($W$7*TablaIEIN9[[#This Row],[Factor de incremento indirecto del impacto economico de la inversion]],\"\")","v":0},{"$f":"IF(AND($T$6=\"EOL\",$T$7=\"Construcción\"),INDEX(TCEOL[],MATCH(TablaIEIN9[[#This Row],[Sector]],TCEOL[Sector económico],0),MATCH(\"Inducido\",TCEOL[#Headers],0)),IF(AND($T$6=\"EOL\",$T$7=\"Operación y mantenimiento\"),INDEX(TOMEOL[],MATCH(TablaIEIN9[[#This Row],[Sector]],TOMEOL[Sector económico],0),MATCH(\"Inducido\",TOMEOL[#Headers],0)),IF(AND($T$6=\"FV\",$T$7=\"Construcción\"),INDEX(TCFV[],MATCH(TablaIEIN9[[#This Row],[Sector]],TCFV[Sector económico],0),MATCH(\"Inducido\",TCFV[#Headers],0)),IF(AND($T$6=\"FV\",$T$7=\"Operación y mantenimiento\"),INDEX(TOMFV[],MATCH(TablaIEIN9[[#This Row],[Sector]],TOMFV[Sector económico],0),MATCH(\"Inducido\",TOMFV[#Headers],0)),\"\"))))","v":4945},{"$f":"IFERROR($W$7*TablaIEIN9[[#This Row],[Factor de incremento inducido del impacto economico de la inversion]],\"\")","v":0},null,null,"Servicios públicos",{"$f":"IF(AND($AC$6=\"EOL\",$AC$7=\"Construcción\"),INDEX(TCEOL[],MATCH(TablaIEIN929[[#This Row],[Sector]],TCEOL[Sector económico],0),MATCH(\"Directo\",TCEOL[#Headers],0)),IF(AND($AC$6=\"EOL\",$AC$7=\"Operación y mantenimiento\"),INDEX(TOMEOL[],MATCH(TablaIEIN929[[#This Row],[Sector]],TOMEOL[Sector económico],0),MATCH(\"Directo\",TOMEOL[#Headers],0)),IF(AND($AC$6=\"FV\",$AC$7=\"Construcción\"),INDEX(TCFV[],MATCH(TablaIEIN929[[#This Row],[Sector]],TCFV[Sector económico],0),MATCH(\"Directo\",TCFV[#Headers],0)),IF(AND($AC$6=\"FV\",$AC$7=\"Operación y mantenimiento\"),INDEX(TOMFV[],MATCH(TablaIEIN929[[#This Row],[Sector]],TOMFV[Sector económico],0),MATCH(\"Directo\",TOMFV[#Headers],0)),\"\"))))","v":3993},{"$f":"IFERROR($AF$7*TablaIEIN929[[#This Row],[Factor de incremento directo del impacto economico de la inversion]],\"\")","v":0},{"$f":"IF(AND($AC$6=\"EOL\",$AC$7=\"Construcción\"),INDEX(TCEOL[],MATCH(TablaIEIN929[[#This Row],[Sector]],TCEOL[Sector económico],0),MATCH(\"Indirecto\",TCEOL[#Headers],0)),IF(AND($AC$6=\"EOL\",$AC$7=\"Operación y mantenimiento\"),INDEX(TOMEOL[],MATCH(TablaIEIN929[[#This Row],[Sector]],TOMEOL[Sector económico],0),MATCH(\"Indirecto\",TOMEOL[#Headers],0)),IF(AND($AC$6=\"FV\",$AC$7=\"Construcción\"),INDEX(TCFV[],MATCH(TablaIEIN929[[#This Row],[Sector]],TCFV[Sector económico],0),MATCH(\"Indirecto\",TCFV[#Headers],0)),IF(AND($AC$6=\"FV\",$AC$7=\"Operación y mantenimiento\"),INDEX(TOMFV[],MATCH(TablaIEIN929[[#This Row],[Sector]],TOMFV[Sector económico],0),MATCH(\"Indirecto\",TOMFV[#Headers],0)),\"\"))))","v":645},{"$f":"IFERROR($AF$7*TablaIEIN929[[#This Row],[Factor de incremento indirecto del impacto economico de la inversion]],\"\")","v":0},{"$f":"IF(AND($AC$6=\"EOL\",$AC$7=\"Construcción\"),INDEX(TCEOL[],MATCH(TablaIEIN929[[#This Row],[Sector]],TCEOL[Sector económico],0),MATCH(\"Inducido\",TCEOL[#Headers],0)),IF(AND($AC$6=\"EOL\",$AC$7=\"Operación y mantenimiento\"),INDEX(TOMEOL[],MATCH(TablaIEIN929[[#This Row],[Sector]],TOMEOL[Sector económico],0),MATCH(\"Inducido\",TOMEOL[#Headers],0)),IF(AND($AC$6=\"FV\",$AC$7=\"Construcción\"),INDEX(TCFV[],MATCH(TablaIEIN929[[#This Row],[Sector]],TCFV[Sector económico],0),MATCH(\"Inducido\",TCFV[#Headers],0)),IF(AND($AC$6=\"FV\",$AC$7=\"Operación y mantenimiento\"),INDEX(TOMFV[],MATCH(TablaIEIN929[[#This Row],[Sector]],TOMFV[Sector económico],0),MATCH(\"Inducido\",TOMFV[#Headers],0)),\"\"))))","v":183},{"$f":"IFERROR($AF$7*TablaIEIN929[[#This Row],[Factor de incremento inducido del impacto economico de la inversion]],\"\")","v":0}]
[null,"Construcción",{"$f":"IF(AND($B$6=\"EOL\",$B$7=\"Construcción\"),INDEX(TCEOL[],MATCH(TablaIEIN[[#This Row],[Sector]],TCEOL[Sector económico],0),MATCH(\"Directo\",TCEOL[#Headers],0)),IF(AND($B$6=\"EOL\",$B$7=\"Operación y mantenimiento\"),INDEX(TOMEOL[],MATCH(TablaIEIN[[#This Row],[Sector]],TOMEOL[Sector económico],0),MATCH(\"Directo\",TOMEOL[#Headers],0)),IF(AND($B$6=\"FV\",$B$7=\"Construcción\"),INDEX(TCFV[],MATCH(TablaIEIN[[#This Row],[Sector]],TCFV[Sector económico],0),MATCH(\"Directo\",TCFV[#Headers],0)),IF(AND($B$6=\"FV\",$B$7=\"Operación y mantenimiento\"),INDEX(TOMFV[],MATCH(TablaIEIN[[#This Row],[Sector]],TOMFV[Sector económico],0),MATCH(\"Directo\",TOMFV[#Headers],0)),\"\"))))","v":323125},{"$f":"IFERROR($E$7*TablaIEIN[[#This Row],[Factor de incremento directo del impacto economico de la inversion]],\"\")","v":0},{"$f":"IF(AND($B$6=\"EOL\",$B$7=\"Construcción\"),INDEX(TCEOL[],MATCH(TablaIEIN[[#This Row],[Sector]],TCEOL[Sector económico],0),MATCH(\"Indirecto\",TCEOL[#Headers],0)),IF(AND($B$6=\"EOL\",$B$7=\"Operación y mantenimiento\"),INDEX(TOMEOL[],MATCH(TablaIEIN[[#This Row],[Sector]],TOMEOL[Sector económico],0),MATCH(\"Indirecto\",TOMEOL[#Headers],0)),IF(AND($B$6=\"FV\",$B$7=\"Construcción\"),INDEX(TCFV[],MATCH(TablaIEIN[[#This Row],[Sector]],TCFV[Sector económico],0),MATCH(\"Indirecto\",TCFV[#Headers],0)),IF(AND($B$6=\"FV\",$B$7=\"Operación y mantenimiento\"),INDEX(TOMFV[],MATCH(TablaIEIN[[#This Row],[Sector]],TOMFV[Sector económico],0),MATCH(\"Indirecto\",TOMFV[#Headers],0)),\"\"))))","v":25642},{"$f":"IFERROR($E$7*TablaIEIN[[#This Row],[Factor de incremento indirecto del impacto economico de la inversion]],\"\")","v":0},{"$f":"IF(AND($B$6=\"EOL\",$B$7=\"Construcción\"),INDEX(TCEOL[],MATCH(TablaIEIN[[#This Row],[Sector]],TCEOL[Sector económico],0),MATCH(\"Inducido\",TCEOL[#Headers],0)),IF(AND($B$6=\"EOL\",$B$7=\"Operación y mantenimiento\"),INDEX(TOMEOL[],MATCH(TablaIEIN[[#This Row],[Sector]],TOMEOL[Sector económico],0),MATCH(\"Inducido\",TOMEOL[#Headers],0)),IF(AND($B$6=\"FV\",$B$7=\"Construcción\"),INDEX(TCFV[],MATCH(TablaIEIN[[#This Row],[Sector]],TCFV[Sector económico],0),MATCH(\"Inducido\",TCFV[#Headers],0)),IF(AND($B$6=\"FV\",$B$7=\"Operación y mantenimiento\"),INDEX(TOMFV[],MATCH(TablaIEIN[[#This Row],[Sector]],TOMFV[Sector económico],0),MATCH(\"Inducido\",TOMFV[#Headers],0)),\"\"))))","v":393},{"$f":"IFERROR($E$7*TablaIEIN[[#This Row],[Factor de incremento inducido del impacto economico de la inversion]],\"\")","v":0},null,null,"Construcción",{"$f":"IF(AND($K$6=\"EOL\",$K$7=\"Construcción\"),INDEX(TCEOL[],MATCH(TablaIEIN27[[#This Row],[Sector]],TCEOL[Sector económico],0),MATCH(\"Directo\",TCEOL[#Headers],0)),IF(AND($K$6=\"EOL\",$K$7=\"Operación y mantenimiento\"),INDEX(TOMEOL[],MATCH(TablaIEIN27[[#This Row],[Sector]],TOMEOL[Sector económico],0),MATCH(\"Directo\",TOMEOL[#Headers],0)),IF(AND($K$6=\"FV\",$K$7=\"Construcción\"),INDEX(TCFV[],MATCH(TablaIEIN27[[#This Row],[Sector]],TCFV[Sector económico],0),MATCH(\"Directo\",TCFV[#Headers],0)),IF(AND($K$6=\"FV\",$K$7=\"Operación y mantenimiento\"),INDEX(TOMFV[],MATCH(TablaIEIN27[[#This Row],[Sector]],TOMFV[Sector económico],0),MATCH(\"Directo\",TOMFV[#Headers],0)),\"\"))))","v":4228},{"$f":"IFERROR($N$7*TablaIEIN27[[#This Row],[Factor de incremento directo del impacto economico de la inversion]],\"\")","v":0},{"$f":"IF(AND($K$6=\"EOL\",$K$7=\"Construcción\"),INDEX(TCEOL[],MATCH(TablaIEIN27[[#This Row],[Sector]],TCEOL[Sector económico],0),MATCH(\"Indirecto\",TCEOL[#Headers],0)),IF(AND($K$6=\"EOL\",$K$7=\"Operación y mantenimiento\"),INDEX(TOMEOL[],MATCH(TablaIEIN27[[#This Row],[Sector]],TOMEOL[Sector económico],0),MATCH(\"Indirecto\",TOMEOL[#Headers],0)),IF(AND($K$6=\"FV\",$K$7=\"Construcción\"),INDEX(TCFV[],MATCH(TablaIEIN27[[#This Row],[Sector]],TCFV[Sector económico],0),MATCH(\"Indirecto\",TCFV[#Headers],0)),IF(AND($K$6=\"FV\",$K$7=\"Operación y mantenimiento\"),INDEX(TOMFV[],MATCH(TablaIEIN27[[#This Row],[Sector]],TOMFV[Sector económico],0),MATCH(\"Indirecto\",TOMFV[#Headers],0)),\"\"))))","v":325},{"$f":"IFERROR($N$7*TablaIEIN27[[#This Row],[Factor de incremento indirecto del impacto economico de la inversion]],\"\")","v":0},{"$f":"IF(AND($K$6=\"EOL\",$K$7=\"Construcción\"),INDEX(TCEOL[],MATCH(TablaIEIN27[[#This Row],[Sector]],TCEOL[Sector económico],0),MATCH(\"Inducido\",TCEOL[#Headers],0)),IF(AND($K$6=\"EOL\",$K$7=\"Operación y mantenimiento\"),INDEX(TOMEOL[],MATCH(TablaIEIN27[[#This Row],[Sector]],TOMEOL[Sector económico],0),MATCH(\"Inducido\",TOMEOL[#Headers],0)),IF(AND($K$6=\"FV\",$K$7=\"Construcción\"),INDEX(TCFV[],MATCH(TablaIEIN27[[#This Row],[Sector]],TCFV[Sector económico],0),MATCH(\"Inducido\",TCFV[#Headers],0)),IF(AND($K$6=\"FV\",$K$7=\"Operación y mantenimiento\"),INDEX(TOMFV[],MATCH(TablaIEIN27[[#This Row],[Sector]],TOMFV[Sector económico],0),MATCH(\"Inducido\",TOMFV[#Headers],0)),\"\"))))","v":3},{"$f":"IFERROR($N$7*TablaIEIN27[[#This Row],[Factor de incremento inducido del impacto economico de la inversion]],\"\")","v":0},null,null,"Construcción",{"$f":"IF(AND($T$6=\"EOL\",$T$7=\"Construcción\"),INDEX(TCEOL[],MATCH(TablaIEIN9[[#This Row],[Sector]],TCEOL[Sector económico],0),MATCH(\"Directo\",TCEOL[#Headers],0)),IF(AND($T$6=\"EOL\",$T$7=\"Operación y mantenimiento\"),INDEX(TOMEOL[],MATCH(TablaIEIN9[[#This Row],[Sector]],TOMEOL[Sector económico],0),MATCH(\"Directo\",TOMEOL[#Headers],0)),IF(AND($T$6=\"FV\",$T$7=\"Construcción\"),INDEX(TCFV[],MATCH(TablaIEIN9[[#This Row],[Sector]],TCFV[Sector económico],0),MATCH(\"Directo\",TCFV[#Headers],0)),IF(AND($T$6=\"FV\",$T$7=\"Operación y mantenimiento\"),INDEX(TOMFV[],MATCH(TablaIEIN9[[#This Row],[Sector]],TOMFV[Sector económico],0),MATCH(\"Directo\",TOMFV[#Headers],0)),\"\"))))","v":229521},{"$f":"IFERROR($W$7*TablaIEIN9[[#This Row],[Factor de incremento directo del impacto economico de la inversion]],\"\")","v":0},{"$f":"IF(AND($T$6=\"EOL\",$T$7=\"Construcción\"),INDEX(TCEOL[],MATCH(TablaIEIN9[[#This Row],[Sector]],TCEOL[Sector económico],0),MATCH(\"Indirecto\",TCEOL[#Headers],0)),IF(AND($T$6=\"EOL\",$T$7=\"Operación y mantenimiento\"),INDEX(TOMEOL[],MATCH(TablaIEIN9[[#This Row],[Sector]],TOMEOL[Sector económico],0),MATCH(\"Indirecto\",TOMEOL[#Headers],0)),IF(AND($T$6=\"FV\",$T$7=\"Construcción\"),INDEX(TCFV[],MATCH(TablaIEIN9[[#This Row],[Sector]],TCFV[Sector económico],0),MATCH(\"Indirecto\",TCFV[#Headers],0)),IF(AND($T$6=\"FV\",$T$7=\"Operación y mantenimiento\"),INDEX(TOMFV[],MATCH(TablaIEIN9[[#This Row],[Sector]],TOMFV[Sector económico],0),MATCH(\"Indirecto\",TOMFV[#Headers],0)),\"\"))))","v":18558},{"$f":"IFERROR($W$7*TablaIEIN9[[#This Row],[Factor de incremento indirecto del impacto economico de la inversion]],\"\")","v":0},{"$f":"IF(AND($T$6=\"EOL\",$T$7=\"Construcción\"),INDEX(TCEOL[],MATCH(TablaIEIN9[[#This Row],[Sector]],TCEOL[Sector económico],0),MATCH(\"Inducido\",TCEOL[#Headers],0)),IF(AND($T$6=\"EOL\",$T$7=\"Operación y mantenimiento\"),INDEX(TOMEOL[],MATCH(TablaIEIN9[[#This Row],[Sector]],TOMEOL[Sector económico],0),MATCH(\"Inducido\",TOMEOL[#Headers],0)),IF(AND($T$6=\"FV\",$T$7=\"Construcción\"),INDEX(TCFV[],MATCH(TablaIEIN9[[#This Row],[Sector]],TCFV[Sector económico],0),MATCH(\"Inducido\",TCFV[#Headers],0)),IF(AND($T$6=\"FV\",$T$7=\"Operación y mantenimiento\"),INDEX(TOMFV[],MATCH(TablaIEIN9[[#This Row],[Sector]],TOMFV[Sector económico],0),MATCH(\"Inducido\",TOMFV[#Headers],0)),\"\"))))","v":371},{"$f":"IFERROR($W$7*TablaIEIN9[[#This Row],[Factor de incremento inducido del impacto economico de la inversion]],\"\")","v":0},null,null,"Construcción",{"$f":"IF(AND($AC$6=\"EOL\",$AC$7=\"Construcción\"),INDEX(TCEOL[],MATCH(TablaIEIN929[[#This Row],[Sector]],TCEOL[Sector económico],0),MATCH(\"Directo\",TCEOL[#Headers],0)),IF(AND($AC$6=\"EOL\",$AC$7=\"Operación y mantenimiento\"),INDEX(TOMEOL[],MATCH(TablaIEIN929[[#This Row],[Sector]],TOMEOL[Sector económico],0),MATCH(\"Directo\",TOMEOL[#Headers],0)),IF(AND($AC$6=\"FV\",$AC$7=\"Construcción\"),INDEX(TCFV[],MATCH(TablaIEIN929[[#This Row],[Sector]],TCFV[Sector económico],0),MATCH(\"Directo\",TCFV[#Headers],0)),IF(AND($AC$6=\"FV\",$AC$7=\"Operación y mantenimiento\"),INDEX(TOMFV[],MATCH(TablaIEIN929[[#This Row],[Sector]],TOMFV[Sector económico],0),MATCH(\"Directo\",TOMFV[#Headers],0)),\"\"))))","v":0},{"$f":"IFERROR($AF$7*TablaIEIN929[[#This Row],[Factor de incremento directo del impacto economico de la inversion]],\"\")","v":0},{"$f":"IF(AND($AC$6=\"EOL\",$AC$7=\"Construcción\"),INDEX(TCEOL[],MATCH(TablaIEIN929[[#This Row],[Sector]],TCEOL[Sector económico],0),MATCH(\"Indirecto\",TCEOL[#Headers],0)),IF(AND($AC$6=\"EOL\",$AC$7=\"Operación y mantenimiento\"),INDEX(TOMEOL[],MATCH(TablaIEIN929[[#This Row],[Sector]],TOMEOL[Sector económico],0),MATCH(\"Indirecto\",TOMEOL[#Headers],0)),IF(AND($AC$6=\"FV\",$AC$7=\"Construcción\"),INDEX(TCFV[],MATCH(TablaIEIN929[[#This Row],[Sector]],TCFV[Sector económico],0),MATCH(\"Indirecto\",TCFV[#Headers],0)),IF(AND($AC$6=\"FV\",$AC$7=\"Operación y mantenimiento\"),INDEX(TOMFV[],MATCH(TablaIEIN929[[#This Row],[Sector]],TOMFV[Sector económico],0),MATCH(\"Indirecto\",TOMFV[#Headers],0)),\"\"))))","v":69},{"$f":"IFERROR($AF$7*TablaIEIN929[[#This Row],[Factor de incremento indirecto del impacto economico de la inversion]],\"\")","v":0},{"$f":"IF(AND($AC$6=\"EOL\",$AC$7=\"Construcción\"),INDEX(TCEOL[],MATCH(TablaIEIN929[[#This Row],[Sector]],TCEOL[Sector económico],0),MATCH(\"Inducido\",TCEOL[#Headers],0)),IF(AND($AC$6=\"EOL\",$AC$7=\"Operación y mantenimiento\"),INDEX(TOMEOL[],MATCH(TablaIEIN929[[#This Row],[Sector]],TOMEOL[Sector económico],0),MATCH(\"Inducido\",TOMEOL[#Headers],0)),IF(AND($AC$6=\"FV\",$AC$7=\"Construcción\"),INDEX(TCFV[],MATCH(TablaIEIN929[[#This Row],[Sector]],TCFV[Sector económico],0),MATCH(\"Inducido\",TCFV[#Headers],0)),IF(AND($AC$6=\"FV\",$AC$7=\"Operación y mantenimiento\"),INDEX(TOMFV[],MATCH(TablaIEIN929[[#This Row],[Sector]],TOMFV[Sector económico],0),MATCH(\"Inducido\",TOMFV[#Headers],0)),\"\"))))","v":14},{"$f":"IFERROR($AF$7*TablaIEIN929[[#This Row],[Factor de incremento inducido del impacto economico de la inversion]],\"\")","v":0}]
[null,"Manufactura",{"$f":"IF(AND($B$6=\"EOL\",$B$7=\"Construcción\"),INDEX(TCEOL[],MATCH(TablaIEIN[[#This Row],[Sector]],TCEOL[Sector económico],0),MATCH(\"Directo\",TCEOL[#Headers],0)),IF(AND($B$6=\"EOL\",$B$7=\"Operación y mantenimiento\"),INDEX(TOMEOL[],MATCH(TablaIEIN[[#This Row],[Sector]],TOMEOL[Sector económico],0),MATCH(\"Directo\",TOMEOL[#Headers],0)),IF(AND($B$6=\"FV\",$B$7=\"Construcción\"),INDEX(TCFV[],MATCH(TablaIEIN[[#This Row],[Sector]],TCFV[Sector económico],0),MATCH(\"Directo\",TCFV[#Headers],0)),IF(AND($B$6=\"FV\",$B$7=\"Operación y mantenimiento\"),INDEX(TOMFV[],MATCH(TablaIEIN[[#This Row],[Sector]],TOMFV[Sector económico],0),MATCH(\"Directo\",TOMFV[#Headers],0)),\"\"))))","v":0},{"$f":"IFERROR($E$7*TablaIEIN[[#This Row],[Factor de incremento directo del impacto economico de la inversion]],\"\")","v":0},{"$f":"IF(AND($B$6=\"EOL\",$B$7=\"Construcción\"),INDEX(TCEOL[],MATCH(TablaIEIN[[#This Row],[Sector]],TCEOL[Sector económico],0),MATCH(\"Indirecto\",TCEOL[#Headers],0)),IF(AND($B$6=\"EOL\",$B$7=\"Operación y mantenimiento\"),INDEX(TOMEOL[],MATCH(TablaIEIN[[#This Row],[Sector]],TOMEOL[Sector económico],0),MATCH(\"Indirecto\",TOMEOL[#Headers],0)),IF(AND($B$6=\"FV\",$B$7=\"Construcción\"),INDEX(TCFV[],MATCH(TablaIEIN[[#This Row],[Sector]],TCFV[Sector económico],0),MATCH(\"Indirecto\",TCFV[#Headers],0)),IF(AND($B$6=\"FV\",$B$7=\"Operación y mantenimiento\"),INDEX(TOMFV[],MATCH(TablaIEIN[[#This Row],[Sector]],TOMFV[Sector económico],0),MATCH(\"Indirecto\",TOMFV[#Headers],0)),\"\"))))","v":89569},{"$f":"IFERROR($E$7*TablaIEIN[[#This Row],[Factor de incremento indirecto del impacto economico de la inversion]],\"\")","v":0},{"$f":"IF(AND($B$6=\"EOL\",$B$7=\"Construcción\"),INDEX(TCEOL[],MATCH(TablaIEIN[[#This Row],[Sector]],TCEOL[Sector económico],0),MATCH(\"Inducido\",TCEOL[#Headers],0)),IF(AND($B$6=\"EOL\",$B$7=\"Operación y mantenimiento\"),INDEX(TOMEOL[],MATCH(TablaIEIN[[#This Row],[Sector]],TOMEOL[Sector económico],0),MATCH(\"Inducido\",TOMEOL[#Headers],0)),IF(AND($B$6=\"FV\",$B$7=\"Construcción\"),INDEX(TCFV[],MATCH(TablaIEIN[[#This Row],[Sector]],TCFV[Sector económico],0),MATCH(\"Inducido\",TCFV[#Headers],0)),IF(AND($B$6=\"FV\",$B$7=\"Operación y mantenimiento\"),INDEX(TOMFV[],MATCH(TablaIEIN[[#This Row],[Sector]],TOMFV[Sector económico],0),MATCH(\"Inducido\",TOMFV[#Headers],0)),\"\"))))","v":43313},{"$f":"IFERROR($E$7*TablaIEIN[[#This Row],[Factor de incremento inducido del impacto economico de la inversion]],\"\")","v":0},null,null,"Manufactura",{"$f":"IF(AND($K$6=\"EOL\",$K$7=\"Construcción\"),INDEX(TCEOL[],MATCH(TablaIEIN27[[#This Row],[Sector]],TCEOL[Sector económico],0),MATCH(\"Directo\",TCEOL[#Headers],0)),IF(AND($K$6=\"EOL\",$K$7=\"Operación y mantenimiento\"),INDEX(TOMEOL[],MATCH(TablaIEIN27[[#This Row],[Sector]],TOMEOL[Sector económico],0),MATCH(\"Directo\",TOMEOL[#Headers],0)),IF(AND($K$6=\"FV\",$K$7=\"Construcción\"),INDEX(TCFV[],MATCH(TablaIEIN27[[#This Row],[Sector]],TCFV[Sector económico],0),MATCH(\"Directo\",TCFV[#Headers],0)),IF(AND($K$6=\"FV\",$K$7=\"Operación y mantenimiento\"),INDEX(TOMFV[],MATCH(TablaIEIN27[[#This Row],[Sector]],TOMFV[Sector económico],0),MATCH(\"Directo\",TOMFV[#Headers],0)),\"\"))))","v":0},{"$f":"IFERROR($N$7*TablaIEIN27[[#This Row],[Factor de incremento directo del impacto economico de la inversion]],\"\")","v":0},{"$f":"IF(AND($K$6=\"EOL\",$K$7=\"Construcción\"),INDEX(TCEOL[],MATCH(TablaIEIN27[[#This Row],[Sector]],TCEOL[Sector económico],0),MATCH(\"Indirecto\",TCEOL[#Headers],0)),IF(AND($K$6=\"EOL\",$K$7=\"Operación y mantenimiento\"),INDEX(TOMEOL[],MATCH(TablaIEIN27[[#This Row],[Sector]],TOMEOL[Sector económico],0),MATCH(\"Indirecto\",TOMEOL[#Headers],0)),IF(AND($K$6=\"FV\",$K$7=\"Construcción\"),INDEX(TCFV[],MATCH(TablaIEIN27[[#This Row],[Sector]],TCFV[Sector económico],0),MATCH(\"Indirecto\",TCFV[#Headers],0)),IF(AND($K$6=\"FV\",$K$7=\"Operación y mantenimiento\"),INDEX(TOMFV[],MATCH(TablaIEIN27[[#This Row],[Sector]],TOMFV[Sector económico],0),MATCH(\"Indirecto\",TOMFV[#Headers],0)),\"\"))))","v":762},{"$f":"IFERROR($N$7*TablaIEIN27[[#This Row],[Factor de incremento indirecto del impacto economico de la inversion]],\"\")","v":0},{"$f":"IF(AND($K$6=\"EOL\",$K$7=\"Construcción\"),INDEX(TCEOL[],MATCH(TablaIEIN27[[#This Row],[Sector]],TCEOL[Sector económico],0),MATCH(\"Inducido\",TCEOL[#Headers],0)),IF(AND($K$6=\"EOL\",$K$7=\"Operación y mantenimiento\"),INDEX(TOMEOL[],MATCH(TablaIEIN27[[#This Row],[Sector]],TOMEOL[Sector económico],0),MATCH(\"Inducido\",TOMEOL[#Headers],0)),IF(AND($K$6=\"FV\",$K$7=\"Construcción\"),INDEX(TCFV[],MATCH(TablaIEIN27[[#This Row],[Sector]],TCFV[Sector económico],0),MATCH(\"Inducido\",TCFV[#Headers],0)),IF(AND($K$6=\"FV\",$K$7=\"Operación y mantenimiento\"),INDEX(TOMFV[],MATCH(TablaIEIN27[[#This Row],[Sector]],TOMFV[Sector económico],0),MATCH(\"Inducido\",TOMFV[#Headers],0)),\"\"))))","v":371},{"$f":"IFERROR($N$7*TablaIEIN27[[#This Row],[Factor de incremento inducido del impacto economico de la inversion]],\"\")","v":0},null,null,"Manufactura",{"$f":"IF(AND($T$6=\"EOL\",$T$7=\"Construcción\"),INDEX(TCEOL[],MATCH(TablaIEIN9[[#This Row],[Sector]],TCEOL[Sector económico],0),MATCH(\"Directo\",TCEOL[#Headers],0)),IF(AND($T$6=\"EOL\",$T$7=\"Operación y mantenimiento\"),INDEX(TOMEOL[],MATCH(TablaIEIN9[[#This Row],[Sector]],TOMEOL[Sector económico],0),MATCH(\"Directo\",TOMEOL[#Headers],0)),IF(AND($T$6=\"FV\",$T$7=\"Construcción\"),INDEX(TCFV[],MATCH(TablaIEIN9[[#This Row],[Sector]],TCFV[Sector económico],0),MATCH(\"Directo\",TCFV[#Headers],0)),IF(AND($T$6=\"FV\",$T$7=\"Operación y mantenimiento\"),INDEX(TOMFV[],MATCH(TablaIEIN9[[#This Row],[Sector]],TOMFV[Sector económico],0),MATCH(\"Directo\",TOMFV[#Headers],0)),\"\"))))","v":216682},{"$f":"IFERROR($W$7*TablaIEIN9[[#This Row],[Factor de incremento directo del impacto economico de la inversion]],\"\")","v":0},{"$f":"IF(AND($T$6=\"EOL\",$T$7=\"Construcción\"),INDEX(TCEOL[],MATCH(TablaIEIN9[[#This Row],[Sector]],TCEOL[Sector económico],0),MATCH(\"Indirecto\",TCEOL[#Headers],0)),IF(AND($T$6=\"EOL\",$T$7=\"Operación y mantenimiento\"),INDEX(TOMEOL[],MATCH(TablaIEIN9[[#This Row],[Sector]],TOMEOL[Sector económico],0),MATCH(\"Indirecto\",TOMEOL[#Headers],0)),IF(AND($T$6=\"FV\",$T$7=\"Construcción\"),INDEX(TCFV[],MATCH(TablaIEIN9[[#This Row],[Sector]],TCFV[Sector económico],0),MATCH(\"Indirecto\",TCFV[#Headers],0)),IF(AND($T$6=\"FV\",$T$7=\"Operación y mantenimiento\"),INDEX(TOMFV[],MATCH(TablaIEIN9[[#This Row],[Sector]],TOMFV[Sector económico],0),MATCH(\"Indirecto\",TOMFV[#Headers],0)),\"\"))))","v":101014},{"$f":"IFERROR($W$7*TablaIEIN9[[#This Row],[Factor de incremento indirecto del impacto economico de la inversion]],\"\")","v":0},{"$f":"IF(AND($T$6=\"EOL\",$T$7=\"Construcción\"),INDEX(TCEOL[],MATCH(TablaIEIN9[[#This Row],[Sector]],TCEOL[Sector económico],0),MATCH(\"Inducido\",TCEOL[#Headers],0)),IF(AND($T$6=\"EOL\",$T$7=\"Operación y mantenimiento\"),INDEX(TOMEOL[],MATCH(TablaIEIN9[[#This Row],[Sector]],TOMEOL[Sector económico],0),MATCH(\"Inducido\",TOMEOL[#Headers],0)),IF(AND($T$6=\"FV\",$T$7=\"Construcción\"),INDEX(TCFV[],MATCH(TablaIEIN9[[#This Row],[Sector]],TCFV[Sector económico],0),MATCH(\"Inducido\",TCFV[#Headers],0)),IF(AND($T$6=\"FV\",$T$7=\"Operación y mantenimiento\"),INDEX(TOMFV[],MATCH(TablaIEIN9[[#This Row],[Sector]],TOMFV[Sector económico],0),MATCH(\"Inducido\",TOMFV[#Headers],0)),\"\"))))","v":40893},{"$f":"IFERROR($W$7*TablaIEIN9[[#This Row],[Factor de incremento inducido del impacto economico de la inversion]],\"\")","v":0},null,null,"Manufactura",{"$f":"IF(AND($AC$6=\"EOL\",$AC$7=\"Construcción\"),INDEX(TCEOL[],MATCH(TablaIEIN929[[#This Row],[Sector]],TCEOL[Sector económico],0),MATCH(\"Directo\",TCEOL[#Headers],0)),IF(AND($AC$6=\"EOL\",$AC$7=\"Operación y mantenimiento\"),INDEX(TOMEOL[],MATCH(TablaIEIN929[[#This Row],[Sector]],TOMEOL[Sector económico],0),MATCH(\"Directo\",TOMEOL[#Headers],0)),IF(AND($AC$6=\"FV\",$AC$7=\"Construcción\"),INDEX(TCFV[],MATCH(TablaIEIN929[[#This Row],[Sector]],TCFV[Sector económico],0),MATCH(\"Directo\",TCFV[#Headers],0)),IF(AND($AC$6=\"FV\",$AC$7=\"Operación y mantenimiento\"),INDEX(TOMFV[],MATCH(TablaIEIN929[[#This Row],[Sector]],TOMFV[Sector económico],0),MATCH(\"Directo\",TOMFV[#Headers],0)),\"\"))))","v":21568},{"$f":"IFERROR($AF$7*TablaIEIN929[[#This Row],[Factor de incremento directo del impacto economico de la inversion]],\"\")","v":0},{"$f":"IF(AND($AC$6=\"EOL\",$AC$7=\"Construcción\"),INDEX(TCEOL[],MATCH(TablaIEIN929[[#This Row],[Sector]],TCEOL[Sector económico],0),MATCH(\"Indirecto\",TCEOL[#Headers],0)),IF(AND($AC$6=\"EOL\",$AC$7=\"Operación y mantenimiento\"),INDEX(TOMEOL[],MATCH(TablaIEIN929[[#This Row],[Sector]],TOMEOL[Sector económico],0),MATCH(\"Indirecto\",TOMEOL[#Headers],0)),IF(AND($AC$6=\"FV\",$AC$7=\"Construcción\"),INDEX(TCFV[],MATCH(TablaIEIN929[[#This Row],[Sector]],TCFV[Sector económico],0),MATCH(\"Indirecto\",TCFV[#Headers],0)),IF(AND($AC$6=\"FV\",$AC$7=\"Operación y mantenimiento\"),INDEX(TOMFV[],MATCH(TablaIEIN929[[#This Row],[Sector]],TOMFV[Sector económico],0),MATCH(\"Indirecto\",TOMFV[#Headers],0)),\"\"))))","v":4406},{"$f":"IFERROR($AF$7*TablaIEIN929[[#This Row],[Factor de incremento indirecto del impacto economico de la inversion]],\"\")","v":0},{"$f":"IF(AND($AC$6=\"EOL\",$AC$7=\"Construcción\"),INDEX(TCEOL[],MATCH(TablaIEIN929[[#This Row],[Sector]],TCEOL[Sector económico],0),MATCH(\"Inducido\",TCEOL[#Headers],0)),IF(AND($AC$6=\"EOL\",$AC$7=\"Operación y mantenimiento\"),INDEX(TOMEOL[],MATCH(TablaIEIN929[[#This Row],[Sector]],TOMEOL[Sector económico],0),MATCH(\"Inducido\",TOMEOL[#Headers],0)),IF(AND($AC$6=\"FV\",$AC$7=\"Construcción\"),INDEX(TCFV[],MATCH(TablaIEIN929[[#This Row],[Sector]],TCFV[Sector económico],0),MATCH(\"Inducido\",TCFV[#Headers],0)),IF(AND($AC$6=\"FV\",$AC$7=\"Operación y mantenimiento\"),INDEX(TOMFV[],MATCH(TablaIEIN929[[#This Row],[Sector]],TOMFV[Sector económico],0),MATCH(\"Inducido\",TOMFV[#Headers],0)),\"\"))))","v":1510},{"$f":"IFERROR($AF$7*TablaIEIN929[[#This Row],[Factor de incremento inducido del impacto economico de la inversion]],\"\")","v":0}]
[null,"Ventas",{"$f":"IF(AND($B$6=\"EOL\",$B$7=\"Construcción\"),INDEX(TCEOL[],MATCH(TablaIEIN[[#This Row],[Sector]],TCEOL[Sector económico],0),MATCH(\"Directo\",TCEOL[#Headers],0)),IF(AND($B$6=\"EOL\",$B$7=\"Operación y mantenimiento\"),INDEX(TOMEOL[],MATCH(TablaIEIN[[#This Row],[Sector]],TOMEOL[Sector económico],0),MATCH(\"Directo\",TOMEOL[#Headers],0)),IF(AND($B$6=\"FV\",$B$7=\"Construcción\"),INDEX(TCFV[],MATCH(TablaIEIN[[#This Row],[Sector]],TCFV[Sector económico],0),MATCH(\"Directo\",TCFV[#Headers],0)),IF(AND($B$6=\"FV\",$B$7=\"Operación y mantenimiento\"),INDEX(TOMFV[],MATCH(TablaIEIN[[#This Row],[Sector]],TOMFV[Sector económico],0),MATCH(\"Directo\",TOMFV[#Headers],0)),\"\"))))","v":62103},{"$f":"IFERROR($E$7*TablaIEIN[[#This Row],[Factor de incremento directo del impacto economico de la inversion]],\"\")","v":0},{"$f":"IF(AND($B$6=\"EOL\",$B$7=\"Construcción\"),INDEX(TCEOL[],MATCH(TablaIEIN[[#This Row],[Sector]],TCEOL[Sector económico],0),MATCH(\"Indirecto\",TCEOL[#Headers],0)),IF(AND($B$6=\"EOL\",$B$7=\"Operación y mantenimiento\"),INDEX(TOMEOL[],MATCH(TablaIEIN[[#This Row],[Sector]],TOMEOL[Sector económico],0),MATCH(\"Indirecto\",TOMEOL[#Headers],0)),IF(AND($B$6=\"FV\",$B$7=\"Construcción\"),INDEX(TCFV[],MATCH(TablaIEIN[[#This Row],[Sector]],TCFV[Sector económico],0),MATCH(\"Indirecto\",TCFV[#Headers],0)),IF(AND($B$6=\"FV\",$B$7=\"Operación y mantenimiento\"),INDEX(TOMFV[],MATCH(TablaIEIN[[#This Row],[Sector]],TOMFV[Sector económico],0),MATCH(\"Indirecto\",TOMFV[#Headers],0)),\"\"))))","v":88714},{"$f":"IFERROR($E$7*TablaIEIN[[#This Row],[Factor de incremento indirecto del impacto economico de la inversion]],\"\")","v":0},{"$f":"IF(AND($B$6=\"EOL\",$B$7=\"Construcción\"),INDEX(TCEOL[],MATCH(TablaIEIN[[#This Row],[Sector]],TCEOL[Sector económico],0),MATCH(\"Inducido\",TCEOL[#Headers],0)),IF(AND($B$6=\"EOL\",$B$7=\"Operación y mantenimiento\"),INDEX(TOMEOL[],MATCH(TablaIEIN[[#This Row],[Sector]],TOMEOL[Sector económico],0),MATCH(\"Inducido\",TOMEOL[#Headers],0)),IF(AND($B$6=\"FV\",$B$7=\"Construcción\"),INDEX(TCFV[],MATCH(TablaIEIN[[#This Row],[Sector]],TCFV[Sector económico],0),MATCH(\"Inducido\",TCFV[#Headers],0)),IF(AND($B$6=\"FV\",$B$7=\"Operación y mantenimiento\"),INDEX(TOMFV[],MATCH(TablaIEIN[[#This Row],[Sector]],TOMFV[Sector económico],0),MATCH(\"Inducido\",TOMFV[#Headers],0)),\"\"))))","v":57514},{"$f":"IFERROR($E$7*TablaIEIN[[#This Row],[Factor de incremento inducido del impacto economico de la inversion]],\"\")","v":0},null,null,"Ventas",{"$f":"IF(AND($K$6=\"EOL\",$K$7=\"Construcción\"),INDEX(TCEOL[],MATCH(TablaIEIN27[[#This Row],[Sector]],TCEOL[Sector económico],0),MATCH(\"Directo\",TCEOL[#Headers],0)),IF(AND($K$6=\"EOL\",$K$7=\"Operación y mantenimiento\"),INDEX(TOMEOL[],MATCH(TablaIEIN27[[#This Row],[Sector]],TOMEOL[Sector económico],0),MATCH(\"Directo\",TOMEOL[#Headers],0)),IF(AND($K$6=\"FV\",$K$7=\"Construcción\"),INDEX(TCFV[],MATCH(TablaIEIN27[[#This Row],[Sector]],TCFV[Sector económico],0),MATCH(\"Directo\",TCFV[#Headers],0)),IF(AND($K$6=\"FV\",$K$7=\"Operación y mantenimiento\"),INDEX(TOMFV[],MATCH(TablaIEIN27[[#This Row],[Sector]],TOMFV[Sector económico],0),MATCH(\"Directo\",TOMFV[#Headers],0)),\"\"))))","v":0},{"$f":"IFERROR($N$7*TablaIEIN27[[#This Row],[Factor de incremento directo del impacto economico de la inversion]],\"\")","v":0},{"$f":"IF(AND($K$6=\"EOL\",$K$7=\"Construcción\"),INDEX(TCEOL[],MATCH(TablaIEIN27[[#This Row],[Sector]],TCEOL[Sector económico],0),MATCH(\"Indirecto\",TCEOL[#Headers],0)),IF(AND($K$6=\"EOL\",$K$7=\"Operación y mantenimiento\"),INDEX(TOMEOL[],MATCH(TablaIEIN27[[#This Row],[Sector]],TOMEOL[Sector económico],0),MATCH(\"Indirecto\",TOMEOL[#Headers],0)),IF(AND($K$6=\"FV\",$K$7=\"Construcción\"),INDEX(TCFV[],MATCH(TablaIEIN27[[#This Row],[Sector]],TCFV[Sector económico],0),MATCH(\"Indirecto\",TCFV[#Headers],0)),IF(AND($K$6=\"FV\",$K$7=\"Operación y mantenimiento\"),INDEX(TOMFV[],MATCH(TablaIEIN27[[#This Row],[Sector]],TOMFV[Sector económico],0),MATCH(\"Indirecto\",TOMFV[#Headers],0)),\"\"))))","v":605},{"$f":"IFERROR($N$7*TablaIEIN27[[#This Row],[Factor de incremento indirecto del impacto economico de la inversion]],\"\")","v":0},{"$f":"IF(AND($K$6=\"EOL\",$K$7=\"Construcción\"),INDEX(TCEOL[],MATCH(TablaIEIN27[[#This Row],[Sector]],TCEOL[Sector económico],0),MATCH(\"Inducido\",TCEOL[#Headers],0)),IF(AND($K$6=\"EOL\",$K$7=\"Operación y mantenimiento\"),INDEX(TOMEOL[],MATCH(TablaIEIN27[[#This Row],[Sector]],TOMEOL[Sector económico],0),MATCH(\"Inducido\",TOMEOL[#Headers],0)),IF(AND($K$6=\"FV\",$K$7=\"Construcción\"),INDEX(TCFV[],MATCH(TablaIEIN27[[#This Row],[Sector]],TCFV[Sector económico],0),MATCH(\"Inducido\",TCFV[#Headers],0)),IF(AND($K$6=\"FV\",$K$7=\"Operación y mantenimiento\"),INDEX(TOMFV[],MATCH(TablaIEIN27[[#This Row],[Sector]],TOMFV[Sector económico],0),MATCH(\"Inducido\",TOMFV[#Headers],0)),\"\"))))","v":492},{"$f":"IFERROR($N$7*TablaIEIN27[[#This Row],[Factor de incremento inducido del impacto economico de la inversion]],\"\")","v":0},null,null,"Ventas",{"$f":"IF(AND($T$6=\"EOL\",$T$7=\"Construcción\"),INDEX(TCEOL[],MATCH(TablaIEIN9[[#This Row],[Sector]],TCEOL[Sector económico],0),MATCH(\"Directo\",TCEOL[#Headers],0)),IF(AND($T$6=\"EOL\",$T$7=\"Operación y mantenimiento\"),INDEX(TOMEOL[],MATCH(TablaIEIN9[[#This Row],[Sector]],TOMEOL[Sector económico],0),MATCH(\"Directo\",TOMEOL[#Headers],0)),IF(AND($T$6=\"FV\",$T$7=\"Construcción\"),INDEX(TCFV[],MATCH(TablaIEIN9[[#This Row],[Sector]],TCFV[Sector económico],0),MATCH(\"Directo\",TCFV[#Headers],0)),IF(AND($T$6=\"FV\",$T$7=\"Operación y mantenimiento\"),INDEX(TOMFV[],MATCH(TablaIEIN9[[#This Row],[Sector]],TOMFV[Sector económico],0),MATCH(\"Directo\",TOMFV[#Headers],0)),\"\"))))","v":0},{"$f":"IFERROR($W$7*TablaIEIN9[[#This Row],[Factor de incremento directo del impacto economico de la inversion]],\"\")","v":0},{"$f":"IF(AND($T$6=\"EOL\",$T$7=\"Construcción\"),INDEX(TCEOL[],MATCH(TablaIEIN9[[#This Row],[Sector]],TCEOL[Sector económico],0),MATCH(\"Indirecto\",TCEOL[#Headers],0)),IF(AND($T$6=\"EOL\",$T$7=\"Operación y mantenimiento\"),INDEX(TOMEOL[],MATCH(TablaIEIN9[[#This Row],[Sector]],TOMEOL[Sector económico],0),MATCH(\"Indirecto\",TOMEOL[#Headers],0)),IF(AND($T$6=\"FV\",$T$7=\"Construcción\"),INDEX(TCFV[],MATCH(TablaIEIN9[[#This Row],[Sector]],TCFV[Sector económico],0),MATCH(\"Indirecto\",TCFV[#Headers],0)),IF(AND($T$6=\"FV\",$T$7=\"Operación y mantenimiento\"),INDEX(TOMFV[],MATCH(TablaIEIN9[[#This Row],[Sector]],TOMFV[Sector económico],0),MATCH(\"Indirecto\",TOMFV[#Headers],0)),\"\"))))","v":81866},{"$f":"IFERROR($W$7*TablaIEIN9[[#This Row],[Factor de incremento indirecto del impacto economico de la inversion]],\"\")","v":0},{"$f":"IF(AND($T$6=\"EOL\",$T$7=\"Construcción\"),INDEX(TCEOL[],MATCH(TablaIEIN9[[#This Row],[Sector]],TCEOL[Sector económico],0),MATCH(\"Inducido\",TCEOL[#Headers],0)),IF(AND($T$6=\"EOL\",$T$7=\"Operación y mantenimiento\"),INDEX(TOMEOL[],MATCH(TablaIEIN9[[#This Row],[Sector]],TOMEOL[Sector económico],0),MATCH(\"Inducido\",TOMEOL[#Headers],0)),IF(AND($T$6=\"FV\",$T$7=\"Construcción\"),INDEX(TCFV[],MATCH(TablaIEIN9[[#This Row],[Sector]],TCFV[Sector económico],0),MATCH(\"Inducido\",TCFV[#Headers],0)),IF(AND($T$6=\"FV\",$T$7=\"Operación y mantenimiento\"),INDEX(TOMFV[],MATCH(TablaIEIN9[[#This Row],[Sector]],TOMFV[Sector económico],0),MATCH(\"Inducido\",TOMFV[#Headers],0)),\"\"))))","v":54300},{"$f":"IFERROR($W$7*TablaIEIN9[[#This Row],[Factor de incremento inducido del impacto economico de la inversion]],\"\")","v":0},null,null,"Ventas",{"$f":"IF(AND($AC$6=\"EOL\",$AC$7=\"Construcción\"),INDEX(TCEOL[],MATCH(TablaIEIN929[[#This Row],[Sector]],TCEOL[Sector económico],0),MATCH(\"Directo\",TCEOL[#Headers],0)),IF(AND($AC$6=\"EOL\",$AC$7=\"Operación y mantenimiento\"),INDEX(TOMEOL[],MATCH(TablaIEIN929[[#This Row],[Sector]],TOMEOL[Sector económico],0),MATCH(\"Directo\",TOMEOL[#Headers],0)),IF(AND($AC$6=\"FV\",$AC$7=\"Construcción\"),INDEX(TCFV[],MATCH(TablaIEIN929[[#This Row],[Sector]],TCFV[Sector económico],0),MATCH(\"Directo\",TCFV[#Headers],0)),IF(AND($AC$6=\"FV\",$AC$7=\"Operación y mantenimiento\"),INDEX(TOMFV[],MATCH(TablaIEIN929[[#This Row],[Sector]],TOMFV[Sector económico],0),MATCH(\"Directo\",TOMFV[#Headers],0)),\"\"))))","v":0},{"$f":"IFERROR($AF$7*TablaIEIN929[[#This Row],[Factor de incremento directo del impacto economico de la inversion]],\"\")","v":0},{"$f":"IF(AND($AC$6=\"EOL\",$AC$7=\"Construcción\"),INDEX(TCEOL[],MATCH(TablaIEIN929[[#This Row],[Sector]],TCEOL[Sector económico],0),MATCH(\"Indirecto\",TCEOL[#Headers],0)),IF(AND($AC$6=\"EOL\",$AC$7=\"Operación y mantenimiento\"),INDEX(TOMEOL[],MATCH(TablaIEIN929[[#This Row],[Sector]],TOMEOL[Sector económico],0),MATCH(\"Indirecto\",TOMEOL[#Headers],0)),IF(AND($AC$6=\"FV\",$AC$7=\"Construcción\"),INDEX(TCFV[],MATCH(TablaIEIN929[[#This Row],[Sector]],TCFV[Sector económico],0),MATCH(\"Indirecto\",TCFV[#Headers],0)),IF(AND($AC$6=\"FV\",$AC$7=\"Operación y mantenimiento\"),INDEX(TOMFV[],MATCH(TablaIEIN929[[#This Row],[Sector]],TOMFV[Sector económico],0),MATCH(\"Indirecto\",TOMFV[#Headers],0)),\"\"))))","v":4360},{"$f":"IFERROR($AF$7*TablaIEIN929[[#This Row],[Factor de incremento indirecto del impacto economico de la inversion]],\"\")","v":0},{"$f":"IF(AND($AC$6=\"EOL\",$AC$7=\"Construcción\"),INDEX(TCEOL[],MATCH(TablaIEIN929[[#This Row],[Sector]],TCEOL[Sector económico],0),MATCH(\"Inducido\",TCEOL[#Headers],0)),IF(AND($AC$6=\"EOL\",$AC$7=\"Operación y mantenimiento\"),INDEX(TOMEOL[],MATCH(TablaIEIN929[[#This Row],[Sector]],TOMEOL[Sector económico],0),MATCH(\"Inducido\",TOMEOL[#Headers],0)),IF(AND($AC$6=\"FV\",$AC$7=\"Construcción\"),INDEX(TCFV[],MATCH(TablaIEIN929[[#This Row],[Sector]],TCFV[Sector económico],0),MATCH(\"Inducido\",TCFV[#Headers],0)),IF(AND($AC$6=\"FV\",$AC$7=\"Operación y mantenimiento\"),INDEX(TOMFV[],MATCH(TablaIEIN929[[#This Row],[Sector]],TOMFV[Sector económico],0),MATCH(\"Inducido\",TOMFV[#Headers],0)),\"\"))))","v":2005},{"$f":"IFERROR($AF$7*TablaIEIN929[[#This Row],[Factor de incremento inducido del impacto economico de la inversion]],\"\")","v":0}]
[null,"Transporte y Almacenamiento",{"$f":"IF(AND($B$6=\"EOL\",$B$7=\"Construcción\"),INDEX(TCEOL[],MATCH(TablaIEIN[[#This Row],[Sector]],TCEOL[Sector económico],0),MATCH(\"Directo\",TCEOL[#Headers],0)),IF(AND($B$6=\"EOL\",$B$7=\"Operación y mantenimiento\"),INDEX(TOMEOL[],MATCH(TablaIEIN[[#This Row],[Sector]],TOMEOL[Sector económico],0),MATCH(\"Directo\",TOMEOL[#Headers],0)),IF(AND($B$6=\"FV\",$B$7=\"Construcción\"),INDEX(TCFV[],MATCH(TablaIEIN[[#This Row],[Sector]],TCFV[Sector económico],0),MATCH(\"Directo\",TCFV[#Headers],0)),IF(AND($B$6=\"FV\",$B$7=\"Operación y mantenimiento\"),INDEX(TOMFV[],MATCH(TablaIEIN[[#This Row],[Sector]],TOMFV[Sector económico],0),MATCH(\"Directo\",TOMFV[#Headers],0)),\"\"))))","v":0},{"$f":"IFERROR($E$7*TablaIEIN[[#This Row],[Factor de incremento directo del impacto economico de la inversion]],\"\")","v":0},{"$f":"IF(AND($B$6=\"EOL\",$B$7=\"Construcción\"),INDEX(TCEOL[],MATCH(TablaIEIN[[#This Row],[Sector]],TCEOL[Sector económico],0),MATCH(\"Indirecto\",TCEOL[#Headers],0)),IF(AND($B$6=\"EOL\",$B$7=\"Operación y mantenimiento\"),INDEX(TOMEOL[],MATCH(TablaIEIN[[#This Row],[Sector]],TOMEOL[Sector económico],0),MATCH(\"Indirecto\",TOMEOL[#Headers],0)),IF(AND($B$6=\"FV\",$B$7=\"Construcción\"),INDEX(TCFV[],MATCH(TablaIEIN[[#This Row],[Sector]],TCFV[Sector económico],0),MATCH(\"Indirecto\",TCFV[#Headers],0)),IF(AND($B$6=\"FV\",$B$7=\"Operación y mantenimiento\"),INDEX(TOMFV[],MATCH(TablaIEIN[[#This Row],[Sector]],TOMFV[Sector económico],0),MATCH(\"Indirecto\",TOMFV[#Headers],0)),\"\"))))","v":21804},{"$f":"IFERROR($E$7*TablaIEIN[[#This Row],[Factor de incremento indirecto del impacto economico de la inversion]],\"\")","v":0},{"$f":"IF(AND($B$6=\"EOL\",$B$7=\"Construcción\"),INDEX(TCEOL[],MATCH(TablaIEIN[[#This Row],[Sector]],TCEOL[Sector económico],0),MATCH(\"Inducido\",TCEOL[#Headers],0)),IF(AND($B$6=\"EOL\",$B$7=\"Operación y mantenimiento\"),INDEX(TOMEOL[],MATCH(TablaIEIN[[#This Row],[Sector]],TOMEOL[Sector económico],0),MATCH(\"Inducido\",TOMEOL[#Headers],0)),IF(AND($B$6=\"FV\",$B$7=\"Construcción\"),INDEX(TCFV[],MATCH(TablaIEIN[[#This Row],[Sector]],TCFV[Sector económico],0),MATCH(\"Inducido\",TCFV[#Headers],0)),IF(AND($B$6=\"FV\",$B$7=\"Operación y mantenimiento\"),INDEX(TOMFV[],MATCH(TablaIEIN[[#This Row],[Sector]],TOMFV[Sector económico],0),MATCH(\"Inducido\",TOMFV[#Headers],0)),\"\"))))","v":31897},{"$f":"IFERROR($E$7*TablaIEIN[[#This Row],[Factor de incremento inducido del impacto economico de la inversion]],\"\")","v":0},null,null,"Transporte y Almacenamiento",{"$f":"IF(AND($K$6=\"EOL\",$K$7=\"Construcción\"),INDEX(TCEOL[],MATCH(TablaIEIN27[[#This Row],[Sector]],TCEOL[Sector económico],0),MATCH(\"Directo\",TCEOL[#Headers],0)),IF(AND($K$6=\"EOL\",$K$7=\"Operación y mantenimiento\"),INDEX(TOMEOL[],MATCH(TablaIEIN27[[#This Row],[Sector]],TOMEOL[Sector económico],0),MATCH(\"Directo\",TOMEOL[#Headers],0)),IF(AND($K$6=\"FV\",$K$7=\"Construcción\"),INDEX(TCFV[],MATCH(TablaIEIN27[[#This Row],[Sector]],TCFV[Sector económico],0),MATCH(\"Directo\",TCFV[#Headers],0)),IF(AND($K$6=\"FV\",$K$7=\"Operación y mantenimiento\"),INDEX(TOMFV[],MATCH(TablaIEIN27[[#This Row],[Sector]],TOMFV[Sector económico],0),MATCH(\"Directo\",TOMFV[#Headers],0)),\"\"))))","v":0},{"$f":"IFERROR($N$7*TablaIEIN27[[#This Row],[Factor de incremento directo del impacto economico de la inversion]],\"\")","v":0},{"$f":"IF(AND($K$6=\"EOL\",$K$7=\"Construcción\"),INDEX(TCEOL[],MATCH(TablaIEIN27[[#This Row],[Sector]],TCEOL[Sector económico],0),MATCH(\"Indirecto\",TCEOL[#Headers],0)),IF(AND($K$6=\"EOL\",$K$7=\"Operación y mantenimiento\"),INDEX(TOMEOL[],MATCH(TablaIEIN27[[#This Row],[Sector]],TOMEOL[Sector económico],0),MATCH(\"Indirecto\",TOMEOL[#Headers],0)),IF(AND($K$6=\"FV\",$K$7=\"Construcción\"),INDEX(TCFV[],MATCH(TablaIEIN27[[#This Row],[Sector]],TCFV[Sector económico],0),MATCH(\"Indirecto\",TCFV[#Headers],0)),IF(AND($K$6=\"FV\",$K$7=\"Operación y mantenimiento\"),INDEX(TOMFV[],MATCH(TablaIEIN27[[#This Row],[Sector]],TOMFV[Sector económico],0),MATCH(\"Indirecto\",TOMFV[#Headers],0)),\"\"))))","v":136},{"$f":"IFERROR($N$7*TablaIEIN27[[#This Row],[Factor de incremento indirecto del impacto economico de la inversion]],\"\")","v":0},{"$f":"IF(AND($K$6=\"EOL\",$K$7=\"Construcción\"),INDEX(TCEOL[],MATCH(TablaIEIN27[[#This Row],[Sector]],TCEOL[Sector económico],0),MATCH(\"Inducido\",TCEOL[#Headers],0)),IF(AND($K$6=\"EOL\",$K$7=\"Operación y mantenimiento\"),INDEX(TOMEOL[],MATCH(TablaIEIN27[[#This Row],[Sector]],TOMEOL[Sector económico],0),MATCH(\"Inducido\",TOMEOL[#Headers],0)),IF(AND($K$6=\"FV\",$K$7=\"Construcción\"),INDEX(TCFV[],MATCH(TablaIEIN27[[#This Row],[Sector]],TCFV[Sector económico],0),MATCH(\"Inducido\",TCFV[#Headers],0)),IF(AND($K$6=\"FV\",$K$7=\"Operación y mantenimiento\"),INDEX(TOMFV[],MATCH(TablaIEIN27[[#This Row],[Sector]],TOMFV[Sector económico],0),MATCH(\"Inducido\",TOMFV[#Headers],0)),\"\"))))","v":273},{"$f":"IFERROR($N$7*TablaIEIN27[[#This Row],[Factor de incremento inducido del impacto economico de la inversion]],\"\")","v":0},null,null,"Transporte y Almacenamiento",{"$f":"IF(AND($T$6=\"EOL\",$T$7=\"Construcción\"),INDEX(TCEOL[],MATCH(TablaIEIN9[[#This Row],[Sector]],TCEOL[Sector económico],0),MATCH(\"Directo\",TCEOL[#Headers],0)),IF(AND($T$6=\"EOL\",$T$7=\"Operación y mantenimiento\"),INDEX(TOMEOL[],MATCH(TablaIEIN9[[#This Row],[Sector]],TOMEOL[Sector económico],0),MATCH(\"Directo\",TOMEOL[#Headers],0)),IF(AND($T$6=\"FV\",$T$7=\"Construcción\"),INDEX(TCFV[],MATCH(TablaIEIN9[[#This Row],[Sector]],TCFV[Sector económico],0),MATCH(\"Directo\",TCFV[#Headers],0)),IF(AND($T$6=\"FV\",$T$7=\"Operación y mantenimiento\"),INDEX(TOMFV[],MATCH(TablaIEIN9[[#This Row],[Sector]],TOMFV[Sector económico],0),MATCH(\"Directo\",TOMFV[#Headers],0)),\"\"))))","v":51580},{"$f":"IFERROR($W$7*TablaIEIN9[[#This Row],[Factor de incremento directo del impacto economico de la inversion]],\"\")","v":0},{"$f":"IF(AND($T$6=\"EOL\",$T$7=\"Construcción\"),INDEX(TCEOL[],MATCH(TablaIEIN9[[#This Row],[Sector]],TCEOL[Sector económico],0),MATCH(\"Indirecto\",TCEOL[#Headers],0)),IF(AND($T$6=\"EOL\",$T$7=\"Operación y mantenimiento\"),INDEX(TOMEOL[],MATCH(TablaIEIN9[[#This Row],[Sector]],TOMEOL[Sector económico],0),MATCH(\"Indirecto\",TOMEOL[#Headers],0)),IF(AND($T$6=\"FV\",$T$7=\"Construcción\"),INDEX(TCFV[],MATCH(TablaIEIN9[[#This Row],[Sector]],TCFV[Sector económico],0),MATCH(\"Indirecto\",TCFV[#Headers],0)),IF(AND($T$6=\"FV\",$T$7=\"Operación y mantenimiento\"),INDEX(TOMFV[],MATCH(TablaIEIN9[[#This Row],[Sector]],TOMFV[Sector económico],0),MATCH(\"Indirecto\",TOMFV[#Headers],0)),\"\"))))","v":23495},{"$f":"IFERROR($W$7*TablaIEIN9[[#This Row],[Factor de incremento indirecto del impacto economico de la inversion]],\"\")","v":0},{"$f":"IF(AND($T$6=\"EOL\",$T$7=\"Construcción\"),INDEX(TCEOL[],MATCH(TablaIEIN9[[#This Row],[Sector]],TCEOL[Sector económico],0),MATCH(\"Inducido\",TCEOL[#Headers],0)),IF(AND($T$6=\"EOL\",$T$7=\"Operación y mantenimiento\"),INDEX(TOMEOL[],MATCH(TablaIEIN9[[#This Row],[Sector]],TOMEOL[Sector económico],0),MATCH(\"Inducido\",TOMEOL[#Headers],0)),IF(AND($T$6=\"FV\",$T$7=\"Construcción\"),INDEX(TCFV[],MATCH(TablaIEIN9[[#This Row],[Sector]],TCFV[Sector económico],0),MATCH(\"Inducido\",TCFV[#Headers],0)),IF(AND($T$6=\"FV\",$T$7=\"Operación y mantenimiento\"),INDEX(TOMFV[],MATCH(TablaIEIN9[[#This Row],[Sector]],TOMFV[Sector económico],0),MATCH(\"Inducido\",TOMFV[#Headers],0)),\"\"))))","v":30114},{"$f":"IFERROR($W$7*TablaIEIN9[[#This Row],[Factor de incremento inducido del impacto economico de la inversion]],\"\")","v":0},null,null,"Transporte y Almacenamiento",{"$f":"IF(AND($AC$6=\"EOL\",$AC$7=\"Construcción\"),INDEX(TCEOL[],MATCH(TablaIEIN929[[#This Row],[Sector]],TCEOL[Sector económico],0),MATCH(\"Directo\",TCEOL[#Headers],0)),IF(AND($AC$6=\"EOL\",$AC$7=\"Operación y mantenimiento\"),INDEX(TOMEOL[],MATCH(TablaIEIN929[[#This Row],[Sector]],TOMEOL[Sector económico],0),MATCH(\"Directo\",TOMEOL[#Headers],0)),IF(AND($AC$6=\"FV\",$AC$7=\"Construcción\"),INDEX(TCFV[],MATCH(TablaIEIN929[[#This Row],[Sector]],TCFV[Sector económico],0),MATCH(\"Directo\",TCFV[#Headers],0)),IF(AND($AC$6=\"FV\",$AC$7=\"Operación y mantenimiento\"),INDEX(TOMFV[],MATCH(TablaIEIN929[[#This Row],[Sector]],TOMFV[Sector económico],0),MATCH(\"Directo\",TOMFV[#Headers],0)),\"\"))))","v":0},{"$f":"IFERROR($AF$7*TablaIEIN929[[#This Row],[Factor de incremento directo del impacto economico de la inversion]],\"\")","v":0},{"$f":"IF(AND($AC$6=\"EOL\",$AC$7=\"Construcción\"),INDEX(TCEOL[],MATCH(TablaIEIN929[[#This Row],[Sector]],TCEOL[Sector económico],0),MATCH(\"Indirecto\",TCEOL[#Headers],0)),IF(AND($AC$6=\"EOL\",$AC$7=\"Operación y mantenimiento\"),INDEX(TOMEOL[],MATCH(TablaIEIN929[[#This Row],[Sector]],TOMEOL[Sector económico],0),MATCH(\"Indirecto\",TOMEOL[#Headers],0)),IF(AND($AC$6=\"FV\",$AC$7=\"Construcción\"),INDEX(TCFV[],MATCH(TablaIEIN929[[#This Row],[Sector]],TCFV[Sector económico],0),MATCH(\"Indirecto\",TCFV[#Headers],0)),IF(AND($AC$6=\"FV\",$AC$7=\"Operación y mantenimiento\"),INDEX(TOMFV[],MATCH(TablaIEIN929[[#This Row],[Sector]],TOMFV[Sector económico],0),MATCH(\"Indirecto\",TOMFV[#Headers],0)),\"\"))))","v":1193},{"$f":"IFERROR($AF$7*TablaIEIN929[[#This Row],[Factor de incremento indirecto del impacto economico de la inversion]],\"\")","v":0},{"$f":"IF(AND($AC$6=\"EOL\",$AC$7=\"Construcción\"),INDEX(TCEOL[],MATCH(TablaIEIN929[[#This Row],[Sector]],TCEOL[Sector económico],0),MATCH(\"Inducido\",TCEOL[#Headers],0)),IF(AND($AC$6=\"EOL\",$AC$7=\"Operación y mantenimiento\"),INDEX(TOMEOL[],MATCH(TablaIEIN929[[#This Row],[Sector]],TOMEOL[Sector económico],0),MATCH(\"Inducido\",TOMEOL[#Headers],0)),IF(AND($AC$6=\"FV\",$AC$7=\"Construcción\"),INDEX(TCFV[],MATCH(TablaIEIN929[[#This Row],[Sector]],TCFV[Sector económico],0),MATCH(\"Inducido\",TCFV[#Headers],0)),IF(AND($AC$6=\"FV\",$AC$7=\"Operación y mantenimiento\"),INDEX(TOMFV[],MATCH(TablaIEIN929[[#This Row],[Sector]],TOMFV[Sector económico],0),MATCH(\"Inducido\",TOMFV[#Headers],0)),\"\"))))","v":1112},{"$f":"IFERROR($AF$7*TablaIEIN929[[#This Row],[Factor de incremento inducido del impacto economico de la inversion]],\"\")","v":0}]
[null,"Información",{"$f":"IF(AND($B$6=\"EOL\",$B$7=\"Construcción\"),INDEX(TCEOL[],MATCH(TablaIEIN[[#This Row],[Sector]],TCEOL[Sector económico],0),MATCH(\"Directo\",TCEOL[#Headers],0)),IF(AND($B$6=\"EOL\",$B$7=\"Operación y mantenimiento\"),INDEX(TOMEOL[],MATCH(TablaIEIN[[#This Row],[Sector]],TOMEOL[Sector económico],0),MATCH(\"Directo\",TOMEOL[#Headers],0)),IF(AND($B$6=\"FV\",$B$7=\"Construcción\"),INDEX(TCFV[],MATCH(TablaIEIN[[#This Row],[Sector]],TCFV[Sector económico],0),MATCH(\"Directo\",TCFV[#Headers],0)),IF(AND($B$6=\"FV\",$B$7=\"Operación y mantenimiento\"),INDEX(TOMFV[],MATCH(TablaIEIN[[#This Row],[Sector]],TOMFV[Sector económico],0),MATCH(\"Directo\",TOMFV[#Headers],0)),\"\"))))","v":0},{"$f":"IFERROR($E$7*TablaIEIN[[#This Row],[Factor de incremento directo del impacto economico de la inversion]],\"\")","v":0},{"$f":"IF(AND($B$6=\"EOL\",$B$7=\"Construcción\"),INDEX(TCEOL[],MATCH(TablaIEIN[[#This Row],[Sector]],TCEOL[Sector económico],0),MATCH(\"Indirecto\",TCEOL[#Headers],0)),IF(AND($B$6=\"EOL\",$B$7=\"Operación y mantenimiento\"),INDEX(TOMEOL[],MATCH(TablaIEIN[[#This Row],[Sector]],TOMEOL[Sector económico],0),MATCH(\"Indirecto\",TOMEOL[#Headers],0)),IF(AND($B$6=\"FV\",$B$7=\"Construcción\"),INDEX(TCFV[],MATCH(TablaIEIN[[#This Row],[Sector]],TCFV[Sector económico],0),MATCH(\"Indirecto\",TCFV[#Headers],0)),IF(AND($B$6=\"FV\",$B$7=\"Operación y mantenimiento\"),INDEX(TOMFV[],MATCH(TablaIEIN[[#This Row],[Sector]],TOMFV[Sector económico],0),MATCH(\"Indirecto\",TOMFV[#Headers],0)),\"\"))))","v":7953},{"$f":"IFERROR($E$7*TablaIEIN[[#This Row],[Factor de incremento indirecto del impacto economico de la inversion]],\"\")","v":0},{"$f":"IF(AND($B$6=\"EOL\",$B$7=\"Construcción\"),INDEX(TCEOL[],MATCH(TablaIEIN[[#This Row],[Sector]],TCEOL[Sector económico],0),MATCH(\"Inducido\",TCEOL[#Headers],0)),IF(AND($B$6=\"EOL\",$B$7=\"Operación y mantenimiento\"),INDEX(TOMEOL[],MATCH(TablaIEIN[[#This Row],[Sector]],TOMEOL[Sector económico],0),MATCH(\"Inducido\",TOMEOL[#Headers],0)),IF(AND($B$6=\"FV\",$B$7=\"Construcción\"),INDEX(TCFV[],MATCH(TablaIEIN[[#This Row],[Sector]],TCFV[Sector económico],0),MATCH(\"Inducido\",TCFV[#Headers],0)),IF(AND($B$6=\"FV\",$B$7=\"Operación y mantenimiento\"),INDEX(TOMFV[],MATCH(TablaIEIN[[#This Row],[Sector]],TOMFV[Sector económico],0),MATCH(\"Inducido\",TOMFV[#Headers],0)),\"\"))))","v":10378},{"$f":"IFERROR($E$7*TablaIEIN[[#This Row],[Factor de incremento inducido del impacto economico de la inversion]],\"\")","v":0},null,null,"Información",{"$f":"IF(AND($K$6=\"EOL\",$K$7=\"Construcción\"),INDEX(TCEOL[],MATCH(TablaIEIN27[[#This Row],[Sector]],TCEOL[Sector económico],0),MATCH(\"Directo\",TCEOL[#Headers],0)),IF(AND($K$6=\"EOL\",$K$7=\"Operación y mantenimiento\"),INDEX(TOMEOL[],MATCH(TablaIEIN27[[#This Row],[Sector]],TOMEOL[Sector económico],0),MATCH(\"Directo\",TOMEOL[#Headers],0)),IF(AND($K$6=\"FV\",$K$7=\"Construcción\"),INDEX(TCFV[],MATCH(TablaIEIN27[[#This Row],[Sector]],TCFV[Sector económico],0),MATCH(\"Directo\",TCFV[#Headers],0)),IF(AND($K$6=\"FV\",$K$7=\"Operación y mantenimiento\"),INDEX(TOMFV[],MATCH(TablaIEIN27[[#This Row],[Sector]],TOMFV[Sector económico],0),MATCH(\"Directo\",TOMFV[#Headers],0)),\"\"))))","v":0},{"$f":"IFERROR($N$7*TablaIEIN27[[#This Row],[Factor de incremento directo del impacto economico de la inversion]],\"\")","v":0},{"$f":"IF(AND($K$6=\"EOL\",$K$7=\"Construcción\"),INDEX(TCEOL[],MATCH(TablaIEIN27[[#This Row],[Sector]],TCEOL[Sector económico],0),MATCH(\"Indirecto\",TCEOL[#Headers],0)),IF(AND($K$6=\"EOL\",$K$7=\"Operación y mantenimiento\"),INDEX(TOMEOL[],MATCH(TablaIEIN27[[#This Row],[Sector]],TOMEOL[Sector económico],0),MATCH(\"Indirecto\",TOMEOL[#Headers],0)),IF(AND($K$6=\"FV\",$K$7=\"Construcción\"),INDEX(TCFV[],MATCH(TablaIEIN27[[#This Row],[Sector]],TCFV[Sector económico],0),MATCH(\"Indirecto\",TCFV[#Headers],0)),IF(AND($K$6=\"FV\",$K$7=\"Operación y mantenimiento\"),INDEX(TOMFV[],MATCH(TablaIEIN27[[#This Row],[Sector]],TOMFV[Sector económico],0),MATCH(\"Indirecto\",TOMFV[#Headers],0)),\"\"))))","v":73},{"$f":"IFERROR($N$7*TablaIEIN27[[#This Row],[Factor de incremento indirecto del impacto economico de la inversion]],\"\")","v":0},{"$f":"IF(AND($K$6=\"EOL\",$K$7=\"Construcción\"),INDEX(TCEOL[],MATCH(TablaIEIN27[[#This Row],[Sector]],TCEOL[Sector económico],0),MATCH(\"Inducido\",TCEOL[#Headers],0)),IF(AND($K$6=\"EOL\",$K$7=\"Operación y mantenimiento\"),INDEX(TOMEOL[],MATCH(TablaIEIN27[[#This Row],[Sector]],TOMEOL[Sector económico],0),MATCH(\"Inducido\",TOMEOL[#Headers],0)),IF(AND($K$6=\"FV\",$K$7=\"Construcción\"),INDEX(TCFV[],MATCH(TablaIEIN27[[#This Row],[Sector]],TCFV[Sector económico],0),MATCH(\"Inducido\",TCFV[#Headers],0)),IF(AND($K$6=\"FV\",$K$7=\"Operación y mantenimiento\"),INDEX(TOMFV[],MATCH(TablaIEIN27[[#This Row],[Sector]],TOMFV[Sector económico],0),MATCH(\"Inducido\",TOMFV[#Headers],0)),\"\"))))","v":89},{"$f":"IFERROR($N$7*TablaIEIN27[[#This Row],[Factor de incremento inducido del impacto economico de la inversion]],\"\")","v":0},null,null,"Información",{"$f":"IF(AND($T$6=\"EOL\",$T$7=\"Construcción\"),INDEX(TCEOL[],MATCH(TablaIEIN9[[#This Row],[Sector]],TCEOL[Sector económico],0),MATCH(\"Directo\",TCEOL[#Headers],0)),IF(AND($T$6=\"EOL\",$T$7=\"Operación y mantenimiento\"),INDEX(TOMEOL[],MATCH(TablaIEIN9[[#This Row],[Sector]],TOMEOL[Sector económico],0),MATCH(\"Directo\",TOMEOL[#Headers],0)),IF(AND($T$6=\"FV\",$T$7=\"Construcción\"),INDEX(TCFV[],MATCH(TablaIEIN9[[#This Row],[Sector]],TCFV[Sector económico],0),MATCH(\"Directo\",TCFV[#Headers],0)),IF(AND($T$6=\"FV\",$T$7=\"Operación y mantenimiento\"),INDEX(TOMFV[],MATCH(TablaIEIN9[[#This Row],[Sector]],TOMFV[Sector económico],0),MATCH(\"Directo\",TOMFV[#Headers],0)),\"\"))))","v":0},{"$f":"IFERROR($W$7*TablaIEIN9[[#This Row],[Factor de incremento directo del impacto economico de la inversion]],\"\")","v":0},{"$f":"IF(AND($T$6=\"EOL\",$T$7=\"Construcción\"),INDEX(TCEOL[],MATCH(TablaIEIN9[[#This Row],[Sector]],TCEOL[Sector económico],0),MATCH(\"Indirecto\",TCEOL[#Headers],0)),IF(AND($T$6=\"EOL\",$T$7=\"Operación y mantenimiento\"),INDEX(TOMEOL[],MATCH(TablaIEIN9[[#This Row],[Sector]],TOMEOL[Sector económico],0),MATCH(\"Indirecto\",TOMEOL[#Headers],0)),IF(AND($T$6=\"FV\",$T$7=\"Construcción\"),INDEX(TCFV[],MATCH(TablaIEIN9[[#This Row],[Sector]],TCFV[Sector económico],0),MATCH(\"Indirecto\",TCFV[#Headers],0)),IF(AND($T$6=\"FV\",$T$7=\"Operación y mantenimiento\"),INDEX(TOMFV[],MATCH(TablaIEIN9[[#This Row],[Sector]],TOMFV[Sector económico],0),MATCH(\"Indirecto\",TOMFV[#Headers],0)),\"\"))))","v":6534},{"$f":"IFERROR($W$7*TablaIEIN9[[#This Row],[Factor de incremento indirecto del impacto economico de la inversion]],\"\")","v":0},{"$f":"IF(AND($T$6=\"EOL\",$T$7=\"Construcción\"),INDEX(TCEOL[],MATCH(TablaIEIN9[[#This Row],[Sector]],TCEOL[Sector económico],0),MATCH(\"Inducido\",TCEOL[#Headers],0)),IF(AND($T$6=\"EOL\",$T$7=\"Operación y mantenimiento\"),INDEX(TOMEOL[],MATCH(TablaIEIN9[[#This Row],[Sector]],TOMEOL[Sector económico],0),MATCH(\"Inducido\",TOMEOL[#Headers],0)),IF(AND($T$6=\"FV\",$T$7=\"Construcción\"),INDEX(TCFV[],MATCH(TablaIEIN9[[#This Row],[Sector]],TCFV[Sector económico],0),MATCH(\"Inducido\",TCFV[#Headers],0)),IF(AND($T$6=\"FV\",$T$7=\"Operación y mantenimiento\"),INDEX(TOMFV[],MATCH(TablaIEIN9[[#This Row],[Sector]],TOMFV[Sector económico],0),MATCH(\"Inducido\",TOMFV[#Headers],0)),\"\"))))","v":9798},{"$f":"IFERROR($W$7*TablaIEIN9[[#This Row],[Factor de incremento inducido del impacto economico de la inversion]],\"\")","v":0},null,null,"Información",{"$f":"IF(AND($AC$6=\"EOL\",$AC$7=\"Construcción\"),INDEX(TCEOL[],MATCH(TablaIEIN929[[#This Row],[Sector]],TCEOL[Sector económico],0),MATCH(\"Directo\",TCEOL[#Headers],0)),IF(AND($AC$6=\"EOL\",$AC$7=\"Operación y mantenimiento\"),INDEX(TOMEOL[],MATCH(TablaIEIN929[[#This Row],[Sector]],TOMEOL[Sector económico],0),MATCH(\"Directo\",TOMEOL[#Headers],0)),IF(AND($AC$6=\"FV\",$AC$7=\"Construcción\"),INDEX(TCFV[],MATCH(TablaIEIN929[[#This Row],[Sector]],TCFV[Sector económico],0),MATCH(\"Directo\",TCFV[#Headers],0)),IF(AND($AC$6=\"FV\",$AC$7=\"Operación y mantenimiento\"),INDEX(TOMFV[],MATCH(TablaIEIN929[[#This Row],[Sector]],TOMFV[Sector económico],0),MATCH(\"Directo\",TOMFV[#Headers],0)),\"\"))))","v":0},{"$f":"IFERROR($AF$7*TablaIEIN929[[#This Row],[Factor de incremento directo del impacto economico de la inversion]],\"\")","v":0},{"$f":"IF(AND($AC$6=\"EOL\",$AC$7=\"Construcción\"),INDEX(TCEOL[],MATCH(TablaIEIN929[[#This Row],[Sector]],TCEOL[Sector económico],0),MATCH(\"Indirecto\",TCEOL[#Headers],0)),IF(AND($AC$6=\"EOL\",$AC$7=\"Operación y mantenimiento\"),INDEX(TOMEOL[],MATCH(TablaIEIN929[[#This Row],[Sector]],TOMEOL[Sector económico],0),MATCH(\"Indirecto\",TOMEOL[#Headers],0)),IF(AND($AC$6=\"FV\",$AC$7=\"Construcción\"),INDEX(TCFV[],MATCH(TablaIEIN929[[#This Row],[Sector]],TCFV[Sector económico],0),MATCH(\"Indirecto\",TCFV[#Headers],0)),IF(AND($AC$6=\"FV\",$AC$7=\"Operación y mantenimiento\"),INDEX(TOMFV[],MATCH(TablaIEIN929[[#This Row],[Sector]],TOMFV[Sector económico],0),MATCH(\"Indirecto\",TOMFV[#Headers],0)),\"\"))))","v":186},{"$f":"IFERROR($AF$7*TablaIEIN929[[#This Row],[Factor de incremento indirecto del impacto economico de la inversion]],\"\")","v":0},{"$f":"IF(AND($AC$6=\"EOL\",$AC$7=\"Construcción\"),INDEX(TCEOL[],MATCH(TablaIEIN929[[#This Row],[Sector]],TCEOL[Sector económico],0),MATCH(\"Inducido\",TCEOL[#Headers],0)),IF(AND($AC$6=\"EOL\",$AC$7=\"Operación y mantenimiento\"),INDEX(TOMEOL[],MATCH(TablaIEIN929[[#This Row],[Sector]],TOMEOL[Sector económico],0),MATCH(\"Inducido\",TOMEOL[#Headers],0)),IF(AND($AC$6=\"FV\",$AC$7=\"Construcción\"),INDEX(TCFV[],MATCH(TablaIEIN929[[#This Row],[Sector]],TCFV[Sector económico],0),MATCH(\"Inducido\",TCFV[#Headers],0)),IF(AND($AC$6=\"FV\",$AC$7=\"Operación y mantenimiento\"),INDEX(TOMFV[],MATCH(TablaIEIN929[[#This Row],[Sector]],TOMFV[Sector económico],0),MATCH(\"Inducido\",TOMFV[#Headers],0)),\"\"))))","v":362},{"$f":"IFERROR($AF$7*TablaIEIN929[[#This Row],[Factor de incremento inducido del impacto economico de la inversion]],\"\")","v":0}]
[null,"Finanzas. Profesional y negocios",{"$f":"IF(AND($B$6=\"EOL\",$B$7=\"Construcción\"),INDEX(TCEOL[],MATCH(TablaIEIN[[#This Row],[Sector]],TCEOL[Sector económico],0),MATCH(\"Directo\",TCEOL[#Headers],0)),IF(AND($B$6=\"EOL\",$B$7=\"Operación y mantenimiento\"),INDEX(TOMEOL[],MATCH(TablaIEIN[[#This Row],[Sector]],TOMEOL[Sector económico],0),MATCH(\"Directo\",TOMEOL[#Headers],0)),IF(AND($B$6=\"FV\",$B$7=\"Construcción\"),INDEX(TCFV[],MATCH(TablaIEIN[[#This Row],[Sector]],TCFV[Sector económico],0),MATCH(\"Directo\",TCFV[#Headers],0)),IF(AND($B$6=\"FV\",$B$7=\"Operación y mantenimiento\"),INDEX(TOMFV[],MATCH(TablaIEIN[[#This Row],[Sector]],TOMFV[Sector económico],0),MATCH(\"Directo\",TOMFV[#Headers],0)),\"\"))))","v":37237},{"$f":"IFERROR($E$7*TablaIEIN[[#This Row],[Factor de incremento directo del impacto economico de la inversion]],\"\")","v":0},{"$f":"IF(AND($B$6=\"EOL\",$B$7=\"Construcción\"),INDEX(TCEOL[],MATCH(TablaIEIN[[#This Row],[Sector]],TCEOL[Sector económico],0),MATCH(\"Indirecto\",TCEOL[#Headers],0)),IF(AND($B$6=\"EOL\",$B$7=\"Operación y mantenimiento\"),INDEX(TOMEOL[],MATCH(TablaIEIN[[#This Row],[Sector]],TOMEOL[Sector económico],0),MATCH(\"Indirecto\",TOMEOL[#Headers],0)),IF(AND($B$6=\"FV\",$B$7=\"Construcción\"),INDEX(TCFV[],MATCH(TablaIEIN[[#This Row],[Sector]],TCFV[Sector económico],0),MATCH(\"Indirecto\",TCFV[#Headers],0)),IF(AND($B$6=\"FV\",$B$7=\"Operación y mantenimiento\"),INDEX(TOMFV[],MATCH(TablaIEIN[[#This Row],[Sector]],TOMFV[Sector económico],0),MATCH(\"Indirecto\",TOMFV[#Headers],0)),\"\"))))","v":92578},{"$f":"IFERROR($E$7*TablaIEIN[[#This Row],[Factor de incremento indirecto del impacto economico de la inversion]],\"\")","v":0},{"$f":"IF(AND($B$6=\"EOL\",$B$7=\"Construcción\"),INDEX(TCEOL[],MATCH(TablaIEIN[[#This Row],[Sector]],TCEOL[Sector económico],0),MATCH(\"Inducido\",TCEOL[#Headers],0)),IF(AND($B$6=\"EOL\",$B$7=\"Operación y mantenimiento\"),INDEX(TOMEOL[],MATCH(TablaIEIN[[#This Row],[Sector]],TOMEOL[Sector económico],0),MATCH(\"Inducido\",TOMEOL[#Headers],0)),IF(AND($B$6=\"FV\",$B$7=\"Construcción\"),INDEX(TCFV[],MATCH(TablaIEIN[[#This Row],[Sector]],TCFV[Sector económico],0),MATCH(\"Inducido\",TCFV[#Headers],0)),IF(AND($B$6=\"FV\",$B$7=\"Operación y mantenimiento\"),INDEX(TOMFV[],MATCH(TablaIEIN[[#This Row],[Sector]],TOMFV[Sector económico],0),MATCH(\"Inducido\",TOMFV[#Headers],0)),\"\"))))","v":105925},{"$f":"IFERROR($E$7*TablaIEIN[[#This Row],[Factor de incremento inducido del impacto economico de la inversion]],\"\")","v":0},null,null,"Finanzas. Profesional y negocios",{"$f":"IF(AND($K$6=\"EOL\",$K$7=\"Construcción\"),INDEX(TCEOL[],MATCH(TablaIEIN27[[#This Row],[Sector]],TCEOL[Sector económico],0),MATCH(\"Directo\",TCEOL[#Headers],0)),IF(AND($K$6=\"EOL\",$K$7=\"Operación y mantenimiento\"),INDEX(TOMEOL[],MATCH(TablaIEIN27[[#This Row],[Sector]],TOMEOL[Sector económico],0),MATCH(\"Directo\",TOMEOL[#Headers],0)),IF(AND($K$6=\"FV\",$K$7=\"Construcción\"),INDEX(TCFV[],MATCH(TablaIEIN27[[#This Row],[Sector]],TCFV[Sector económico],0),MATCH(\"Directo\",TCFV[#Headers],0)),IF(AND($K$6=\"FV\",$K$7=\"Operación y mantenimiento\"),INDEX(TOMFV[],MATCH(TablaIEIN27[[#This Row],[Sector]],TOMFV[Sector económico],0),MATCH(\"Directo\",TOMFV[#Headers],0)),\"\"))))","v":0},{"$f":"IFERROR($N$7*TablaIEIN27[[#This Row],[Factor de incremento directo del impacto economico de la inversion]],\"\")","v":0},{"$f":"IF(AND($K$6=\"EOL\",$K$7=\"Construcción\"),INDEX(TCEOL[],MATCH(TablaIEIN27[[#This Row],[Sector]],TCEOL[Sector económico],0),MATCH(\"Indirecto\",TCEOL[#Headers],0)),IF(AND($K$6=\"EOL\",$K$7=\"Operación y mantenimiento\"),INDEX(TOMEOL[],MATCH(TablaIEIN27[[#This Row],[Sector]],TOMEOL[Sector económico],0),MATCH(\"Indirecto\",TOMEOL[#Headers],0)),IF(AND($K$6=\"FV\",$K$7=\"Construcción\"),INDEX(TCFV[],MATCH(TablaIEIN27[[#This Row],[Sector]],TCFV[Sector económico],0),MATCH(\"Indirecto\",TCFV[#Headers],0)),IF(AND($K$6=\"FV\",$K$7=\"Operación y mantenimiento\"),INDEX(TOMFV[],MATCH(TablaIEIN27[[#This Row],[Sector]],TOMFV[Sector económico],0),MATCH(\"Indirecto\",TOMFV[#Headers],0)),\"\"))))","v":715},{"$f":"IFERROR($N$7*TablaIEIN27[[#This Row],[Factor de incremento indirecto del impacto economico de la inversion]],\"\")","v":0},{"$f":"IF(AND($K$6=\"EOL\",$K$7=\"Construcción\"),INDEX(TCEOL[],MATCH(TablaIEIN27[[#This Row],[Sector]],TCEOL[Sector económico],0),MATCH(\"Inducido\",TCEOL[#Headers],0)),IF(AND($K$6=\"EOL\",$K$7=\"Operación y mantenimiento\"),INDEX(TOMEOL[],MATCH(TablaIEIN27[[#This Row],[Sector]],TOMEOL[Sector económico],0),MATCH(\"Inducido\",TOMEOL[#Headers],0)),IF(AND($K$6=\"FV\",$K$7=\"Construcción\"),INDEX(TCFV[],MATCH(TablaIEIN27[[#This Row],[Sector]],TCFV[Sector económico],0),MATCH(\"Inducido\",TCFV[#Headers],0)),IF(AND($K$6=\"FV\",$K$7=\"Operación y mantenimiento\"),INDEX(TOMFV[],MATCH(TablaIEIN27[[#This Row],[Sector]],TOMFV[Sector económico],0),MATCH(\"Inducido\",TOMFV[#Headers],0)),\"\"))))","v":907},{"$f":"IFERROR($N$7*TablaIEIN27[[#This Row],[Factor de incremento inducido del impacto economico de la inversion]],\"\")","v":0},null,null,"Finanzas. Profesional y negocios",{"$f":"IF(AND($T$6=\"EOL\",$T$7=\"Construcción\"),INDEX(TCEOL[],MATCH(TablaIEIN9[[#This Row],[Sector]],TCEOL[Sector económico],0),MATCH(\"Directo\",TCEOL[#Headers],0)),IF(AND($T$6=\"EOL\",$T$7=\"Operación y mantenimiento\"),INDEX(TOMEOL[],MATCH(TablaIEIN9[[#This Row],[Sector]],TOMEOL[Sector económico],0),MATCH(\"Directo\",TOMEOL[#Headers],0)),IF(AND($T$6=\"FV\",$T$7=\"Construcción\"),INDEX(TCFV[],MATCH(TablaIEIN9[[#This Row],[Sector]],TCFV[Sector económico],0),MATCH(\"Directo\",TCFV[#Headers],0)),IF(AND($T$6=\"FV\",$T$7=\"Operación y mantenimiento\"),INDEX(TOMFV[],MATCH(TablaIEIN9[[#This Row],[Sector]],TOMFV[Sector económico],0),MATCH(\"Directo\",TOMFV[#Headers],0)),\"\"))))","v":24840},{"$f":"IFERROR($W$7*TablaIEIN9[[#This Row],[Factor de incremento directo del impacto economico de la inversion]],\"\")","v":0},{"$f":"IF(AND($T$6=\"EOL\",$T$7=\"Construcción\"),INDEX(TCEOL[],MATCH(TablaIEIN9[[#This Row],[Sector]],TCEOL[Sector económico],0),MATCH(\"Indirecto\",TCEOL[#Headers],0)),IF(AND($T$6=\"EOL\",$T$7=\"Operación y mantenimiento\"),INDEX(TOMEOL[],MATCH(TablaIEIN9[[#This Row],[Sector]],TOMEOL[Sector económico],0),MATCH(\"Indirecto\",TOMEOL[#Headers],0)),IF(AND($T$6=\"FV\",$T$7=\"Construcción\"),INDEX(TCFV[],MATCH(TablaIEIN9[[#This Row],[Sector]],TCFV[Sector económico],0),MATCH(\"Indirecto\",TCFV[#Headers],0)),IF(AND($T$6=\"FV\",$T$7=\"Operación y mantenimiento\"),INDEX(TOMFV[],MATCH(TablaIEIN9[[#This Row],[Sector]],TOMFV[Sector económico],0),MATCH(\"Indirecto\",TOMFV[#Headers],0)),\"\"))))","v":90847},{"$f":"IFERROR($W$7*TablaIEIN9[[#This Row],[Factor de incremento indirecto del impacto economico de la inversion]],\"\")","v":0},{"$f":"IF(AND($T$6=\"EOL\",$T$7=\"Construcción\"),INDEX(TCEOL[],MATCH(TablaIEIN9[[#This Row],[Sector]],TCEOL[Sector económico],0),MATCH(\"Inducido\",TCEOL[#Headers],0)),IF(AND($T$6=\"EOL\",$T$7=\"Operación y mantenimiento\"),INDEX(TOMEOL[],MATCH(TablaIEIN9[[#This Row],[Sector]],TOMEOL[Sector económico],0),MATCH(\"Inducido\",TOMEOL[#Headers],0)),IF(AND($T$6=\"FV\",$T$7=\"Construcción\"),INDEX(TCFV[],MATCH(TablaIEIN9[[#This Row],[Sector]],TCFV[Sector económico],0),MATCH(\"Inducido\",TCFV[#Headers],0)),IF(AND($T$6=\"FV\",$T$7=\"Operación y mantenimiento\"),INDEX(TOMFV[],MATCH(TablaIEIN9[[#This Row],[Sector]],TOMFV[Sector económico],0),MATCH(\"Inducido\",TOMFV[#Headers],0)),\"\"))))","v":100006},{"$f":"IFERROR($W$7*TablaIEIN9[[#This Row],[Factor de incremento inducido del impacto economico de la inversion]],\"\")","v":0},null,null,"Finanzas. Profesional y negocios",{"$f":"IF(AND($AC$6=\"EOL\",$AC$7=\"Construcción\"),INDEX(TCEOL[],MATCH(TablaIEIN929[[#This Row],[Sector]],TCEOL[Sector económico],0),MATCH(\"Directo\",TCEOL[#Headers],0)),IF(AND($AC$6=\"EOL\",$AC$7=\"Operación y mantenimiento\"),INDEX(TOMEOL[],MATCH(TablaIEIN929[[#This Row],[Sector]],TOMEOL[Sector económico],0),MATCH(\"Directo\",TOMEOL[#Headers],0)),IF(AND($AC$6=\"FV\",$AC$7=\"Construcción\"),INDEX(TCFV[],MATCH(TablaIEIN929[[#This Row],[Sector]],TCFV[Sector económico],0),MATCH(\"Directo\",TCFV[#Headers],0)),IF(AND($AC$6=\"FV\",$AC$7=\"Operación y mantenimiento\"),INDEX(TOMFV[],MATCH(TablaIEIN929[[#This Row],[Sector]],TOMFV[Sector económico],0),MATCH(\"Directo\",TOMFV[#Headers],0)),\"\"))))","v":0},{"$f":"IFERROR($AF$7*TablaIEIN929[[#This Row],[Factor de incremento directo del impacto economico de la inversion]],\"\")","v":0},{"$f":"IF(AND($AC$6=\"EOL\",$AC$7=\"Construcción\"),INDEX(TCEOL[],MATCH(TablaIEIN929[[#This Row],[Sector]],TCEOL[Sector económico],0),MATCH(\"Indirecto\",TCEOL[#Headers],0)),IF(AND($AC$6=\"EOL\",$AC$7=\"Operación y mantenimiento\"),INDEX(TOMEOL[],MATCH(TablaIEIN929[[#This Row],[Sector]],TOMEOL[Sector económico],0),MATCH(\"Indirecto\",TOMEOL[#Headers],0)),IF(AND($AC$6=\"FV\",$AC$7=\"Construcción\"),INDEX(TCFV[],MATCH(TablaIEIN929[[#This Row],[Sector]],TCFV[Sector económico],0),MATCH(\"Indirecto\",TCFV[#Headers],0)),IF(AND($AC$6=\"FV\",$AC$7=\"Operación y mantenimiento\"),INDEX(TOMFV[],MATCH(TablaIEIN929[[#This Row],[Sector]],TOMFV[Sector económico],0),MATCH(\"Indirecto\",TOMFV[#Headers],0)),\"\"))))","v":3888},{"$f":"IFERROR($AF$7*TablaIEIN929[[#This Row],[Factor de incremento indirecto del impacto economico de la inversion]],\"\")","v":0},{"$f":"IF(AND($AC$6=\"EOL\",$AC$7=\"Construcción\"),INDEX(TCEOL[],MATCH(TablaIEIN929[[#This Row],[Sector]],TCEOL[Sector económico],0),MATCH(\"Inducido\",TCEOL[#Headers],0)),IF(AND($AC$6=\"EOL\",$AC$7=\"Operación y mantenimiento\"),INDEX(TOMEOL[],MATCH(TablaIEIN929[[#This Row],[Sector]],TOMEOL[Sector económico],0),MATCH(\"Inducido\",TOMEOL[#Headers],0)),IF(AND($AC$6=\"FV\",$AC$7=\"Construcción\"),INDEX(TCFV[],MATCH(TablaIEIN929[[#This Row],[Sector]],TCFV[Sector económico],0),MATCH(\"Inducido\",TCFV[#Headers],0)),IF(AND($AC$6=\"FV\",$AC$7=\"Operación y mantenimiento\"),INDEX(TOMFV[],MATCH(TablaIEIN929[[#This Row],[Sector]],TOMFV[Sector económico],0),MATCH(\"Inducido\",TOMFV[#Headers],0)),\"\"))))","v":3693},{"$f":"IFERROR($AF$7*TablaIEIN929[[#This Row],[Factor de incremento inducido del impacto economico de la inversion]],\"\")","v":0}]
[null,"Educación y Cuidado de la Salud",{"$f":"IF(AND($B$6=\"EOL\",$B$7=\"Construcción\"),INDEX(TCEOL[],MATCH(TablaIEIN[[#This Row],[Sector]],TCEOL[Sector económico],0),MATCH(\"Directo\",TCEOL[#Headers],0)),IF(AND($B$6=\"EOL\",$B$7=\"Operación y mantenimiento\"),INDEX(TOMEOL[],MATCH(TablaIEIN[[#This Row],[Sector]],TOMEOL[Sector económico],0),MATCH(\"Directo\",TOMEOL[#Headers],0)),IF(AND($B$6=\"FV\",$B$7=\"Construcción\"),INDEX(TCFV[],MATCH(TablaIEIN[[#This Row],[Sector]],TCFV[Sector económico],0),MATCH(\"Directo\",TCFV[#Headers],0)),IF(AND($B$6=\"FV\",$B$7=\"Operación y mantenimiento\"),INDEX(TOMFV[],MATCH(TablaIEIN[[#This Row],[Sector]],TOMFV[Sector económico],0),MATCH(\"Directo\",TOMFV[#Headers],0)),\"\"))))","v":0},{"$f":"IFERROR($E$7*TablaIEIN[[#This Row],[Factor de incremento directo del impacto economico de la inversion]],\"\")","v":0},{"$f":"IF(AND($B$6=\"EOL\",$B$7=\"Construcción\"),INDEX(TCEOL[],MATCH(TablaIEIN[[#This Row],[Sector]],TCEOL[Sector económico],0),MATCH(\"Indirecto\",TCEOL[#Headers],0)),IF(AND($B$6=\"EOL\",$B$7=\"Operación y mantenimiento\"),INDEX(TOMEOL[],MATCH(TablaIEIN[[#This Row],[Sector]],TOMEOL[Sector económico],0),MATCH(\"Indirecto\",TOMEOL[#Headers],0)),IF(AND($B$6=\"FV\",$B$7=\"Construcción\"),INDEX(TCFV[],MATCH(TablaIEIN[[#This Row],[Sector]],TCFV[Sector económico],0),MATCH(\"Indirecto\",TCFV[#Headers],0)),IF(AND($B$6=\"FV\",$B$7=\"Operación y mantenimiento\"),INDEX(TOMFV[],MATCH(TablaIEIN[[#This Row],[Sector]],TOMFV[Sector económico],0),MATCH(\"Indirecto\",TOMFV[#Headers],0)),\"\"))))","v":647},{"$f":"IFERROR($E$7*TablaIEIN[[#This Row],[Factor de incremento indirecto del impacto economico de la inversion]],\"\")","v":0},{"$f":"IF(AND($B$6=\"EOL\",$B$7=\"Construcción\"),INDEX(TCEOL[],MATCH(TablaIEIN[[#This Row],[Sector]],TCEOL[Sector económico],0),MATCH(\"Inducido\",TCEOL[#Headers],0)),IF(AND($B$6=\"EOL\",$B$7=\"Operación y mantenimiento\"),INDEX(TOMEOL[],MATCH(TablaIEIN[[#This Row],[Sector]],TOMEOL[Sector económico],0),MATCH(\"Inducido\",TOMEOL[#Headers],0)),IF(AND($B$6=\"FV\",$B$7=\"Construcción\"),INDEX(TCFV[],MATCH(TablaIEIN[[#This Row],[Sector]],TCFV[Sector económico],0),MATCH(\"Inducido\",TCFV[#Headers],0)),IF(AND($B$6=\"FV\",$B$7=\"Operación y mantenimiento\"),INDEX(TOMFV[],MATCH(TablaIEIN[[#This Row],[Sector]],TOMFV[Sector económico],0),MATCH(\"Inducido\",TOMFV[#Headers],0)),\"\"))))","v":42426},{"$f":"IFERROR($E$7*TablaIEIN[[#This Row],[Factor de incremento inducido del impacto economico de la inversion]],\"\")","v":0},null,null,"Educación y Cuidado de la Salud",{"$f":"IF(AND($K$6=\"EOL\",$K$7=\"Construcción\"),INDEX(TCEOL[],MATCH(TablaIEIN27[[#This Row],[Sector]],TCEOL[Sector económico],0),MATCH(\"Directo\",TCEOL[#Headers],0)),IF(AND($K$6=\"EOL\",$K$7=\"Operación y mantenimiento\"),INDEX(TOMEOL[],MATCH(TablaIEIN27[[#This Row],[Sector]],TOMEOL[Sector económico],0),MATCH(\"Directo\",TOMEOL[#Headers],0)),IF(AND($K$6=\"FV\",$K$7=\"Construcción\"),INDEX(TCFV[],MATCH(TablaIEIN27[[#This Row],[Sector]],TCFV[Sector económico],0),MATCH(\"Directo\",TCFV[#Headers],0)),IF(AND($K$6=\"FV\",$K$7=\"Operación y mantenimiento\"),INDEX(TOMFV[],MATCH(TablaIEIN27[[#This Row],[Sector]],TOMFV[Sector económico],0),MATCH(\"Directo\",TOMFV[#Headers],0)),\"\"))))","v":0},{"$f":"IFERROR($N$7*TablaIEIN27[[#This Row],[Factor de incremento directo del impacto economico de la inversion]],\"\")","v":0},{"$f":"IF(AND($K$6=\"EOL\",$K$7=\"Construcción\"),INDEX(TCEOL[],MATCH(TablaIEIN27[[#This Row],[Sector]],TCEOL[Sector económico],0),MATCH(\"Indirecto\",TCEOL[#Headers],0)),IF(AND($K$6=\"EOL\",$K$7=\"Operación y mantenimiento\"),INDEX(TOMEOL[],MATCH(TablaIEIN27[[#This Row],[Sector]],TOMEOL[Sector económico],0),MATCH(\"Indirecto\",TOMEOL[#Headers],0)),IF(AND($K$6=\"FV\",$K$7=\"Construcción\"),INDEX(TCFV[],MATCH(TablaIEIN27[[#This Row],[Sector]],TCFV[Sector económico],0),MATCH(\"Indirecto\",TCFV[#Headers],0)),IF(AND($K$6=\"FV\",$K$7=\"Operación y mantenimiento\"),INDEX(TOMFV[],MATCH(TablaIEIN27[[#This Row],[Sector]],TOMFV[Sector económico],0),MATCH(\"Indirecto\",TOMFV[#Headers],0)),\"\"))))","v":1},{"$f":"IFERROR($N$7*TablaIEIN27[[#This Row],[Factor de incremento indirecto del impacto economico de la inversion]],\"\")","v":0},{"$f":"IF(AND($K$6=\"EOL\",$K$7=\"Construcción\"),INDEX(TCEOL[],MATCH(TablaIEIN27[[#This Row],[Sector]],TCEOL[Sector económico],0),MATCH(\"Inducido\",TCEOL[#Headers],0)),IF(AND($K$6=\"EOL\",$K$7=\"Operación y mantenimiento\"),INDEX(TOMEOL[],MATCH(TablaIEIN27[[#This Row],[Sector]],TOMEOL[Sector económico],0),MATCH(\"Inducido\",TOMEOL[#Headers],0)),IF(AND($K$6=\"FV\",$K$7=\"Construcción\"),INDEX(TCFV[],MATCH(TablaIEIN27[[#This Row],[Sector]],TCFV[Sector económico],0),MATCH(\"Inducido\",TCFV[#Headers],0)),IF(AND($K$6=\"FV\",$K$7=\"Operación y mantenimiento\"),INDEX(TOMFV[],MATCH(TablaIEIN27[[#This Row],[Sector]],TOMFV[Sector económico],0),MATCH(\"Inducido\",TOMFV[#Headers],0)),\"\"))))","v":363},{"$f":"IFERROR($N$7*TablaIEIN27[[#This Row],[Factor de incremento inducido del impacto economico de la inversion]],\"\")","v":0},null,null,"Educación y Cuidado de la Salud",{"$f":"IF(AND($T$6=\"EOL\",$T$7=\"Construcción\"),INDEX(TCEOL[],MATCH(TablaIEIN9[[#This Row],[Sector]],TCEOL[Sector económico],0),MATCH(\"Directo\",TCEOL[#Headers],0)),IF(AND($T$6=\"EOL\",$T$7=\"Operación y mantenimiento\"),INDEX(TOMEOL[],MATCH(TablaIEIN9[[#This Row],[Sector]],TOMEOL[Sector económico],0),MATCH(\"Directo\",TOMEOL[#Headers],0)),IF(AND($T$6=\"FV\",$T$7=\"Construcción\"),INDEX(TCFV[],MATCH(TablaIEIN9[[#This Row],[Sector]],TCFV[Sector económico],0),MATCH(\"Directo\",TCFV[#Headers],0)),IF(AND($T$6=\"FV\",$T$7=\"Operación y mantenimiento\"),INDEX(TOMFV[],MATCH(TablaIEIN9[[#This Row],[Sector]],TOMFV[Sector económico],0),MATCH(\"Directo\",TOMFV[#Headers],0)),\"\"))))","v":0},{"$f":"IFERROR($W$7*TablaIEIN9[[#This Row],[Factor de incremento directo del impacto economico de la inversion]],\"\")","v":0},{"$f":"IF(AND($T$6=\"EOL\",$T$7=\"Construcción\"),INDEX(TCEOL[],MATCH(TablaIEIN9[[#This Row],[Sector]],TCEOL[Sector económico],0),MATCH(\"Indirecto\",TCEOL[#Headers],0)),IF(AND($T$6=\"EOL\",$T$7=\"Operación y mantenimiento\"),INDEX(TOMEOL[],MATCH(TablaIEIN9[[#This Row],[Sector]],TOMEOL[Sector económico],0),MATCH(\"Indirecto\",TOMEOL[#Headers],0)),IF(AND($T$6=\"FV\",$T$7=\"Construcción\"),INDEX(TCFV[],MATCH(TablaIEIN9[[#This Row],[Sector]],TCFV[Sector económico],0),MATCH(\"Indirecto\",TCFV[#Headers],0)),IF(AND($T$6=\"FV\",$T$7=\"Operación y mantenimiento\"),INDEX(TOMFV[],MATCH(TablaIEIN9[[#This Row],[Sector]],TOMFV[Sector económico],0),MATCH(\"Indirecto\",TOMFV[#Headers],0)),\"\"))))","v":369},{"$f":"IFERROR($W$7*TablaIEIN9[[#This Row],[Factor de incremento indirecto del impacto economico de la inversion]],\"\")","v":0},{"$f":"IF(AND($T$6=\"EOL\",$T$7=\"Construcción\"),INDEX(TCEOL[],MATCH(TablaIEIN9[[#This Row],[Sector]],TCEOL[Sector económico],0),MATCH(\"Inducido\",TCEOL[#Headers],0)),IF(AND($T$6=\"EOL\",$T$7=\"Operación y mantenimiento\"),INDEX(TOMEOL[],MATCH(TablaIEIN9[[#This Row],[Sector]],TOMEOL[Sector económico],0),MATCH(\"Inducido\",TOMEOL[#Headers],0)),IF(AND($T$6=\"FV\",$T$7=\"Construcción\"),INDEX(TCFV[],MATCH(TablaIEIN9[[#This Row],[Sector]],TCFV[Sector económico],0),MATCH(\"Inducido\",TCFV[#Headers],0)),IF(AND($T$6=\"FV\",$T$7=\"Operación y mantenimiento\"),INDEX(TOMFV[],MATCH(TablaIEIN9[[#This Row],[Sector]],TOMFV[Sector económico],0),MATCH(\"Inducido\",TOMFV[#Headers],0)),\"\"))))","v":40055},{"$f":"IFERROR($W$7*TablaIEIN9[[#This Row],[Factor de incremento inducido del impacto economico de la inversion]],\"\")","v":0},null,null,"Educación y Cuidado de la Salud",{"$f":"IF(AND($AC$6=\"EOL\",$AC$7=\"Construcción\"),INDEX(TCEOL[],MATCH(TablaIEIN929[[#This Row],[Sector]],TCEOL[Sector económico],0),MATCH(\"Directo\",TCEOL[#Headers],0)),IF(AND($AC$6=\"EOL\",$AC$7=\"Operación y mantenimiento\"),INDEX(TOMEOL[],MATCH(TablaIEIN929[[#This Row],[Sector]],TOMEOL[Sector económico],0),MATCH(\"Directo\",TOMEOL[#Headers],0)),IF(AND($AC$6=\"FV\",$AC$7=\"Construcción\"),INDEX(TCFV[],MATCH(TablaIEIN929[[#This Row],[Sector]],TCFV[Sector económico],0),MATCH(\"Directo\",TCFV[#Headers],0)),IF(AND($AC$6=\"FV\",$AC$7=\"Operación y mantenimiento\"),INDEX(TOMFV[],MATCH(TablaIEIN929[[#This Row],[Sector]],TOMFV[Sector económico],0),MATCH(\"Directo\",TOMFV[#Headers],0)),\"\"))))","v":0},{"$f":"IFERROR($AF$7*TablaIEIN929[[#This Row],[Factor de incremento directo del impacto economico de la inversion]],\"\")","v":0},{"$f":"IF(AND($AC$6=\"EOL\",$AC$7=\"Construcción\"),INDEX(TCEOL[],MATCH(TablaIEIN929[[#This Row],[Sector]],TCEOL[Sector económico],0),MATCH(\"Indirecto\",TCEOL[#Headers],0)),IF(AND($AC$6=\"EOL\",$AC$7=\"Operación y mantenimiento\"),INDEX(TOMEOL[],MATCH(TablaIEIN929[[#This Row],[Sector]],TOMEOL[Sector económico],0),MATCH(\"Indirecto\",TOMEOL[#Headers],0)),IF(AND($AC$6=\"FV\",$AC$7=\"Construcción\"),INDEX(TCFV[],MATCH(TablaIEIN929[[#This Row],[Sector]],TCFV[Sector económico],0),MATCH(\"Indirecto\",TCFV[#Headers],0)),IF(AND($AC$6=\"FV\",$AC$7=\"Operación y mantenimiento\"),INDEX(TOMFV[],MATCH(TablaIEIN929[[#This Row],[Sector]],TOMFV[Sector económico],0),MATCH(\"Indirecto\",TOMFV[#Headers],0)),\"\"))))","v":22},{"$f":"IFERROR($AF$7*TablaIEIN929[[#This Row],[Factor de incremento indirecto del impacto economico de la inversion]],\"\")","v":0},{"$f":"IF(AND($AC$6=\"EOL\",$AC$7=\"Construcción\"),INDEX(TCEOL[],MATCH(TablaIEIN929[[#This Row],[Sector]],TCEOL[Sector económico],0),MATCH(\"Inducido\",TCEOL[#Headers],0)),IF(AND($AC$6=\"EOL\",$AC$7=\"Operación y mantenimiento\"),INDEX(TOMEOL[],MATCH(TablaIEIN929[[#This Row],[Sector]],TOMEOL[Sector económico],0),MATCH(\"Inducido\",TOMEOL[#Headers],0)),IF(AND($AC$6=\"FV\",$AC$7=\"Construcción\"),INDEX(TCFV[],MATCH(TablaIEIN929[[#This Row],[Sector]],TCFV[Sector económico],0),MATCH(\"Inducido\",TCFV[#Headers],0)),IF(AND($AC$6=\"FV\",$AC$7=\"Operación y mantenimiento\"),INDEX(TOMFV[],MATCH(TablaIEIN929[[#This Row],[Sector]],TOMFV[Sector económico],0),MATCH(\"Inducido\",TOMFV[#Headers],0)),\"\"))))","v":1479},{"$f":"IFERROR($AF$7*TablaIEIN929[[#This Row],[Factor de incremento inducido del impacto economico de la inversion]],\"\")","v":0}]
[null,"Otros",{"$f":"IF(AND($B$6=\"EOL\",$B$7=\"Construcción\"),INDEX(TCEOL[],MATCH(TablaIEIN[[#This Row],[Sector]],TCEOL[Sector económico],0),MATCH(\"Directo\",TCEOL[#Headers],0)),IF(AND($B$6=\"EOL\",$B$7=\"Operación y mantenimiento\"),INDEX(TOMEOL[],MATCH(TablaIEIN[[#This Row],[Sector]],TOMEOL[Sector económico],0),MATCH(\"Directo\",TOMEOL[#Headers],0)),IF(AND($B$6=\"FV\",$B$7=\"Construcción\"),INDEX(TCFV[],MATCH(TablaIEIN[[#This Row],[Sector]],TCFV[Sector económico],0),MATCH(\"Directo\",TCFV[#Headers],0)),IF(AND($B$6=\"FV\",$B$7=\"Operación y mantenimiento\"),INDEX(TOMFV[],MATCH(TablaIEIN[[#This Row],[Sector]],TOMFV[Sector económico],0),MATCH(\"Directo\",TOMFV[#Headers],0)),\"\"))))","v":0},{"$f":"IFERROR($E$7*TablaIEIN[[#This Row],[Factor de incremento directo del impacto economico de la inversion]],\"\")","v":0},{"$f":"IF(AND($B$6=\"EOL\",$B$7=\"Construcción\"),INDEX(TCEOL[],MATCH(TablaIEIN[[#This Row],[Sector]],TCEOL[Sector económico],0),MATCH(\"Indirecto\",TCEOL[#Headers],0)),IF(AND($B$6=\"EOL\",$B$7=\"Operación y mantenimiento\"),INDEX(TOMEOL[],MATCH(TablaIEIN[[#This Row],[Sector]],TOMEOL[Sector económico],0),MATCH(\"Indirecto\",TOMEOL[#Headers],0)),IF(AND($B$6=\"FV\",$B$7=\"Construcción\"),INDEX(TCFV[],MATCH(TablaIEIN[[#This Row],[Sector]],TCFV[Sector económico],0),MATCH(\"Indirecto\",TCFV[#Headers],0)),IF(AND($B$6=\"FV\",$B$7=\"Operación y mantenimiento\"),INDEX(TOMFV[],MATCH(TablaIEIN[[#This Row],[Sector]],TOMFV[Sector económico],0),MATCH(\"Indirecto\",TOMFV[#Headers],0)),\"\"))))","v":4410},{"$f":"IFERROR($E$7*TablaIEIN[[#This Row],[Factor de incremento indirecto del impacto economico de la inversion]],\"\")","v":0},{"$f":"IF(AND($B$6=\"EOL\",$B$7=\"Construcción\"),INDEX(TCEOL[],MATCH(TablaIEIN[[#This Row],[Sector]],TCEOL[Sector económico],0),MATCH(\"Inducido\",TCEOL[#Headers],0)),IF(AND($B$6=\"EOL\",$B$7=\"Operación y mantenimiento\"),INDEX(TOMEOL[],MATCH(TablaIEIN[[#This Row],[Sector]],TOMEOL[Sector económico],0),MATCH(\"Inducido\",TOMEOL[#Headers],0)),IF(AND($B$6=\"FV\",$B$7=\"Construcción\"),INDEX(TCFV[],MATCH(TablaIEIN[[#This Row],[Sector]],TCFV[Sector económico],0),MATCH(\"Inducido\",TCFV[#Headers],0)),IF(AND($B$6=\"FV\",$B$7=\"Operación y mantenimiento\"),INDEX(TOMFV[],MATCH(TablaIEIN[[#This Row],[Sector]],TOMFV[Sector económico],0),MATCH(\"Inducido\",TOMFV[#Headers],0)),\"\"))))","v":18315},{"$f":"IFERROR($E$7*TablaIEIN[[#This Row],[Factor de incremento inducido del impacto economico de la inversion]],\"\")","v":0},null,null,"Otros",{"$f":"IF(AND($K$6=\"EOL\",$K$7=\"Construcción\"),INDEX(TCEOL[],MATCH(TablaIEIN27[[#This Row],[Sector]],TCEOL[Sector económico],0),MATCH(\"Directo\",TCEOL[#Headers],0)),IF(AND($K$6=\"EOL\",$K$7=\"Operación y mantenimiento\"),INDEX(TOMEOL[],MATCH(TablaIEIN27[[#This Row],[Sector]],TOMEOL[Sector económico],0),MATCH(\"Directo\",TOMEOL[#Headers],0)),IF(AND($K$6=\"FV\",$K$7=\"Construcción\"),INDEX(TCFV[],MATCH(TablaIEIN27[[#This Row],[Sector]],TCFV[Sector económico],0),MATCH(\"Directo\",TCFV[#Headers],0)),IF(AND($K$6=\"FV\",$K$7=\"Operación y mantenimiento\"),INDEX(TOMFV[],MATCH(TablaIEIN27[[#This Row],[Sector]],TOMFV[Sector económico],0),MATCH(\"Directo\",TOMFV[#Headers],0)),\"\"))))","v":0},{"$f":"IFERROR($N$7*TablaIEIN27[[#This Row],[Factor de incremento directo del impacto economico de la inversion]],\"\")","v":0},{"$f":"IF(AND($K$6=\"EOL\",$K$7=\"Construcción\"),INDEX(TCEOL[],MATCH(TablaIEIN27[[#This Row],[Sector]],TCEOL[Sector económico],0),MATCH(\"Indirecto\",TCEOL[#Headers],0)),IF(AND($K$6=\"EOL\",$K$7=\"Operación y mantenimiento\"),INDEX(TOMEOL[],MATCH(TablaIEIN27[[#This Row],[Sector]],TOMEOL[Sector económico],0),MATCH(\"Indirecto\",TOMEOL[#Headers],0)),IF(AND($K$6=\"FV\",$K$7=\"Construcción\"),INDEX(TCFV[],MATCH(TablaIEIN27[[#This Row],[Sector]],TCFV[Sector económico],0),MATCH(\"Indirecto\",TCFV[#Headers],0)),IF(AND($K$6=\"FV\",$K$7=\"Operación y mantenimiento\"),INDEX(TOMFV[],MATCH(TablaIEIN27[[#This Row],[Sector]],TOMFV[Sector económico],0),MATCH(\"Indirecto\",TOMFV[#Headers],0)),\"\"))))","v":36},{"$f":"IFERROR($N$7*TablaIEIN27[[#This Row],[Factor de incremento indirecto del impacto economico de la inversion]],\"\")","v":0},{"$f":"IF(AND($K$6=\"EOL\",$K$7=\"Construcción\"),INDEX(TCEOL[],MATCH(TablaIEIN27[[#This Row],[Sector]],TCEOL[Sector económico],0),MATCH(\"Inducido\",TCEOL[#Headers],0)),IF(AND($K$6=\"EOL\",$K$7=\"Operación y mantenimiento\"),INDEX(TOMEOL[],MATCH(TablaIEIN27[[#This Row],[Sector]],TOMEOL[Sector económico],0),MATCH(\"Inducido\",TOMEOL[#Headers],0)),IF(AND($K$6=\"FV\",$K$7=\"Construcción\"),INDEX(TCFV[],MATCH(TablaIEIN27[[#This Row],[Sector]],TCFV[Sector económico],0),MATCH(\"Inducido\",TCFV[#Headers],0)),IF(AND($K$6=\"FV\",$K$7=\"Operación y mantenimiento\"),INDEX(TOMFV[],MATCH(TablaIEIN27[[#This Row],[Sector]],TOMFV[Sector económico],0),MATCH(\"Inducido\",TOMFV[#Headers],0)),\"\"))))","v":157},{"$f":"IFERROR($N$7*TablaIEIN27[[#This Row],[Factor de incremento inducido del impacto economico de la inversion]],\"\")","v":0},null,null,"Otros",{"$f":"IF(AND($T$6=\"EOL\",$T$7=\"Construcción\"),INDEX(TCEOL[],MATCH(TablaIEIN9[[#This Row],[Sector]],TCEOL[Sector económico],0),MATCH(\"Directo\",TCEOL[#Headers],0)),IF(AND($T$6=\"EOL\",$T$7=\"Operación y mantenimiento\"),INDEX(TOMEOL[],MATCH(TablaIEIN9[[#This Row],[Sector]],TOMEOL[Sector económico],0),MATCH(\"Directo\",TOMEOL[#Headers],0)),IF(AND($T$6=\"FV\",$T$7=\"Construcción\"),INDEX(TCFV[],MATCH(TablaIEIN9[[#This Row],[Sector]],TCFV[Sector económico],0),MATCH(\"Directo\",TCFV[#Headers],0)),IF(AND($T$6=\"FV\",$T$7=\"Operación y mantenimiento\"),INDEX(TOMFV[],MATCH(TablaIEIN9[[#This Row],[Sector]],TOMFV[Sector económico],0),MATCH(\"Directo\",TOMFV[#Headers],0)),\"\"))))","v":0},{"$f":"IFERROR($W$7*TablaIEIN9[[#This Row],[Factor de incremento directo del impacto economico de la inversion]],\"\")","v":0},{"$f":"IF(AND($T$6=\"EOL\",$T$7=\"Construcción\"),INDEX(TCEOL[],MATCH(TablaIEIN9[[#This Row],[Sector]],TCEOL[Sector económico],0),MATCH(\"Indirecto\",TCEOL[#Headers],0)),IF(AND($T$6=\"EOL\",$T$7=\"Operación y mantenimiento\"),INDEX(TOMEOL[],MATCH(TablaIEIN9[[#This Row],[Sector]],TOMEOL[Sector económico],0),MATCH(\"Indirecto\",TOMEOL[#Headers],0)),IF(AND($T$6=\"FV\",$T$7=\"Construcción\"),INDEX(TCFV[],MATCH(TablaIEIN9[[#This Row],[Sector]],TCFV[Sector económico],0),MATCH(\"Indirecto\",TCFV[#Headers],0)),IF(AND($T$6=\"FV\",$T$7=\"Operación y mantenimiento\"),INDEX(TOMFV[],MATCH(TablaIEIN9[[#This Row],[Sector]],TOMFV[Sector económico],0),MATCH(\"Indirecto\",TOMFV[#Headers],0)),\"\"))))","v":4076},{"$f":"IFERROR($W$7*TablaIEIN9[[#This Row],[Factor de incremento indirecto del impacto economico de la inversion]],\"\")","v":0},{"$f":"IF(AND($T$6=\"EOL\",$T$7=\"Construcción\"),INDEX(TCEOL[],MATCH(TablaIEIN9[[#This Row],[Sector]],TCEOL[Sector económico],0),MATCH(\"Inducido\",TCEOL[#Headers],0)),IF(AND($T$6=\"EOL\",$T$7=\"Operación y mantenimiento\"),INDEX(TOMEOL[],MATCH(TablaIEIN9[[#This Row],[Sector]],TOMEOL[Sector económico],0),MATCH(\"Inducido\",TOMEOL[#Headers],0)),IF(AND($T$6=\"FV\",$T$7=\"Construcción\"),INDEX(TCFV[],MATCH(TablaIEIN9[[#This Row],[Sector]],TCFV[Sector económico],0),MATCH(\"Inducido\",TCFV[#Headers],0)),IF(AND($T$6=\"FV\",$T$7=\"Operación y mantenimiento\"),INDEX(TOMFV[],MATCH(TablaIEIN9[[#This Row],[Sector]],TOMFV[Sector económico],0),MATCH(\"Inducido\",TOMFV[#Headers],0)),\"\"))))","v":17292},{"$f":"IFERROR($W$7*TablaIEIN9[[#This Row],[Factor de incremento inducido del impacto economico de la inversion]],\"\")","v":0},null,null,"Otros",{"$f":"IF(AND($AC$6=\"EOL\",$AC$7=\"Construcción\"),INDEX(TCEOL[],MATCH(TablaIEIN929[[#This Row],[Sector]],TCEOL[Sector económico],0),MATCH(\"Directo\",TCEOL[#Headers],0)),IF(AND($AC$6=\"EOL\",$AC$7=\"Operación y mantenimiento\"),INDEX(TOMEOL[],MATCH(TablaIEIN929[[#This Row],[Sector]],TOMEOL[Sector económico],0),MATCH(\"Directo\",TOMEOL[#Headers],0)),IF(AND($AC$6=\"FV\",$AC$7=\"Construcción\"),INDEX(TCFV[],MATCH(TablaIEIN929[[#This Row],[Sector]],TCFV[Sector económico],0),MATCH(\"Directo\",TCFV[#Headers],0)),IF(AND($AC$6=\"FV\",$AC$7=\"Operación y mantenimiento\"),INDEX(TOMFV[],MATCH(TablaIEIN929[[#This Row],[Sector]],TOMFV[Sector económico],0),MATCH(\"Directo\",TOMFV[#Headers],0)),\"\"))))","v":0},{"$f":"IFERROR($AF$7*TablaIEIN929[[#This Row],[Factor de incremento directo del impacto economico de la inversion]],\"\")","v":0},{"$f":"IF(AND($AC$6=\"EOL\",$AC$7=\"Construcción\"),INDEX(TCEOL[],MATCH(TablaIEIN929[[#This Row],[Sector]],TCEOL[Sector económico],0),MATCH(\"Indirecto\",TCEOL[#Headers],0)),IF(AND($AC$6=\"EOL\",$AC$7=\"Operación y mantenimiento\"),INDEX(TOMEOL[],MATCH(TablaIEIN929[[#This Row],[Sector]],TOMEOL[Sector económico],0),MATCH(\"Indirecto\",TOMEOL[#Headers],0)),IF(AND($AC$6=\"FV\",$AC$7=\"Construcción\"),INDEX(TCFV[],MATCH(TablaIEIN929[[#This Row],[Sector]],TCFV[Sector económico],0),MATCH(\"Indirecto\",TCFV[#Headers],0)),IF(AND($AC$6=\"FV\",$AC$7=\"Operación y mantenimiento\"),INDEX(TOMFV[],MATCH(TablaIEIN929[[#This Row],[Sector]],TOMFV[Sector económico],0),MATCH(\"Indirecto\",TOMFV[#Headers],0)),\"\"))))","v":145},{"$f":"IFERROR($AF$7*TablaIEIN929[[#This Row],[Factor de incremento indirecto del impacto economico de la inversion]],\"\")","v":0},{"$f":"IF(AND($AC$6=\"EOL\",$AC$7=\"Construcción\"),INDEX(TCEOL[],MATCH(TablaIEIN929[[#This Row],[Sector]],TCEOL[Sector económico],0),MATCH(\"Inducido\",TCEOL[#Headers],0)),IF(AND($AC$6=\"EOL\",$AC$7=\"Operación y mantenimiento\"),INDEX(TOMEOL[],MATCH(TablaIEIN929[[#This Row],[Sector]],TOMEOL[Sector económico],0),MATCH(\"Inducido\",TOMEOL[#Headers],0)),IF(AND($AC$6=\"FV\",$AC$7=\"Construcción\"),INDEX(TCFV[],MATCH(TablaIEIN929[[#This Row],[Sector]],TCFV[Sector económico],0),MATCH(\"Inducido\",TCFV[#Headers],0)),IF(AND($AC$6=\"FV\",$AC$7=\"Operación y mantenimiento\"),INDEX(TOMFV[],MATCH(TablaIEIN929[[#This Row],[Sector]],TOMFV[Sector económico],0),MATCH(\"Inducido\",TOMFV[#Headers],0)),\"\"))))","v":639},{"$f":"IFERROR($AF$7*TablaIEIN929[[#This Row],[Factor de incremento inducido del impacto economico de la inversion]],\"\")","v":0}]
[null,"Total",{"$f":"SUBTOTAL(109,TablaIEIN[Factor de incremento directo del impacto economico de la inversion])","v":0},{"$f":"SUBTOTAL(109,TablaIEIN[Impacto economico de la inversion (directo)])","v":0},{"$f":"SUBTOTAL(109,TablaIEIN[Factor de incremento indirecto del impacto economico de la inversion])","v":2000},{"$f":"SUBTOTAL(109,TablaIEIN[Impacto economico de la inversion (indirecto)])","v":0},{"$f":"SUBTOTAL(109,TablaIEIN[Factor de incremento inducido del impacto economico de la inversion])","v":13545},{"$f":"SUBTOTAL(109,TablaIEIN[Impacto economico de la inversion (inducido)])","v":0},null,null,"Total",{"$f":"SUBTOTAL(109,TablaIEIN27[Factor de incremento directo del impacto economico de la inversion])","v":0},{"$f":"SUBTOTAL(109,TablaIEIN27[Impacto economico de la inversion (directo)])","v":0},{"$f":"SUBTOTAL(109,TablaIEIN27[Factor de incremento indirecto del impacto economico de la inversion])","v":20},{"$f":"SUBTOTAL(109,TablaIEIN27[Impacto economico de la inversion (indirecto)])","v":0},{"$f":"SUBTOTAL(109,TablaIEIN27[Factor de incremento inducido del impacto economico de la inversion])","v":116},{"$f":"SUBTOTAL(109,TablaIEIN27[Impacto economico de la inversion (inducido)])","v":0},null,null,"Total",{"$f":"SUBTOTAL(109,TablaIEIN9[Factor de incremento directo del impacto economico de la inversion])","v":0},{"$f":"SUBTOTAL(109,TablaIEIN9[Impacto economico de la inversion (directo)])","v":0},{"$f":"SUBTOTAL(109,TablaIEIN9[Factor de incremento indirecto del impacto economico de la inversion])","v":1585},{"$f":"SUBTOTAL(109,TablaIEIN9[Impacto economico de la inversion (indirecto)])","v":0},{"$f":"SUBTOTAL(109,TablaIEIN9[Factor de incremento inducido del impacto economico de la inversion])","v":12788},{"$f":"SUBTOTAL(109,TablaIEIN9[Impacto economico de la inversion (inducido)])","v":0},null,null,"Total",{"$f":"SUBTOTAL(109,TablaIEIN929[Factor de incremento directo del impacto economico de la inversion])","v":0},{"$f":"SUBTOTAL(109,TablaIEIN929[Impacto economico de la inversion (directo)])","v":0},{"$f":"SUBTOTAL(109,TablaIEIN929[Factor de incremento indirecto del impacto economico de la inversion])","v":688},{"$f":"SUBTOTAL(109,TablaIEIN929[Impacto economico de la inversion (indirecto)])","v":0},{"$f":"SUBTOTAL(109,TablaIEIN929[Factor de incremento inducido del impacto economico de la inversion])","v":472},{"$f":"SUBTOTAL(109,TablaIEIN929[Impacto economico de la inversion (inducido)])","v":0}]

{"sheet":"EmisionesER","index":9,"n_rows":11,"n_cols":19,"rows_kept":11,"cut":false,"hidden":true,"merged":[[1,2,2,6],[1,8,1,9],[3,2,4,6],[5,13,5,18],[5,8,5,11],[5,1,5,6]]}
[]
[null,null,"EMISIONES EVITADAS POR EL PROYECTO",null,null,null,null,null,"Buscar Acronimo",null,"FEEB",{"$f":"VLOOKUP(K2,TablaACR[],2)","v":"Factor de emisión eléctrico del EB"}]
[]
[null,null,"Este indicador refleja las emisiones de CO2e evitadas por la reducción del consumo de energía del usuario, como resultado de la implementación de MEE. Las emisiones evitadas serán expresadas en toneladas de dióxido de carbono equivalente."]
[null,null,null,null,null,null,null,null,"Objetivo","Sistemas de Generacion Distribuida"]
[null,"Emisiones evitadas por sistemas de Generacion Distribuida",null,null,null,null,null,null,"Emisiones evitadas por sistemas de Gran Escala",null,null,null,null,"Emisiones evitadas por sistemas de Generacion Aislada"]
[null,null,null,null,null,null,"Total de emisiones evitadas por Sistemas de Generacion Disribuida",null,null,null,null,"Total de emisiones evitadas por Sistemas de Gran Escala",null,null,null,null,null,null,"Total de emisiones evitadas por Sistemas de Generacion Aislada"]
[null,null,null,null,null,null,{"$f":"SUM(Tabla60[Emisiones Evitadas en Sistemas de Generacion Distribuida])","v":0},null,null,null,null,{"$f":"SUM(Tabla6073[Emisiones Evitadas en Sistemas de Gran Escala])","v":0},null,null,null,null,null,null,{"$f":"SUM(Tabla6074[Emisiones Evitadas en Sistemas de Generacion Aislada])","v":0}]
[null,"TABLA 1","[MWh]",null,"[MWh]",null,"[kg CO2eq]",null,"TABLA 2",null,"[MWh]","[kg CO2eq]",null,"TABLA 3",null,null,null,null,"[kg CO2eq]"]
[null,"ID","Consumo en Generacion Distribuida","Factor de emision en el EB","Consumo Total","Consumo renovable","Emisiones Evitadas en Sistemas de Generacion Distribuida",null,"ID","Factor de emision en el EB","Produccion de energia en el EMEE","Emisiones Evitadas en Sistemas de Gran Escala",null,"ID","Consumo asociado a Generacion Aislada","Consumo total","Factor de emision en el EMEE","Consumo renovable","Emisiones Evitadas en Sistemas de Generacion Aislada"]
[null,null,null,null,null,{"$f":"IFERROR((Tabla60[[#This Row],[Consumo en Generacion Distribuida]]/Tabla60[[#This Row],[Consumo Total]]),\"\")","v":""},{"$f":"IFERROR((Tabla60[[#This Row],[Consumo renovable]]*(INDEX(TablaFactoresdeemision[],MATCH(Tabla60[[#This Row],[Factor de emision en el EB]],TablaFactoresdeemision[Año],0),2))*Tabla60[[#This Row],[Consumo Total]]),\"\")","v":""},null,null,null,null,{"$f":"IFERROR(Tabla6073[[#This Row],[Produccion de energia en el EMEE]]*(INDEX(TablaFactoresdeemision[],MATCH(Tabla6073[[#This Row],[Factor de emision en el EB]],TablaFactoresdeemision[Año],0),2)),\"\")","v":""},null,null,null,null,null,{"$f":"IFERROR((Tabla6074[[#This Row],[Consumo asociado a Generacion Aislada]]/Tabla6074[[#This Row],[Consumo total]]),\"\")","v":""},{"$f":"IFERROR((Tabla6074[[#This Row],[Consumo total]]*Tabla6074[[#This Row],[Consumo renovable]]*(INDEX(TablaFactoresdeemision[],MATCH(Tabla6074[[#This Row],[Factor de emision en el EMEE]],TablaFactoresdeemision[Año],0),2))),\"\")","v":""}]

{"sheet":"Listas","index":10,"n_rows":36,"n_cols":81,"rows_kept":36,"cut":false,"hidden":true,"merged":[]}
[null,null,null,null,null,"Periodo",null,null,null,"Niveles de actividad - Ahorro AC",null,null,"Factor de planta por estado",null,null,"Género",null,null,null,"Tablas para Impacto Económico",null,null,null,null,null,null,null,null,null,null,null,null,null,null,null,null,null,null,null,null,null,null,null,"Consumo de electricidad por entidad",null,null,null,"Tablas para empleos directos, indirectos e inducidos",null,null,null,null,null,null,null,null,null,null,null,null,null,null,null,null,null,null,null,null,null,null,null,null,null,null,null,"Tipos de luminarias",null,"Factores de emisión anuales",null,null,"PROTECTEDbyIHC9"]
[null,null,null,null,null,null,null,null,null,null,null,null,null,null,null,null,null,null,null,"Construcción ","FV",null,null,null,null,"Construcción","EOL",null,null,null,null,"O&M","FV",null,null,null,null,"O&M","EOL",null,null,null,null,null,null,null,null,"Construcción","FV",null,null,null,null,"Construcción","EOL",null,null,null,null,"O&M","FV",null,null,null,null,"O&M","EOL"]
[]
[null,"Fases del proyecto",null,"Ciclo de vida del proyecto",null,"Meses",null,"Factores",null,"Nivel de actividad de las instalaciones","(kW)",null,"Estado","Factor de planta (FP)",null,"Género",null,"SI/NO",null,"Sector económico","Directo","Indirecto","Inducido","Total",null,"Sector económico","Directo","Indirecto","Inducido","Total",null,"Sector económico","Directo","Indirecto","Inducido","Total",null,"Sector económico","Directo","Indirecto","Inducido","Total",null,"Entidad federativa","Consumo de electricidad al año (kWh/hogar) (Ch,x)","Personas por hogar (Ph)",null,"Sector","Directo","Indirecto","Inducido","Total",null,"Sector","Directo","Indirecto","Inducido","Total",null,"Sector","Directo","Indirecto","Inducido","Total",null,"Sector","Directo","Indirecto","Inducido","Total",null,"Proyecto",null,"Etapa",null,"Tipo de Luminaria",null,"Año","Factor de emisión"]
[null,"Conceptualización",null,"Manufactura",null,1,null,0,null,"Reposo acostado",8.3000000000000004E-2,null,"Aguascalientes",5,null,"Hombre",null,"SI",null,"Agricultura",0,2000,13545,15544,null,"Agricultura",0,1585,12788,14372,null,"Agricultura",0,20,116,136,null,"Agricultura",0,688,472,516,null,"Aguascalientes",1277.3900000000001,3.97,null,"Agricultura",0,0.27300000000000002,1.8480000000000001,2.12,null,"Agricultura",0,0.216,1.744,1.9610000000000001,null,"Agricultura",0,3.0000000000000001E-3,1.6E-2,1.9E-2,null,"Agricultura",4.0000000000000001E-3,3.9E-2,0,4.2999999999999997E-2,null,"Eólica",null,"Manufactura",null,"Fluorescente",null,2000,0.60399999999999998]
[null,"Diseño",null,"Construcción",null,2,null,0.1,null,"Reposo sentado",0.104,null,"Baja California",0.1986,null,"Mujer",null,"NO",null,"Minería y Extracción",0,83959,10560,94519,null,"Minería y Extracción",0,62996,9970,72966,null,"Minería y Extracción",0,493,90,583,null,"Minería y Extracción",0,5235,368,5603,null,"Baja California",3162.04,3.24,null,"Minería y Extracción",0,0.23599999999999999,0.03,0.26600000000000001,null,"Minería y Extracción",0,0.17699999999999999,2.8000000000000001E-2,0.20499999999999999,null,"Minería y Extracción",0,1E-3,0,2E-3,null,"Minería y Extracción",1.2999999999999999E-2,1E-3,0,1.4E-2,null,"Solar",null,"Desarrollo_del_proyecto",null,"Halógeno",null,2001,0.61899999999999999]
[null,"Desarrollo",null,"Operación y mantenimiento",null,3,null,0.2,null,"Sedentaria /oficina",0.126,null,"Baja California del Sur",0.20730000000000001,null,"Otro",null,null,null,"Servicios públicos",162857,7879,5237,175973,null,"Servicios públicos",0,9226,4945,14170,null,"Servicios públicos",0,51,45,95,null,"Servicios públicos",3993,645,183,4821,null,"Baja California Sur",3079.73,3.12,null,"Servicios públicos",1.835,8.8999999999999996E-2,5.8999999999999997E-2,1.9830000000000001,null,"Servicios públicos",0,0.104,5.6000000000000001E-2,0.16,null,"Servicios públicos",0,1E-3,1E-3,1E-3,null,"Servicios públicos",3.0000000000000001E-3,1E-3,0,4.0000000000000001E-3,null,"Hidroeléctrica",null,"Construcción_e_instalación",null,"Incandescente",null,2002,0.60499999999999998]
[null,"Operación",null,"Desmantelamiento",null,4,null,0.3,null,"Caminata ligera",0.16700000000000001,null,"Chiapas",0.18709999999999999,null,"Todos",null,null,null,"Construcción",323125,25642,393,349160,null,"Construcción",229521,18558,371,248450,null,"Construcción",4228,325,3,4556,null,"Construcción",0,69,14,82,null,"Campeche",2474.38,3.7,null,"Construcción",41.956000000000003,3.3290000000000002,5.0999999999999997E-2," (45.336",null,"Construcción",29.802,2.41,4.8000000000000001E-2,32.26,null,"Construcción",0.54900000000000004,4.2000000000000003E-2,0,0.59199999999999997,null,"Construcción",4.0000000000000001E-3,1E-3,0,5.0000000000000001E-3,null,"Geotérmica",null,"Operación_y_mantenimiento",null,"LED",null,2003,0.60799999999999998]
[null,null,null,null,null,5,null,0.4,null,"Atender clientes",0.20899999999999999,null,"Chihuahua",0.20319999999999999,null,null,null,null,null,"Manufactura",0,89569,43313,132882,null,"Manufactura",216682,101014,40893,358589,null,"Manufactura",0,762,371,1133,null,"Manufactura",21568,4406,1510,27485,null,"Coahuila",2159.91,3.69,null,"Manufactura",0,3,1.609,4.6079999999999997,null,"Manufactura",10.395,3.3919999999999999,1.5189999999999999,15.305,null,"Manufactura",0,3.1E-2,1.4E-2,4.4999999999999998E-2,null,"Manufactura",5.2999999999999999E-2,2.1999999999999999E-2,0,7.3999999999999996E-2,null,"Bioenergía",null,null,null,"T12",null,2004,0.54800000000000004]
[null,null,null,null,null,6,null,0.5,null,null,null,null,"Ciudad de México A",0.17,null,null,null,null,null,"Ventas",62103,88714,57514,208330,null,"Ventas",0,81866,54300,136166,null,"Ventas",0,605,492,1097,null,"Ventas",0,4360,2005,6366,null,"Colima",1948.7,3.41,null,"Ventas",2.2170000000000001,3.1669999999999998,2.0529999999999999,7.4379999999999997,null,"Ventas",0,2.923,1.9390000000000001,4.8620000000000001,null,"Ventas",0,2.1999999999999999E-2,1.7999999999999999E-2,3.9E-2,null,"Ventas",0.11899999999999999,5.5E-2,0,0.17299999999999999,null,null,null,null,null,"T5",null,2005,0.55600000000000005]
[null,null,null,null,null,7,null,0.6,null,null,null,null,"Ciudad de México B",0.18,null,null,null,null,null,"Transporte y Almacenamiento",0,21804,31897,53701,null,"Transporte y Almacenamiento",51580,23495,30114,105189,null,"Transporte y Almacenamiento",0,136,273,409,null,"Transporte y Almacenamiento",0,1193,1112,2305,null,"Chiapas",1260.79,4.1100000000000003,null,"Transporte y Almacenamiento",0,0.83799999999999997,1.2250000000000001,2.0630000000000002,null,"Transporte y Almacenamiento",1.9810000000000001,0.90200000000000002,1.157,4.0410000000000004,null,"Transporte y Almacenamiento",0,5.0000000000000001E-3,0.01,1.6E-2,null,"Transporte y Almacenamiento",3.3000000000000002E-2,3.1E-2,0,6.5000000000000002E-2,null,null,null,null,null,"T8",null,2006,0.52500000000000002]
[null,null,null,null,null,8,null,0.7,null,null,null,null,"Ciudad de México C",0.182,null,null,null,null,null,"Información",0,7953,10378,18332,null,"Información",0,6534,9798,16332,null,"Información",0,73,89,162,null,"Información",0,186,362,548,null,"Chihuahua",1793.23,3.36,null,"Información",0,0.14299999999999999,0.186,0.32900000000000001,null,"Información",0,0.11700000000000001,0.17599999999999999,0.29299999999999998,null,"Información",0,1E-3,2E-3,3.0000000000000001E-3,null,"Información",2E-3,4.0000000000000001E-3,0,6.0000000000000001E-3,null,null,null,null,null,null,null,2007,0.51700000000000002]
[null,null,null,null,null,9,null,0.8,null,null,null,null,"Coahuila de Zaragoza",0.17349999999999999,null,null,null,null,null,"Finanzas. Profesional y negocios",37237,92578,105925,235741,null,"Finanzas. Profesional y negocios",24840,90847,100006,215693,null,"Finanzas. Profesional y negocios",0,715,907,1621,null,"Finanzas. Profesional y negocios",0,3888,3693,7581,null,"Ciudad de México",1054.9000000000001,3.31,null,"Finanzas. Profesional y negocios",3.7370000000000001,5.8049999999999997,16.436,25.977,null,"Finanzas. Profesional y negocios",2.4929999999999999,5.9109999999999996,15.518000000000001,23.920999999999999,null,"Finanzas. Profesional y negocios",0,4.1000000000000002E-2,0.14099999999999999,0.18099999999999999,null,"Finanzas. Profesional y negocios",0.20899999999999999,0.41399999999999998,0,0.623,null,null,null,null,null,null,null,2008,0.47]
[null,null,null,null,null,10,null,0.9,null,null,null,null,"Guerrero",0.1875,null,null,null,null,null,"Educación y Cuidado de la Salud",0,647,42426,43073,null,"Educación y Cuidado de la Salud",0,369,40055,40424,null,"Educación y Cuidado de la Salud",0,1,363,365,null,"Educación y Cuidado de la Salud",0,22,1479,1501,null,"Durango",1203.03,3.74,null,"Educación y Cuidado de la Salud",0,0.11799999999999999,9.0839999999999996,9.2010000000000005,null,"Educación y Cuidado de la Salud",0,6.7000000000000004E-2,8.5760000000000005,8.6430000000000007,null,"Educación y Cuidado de la Salud",0,0,7.8E-2,7.8E-2,null,"Educación y Cuidado de la Salud",4.0000000000000001E-3,0.26200000000000001,0,0.26500000000000001,null,null,null,null,null,null,null,2009,0.50600000000000001]
[null,null,null,null,null,11,null,1,null,null,null,null,"Jalisco",0.1923,null,null,null,null,null,"Otros",0,4410,18315,22725,null,"Otros",0,4076,17292,21368,null,"Otros",0,36,157,193,null,"Otros",0,145,639,783,null,"Guanajuato",1226.8599999999999,4,null,"Otros",0,0.628,2.5059999999999998,3.1339999999999999,null,"Otros",0,0.58199999999999996,2.3660000000000001,2.948,null,"Otros",0,5.0000000000000001E-3,2.1000000000000001E-2,2.7E-2,null,"Otros",1.4999999999999999E-2,6.6000000000000003E-2,0,8.1000000000000003E-2,null,null,null,null,null,null,null,2010,0.495]
[null,null,null,null,null,12,null,null,null,null,null,null,"México",0.18590000000000001,null,null,null,null,null,"Todos",585321,425155,339504,1349980,null,"Todos",522624,400565,320533,1243721,null,"Todos",4228,3217,2906,10350,null,"Todos",25561,20192,11837,57590,null,"Guerrero",1276.8,3.62,null,"Total",49.744999999999997,17.625,35.085999999999999,102.456,null,"Total",44.67,16.802,33.125999999999998,94.599000000000004,null,"Total",0.54900000000000004,0.153,0.3,1.002,null,"Total",0.45800000000000002,0.89500000000000002,0,1.353,null,null,null,null,null,null,null,2011,0.5]
[null,null,null,null,null,null,null,null,null,null,null,null,"Michoacán de Ocampo",0.19370000000000001,null,null,null,null,null,null,null,null,null,null,null,null,null,null,null,null,null,null,null,null,null,null,null,null,null,null,null,null,null,"Hidalgo",911.26,3.81,null,null,null,null,null,null,null,null,null,null,null,null,null,null,null,null,null,null,null,null,null,null,null,null,null,null,null,null,null,null,null,2012,0.51700000000000002]
[null,null,null,null,null,null,null,null,null,null,null,null,"Puebla",0.19420000000000001,null,null,null,null,null,null,null,null,null,null,null,null,null,null,null,null,null,null,null,null,null,null,null,null,null,null,null,null,null,"Jalisco",1307.48,3.75,null,null,null,null,null,null,null,null,null,null,null,null,null,null,null,null,null,null,null,null,null,null,null,null,null,null,null,null,null,null,null,2013,0.5]
[null,null,null,null,null,null,null,null,null,null,null,null,"San Luis Potosí",0.19320000000000001,null,null,null,null,null,null,null,null,null,null,null,null,null,null,null,null,null,null,null,null,null,null,null,null,null,null,null,null,null,"México",856.56,3.77,null,null,null,null,null,null,null,null,null,null,null,null,null,null,null,null,null,null,null,null,null,null,null,null,null,null,null,null,null,null,null,2014,0.45400000000000001]
[null,null,null,null,null,null,null,null,null,null,null,null,"Sonora",0.20319999999999999,null,null,null,null,null,null,null,null,null,null,null,null,null,null,null,null,null,null,null,null,null,null,null,null,null,null,null,null,null,"Michoacán",1290.07,3.72,null,null,null,null,null,null,null,null,null,null,null,null,null,null,null,null,null,null,null,null,null,null,null,null,null,null,null,null,null,null,null,2015,0.45800000000000002]
[null,null,null,null,null,null,null,null,null,null,null,null,"Veracruz de Ignacio de la llave",0.1726,null,null,null,null,null,null,null,null,null,null,null,null,null,null,null,null,null,null,null,null,null,null,null,null,null,null,null,null,null,"Morelos",1332,3.5,null,null,null,null,null,null,null,null,null,null,null,null,null,null,null,null,null,null,null,null,null,null,null,null,null,null,null,null,null,null,null,2016,0.45800000000000002]
[null,null,null,null,null,null,null,null,null,null,null,null,null,null,null,null,null,null,null,null,null,null,null,null,null,null,null,null,null,null,null,null,null,null,null,null,null,null,null,null,null,null,null,"Nayarit",1748.58,3.44,null,null,null,null,null,null,null,null,null,null,null,null,null,null,null,null,null,null,null,null,null,null,null,null,null,null,null,null,null,null,null,2017,0.58199999999999996]
[null,null,null,null,null,null,null,null,null,null,null,null,null,null,null,null,null,null,null,null,null,null,null,null,null,null,null,null,null,null,null,null,null,null,null,null,null,null,null,null,null,null,null,"Nuevo León",2967.42,3.77,null,null,null,null,null,null,null,null,null,null,null,null,null,null,null,null,null,null,null,null,null,null,null,null,null,null,null,null,null,null,null,2018,0.52700000000000002]
[null,null,null,null,null,null,null,null,null,null,null,null,null,null,null,null,null,null,null,null,null,null,null,null,null,null,null,null,null,null,null,null,null,null,null,null,null,null,null,null,null,null,null,"Oaxaca",1107.6300000000001,3.73,null,null,null,null,null,null,null,null,null,null,null,null,null,null,null,null,null,null,null,null,null,null,null,null,null,null,null,null,null,null,null,2019,0.505]
[null,null,null,null,null,null,null,null,null,null,null,null,null,null,null,null,null,null,null,null,null,null,null,null,null,null,null,null,null,null,null,null,null,null,null,null,null,null,null,null,null,null,null,"Puebla",1033.68,3.84,null,null,null,null,null,null,null,null,null,null,null,null,null,null,null,null,null,null,null,null,null,null,null,null,null,null,null,null,null,null,null,2020,0.49399999999999999]
[null,null,null,null,null,null,null,null,null,null,null,null,null,null,null,null,null,null,null,null,null,null,null,null,null,null,null,null,null,null,null,null,null,null,null,null,null,null,null,null,null,null,null,"Querétaro",1269.5899999999999,3.84]
[null,null,null,null,null,null,null,null,null,null,null,null,null,null,null,null,null,null,null,null,null,null,null,null,null,null,null,null,null,null,null,null,null,null,null,null,null,null,null,null,null,null,null,"Quintana Roo",2551.62,3.23]
[null,null,null,null,null,null,null,null,null,null,null,null,null,null,null,null,null,null,null,null,null,null,null,null,null,null,null,null,null,null,null,null,null,null,null,null,null,null,null,null,null,null,null,"San Luis Potosí",1344.77,3.69]
[null,null,null,null,null,null,null,null,null,null,null,null,null,null,null,null,null,null,null,null,null,null,null,null,null,null,null,null,null,null,null,null,null,null,null,null,null,null,null,null,null,null,null,"Sinaloa",4412.92,3.74]
[null,null,null,null,null,null,null,null,null,null,null,null,null,null,null,null,null,null,null,null,null,null,null,null,null,null,null,null,null,null,null,null,null,null,null,null,null,null,null,null,null,null,null,"Sonora",4488.42,3.41]
[null,null,null,null,null,null,null,null,null,null,null,null,null,null,null,null,null,null,null,null,null,null,null,null,null,null,null,null,null,null,null,null,null,null,null,null,null,null,null,null,null,null,null,"Tabasco",3156.87,3.81]
[null,null,null,null,null,null,null,null,null,null,null,null,null,null,null,null,null,null,null,null,null,null,null,null,null,null,null,null,null,null,null,null,null,null,null,null,null,null,null,null,null,null,null,"Tamaulipas",2786.17,3.37]
[null,null,null,null,null,null,null,null,null,null,null,null,null,null,null,null,null,null,null,null,null,null,null,null,null,null,null,null,null,null,null,null,null,null,null,null,null,null,null,null,null,null,null,"Tlaxcala",1022.3,4.0999999999999996]
[null,null,null,null,null,null,null,null,null,null,null,null,null,null,null,null,null,null,null,null,null,null,null,null,null,null,null,null,null,null,null,null,null,null,null,null,null,null,null,null,null,null,null,"Veracruz",1552.94,3.62]
[null,null,null,null,null,null,null,null,null,null,null,null,null,null,null,null,null,null,null,null,null,null,null,null,null,null,null,null,null,null,null,null,null,null,null,null,null,null,null,null,null,null,null,"Yucatán",2370.29,3.7]
[null,null,null,null,null,null,null,null,null,null,null,null,null,null,null,null,null,null,null,null,null,null,null,null,null,null,null,null,null,null,null,null,null,null,null,null,null,null,null,null,null,null,null,"Zacatecas",1158,3.8]